Workbook

Sheet Menu
Z1: 3
Z4: 2
A6: Rolling Plains Extension District - 3
D8: Budgets
D11: Forage Crops
D13: =+AlfalfaDrylandEstablish!A3 -> Dryland Alfalfa Establishment
D14: =CoastalEstab!A3 -> Coastal Bermudagrass Establishment
D15: =AlfalfaHayDryland!A3 -> Dryland Alfalfa Hay
D16: =CoastalDryland!A3 -> Coastal Bermudagrass Hay Dryland
D17: =AlfalfaIrrigatedEstablish!A3 -> Irrigated Alfalfa Establishment
B18: Machinery, Livestock and Other Assets | D18: =AlfalfaHayIrrigated!A3 -> Irrigated Alfalfa Hay
D19: =SmallGrain!A3 -> Small Grain Grazing
B20: Links | D20: ='SD Fescue'!A3 -> Summer Dormant Fescue
D22: Field Crops
B23: Make Spreadsheet Budgets
D24: =CanolaDryland!A3 -> Dryland Canola
D25: =CottonDryland2X1!A3 -> Dryland Cotton (2X1 Planting Pattern)
D26: =CottonDrylandSolid!A3 -> Dryland Cotton (Solid 40" Rows)
D27: ='Red Till Irrig Cotton'!A3 -> Cotton - Red Till Irrig
D28: ='Conv M Irrig Cotton'!A3 -> Conventional Irrig Cotton
D29: ='Conv L Irrig Cotton'!A3 -> Conventional Low Irrig Cotton
D30: ='Red Till L Irrig Cotton'!A3 -> Red Till Irrig Low Cotton
D31: ='NT Irrig L Cotton'!A3 -> NT Irrig L Cotton
D32: ='NT Irrig M Cotton'!A3 -> Cotton - No-Till Irrigated
D33: ='NT-CC2 Irr M Cotton'!A3 -> Cotton NT - Cover Crop Wheat Irrig
D34: ='NT-CC Irrig M Cotton'!A3 -> NT-Cover Crop Irrig M Cotton
D35: ='NT-CC Irrig L Cotton'!A3 -> NT-Cover Crop Irrig L Cotton
D36: ='No Till Dryland Cotton'!A3 -> Cotton - No Till Dryland
D37: =CottonIrrigated!A3 -> Sprinkler Irrigated Cotton
D38: =Peanuts!A3 -> Irrigated Peanuts
D39: =SorghumDryland!A3 -> Dryland Sorghum
D40: =WheatDryland!A3 -> Dryland Wheat
D41: ='NoTill Wheat Dryland'!A3 -> Dryland Wheat - No till
D42: ='Wheat Irrigated'!A3 -> Irrigated Wheat
D43: ='OrganicWheat Year 3'!A3 -> Organic wheat Y3
D44: ='Organic Summer HayCrop'!A3 -> Organic summer Hay Crop
D45: =OrganicDrylandWheat!A3 -> Organic Wheat Y1
D47: Livestock
D49: =+CowCalf!A3 -> Rolling Plains Cow-Calf Production
D50: =+StockersMar1!A3 -> Stocker Calf Budget - Pull off Wheat March 1
D51: =StockerGrazeOut!A3 -> Stocker Calf Budget - Grazeout
D53: Other Budgets
D55: ='Livestock Budget'!A3 -> Livestock Budget
D56: ='Crop Budget'!A3 -> Crop Enterprise
A73: Developed by Francisco Abelló, Assistant Professor and Extension Specialist, Texas A&M AgriLife Extension, 940-647-3908

Sheet Links
B2: Texas Crop and Livestock Budgets
B3: A Program of the Texas A&M AgriLife Extension Service
B4: Agricultural Economics Department, The Texas A&M University System
B6: Developed by Texas A&M AgriLife Extension Service Economists and Other Specialists
B8: Contact Us | G8: Clickable Logos
B10: Resources
B12: Decision Aids (includes Machinery Cost Estimator)
B14: Custom Rate Survey
B16: Basis Data
B18: Master Marketer
B20: Extension Ag Economics
B22: Department of Agricultural Economics
B24: Menu Page
B26: Links last checked 11/14/2024

Sheet AlfalfaDrylandEstablish
A1: Projections for Planning Purposes Only -- Not to be Used without Updating
A2: 2025 Estimated Costs and Returns per Acre
A3: Dryland Alfalfa Establishment
A4: Enter your name for this budget in the cell above.
A5: Enter Your Values in the cells highlighed in MAROON.
E6: Your Acres | R6: Your
C7: Crop Acres | D7: 100 | L7: Your | Q7: Enterprise | R7: Enterprise
E8: Your | H8: Your | I8: Cash | J8: Your | K8: Landlord | L8: Landlord | N8: Your | P8: Your | Q8: Total | R8: Total
A9: REVENUE | D9: Quantity | E9: Quantity | F9: Units | G9: $/Unit | H9: $/Unit | I9: Total | J9: Total | K9: Share | L9: Share | M9: Landlord | N9: Landlord | O9: Tenant | P9: Tenant | Q9: (100 acres) | R9: ="(" & E7 & " acres)" -> ( acres)
B10: 0 | D10: 0 | G10: 0 | I10: 0 | J10: =E10*H10 -> 0 | K10: 0 | M10: 0 | N10: =J10*L10 -> 0 | O10: 0 | P10: =+J10-N10 -> 0 | Q10: 0 | R10: =+J10*E$7 -> 0
D11: 0 | G11: 0 | I11: 0 | J11: 0 | K11: 0 | M11: 0 | N11: 0 | O11: 0 | P11: 0 | Q11: 0 | R11: 0
D12: 0 | G12: 0 | I12: 0 | J12: 0 | K12: 0 | M12: 0 | N12: 0 | O12: 0 | P12: 0 | Q12: 0 | R12: 0
A13: Total Revenue | I13: 0 | J13: =SUM(J10:J12) -> 0 | M13: 0 | N13: =SUM(N10:N12) -> 0 | O13: 0 | P13: =SUM(P10:P12) -> 0 | Q13: 0 | R13: =SUM(R10:R12) -> 0
Q14: Enterprise | R14: Enterprise
A15: VARIABLE COSTS | D15: Quantity | E15: Quantity | F15: Units | G15: $/Unit | H15: $/Unit | I15: Total | J15: Total | K15: Share | L15: Share | M15: Landlord | N15: Landlord | O15: Tenant | P15: Tenant | Q15: Total | R15: Total
A16: Production Costs
B17: Fertilizer
C18: Fertilizer (N) | D18: 40 | F18: Pound | G18: 0.505 | I18: 20.2 | J18: =E18*H18 -> 0 | K18: 0 | M18: 0 | N18: =J18*L18 -> 0 | O18: 20.2 | P18: =+J18-N18 -> 0 | Q18: 2020 | R18: =+J18*E$7 -> 0
C19: Fertilizer (P) | D19: 80 | F19: Pound | G19: 0.60657 | I19: 48.5256 | J19: 0 | K19: 0 | M19: 0 | N19: 0 | O19: 48.5256 | P19: 0 | Q19: 4852.56 | R19: 0
C20: Potash (K) | D20: 40 | F20: Pound | G20: 0.39 | I20: 15.6 | J20: 0 | K20: 0 | M20: 0 | N20: 0 | O20: 15.6 | P20: 0 | Q20: 1560 | R20: 0
C21: Sulfur | D21: 12 | F21: Pound | G21: 0.3 | I21: 3.6 | J21: 0 | K21: 0 | M21: 0 | N21: 0 | O21: 3.6 | P21: 0 | Q21: 360 | R21: 0
B22: Herbicide
C23: Herbicide Application | D23: 1 | F23: Acre | G23: 5.5 | I23: 5.5 | J23: 0 | K23: 0 | M23: 0 | N23: 0 | O23: 5.5 | P23: 0 | Q23: 550 | R23: 0
C24: Glyphosate | D24: 2 | F24: Pint | G24: 2.18 | I24: 4.36 | J24: 0 | K24: 0 | M24: 0 | N24: 0 | O24: 4.36 | P24: 0 | Q24: 436 | R24: 0
B25: Seed
C26: Alfalfa Seed | D26: 20 | F26: Acre | G26: 5.75 | I26: 115 | J26: 0 | K26: 0 | M26: 0 | N26: 0 | O26: 115 | P26: 0 | Q26: 11500 | R26: 0
D27: 0 | G27: 0 | I27: 0 | J27: 0 | K27: 0 | M27: 0 | N27: 0 | O27: 0 | P27: 0 | Q27: 0 | R27: 0
D28: 0 | G28: 0 | I28: 0 | J28: 0 | K28: 0 | M28: 0 | N28: 0 | O28: 0 | P28: 0 | Q28: 0 | R28: 0
D29: 0 | G29: 0 | I29: 0 | J29: =E29*H29 -> 0 | K29: 0 | M29: 0 | N29: =J29*L29 -> 0 | O29: 0 | P29: =+J29-N29 -> 0 | Q29: 0 | R29: =+J29*E$7 -> 0
B30: Machinery Labor
C31: Tractors/Self-Propelled | D31: 0.32 | F31: Hour | G31: 15 | I31: 4.8 | J31: =E31*H31 -> 0 | K31: 0 | M31: 0 | N31: =J31*L31 -> 0 | O31: 4.8 | P31: =+J31-N31 -> 0 | Q31: 480 | R31: =+J31*E$7 -> 0
C32: Other Labor | D32: 0.35 | F32: Hour | G32: 15 | I32: 5.25 | J32: =E32*H32 -> 0 | K32: 0 | M32: 0 | N32: =J32*L32 -> 0 | O32: 5.25 | P32: =+J32-N32 -> 0 | Q32: 525 | R32: =+J32*E$7 -> 0
B34: Diesel Fuel
C35: Pickup/General Use Equipment | D35: 1 | F35: Acre | G35: 0 | I35: 0 | J35: =E35*H35 -> 0 | K35: 0 | M35: 0 | N35: =J35*L35 -> 0 | O35: 0 | P35: =+J35-N35 -> 0 | Q35: 0 | R35: =+J35*E$7 -> 0
C36: Tractors/Self-Propelled | D36: 2.16 | F36: Gallon | G36: 2.59 | I36: 5.5944 | J36: =E36*H36 -> 0 | K36: 0 | M36: 0 | N36: =J36*L36 -> 0 | O36: 5.5944 | P36: =+J36-N36 -> 0 | Q36: 559.44 | R36: =+J36*E$7 -> 0
B38: Gasoline
C39: Pickup/General Use Equipment | D39: 1 | F39: Acre | G39: 9 | I39: 9 | J39: =E39*H39 -> 0 | K39: 0 | M39: 0 | N39: =J39*L39 -> 0 | O39: 9 | P39: =+J39-N39 -> 0 | Q39: 900 | R39: =+J39*E$7 -> 0
C40: Tractors/Self-Propelled | D40: 0 | F40: Gallon | G40: 3.1 | I40: 0 | J40: =E40*H40 -> 0 | K40: 0 | M40: 0 | N40: =J40*L40 -> 0 | O40: 0 | P40: =+J40-N40 -> 0 | Q40: 0 | R40: =+J40*E$7 -> 0
B42: Repairs & Maintenance
C43: Pickup/General Use Equipment | D43: 1 | F43: Acre | G43: 3 | I43: 3 | J43: =E43*H43 -> 0 | K43: 0 | M43: 0 | N43: =J43*L43 -> 0 | O43: 3 | P43: =+J43-N43 -> 0 | Q43: 300 | R43: =+J43*E$7 -> 0
C44: Irrigation Equipment | D44: 1 | F44: Acre | G44: 0 | I44: 0 | J44: 0 | K44: 0 | M44: 0 | N44: 0 | O44: 0 | P44: 0 | Q44: 0 | R44: 0
C45: Tractors/Self-Propelled | D45: 1 | F45: Acre | G45: 4.435284411 | I45: 4.435284411 | J45: 0 | K45: 0 | M45: 0 | N45: 0 | O45: 4.435284411 | P45: 0 | Q45: 443.5284411 | R45: 0
C46: Implements | D46: 1 | F46: Acre | G46: 4.602419348 | I46: 4.602419348 | J46: 0 | K46: 0 | M46: 0 | N46: 0 | O46: 4.602419348 | P46: 0 | Q46: 460.2419348 | R46: 0
I47: 0 | J47: 0 | K47: 0 | M47: 0 | N47: 0 | O47: 0 | P47: 0 | Q47: 0 | R47: =+J47*E$7 -> 0
I48: 0 | J48: 0 | K48: 0 | M48: 0 | N48: 0 | O48: 0 | P48: 0 | Q48: 0 | R48: 0
B49: Interest on Credit Line | G49: 0.09 | I49: 3.046596862 | J49: =+SUM(J17:J48)/2*H49 -> 0 | M49: 0 | N49: =+SUM(N17:N48)/2*L49 -> 0 | O49: 3.046596862 | P49: =+SUM(P17:P48)/2*L49 -> 0 | Q49: 304.6596862 | R49: =+J49*E$7 -> 0
A50: Total Variable Costs | I50: 252.5143006 | J50: =SUM(J18:J49) -> 0 | M50: 0 | N50: =SUM(N18:N49) -> 0 | O50: 252.5143006 | P50: =SUM(P18:P49) -> 0 | Q50: 25251.43006 | R50: =SUM(R18:R49) -> 0
A51: Planned Returns Above Variable Costs: | I51: -252.5143006 | J51: =+J13-J50 -> 0 | M51: 0 | N51: =+N13-N50 -> 0 | O51: -252.5143006 | P51: =+P13-P50 -> 0 | Q51: -25251.43006 | R51: =+R13-R50 -> 0
B52: Breakeven Price to Cover Variable Costs | G52: n/a | H52: =IF(E10=0,"n/a",(YVarExp-(YTotExp+YTotRet-J10))/E10) -> n/a
Q53: Enterprise | R53: Enterprise
A54: FIXED COSTS | D54: Quantity | E54: Quantity | F54: Units | G54: $/Unit | H54: $/Unit | J54: Total | K54: Share | L54: Share | M54: Landlord | N54: Landlord | O54: Tenant | P54: Tenant | Q54: Total | R54: Total
B55: Machinery Depreciation
C56: Pickup/General Use Equipment | D56: 1 | F56: Acre | G56: 4.165 | I56: 4.165 | J56: =E56*H56 -> 0 | K56: 0 | M56: 0 | N56: =J56*L56 -> 0 | O56: 4.165 | P56: =+J56-N56 -> 0 | Q56: 416.5 | R56: =+J56*E$7 -> 0
C57: Tractors/Self-Propelled | D57: 1 | F57: Acre | G57: 4.583127225 | I57: 4.583127225 | J57: 0 | K57: 0 | M57: 0 | N57: =J57*L57 -> 0 | O57: 4.583127225 | P57: 0 | Q57: 458.3127225 | R57: 0
C58: Implements | D58: 1 | F58: Acre | G58: 5.690368046 | I58: 5.690368046 | J58: 0 | K58: 0 | M58: 0 | N58: =J58*L58 -> 0 | O58: 5.690368046 | P58: 0 | Q58: 569.0368046 | R58: 0
B59: Equipment Investment
C60: Pickup/General Use Equipment | D60: 29.175 | F60: Dollars | G60: 0.08 | I60: 2.334 | J60: =E60*H60 -> 0 | K60: 0 | M60: 0 | N60: =J60*L60 -> 0 | O60: 2.334 | P60: =+J60-N60 -> 0 | Q60: 233.4 | R60: =+J60*E$7 -> 0
C61: Tractors/Self-Propelled | D61: 35.70403951 | F61: Dollars | G61: 0.08 | I61: 2.856323161 | J61: 0 | K61: 0 | M61: 0 | N61: =J61*L61 -> 0 | O61: 2.856323161 | P61: 0 | Q61: 285.6323161 | R61: 0
C62: Implements | D62: 24.34212997 | F62: Dollars | G62: 0.08 | I62: 1.947370398 | J62: 0 | K62: 0 | M62: 0 | N62: =J62*L62 -> 0 | O62: 1.947370398 | P62: 0 | Q62: 194.7370398 | R62: 0
B63: Salaried Labor | D63: 1 | F63: Acre | G63: 0 | I63: 0 | J63: 0 | K63: 0 | M63: 0 | N63: =J63*L63 -> 0 | O63: 0 | P63: =+J63-N63 -> 0 | Q63: 0 | R63: =+J63*E$7 -> 0
B64: Management Fee, Owner/Operator Labor | D64: 1 | F64: Acre | G64: 0 | I64: 0 | J64: 0 | K64: 0 | M64: 0 | N64: 0 | O64: 0 | P64: 0 | Q64: 0 | R64: 0
B65: Allocated Establishment Cost | D65: 1 | F65: Acre | G65: 0 | I65: 0 | J65: 0 | K65: 0 | M65: 0 | N65: 0 | O65: 0 | P65: 0 | Q65: 0 | R65: 0
B66: Cash Rent - Dryland Alfalfa | D66: 1 | F66: Acre | G66: 30 | I66: 30 | J66: 0 | K66: 0 | M66: 0 | N66: 0 | O66: 30 | P66: 0 | Q66: 3000 | R66: 0
B67: Property Taxes | D67: 1 | F67: Acre | G67: 0 | I67: 0 | J67: =E67*H67 -> 0 | K67: 0 | M67: 0 | N67: 0 | O67: 0 | P67: 0 | Q67: 0 | R67: =+J67*E$7 -> 0
B68: Whole Farm Insurance | D68: 1 | F68: Acre | G68: 0 | I68: 0 | J68: 0 | K68: 0 | M68: 0 | N68: 0 | O68: 0 | P68: 0 | Q68: 0 | R68: 0
D69: 1 | G69: 0 | I69: 0 | J69: 0 | K69: 0 | M69: 0 | N69: 0 | O69: 0 | P69: 0 | Q69: 0 | R69: 0
D70: 1 | G70: 0 | I70: 0 | J70: 0 | K70: 0 | M70: 0 | N70: 0 | O70: 0 | P70: 0 | Q70: 0 | R70: 0
A71: Total Fixed Costs | I71: 51.57618883 | J71: =+SUM(J56:J70) -> 0 | M71: 0 | N71: =+SUM(N56:N70) -> 0 | O71: 51.57618883 | P71: =+SUM(P56:P70) -> 0 | Q71: 5157.618883 | R71: =+SUM(R56:R70) -> 0
A72: Total Specified Costs | I72: 304.0904895 | J72: =+J50+J71 -> 0 | M72: 0 | N72: =+N50+N71 -> 0 | O72: 304.0904895 | P72: =+P50+P71 -> 0 | Q72: 30409.04895 | R72: =+R50+R71 -> 0
A74: Returns Above Specified Costs | I74: -304.0904895 | J74: =+J13-J72 -> 0 | M74: 0 | N74: =+N13-N72 -> 0 | O74: -304.0904895 | P74: =+P13-P72 -> 0 | Q74: -30409.04895 | R74: =+R13-R72 -> 0
A76: Breakeven Price to Cover Total Costs | G76: n/a | H76: =IF(E10=0,"n/a",(YTotExp-(YTotExp+YTotRet-J10))/E10) -> n/a
D78: Example Breakeven Prices
B79: Example | C79: Example | D79: To Cover | G79: To Cover
B80: Yield | C80: Yield | D80: Variable | G80: Total
B81: Percent | D81: Costs | G81: Costs
B82: 0.75 | C82: 0 | D82: 0 | G82: 0
B83: 0.9 | C83: 0 | D83: 0 | G83: 0
B84: 1 | C84: 0 | D84: 0 | G84: 0
B85: 1.1 | C85: 0 | D85: 0 | G85: 0
B86: 1.25 | C86: 0 | D86: 0 | G86: 0
A88: Developed by Francisco Abelló, Assistant Professor and Extension Specialist, Texas A&M AgriLife Extension, 940-647-3908
A90: Information presented is prepared solely as a general guide and not intended to recognize or predict the costs and returns from any one operation. Brand names are mentioned only as examples and imply no endorsement.

Sheet CoastalEstab
A1: Projections for Planning Purposes Only -- Not to be Used without Updating
A2: 2025 Estimated Costs and Returns per Acre
A3: Coastal Bermudagrass Establishment
A4: Enter your name for this budget in the cell above.
A5: Enter Your Values in the cells highlighed in MAROON.
E6: Your Acres | R6: Your
C7: Crop Acres | D7: 100 | L7: Your | Q7: Enterprise | R7: Enterprise
E8: Your | H8: Your | I8: Cash | J8: Your | K8: Landlord | L8: Landlord | N8: Your | P8: Your | Q8: Total | R8: Total
A9: REVENUE | D9: Quantity | E9: Quantity | F9: Units | G9: $/Unit | H9: $/Unit | I9: Total | J9: Total | K9: Share | L9: Share | M9: Landlord | N9: Landlord | O9: Tenant | P9: Tenant | Q9: (100 acres) | R9: ="(" & E7 & " acres)" -> ( acres)
B10: 0 | D10: 0 | G10: 0 | I10: 0 | J10: =E10*H10 -> 0 | K10: 0 | M10: 0 | N10: =J10*L10 -> 0 | O10: 0 | P10: =+J10-N10 -> 0 | Q10: 0 | R10: =+J10*E$7 -> 0
D11: 0 | G11: 0 | I11: 0 | J11: 0 | K11: 0 | M11: 0 | N11: 0 | O11: 0 | P11: 0 | Q11: 0 | R11: 0
D12: 0 | G12: 0 | I12: 0 | J12: 0 | K12: 0 | M12: 0 | N12: 0 | O12: 0 | P12: 0 | Q12: 0 | R12: 0
A13: Total Revenue | I13: 0 | J13: =SUM(J10:J12) -> 0 | M13: 0 | N13: =SUM(N10:N12) -> 0 | O13: 0 | P13: =SUM(P10:P12) -> 0 | Q13: 0 | R13: =SUM(R10:R12) -> 0
Q14: Enterprise | R14: Enterprise
A15: VARIABLE COSTS | D15: Quantity | E15: Quantity | F15: Units | G15: $/Unit | H15: $/Unit | I15: Total | J15: Total | K15: Share | L15: Share | M15: Landlord | N15: Landlord | O15: Tenant | P15: Tenant | Q15: Total | R15: Total
A16: Production Costs
B17: Fertilizer
C18: Fertilizer (N) | D18: 46 | F18: Pound | G18: 0.505 | I18: 23.23 | J18: =E18*H18 -> 0 | K18: 0 | M18: 0 | N18: =J18*L18 -> 0 | O18: 23.23 | P18: =+J18-N18 -> 0 | Q18: 2323 | R18: =+J18*E$7 -> 0
C19: Fertilizer (P) | D19: 50 | F19: Pound | G19: 0.60657 | I19: 30.3285 | J19: 0 | K19: 0 | M19: 0 | N19: 0 | O19: 30.3285 | P19: 0 | Q19: 3032.85 | R19: 0
C20: Potash (K) | D20: 25 | F20: Pound | G20: 0.39 | I20: 9.75 | J20: 0 | K20: 0 | M20: 0 | N20: 0 | O20: 9.75 | P20: 0 | Q20: 975 | R20: 0
B21: Herbicide
C22: Herbicide Application | D22: 1 | F22: Acre | G22: 5.5 | I22: 5.5 | J22: 0 | K22: 0 | M22: 0 | N22: 0 | O22: 5.5 | P22: 0 | Q22: 550 | R22: 0
C23: Roundup - Canola | D23: 1 | F23: Pint | G23: 2.18 | I23: 2.18 | J23: 0 | K23: 0 | M23: 0 | N23: 0 | O23: 2.18 | P23: 0 | Q23: 218 | R23: 0
B24: Seed
C25: Bermuda Sprigs | D25: 30 | F25: Bushel | G25: 1.5 | I25: 45 | J25: 0 | K25: 0 | M25: 0 | N25: 0 | O25: 45 | P25: 0 | Q25: 4500 | R25: 0
B26: Custom
C27: Custom Sprig | D27: 1 | F27: Acre | G27: 85 | I27: 85 | J27: 0 | K27: 0 | M27: 0 | N27: 0 | O27: 85 | P27: 0 | Q27: 8500 | R27: 0
C28: Fertilizer Application | D28: 1 | F28: Acre | G28: 5 | I28: 5 | J28: 0 | K28: 0 | M28: 0 | N28: 0 | O28: 5 | P28: 0 | Q28: 500 | R28: 0
D29: 0 | G29: 0 | I29: 0 | J29: 0 | K29: 0 | M29: 0 | N29: 0 | O29: 0 | P29: 0 | Q29: 0 | R29: 0
D30: 0 | G30: 0 | I30: 0 | J30: 0 | K30: 0 | M30: 0 | N30: 0 | O30: 0 | P30: 0 | Q30: 0 | R30: 0
D31: 0 | G31: 0 | I31: 0 | J31: =E31*H31 -> 0 | K31: 0 | M31: 0 | N31: =J31*L31 -> 0 | O31: 0 | P31: =+J31-N31 -> 0 | Q31: 0 | R31: =+J31*E$7 -> 0
B32: Machinery Labor
C33: Tractors/Self-Propelled | D33: 0.05 | F33: Hour | G33: 15 | I33: 0.75 | J33: =E33*H33 -> 0 | K33: 0 | M33: 0 | N33: =J33*L33 -> 0 | O33: 0.75 | P33: =+J33-N33 -> 0 | Q33: 75 | R33: =+J33*E$7 -> 0
C34: Other Labor | D34: 0.06 | F34: Hour | G34: 15 | I34: 0.9 | J34: =E34*H34 -> 0 | K34: 0 | M34: 0 | N34: =J34*L34 -> 0 | O34: 0.9 | P34: =+J34-N34 -> 0 | Q34: 90 | R34: =+J34*E$7 -> 0
B36: Diesel Fuel
C37: Pickup/General Use Equipment | D37: 1 | F37: Acre | G37: 0 | I37: 0 | J37: =E37*H37 -> 0 | K37: 0 | M37: 0 | N37: =J37*L37 -> 0 | O37: 0 | P37: =+J37-N37 -> 0 | Q37: 0 | R37: =+J37*E$7 -> 0
C38: Tractors/Self-Propelled | D38: 0.34 | F38: Gallon | G38: 2.59 | I38: 0.8806 | J38: =E38*H38 -> 0 | K38: 0 | M38: 0 | N38: =J38*L38 -> 0 | O38: 0.8806 | P38: =+J38-N38 -> 0 | Q38: 88.06 | R38: =+J38*E$7 -> 0
B40: Gasoline
C41: Pickup/General Use Equipment | D41: 1 | F41: Acre | G41: 9 | I41: 9 | J41: =E41*H41 -> 0 | K41: 0 | M41: 0 | N41: =J41*L41 -> 0 | O41: 9 | P41: =+J41-N41 -> 0 | Q41: 900 | R41: =+J41*E$7 -> 0
C42: Tractors/Self-Propelled | D42: 0 | F42: Gallon | G42: 3.1 | I42: 0 | J42: =E42*H42 -> 0 | K42: 0 | M42: 0 | N42: =J42*L42 -> 0 | O42: 0 | P42: =+J42-N42 -> 0 | Q42: 0 | R42: =+J42*E$7 -> 0
B44: Repairs & Maintenance
C45: Pickup/General Use Equipment | D45: 1 | F45: Acre | G45: 3 | I45: 3 | J45: =E45*H45 -> 0 | K45: 0 | M45: 0 | N45: =J45*L45 -> 0 | O45: 3 | P45: =+J45-N45 -> 0 | Q45: 300 | R45: =+J45*E$7 -> 0
C46: Irrigation Equipment | D46: 1 | F46: Acre | G46: 0 | I46: 0 | J46: 0 | K46: 0 | M46: 0 | N46: 0 | O46: 0 | P46: 0 | Q46: 0 | R46: 0
C47: Tractors/Self-Propelled | D47: 1 | F47: Acre | G47: 0.6958839545 | I47: 0.6958839545 | J47: 0 | K47: 0 | M47: 0 | N47: 0 | O47: 0.6958839545 | P47: 0 | Q47: 69.58839545 | R47: 0
C48: Implements | D48: 1 | F48: Acre | G48: 1.204222682 | I48: 1.204222682 | J48: 0 | K48: 0 | M48: 0 | N48: 0 | O48: 1.204222682 | P48: 0 | Q48: 120.4222682 | R48: 0
I49: 0 | J49: 0 | K49: 0 | M49: 0 | N49: 0 | O49: 0 | P49: 0 | Q49: 0 | R49: 0
I50: 0 | J50: 0 | K50: 0 | M50: 0 | N50: 0 | O50: 0 | P50: 0 | Q50: 0 | R50: 0
B51: Interest on Credit Line | G51: 0.09 | I51: 9.843125759 | J51: =+SUM(J17:J50)/2*H51 -> 0 | M51: 0 | N51: =+SUM(N17:N50)/2*L51 -> 0 | O51: 9.843125759 | P51: =+SUM(P17:P50)/2*L51 -> 0 | Q51: 984.3125759 | R51: =+J51*E$7 -> 0
A52: Total Variable Costs | I52: 232.2623324 | J52: =SUM(J18:J51) -> 0 | M52: 0 | N52: =SUM(N18:N51) -> 0 | O52: 232.2623324 | P52: =SUM(P18:P51) -> 0 | Q52: 23226.23324 | R52: =SUM(R18:R51) -> 0
A53: Planned Returns Above Variable Costs: | I53: -232.2623324 | J53: =+J13-J52 -> 0 | M53: 0 | N53: =+N13-N52 -> 0 | O53: -232.2623324 | P53: =+P13-P52 -> 0 | Q53: -23226.23324 | R53: =+R13-R52 -> 0
B54: Breakeven Price to Cover Variable Costs | G54: n/a | H54: =IF(E10=0,"n/a",(YVarExp-(YTotExp+YTotRet-J10))/E10) -> n/a
Q55: Enterprise | R55: Enterprise
A56: FIXED COSTS | D56: Quantity | E56: Quantity | F56: Units | G56: $/Unit | H56: $/Unit | J56: Total | K56: Share | L56: Share | M56: Landlord | N56: Landlord | O56: Tenant | P56: Tenant | Q56: Total | R56: Total
B57: Machinery Depreciation
C58: Pickup/General Use Equipment | D58: 1 | F58: Acre | G58: 4.165 | I58: 4.165 | J58: =E58*H58 -> 0 | K58: 0 | M58: 0 | N58: =J58*L58 -> 0 | O58: 4.165 | P58: =+J58-N58 -> 0 | Q58: 416.5 | R58: =+J58*E$7 -> 0
C59: Tractors/Self-Propelled | D59: 1 | F59: Acre | G59: 0.7190800863 | I59: 0.7190800863 | J59: 0 | K59: 0 | M59: 0 | N59: =J59*L59 -> 0 | O59: 0.7190800863 | P59: 0 | Q59: 71.90800863 | R59: 0
C60: Implements | D60: 1 | F60: Acre | G60: 1.548286305 | I60: 1.548286305 | J60: 0 | K60: 0 | M60: 0 | N60: =J60*L60 -> 0 | O60: 1.548286305 | P60: 0 | Q60: 154.8286305 | R60: 0
B61: Equipment Investment
C62: Pickup/General Use Equipment | D62: 29.175 | F62: Dollars | G62: 0.08 | I62: 2.334 | J62: =E62*H62 -> 0 | K62: 0 | M62: 0 | N62: =J62*L62 -> 0 | O62: 2.334 | P62: =+J62-N62 -> 0 | Q62: 233.4 | R62: =+J62*E$7 -> 0
C63: Tractors/Self-Propelled | D63: 5.601865834 | F63: Dollars | G63: 0.08 | I63: 0.4481492667 | J63: 0 | K63: 0 | M63: 0 | N63: =J63*L63 -> 0 | O63: 0.4481492667 | P63: 0 | Q63: 44.81492667 | R63: 0
C64: Implements | D64: 6.623224751 | F64: Dollars | G64: 0.08 | I64: 0.5298579801 | J64: 0 | K64: 0 | M64: 0 | N64: =J64*L64 -> 0 | O64: 0.5298579801 | P64: 0 | Q64: 52.98579801 | R64: 0
B65: Salaried Labor | D65: 1 | F65: Acre | G65: 0 | I65: 0 | J65: 0 | K65: 0 | M65: 0 | N65: =J65*L65 -> 0 | O65: 0 | P65: =+J65-N65 -> 0 | Q65: 0 | R65: =+J65*E$7 -> 0
B66: Management Fee, Owner/Operator Labor | D66: 1 | F66: Acre | G66: 0 | I66: 0 | J66: 0 | K66: 0 | M66: 0 | N66: 0 | O66: 0 | P66: 0 | Q66: 0 | R66: 0
B67: Allocated Establishment Cost | D67: 1 | F67: Acre | G67: 0 | I67: 0 | J67: 0 | K67: 0 | M67: 0 | N67: 0 | O67: 0 | P67: 0 | Q67: 0 | R67: 0
B68: None | D68: 1 | F68: Acre | G68: 0 | I68: 0 | J68: 0 | K68: 0 | M68: 0 | N68: 0 | O68: 0 | P68: 0 | Q68: 0 | R68: 0
B69: Property Taxes | D69: 1 | F69: Acre | G69: 0 | I69: 0 | J69: 0 | K69: 0 | M69: 0 | N69: 0 | O69: 0 | P69: 0 | Q69: 0 | R69: 0
B70: Whole Farm Insurance | D70: 1 | F70: Acre | G70: 0 | I70: 0 | J70: 0 | K70: 0 | M70: 0 | N70: 0 | O70: 0 | P70: 0 | Q70: 0 | R70: 0
D71: 1 | G71: 0 | I71: 0 | J71: 0 | K71: 0 | M71: 0 | N71: 0 | O71: 0 | P71: 0 | Q71: 0 | R71: 0
D72: 1 | G72: 0 | I72: 0 | J72: =E72*H72 -> 0 | K72: 0 | M72: 0 | N72: 0 | O72: 0 | P72: 0 | Q72: 0 | R72: 0
A73: Total Fixed Costs | I73: 9.744373638 | J73: =+SUM(J58:J72) -> 0 | M73: 0 | N73: =+SUM(N58:N72) -> 0 | O73: 9.744373638 | P73: =+SUM(P58:P72) -> 0 | Q73: 974.4373638 | R73: =+SUM(R58:R72) -> 0
A74: Total Specified Costs | I74: 242.006706 | J74: =+J52+J73 -> 0 | M74: 0 | N74: =+N52+N73 -> 0 | O74: 242.006706 | P74: =+P52+P73 -> 0 | Q74: 24200.6706 | R74: =+R52+R73 -> 0
A76: Returns Above Specified Costs | I76: -242.006706 | J76: =+J13-J74 -> 0 | M76: 0 | N76: =+N13-N74 -> 0 | O76: -242.006706 | P76: =+P13-P74 -> 0 | Q76: -24200.6706 | R76: =+R13-R74 -> 0
A78: Breakeven Price to Cover Total Costs | G78: n/a | H78: =IF(E10=0,"n/a",(YTotExp-(YTotExp+YTotRet-J10))/E10) -> n/a
D80: Example Breakeven Prices
B81: Example | C81: Example | D81: To Cover | G81: To Cover
B82: Yield | C82: Yield | D82: Variable | G82: Total
B83: Percent | D83: Costs | G83: Costs
B84: 0.75 | C84: 0 | D84: 0 | G84: 0
B85: 0.9 | C85: 0 | D85: 0 | G85: 0
B86: 1 | C86: 0 | D86: 0 | G86: 0
B87: 1.1 | C87: 0 | D87: 0 | G87: 0
B88: 1.25 | C88: 0 | D88: 0 | G88: 0
A90: Developed by Francisco Abelló, Assistant Professor and Extension Specialist, Texas A&M AgriLife Extension, 940-647-3908
A92: Information presented is prepared solely as a general guide and not intended to recognize or predict the costs and returns from any one operation. Brand names are mentioned only as examples and imply no endorsement.

Sheet AlfalfaHayDryland
A1: Projections for Planning Purposes Only -- Not to be Used without Updating
A2: 2025 Estimated Costs and Returns per Acre
A3: Dryland Alfalfa Hay
A4: Enter your name for this budget in the cell above.
A5: Enter Your Values in the cells highlighed in MAROON.
E6: Your Acres | R6: Your
C7: Crop Acres | D7: 100 | L7: Your | Q7: Enterprise | R7: Enterprise
E8: Your | H8: Your | I8: Cash | J8: Your | K8: Landlord | L8: Landlord | N8: Your | P8: Your | Q8: Total | R8: Total
A9: REVENUE | D9: Quantity | E9: Quantity | F9: Units | G9: $/Unit | H9: $/Unit | I9: Total | J9: Total | K9: Share | L9: Share | M9: Landlord | N9: Landlord | O9: Tenant | P9: Tenant | Q9: (100 acres) | R9: ="(" & E7 & " acres)" -> ( acres)
B10: Alfalfa Hay | D10: 3.25 | F10: Ton | G10: 250 | I10: 812.5 | J10: =E10*H10 -> 0 | K10: 0 | M10: 0 | N10: =J10*L10 -> 0 | O10: 812.5 | P10: =+J10-N10 -> 0 | Q10: 81250 | R10: =+J10*E$7 -> 0
D11: 0 | G11: 0 | I11: 0 | J11: 0 | K11: 0 | M11: 0 | N11: 0 | O11: 0 | P11: =+J11-N11 -> 0 | Q11: 0 | R11: 0
D12: 0 | G12: 0 | I12: 0 | J12: 0 | K12: 0 | M12: 0 | N12: 0 | O12: 0 | P12: 0 | Q12: 0 | R12: 0
A13: Total Revenue | I13: 812.5 | J13: =SUM(J10:J12) -> 0 | M13: 0 | N13: =SUM(N10:N12) -> 0 | O13: 812.5 | P13: =SUM(P10:P12) -> 0 | Q13: 81250 | R13: =SUM(R10:R12) -> 0
Q14: Enterprise | R14: Enterprise
A15: VARIABLE COSTS | D15: Quantity | E15: Quantity | F15: Units | G15: $/Unit | H15: $/Unit | I15: Total | J15: Total | K15: Share | L15: Share | M15: Landlord | N15: Landlord | O15: Tenant | P15: Tenant | Q15: Total | R15: Total
A16: Production Costs
B17: Custom
C18: Fertilizer Application | D18: 1 | F18: Acre | G18: 5 | I18: 5 | J18: =E18*H18 -> 0 | K18: 0 | M18: 0 | N18: =J18*L18 -> 0 | O18: 5 | P18: =+J18-N18 -> 0 | Q18: 500 | R18: =+J18*E$7 -> 0
C19: Herbicide Application | D19: 2 | F19: Acre | G19: 5.5 | I19: 11 | J19: 0 | K19: 0 | M19: 0 | N19: 0 | O19: 11 | P19: 0 | Q19: 1100 | R19: 0
C20: Insecticide Application | D20: 2 | F20: Acre | G20: 5.5 | I20: 11 | J20: 0 | K20: 0 | M20: 0 | N20: 0 | O20: 11 | P20: 0 | Q20: 1100 | R20: 0
C21: Custom Baling - Alfalfa | D21: 3.25 | F21: Ton | G21: 35 | I21: 113.75 | J21: 0 | K21: 0 | M21: 0 | N21: 0 | O21: 113.75 | P21: 0 | Q21: 11375 | R21: 0
B22: Fertilizer
C23: Sulfur | D23: 12 | F23: Pound | G23: 0.3 | I23: 3.6 | J23: 0 | K23: 0 | M23: 0 | N23: 0 | O23: 3.6 | P23: 0 | Q23: 360 | R23: 0
C24: Fertilizer (N) | D24: 20 | F24: Pound | G24: 0.505 | I24: 10.1 | J24: 0 | K24: 0 | M24: 0 | N24: 0 | O24: 10.1 | P24: 0 | Q24: 1010 | R24: 0
C25: Fertilizer (P) | D25: 50 | F25: Pound | G25: 0.60657 | I25: 30.3285 | J25: 0 | K25: 0 | M25: 0 | N25: 0 | O25: 30.3285 | P25: 0 | Q25: 3032.85 | R25: 0
B26: Herbicide
C27: Valpar | D27: 2 | F27: Pint | G27: 11.875 | I27: 23.75 | J27: 0 | K27: 0 | M27: 0 | N27: 0 | O27: 23.75 | P27: 0 | Q27: 2375 | R27: 0
C28: Butyrac | D28: 2 | F28: Pint | G28: 3.75 | I28: 7.5 | J28: 0 | K28: 0 | M28: 0 | N28: 0 | O28: 7.5 | P28: 0 | Q28: 750 | R28: 0
B29: Insecticide
C30: Insecticide - Alfalfa 1 | D30: 2 | F30: Pint | G30: 4.12 | I30: 8.24 | J30: 0 | K30: 0 | M30: 0 | N30: 0 | O30: 8.24 | P30: 0 | Q30: 824 | R30: 0
C31: Insecticide - Alfalfa 2 Baythroid | D31: 3 | F31: Fluid Ounce | G31: 1.0546875 | I31: 3.1640625 | J31: 0 | K31: 0 | M31: 0 | N31: 0 | O31: 3.1640625 | P31: 0 | Q31: 316.40625 | R31: 0
D32: 0 | G32: 0 | I32: 0 | J32: 0 | K32: 0 | M32: 0 | N32: 0 | O32: 0 | P32: 0 | Q32: 0 | R32: 0
D33: 0 | G33: 0 | I33: 0 | J33: 0 | K33: 0 | M33: 0 | N33: 0 | O33: 0 | P33: 0 | Q33: 0 | R33: 0
D34: 0 | G34: 0 | I34: 0 | J34: =E34*H34 -> 0 | K34: 0 | M34: 0 | N34: =J34*L34 -> 0 | O34: 0 | P34: =+J34-N34 -> 0 | Q34: 0 | R34: =+J34*E$7 -> 0
B35: Machinery Labor
C36: Tractors/Self-Propelled | D36: 0 | F36: Hour | G36: 15 | I36: 0 | J36: =E36*H36 -> 0 | K36: 0 | M36: 0 | N36: =J36*L36 -> 0 | O36: 0 | P36: =+J36-N36 -> 0 | Q36: 0 | R36: =+J36*E$7 -> 0
C37: Other Labor | D37: 0 | F37: Hour | G37: 15 | I37: 0 | J37: =E37*H37 -> 0 | K37: 0 | M37: 0 | N37: =J37*L37 -> 0 | O37: 0 | P37: =+J37-N37 -> 0 | Q37: 0 | R37: =+J37*E$7 -> 0
B39: Diesel Fuel
C40: Pickup/General Use Equipment | D40: 1 | F40: Acre | G40: 0 | I40: 0 | J40: =E40*H40 -> 0 | K40: 0 | M40: 0 | N40: =J40*L40 -> 0 | O40: 0 | P40: =+J40-N40 -> 0 | Q40: 0 | R40: =+J40*E$7 -> 0
C41: Tractors/Self-Propelled | D41: 0 | F41: Gallon | G41: 2.59 | I41: 0 | J41: =E41*H41 -> 0 | K41: 0 | M41: 0 | N41: =J41*L41 -> 0 | O41: 0 | P41: =+J41-N41 -> 0 | Q41: 0 | R41: =+J41*E$7 -> 0
B43: Gasoline
C44: Pickup/General Use Equipment | D44: 1 | F44: Acre | G44: 4.5 | I44: 4.5 | J44: =E44*H44 -> 0 | K44: 0 | M44: 0 | N44: =J44*L44 -> 0 | O44: 4.5 | P44: =+J44-N44 -> 0 | Q44: 450 | R44: =+J44*E$7 -> 0
C45: Tractors/Self-Propelled | D45: 0 | F45: Gallon | G45: 3.1 | I45: 0 | J45: =E45*H45 -> 0 | K45: 0 | M45: 0 | N45: =J45*L45 -> 0 | O45: 0 | P45: =+J45-N45 -> 0 | Q45: 0 | R45: =+J45*E$7 -> 0
B47: Repairs & Maintenance
C48: Pickup/General Use Equipment | D48: 1 | F48: Acre | G48: 19.5 | I48: 19.5 | J48: =E48*H48 -> 0 | K48: 0 | M48: 0 | N48: =J48*L48 -> 0 | O48: 19.5 | P48: =+J48-N48 -> 0 | Q48: 1950 | R48: =+J48*E$7 -> 0
C49: Irrigation Equipment | D49: 1 | F49: Acre | G49: 0 | I49: 0 | J49: 0 | K49: 0 | M49: 0 | N49: 0 | O49: 0 | P49: 0 | Q49: 0 | R49: 0
C50: Tractors/Self-Propelled | D50: 1 | F50: Acre | G50: 0 | I50: 0 | J50: 0 | K50: 0 | M50: 0 | N50: 0 | O50: 0 | P50: 0 | Q50: 0 | R50: 0
C51: Implements | D51: 1 | F51: Acre | G51: 0 | I51: 0 | J51: 0 | K51: 0 | M51: 0 | N51: 0 | O51: 0 | P51: 0 | Q51: 0 | R51: 0
I52: 0 | J52: 0 | K52: 0 | M52: 0 | N52: 0 | O52: 0 | P52: 0 | Q52: 0 | R52: 0
I53: 0 | J53: 0 | K53: 0 | M53: 0 | N53: 0 | O53: 0 | P53: 0 | Q53: 0 | R53: 0
B54: Interest on Credit Line | G54: 0.09 | I54: 8.321179515 | J54: =+SUM(J17:J53)/2*H54 -> 0 | M54: 0 | N54: =+SUM(N17:N53)/2*L54 -> 0 | O54: 8.321179515 | P54: =+SUM(P17:P53)/2*L54 -> 0 | Q54: 832.1179515 | R54: =+J54*E$7 -> 0
A55: Total Variable Costs | I55: 259.753742 | J55: =SUM(J18:J54) -> 0 | M55: 0 | N55: =SUM(N18:N54) -> 0 | O55: 259.753742 | P55: =SUM(P18:P54) -> 0 | Q55: 25975.3742 | R55: =SUM(R18:R54) -> 0
A56: Planned Returns Above Variable Costs: | I56: 552.746258 | J56: =+J13-J55 -> 0 | M56: 0 | N56: =+N13-N55 -> 0 | O56: 552.746258 | P56: =+P13-P55 -> 0 | Q56: 55274.6258 | R56: =+R13-R55 -> 0
B57: Breakeven Price to Cover Variable Costs | G57: 79.92422831 | H57: =IF(E10=0,"n/a",(YVarExp-(YTotExp+YTotRet-J10))/E10) -> n/a | I57: Ton
Q58: Enterprise | R58: Enterprise
A59: FIXED COSTS | D59: Quantity | E59: Quantity | F59: Units | G59: $/Unit | H59: $/Unit | I59: Total | J59: Total | K59: Share | L59: Share | M59: Landlord | N59: Landlord | O59: Tenant | P59: Tenant | Q59: Total | R59: Total
B60: Machinery Depreciation
C61: Pickup/General Use Equipment | D61: 1 | F61: Acre | G61: 28.325 | I61: 28.325 | J61: =E61*H61 -> 0 | K61: 0 | M61: 0 | N61: =J61*L61 -> 0 | O61: 28.325 | P61: =+J61-N61 -> 0 | Q61: 2832.5 | R61: =+J61*E$7 -> 0
B62: Equipment Investment
C63: Pickup/General Use Equipment | D63: 220.875 | F63: Dollars | G63: 0.08 | I63: 17.67 | J63: =E63*H63 -> 0 | K63: 0 | M63: 0 | N63: =J63*L63 -> 0 | O63: 17.67 | P63: =+J63-N63 -> 0 | Q63: 1767 | R63: =+J63*E$7 -> 0
B64: Salaried Labor | D64: 1 | F64: Acre | G64: 0 | I64: 0 | J64: 0 | K64: 0 | M64: 0 | N64: =J64*L64 -> 0 | O64: 0 | P64: =+J64-N64 -> 0 | Q64: 0 | R64: =+J64*E$7 -> 0
B65: Management Fee, Owner/Operator Labor | D65: 1 | F65: Acre | G65: 0 | I65: 0 | J65: 0 | K65: 0 | M65: 0 | N65: 0 | O65: 0 | P65: 0 | Q65: 0 | R65: 0
B66: Allocated Establishment Cost | D66: 1 | F66: Acre | G66: 60.176 | I66: 60.176 | J66: 0 | K66: 0 | M66: 0 | N66: 0 | O66: 60.176 | P66: 0 | Q66: 6017.6 | R66: 0
B67: Cash Rent - Dryland Alfalfa | D67: 1 | F67: Acre | G67: 30 | I67: 30 | J67: 0 | K67: 0 | M67: 0 | N67: 0 | O67: 30 | P67: 0 | Q67: 3000 | R67: 0
B68: Property Taxes | D68: 1 | F68: Acre | G68: 0 | I68: 0 | J68: 0 | K68: 0 | M68: 0 | N68: 0 | O68: 0 | P68: 0 | Q68: 0 | R68: 0
B69: Whole Farm Insurance | D69: 1 | F69: Acre | G69: 0 | I69: 0 | J69: 0 | K69: 0 | M69: 0 | N69: 0 | O69: 0 | P69: 0 | Q69: 0 | R69: 0
D70: 1 | G70: 0 | I70: 0 | J70: 0 | K70: 0 | M70: 0 | N70: 0 | O70: 0 | P70: 0 | Q70: 0 | R70: 0
D71: 1 | G71: 0 | I71: 0 | J71: =E71*H71 -> 0 | K71: 0 | M71: 0 | N71: 0 | O71: 0 | P71: 0 | Q71: 0 | R71: 0
A72: Total Fixed Costs | I72: 136.171 | J72: =+SUM(J61:J71) -> 0 | M72: 0 | N72: =+SUM(N61:N71) -> 0 | O72: 136.171 | P72: =+SUM(P61:P71) -> 0 | Q72: 13617.1 | R72: =+SUM(R61:R71) -> 0
A73: Total Specified Costs | I73: 395.924742 | J73: =+J55+J72 -> 0 | M73: 0 | N73: =+N55+N72 -> 0 | O73: 395.924742 | P73: =+P55+P72 -> 0 | Q73: 39592.4742 | R73: =+R55+R72 -> 0
A75: Returns Above Specified Costs | I75: 416.575258 | J75: =+J13-J73 -> 0 | M75: 0 | N75: =+N13-N73 -> 0 | O75: 416.575258 | P75: =+P13-P73 -> 0 | Q75: 41657.5258 | R75: =+R13-R73 -> 0
A77: Breakeven Price to Cover Total Costs | G77: 121.8229975 | H77: =IF(E10=0,"n/a",(YTotExp-(YTotExp+YTotRet-J10))/E10) -> n/a | I77: Ton
D79: Example Breakeven Prices
B80: Example | C80: Example | D80: To Cover | G80: To Cover
B81: Yield | C81: Yield | D81: Variable | G81: Total
B82: Percent | C82: Ton | D82: Costs | G82: Costs
B83: 0.75 | C83: 2.4375 | D83: 106.5656377 | G83: 162.4306634
B84: 0.9 | C84: 2.925 | D84: 88.80469812 | G84: 135.3588862
B85: 1 | C85: 3.25 | D85: 79.92422831 | G85: 121.8229975
B86: 1.1 | C86: 3.575 | D86: 72.65838937 | G86: 110.7481796
B87: 1.25 | C87: 4.0625 | D87: 63.93938265 | G87: 97.45839803
A89: Developed by Francisco Abelló, Assistant Professor and Extension Specialist, Texas A&M AgriLife Extension, 940-647-3908
A91: Information presented is prepared solely as a general guide and not intended to recognize or predict the costs and returns from any one operation. Brand names are mentioned only as examples and imply no endorsement.

Sheet CoastalDryland
A1: Projections for Planning Purposes Only -- Not to be Used without Updating
A2: 2025 Estimated Costs and Returns per Acre
A3: Coastal Bermudagrass Hay Dryland
A4: Enter your name for this budget in the cell above.
A5: Enter Your Values in the cells highlighed in MAROON.
E6: Your Acres | R6: Your
C7: Crop Acres | D7: 100 | L7: Your | Q7: Enterprise | R7: Enterprise
E8: Your | H8: Your | I8: Cash | J8: Your | K8: Landlord | L8: Landlord | N8: Your | P8: Your | Q8: Total | R8: Total
A9: REVENUE | D9: Quantity | E9: Quantity | F9: Units | G9: $/Unit | H9: $/Unit | I9: Total | J9: Total | K9: Share | L9: Share | M9: Landlord | N9: Landlord | O9: Tenant | P9: Tenant | Q9: (100 acres) | R9: ="(" & E7 & " acres)" -> ( acres)
B10: Bermudagrass Round Bale | D10: 6 | F10: Round Bale | G10: 100 | I10: 600 | J10: =E10*H10 -> 0 | K10: 0 | M10: 0 | N10: =J10*L10 -> 0 | O10: 600 | P10: =+J10-N10 -> 0 | Q10: 60000 | R10: =+J10*E$7 -> 0
D11: 0 | G11: 0 | I11: 0 | J11: 0 | K11: 0 | M11: 0 | N11: 0 | O11: 0 | P11: =+J11-N11 -> 0 | Q11: 0 | R11: 0
D12: 0 | G12: 0 | I12: 0 | J12: 0 | K12: 0 | M12: 0 | N12: 0 | O12: 0 | P12: 0 | Q12: 0 | R12: 0
A13: Total Revenue | I13: 600 | J13: =SUM(J10:J12) -> 0 | M13: 0 | N13: =SUM(N10:N12) -> 0 | O13: 600 | P13: =SUM(P10:P12) -> 0 | Q13: 60000 | R13: =SUM(R10:R12) -> 0
Q14: Enterprise | R14: Enterprise
A15: VARIABLE COSTS | D15: Quantity | E15: Quantity | F15: Units | G15: $/Unit | H15: $/Unit | I15: Total | J15: Total | K15: Share | L15: Share | M15: Landlord | N15: Landlord | O15: Tenant | P15: Tenant | Q15: Total | R15: Total
A16: Production Costs
B17: Custom
C18: Fertilizer Application | D18: 3 | F18: Acre | G18: 5 | I18: 15 | J18: =E18*H18 -> 0 | K18: 0 | M18: 0 | N18: =J18*L18 -> 0 | O18: 15 | P18: =+J18-N18 -> 0 | Q18: 1500 | R18: =+J18*E$7 -> 0
C19: Herbicide Application | D19: 2 | F19: Acre | G19: 5.5 | I19: 11 | J19: 0 | K19: 0 | M19: 0 | N19: 0 | O19: 11 | P19: 0 | Q19: 1100 | R19: 0
C20: Cut and Bale | D20: 6 | F20: Roll | G20: 35 | I20: 210 | J20: 0 | K20: 0 | M20: 0 | N20: 0 | O20: 210 | P20: 0 | Q20: 21000 | R20: 0
B21: Fertilizer
C22: Fertilizer (N) | D22: 135 | F22: Pound | G22: 0.505 | I22: 68.175 | J22: 0 | K22: 0 | M22: 0 | N22: 0 | O22: 68.175 | P22: 0 | Q22: 6817.5 | R22: 0
C23: Fertilizer (P) | D23: 37.8 | F23: Pound | G23: 0.60657 | I23: 22.928346 | J23: 0 | K23: 0 | M23: 0 | N23: 0 | O23: 22.928346 | P23: 0 | Q23: 2292.8346 | R23: 0
C24: Potash (K) | D24: 113.4 | F24: Pound | G24: 0.39 | I24: 44.226 | J24: 0 | K24: 0 | M24: 0 | N24: 0 | O24: 44.226 | P24: 0 | Q24: 4422.6 | R24: 0
B25: Herbicide
C26: Hay Pre and Post Herbicide | D26: 2.3 | F26: Acre | G26: 12 | I26: 27.6 | J26: 0 | K26: 0 | M26: 0 | N26: 0 | O26: 27.6 | P26: 0 | Q26: 2760 | R26: 0
D27: 0 | G27: 0 | I27: 0 | J27: 0 | K27: 0 | M27: 0 | N27: 0 | O27: 0 | P27: 0 | Q27: 0 | R27: 0
D28: 0 | G28: 0 | I28: 0 | J28: 0 | K28: 0 | M28: 0 | N28: 0 | O28: 0 | P28: 0 | Q28: 0 | R28: 0
D29: 0 | G29: 0 | I29: 0 | J29: =E29*H29 -> 0 | K29: 0 | M29: 0 | N29: =J29*L29 -> 0 | O29: 0 | P29: =+J29-N29 -> 0 | Q29: 0 | R29: =+J29*E$7 -> 0
B30: Machinery Labor
C31: Tractors/Self-Propelled | D31: 0 | F31: Hour | G31: 15 | I31: 0 | J31: =E31*H31 -> 0 | K31: 0 | M31: 0 | N31: =J31*L31 -> 0 | O31: 0 | P31: =+J31-N31 -> 0 | Q31: 0 | R31: =+J31*E$7 -> 0
C32: Other Labor | D32: 0 | F32: Hour | G32: 15 | I32: 0 | J32: =E32*H32 -> 0 | K32: 0 | M32: 0 | N32: =J32*L32 -> 0 | O32: 0 | P32: =+J32-N32 -> 0 | Q32: 0 | R32: =+J32*E$7 -> 0
B34: Diesel Fuel
C35: Pickup/General Use Equipment | D35: 1 | F35: Acre | G35: 0 | I35: 0 | J35: =E35*H35 -> 0 | K35: 0 | M35: 0 | N35: =J35*L35 -> 0 | O35: 0 | P35: =+J35-N35 -> 0 | Q35: 0 | R35: =+J35*E$7 -> 0
C36: Tractors/Self-Propelled | D36: 0 | F36: Gallon | G36: 2.59 | I36: 0 | J36: =E36*H36 -> 0 | K36: 0 | M36: 0 | N36: =J36*L36 -> 0 | O36: 0 | P36: =+J36-N36 -> 0 | Q36: 0 | R36: =+J36*E$7 -> 0
B38: Gasoline
C39: Pickup/General Use Equipment | D39: 1 | F39: Acre | G39: 4.5 | I39: 4.5 | J39: =E39*H39 -> 0 | K39: 0 | M39: 0 | N39: =J39*L39 -> 0 | O39: 4.5 | P39: =+J39-N39 -> 0 | Q39: 450 | R39: =+J39*E$7 -> 0
C40: Tractors/Self-Propelled | D40: 0 | F40: Gallon | G40: 3.1 | I40: 0 | J40: =E40*H40 -> 0 | K40: 0 | M40: 0 | N40: =J40*L40 -> 0 | O40: 0 | P40: =+J40-N40 -> 0 | Q40: 0 | R40: =+J40*E$7 -> 0
B42: Repairs & Maintenance
C43: Pickup/General Use Equipment | D43: 1 | F43: Acre | G43: 49.5 | I43: 49.5 | J43: =E43*H43 -> 0 | K43: 0 | M43: 0 | N43: =J43*L43 -> 0 | O43: 49.5 | P43: =+J43-N43 -> 0 | Q43: 4950 | R43: =+J43*E$7 -> 0
C44: Irrigation Equipment | D44: 1 | F44: Acre | G44: 0 | I44: 0 | J44: 0 | K44: 0 | M44: 0 | N44: 0 | O44: 0 | P44: 0 | Q44: 0 | R44: 0
C45: Tractors/Self-Propelled | D45: 1 | F45: Acre | G45: 0 | I45: 0 | J45: 0 | K45: 0 | M45: 0 | N45: 0 | O45: 0 | P45: 0 | Q45: 0 | R45: 0
C46: Implements | D46: 1 | F46: Acre | G46: 0 | I46: 0 | J46: 0 | K46: 0 | M46: 0 | N46: 0 | O46: 0 | P46: 0 | Q46: 0 | R46: 0
I47: 0 | J47: 0 | K47: 0 | M47: 0 | N47: 0 | O47: 0 | P47: 0 | Q47: 0 | R47: 0
I48: 0 | J48: 0 | K48: 0 | M48: 0 | N48: 0 | O48: 0 | P48: 0 | Q48: 0 | R48: 0
B49: Interest on Credit Line | G49: 0.09 | I49: 17.58331008 | J49: =+SUM(J17:J48)/2*H49 -> 0 | M49: 0 | N49: =+SUM(N17:N48)/2*L49 -> 0 | O49: 17.58331008 | P49: =+SUM(P17:P48)/2*L49 -> 0 | Q49: 1758.331008 | R49: =+J49*E$7 -> 0
A50: Total Variable Costs | I50: 470.5126561 | J50: =SUM(J18:J49) -> 0 | M50: 0 | N50: =SUM(N18:N49) -> 0 | O50: 470.5126561 | P50: =SUM(P18:P49) -> 0 | Q50: 47051.26561 | R50: =SUM(R18:R49) -> 0
A51: Planned Returns Above Variable Costs: | I51: 129.4873439 | J51: =+J13-J50 -> 0 | M51: 0 | N51: =+N13-N50 -> 0 | O51: 129.4873439 | P51: =+P13-P50 -> 0 | Q51: 12948.73439 | R51: =+R13-R50 -> 0
B52: Breakeven Price to Cover Variable Costs | G52: 78.41877601 | H52: =IF(E10=0,"n/a",(YVarExp-(YTotExp+YTotRet-J10))/E10) -> n/a | I52: Round Bale
Q53: Enterprise | R53: Enterprise
A54: FIXED COSTS | D54: Quantity | E54: Quantity | F54: Units | G54: $/Unit | H54: $/Unit | I54: Total | J54: Total | K54: Share | L54: Share | M54: Landlord | N54: Landlord | O54: Tenant | P54: Tenant | Q54: Total | R54: Total
B55: Machinery Depreciation
C56: Pickup/General Use Equipment | D56: 1 | F56: Acre | G56: 77.0725 | I56: 77.0725 | J56: =E56*H56 -> 0 | K56: 0 | M56: 0 | N56: =J56*L56 -> 0 | O56: 77.0725 | P56: =+J56-N56 -> 0 | Q56: 7707.25 | R56: =+J56*E$7 -> 0
B57: Equipment Investment
C58: Pickup/General Use Equipment | D58: 689.6375 | F58: Dollars | G58: 0.08 | I58: 55.171 | J58: =E58*H58 -> 0 | K58: 0 | M58: 0 | N58: =J58*L58 -> 0 | O58: 55.171 | P58: =+J58-N58 -> 0 | Q58: 5517.1 | R58: =+J58*E$7 -> 0
B59: Salaried Labor | D59: 1 | F59: Acre | G59: 0 | I59: 0 | J59: 0 | K59: 0 | M59: 0 | N59: =J59*L59 -> 0 | O59: 0 | P59: =+J59-N59 -> 0 | Q59: 0 | R59: =+J59*E$7 -> 0
B60: Management Fee, Owner/Operator Labor | D60: 1 | F60: Acre | G60: 0 | I60: 0 | J60: 0 | K60: 0 | M60: 0 | N60: 0 | O60: 0 | P60: 0 | Q60: 0 | R60: 0
B61: Allocated Establishment Cost | D61: 1 | F61: Acre | G61: 55 | I61: 55 | J61: 0 | K61: 0 | M61: 0 | N61: 0 | O61: 55 | P61: 0 | Q61: 5500 | R61: 0
B62: None | D62: 1 | F62: Acre | G62: 0 | I62: 0 | J62: 0 | K62: 0 | M62: 0 | N62: 0 | O62: 0 | P62: 0 | Q62: 0 | R62: 0
B63: Property Taxes | D63: 1 | F63: Acre | G63: 0 | I63: 0 | J63: 0 | K63: 0 | M63: 0 | N63: 0 | O63: 0 | P63: 0 | Q63: 0 | R63: 0
B64: Whole Farm Insurance | D64: 1 | F64: Acre | G64: 0 | I64: 0 | J64: 0 | K64: 0 | M64: 0 | N64: 0 | O64: 0 | P64: 0 | Q64: 0 | R64: 0
D65: 1 | G65: 0 | I65: 0 | J65: 0 | K65: 0 | M65: 0 | N65: 0 | O65: 0 | P65: 0 | Q65: 0 | R65: 0
D66: 1 | G66: 0 | I66: 0 | J66: =E66*H66 -> 0 | K66: 0 | M66: 0 | N66: 0 | O66: 0 | P66: 0 | Q66: 0 | R66: 0
A67: Total Fixed Costs | I67: 187.2435 | J67: =+SUM(J56:J66) -> 0 | M67: 0 | N67: =+SUM(N56:N66) -> 0 | O67: 187.2435 | P67: =+SUM(P56:P66) -> 0 | Q67: 18724.35 | R67: =+SUM(R56:R66) -> 0
A68: Total Specified Costs | I68: 657.7561561 | J68: =+J50+J67 -> 0 | M68: 0 | N68: =+N50+N67 -> 0 | O68: 657.7561561 | P68: =+P50+P67 -> 0 | Q68: 65775.61561 | R68: =+R50+R67 -> 0
A70: Returns Above Specified Costs | I70: -57.75615608 | J70: =+J13-J68 -> 0 | M70: 0 | N70: =+N13-N68 -> 0 | O70: -57.75615608 | P70: =+P13-P68 -> 0 | Q70: -5775.615608 | R70: =+R13-R68 -> 0
A72: Breakeven Price to Cover Total Costs | G72: 109.626026 | H72: =IF(E10=0,"n/a",(YTotExp-(YTotExp+YTotRet-J10))/E10) -> n/a | I72: Round Bale
D74: Example Breakeven Prices
B75: Example | C75: Example | D75: To Cover | G75: To Cover
B76: Yield | C76: Yield | D76: Variable | G76: Total
B77: Percent | C77: Round Bale | D77: Costs | G77: Costs
B78: 0.75 | C78: 4.5 | D78: 104.558368 | G78: 146.1680347
B79: 0.9 | C79: 5.4 | D79: 87.13197335 | G79: 121.8066956
B80: 1 | C80: 6 | D80: 78.41877601 | G80: 109.626026
B81: 1.1 | C81: 6.6 | D81: 71.28979638 | G81: 99.66002365
B82: 1.25 | C82: 7.5 | D82: 62.73502081 | G82: 87.70082081
A84: Developed by Francisco Abelló, Assistant Professor and Extension Specialist, Texas A&M AgriLife Extension, 940-647-3908
A86: Information presented is prepared solely as a general guide and not intended to recognize or predict the costs and returns from any one operation. Brand names are mentioned only as examples and imply no endorsement.

Sheet AlfalfaIrrigatedEstablish
A1: Projections for Planning Purposes Only -- Not to be Used without Updating
A2: 2025 Estimated Costs and Returns per Acre
A3: Irrigated Alfalfa Establishment
A4: Enter your name for this budget in the cell above.
A5: Enter Your Values in the cells highlighed in MAROON.
E6: Your Acres | R6: Your
C7: Crop Acres | D7: 100 | L7: Your | Q7: Enterprise | R7: Enterprise
E8: Your | H8: Your | I8: Cash | J8: Your | K8: Landlord | L8: Landlord | N8: Your | P8: Your | Q8: Total | R8: Total
A9: REVENUE | D9: Quantity | E9: Quantity | F9: Units | G9: $/Unit | H9: $/Unit | I9: Total | J9: Total | K9: Share | L9: Share | M9: Landlord | N9: Landlord | O9: Tenant | P9: Tenant | Q9: (100 acres) | R9: ="(" & E7 & " acres)" -> ( acres)
B10: 0 | D10: 0 | G10: 0 | I10: 0 | J10: =E10*H10 -> 0 | K10: 0 | M10: 0 | N10: =J10*L10 -> 0 | O10: 0 | P10: =+J10-N10 -> 0 | Q10: 0 | R10: =+J10*E$7 -> 0
D11: 0 | G11: 0 | I11: 0 | J11: 0 | K11: 0 | M11: 0 | N11: 0 | O11: 0 | P11: =+J11-N11 -> 0 | Q11: 0 | R11: 0
D12: 0 | G12: 0 | I12: 0 | J12: 0 | K12: 0 | M12: 0 | N12: 0 | O12: 0 | P12: 0 | Q12: 0 | R12: 0
A13: Total Revenue | I13: 0 | J13: =SUM(J10:J12) -> 0 | M13: 0 | N13: =SUM(N10:N12) -> 0 | O13: 0 | P13: =SUM(P10:P12) -> 0 | Q13: 0 | R13: =SUM(R10:R12) -> 0
Q14: Enterprise | R14: Enterprise
A15: VARIABLE COSTS | D15: Quantity | E15: Quantity | F15: Units | G15: $/Unit | H15: $/Unit | I15: Total | J15: Total | K15: Share | L15: Share | M15: Landlord | N15: Landlord | O15: Tenant | P15: Tenant | Q15: Total | R15: Total
A16: Production Costs
B17: Fertilizer
C18: Fertilizer (N) | D18: 40 | F18: Pound | G18: 0.505 | I18: 20.2 | J18: =E18*H18 -> 0 | K18: 0 | M18: 0 | N18: =J18*L18 -> 0 | O18: 20.2 | P18: =+J18-N18 -> 0 | Q18: 2020 | R18: =+J18*E$7 -> 0
C19: Fertilizer (P) | D19: 80 | F19: Pound | G19: 0.60657 | I19: 48.5256 | J19: 0 | K19: 0 | M19: 0 | N19: 0 | O19: 48.5256 | P19: 0 | Q19: 4852.56 | R19: 0
C20: Potash (K) | D20: 40 | F20: Pound | G20: 0.39 | I20: 15.6 | J20: 0 | K20: 0 | M20: 0 | N20: 0 | O20: 15.6 | P20: 0 | Q20: 1560 | R20: 0
C21: Sulfur | D21: 12 | F21: Pound | G21: 0.3 | I21: 3.6 | J21: 0 | K21: 0 | M21: 0 | N21: 0 | O21: 3.6 | P21: 0 | Q21: 360 | R21: 0
B22: Herbicide
C23: Herbicide Application | D23: 1 | F23: Acre | G23: 5.5 | I23: 5.5 | J23: 0 | K23: 0 | M23: 0 | N23: 0 | O23: 5.5 | P23: 0 | Q23: 550 | R23: 0
C24: Glyphosate | D24: 2 | F24: Pint | G24: 2.18 | I24: 4.36 | J24: 0 | K24: 0 | M24: 0 | N24: 0 | O24: 4.36 | P24: 0 | Q24: 436 | R24: 0
B25: Seed
C26: Alfalfa Seed - RR | D26: 20 | F26: Pound | G26: 8.9 | I26: 178 | J26: 0 | K26: 0 | M26: 0 | N26: 0 | O26: 178 | P26: 0 | Q26: 17800 | R26: 0
D27: 0 | G27: 0 | I27: 0 | J27: 0 | K27: 0 | M27: 0 | N27: 0 | O27: 0 | P27: 0 | Q27: 0 | R27: 0
D28: 0 | G28: 0 | I28: 0 | J28: 0 | K28: 0 | M28: 0 | N28: 0 | O28: 0 | P28: 0 | Q28: 0 | R28: 0
D29: 0 | G29: 0 | I29: 0 | J29: =E29*H29 -> 0 | K29: 0 | M29: 0 | N29: =J29*L29 -> 0 | O29: 0 | P29: =+J29-N29 -> 0 | Q29: 0 | R29: =+J29*E$7 -> 0
B30: Irrigation
C31: Energy Cost | D31: 6 | F31: AcreInch | G31: 6.75 | I31: 40.5 | J31: =E31*H31 -> 0 | K31: 0 | M31: 0 | N31: =J31*L31 -> 0 | O31: 40.5 | P31: =+J31-N31 -> 0 | Q31: 4050 | R31: =+J31*E$7 -> 0
C32: Irrigation Labor | D32: 0.512 | F32: Hour | G32: 15 | I32: 7.68 | J32: 0 | K32: 0 | M32: 0 | N32: 0 | O32: 7.68 | P32: 0 | Q32: 768 | R32: 0
B33: Machinery Labor
C34: Tractors/Self-Propelled | D34: 0.32 | F34: Hour | G34: 15 | I34: 4.8 | J34: =E34*H34 -> 0 | K34: 0 | M34: 0 | N34: =J34*L34 -> 0 | O34: 4.8 | P34: =+J34-N34 -> 0 | Q34: 480 | R34: =+J34*E$7 -> 0
C35: Other Labor | D35: 0.35 | F35: Hour | G35: 15 | I35: 5.25 | J35: =E35*H35 -> 0 | K35: 0 | M35: 0 | N35: =J35*L35 -> 0 | O35: 5.25 | P35: =+J35-N35 -> 0 | Q35: 525 | R35: =+J35*E$7 -> 0
B37: Diesel Fuel
C38: Pickup/General Use Equipment | D38: 1 | F38: Acre | G38: 0 | I38: 0 | J38: =E38*H38 -> 0 | K38: 0 | M38: 0 | N38: =J38*L38 -> 0 | O38: 0 | P38: =+J38-N38 -> 0 | Q38: 0 | R38: =+J38*E$7 -> 0
C39: Tractors/Self-Propelled | D39: 2.16 | F39: Gallon | G39: 2.59 | I39: 5.5944 | J39: =E39*H39 -> 0 | K39: 0 | M39: 0 | N39: =J39*L39 -> 0 | O39: 5.5944 | P39: =+J39-N39 -> 0 | Q39: 559.44 | R39: =+J39*E$7 -> 0
B41: Gasoline
C42: Pickup/General Use Equipment | D42: 1 | F42: Acre | G42: 9 | I42: 9 | J42: =E42*H42 -> 0 | K42: 0 | M42: 0 | N42: =J42*L42 -> 0 | O42: 9 | P42: =+J42-N42 -> 0 | Q42: 900 | R42: =+J42*E$7 -> 0
C43: Tractors/Self-Propelled | D43: 0 | F43: Gallon | G43: 3.1 | I43: 0 | J43: =E43*H43 -> 0 | K43: 0 | M43: 0 | N43: =J43*L43 -> 0 | O43: 0 | P43: =+J43-N43 -> 0 | Q43: 0 | R43: =+J43*E$7 -> 0
B45: Repairs & Maintenance
C46: Pickup/General Use Equipment | D46: 1 | F46: Acre | G46: 3 | I46: 3 | J46: =E46*H46 -> 0 | K46: 0 | M46: 0 | N46: =J46*L46 -> 0 | O46: 3 | P46: =+J46-N46 -> 0 | Q46: 300 | R46: =+J46*E$7 -> 0
C47: Irrigation Equipment | D47: 1 | F47: Acre | G47: 10.0002 | I47: 10.0002 | J47: 0 | K47: 0 | M47: 0 | N47: 0 | O47: 10.0002 | P47: 0 | Q47: 1000.02 | R47: 0
C48: Tractors/Self-Propelled | D48: 1 | F48: Acre | G48: 4.435284411 | I48: 4.435284411 | J48: 0 | K48: 0 | M48: 0 | N48: 0 | O48: 4.435284411 | P48: 0 | Q48: 443.5284411 | R48: 0
C49: Implements | D49: 1 | F49: Acre | G49: 4.602419348 | I49: 4.602419348 | J49: 0 | K49: 0 | M49: 0 | N49: 0 | O49: 4.602419348 | P49: 0 | Q49: 460.2419348 | R49: 0
I50: 0 | J50: 0 | K50: 0 | M50: 0 | N50: 0 | O50: 0 | P50: 0 | Q50: 0 | R50: 0
I51: 0 | J51: 0 | K51: 0 | M51: 0 | N51: 0 | O51: 0 | P51: 0 | Q51: 0 | R51: 0
B52: Interest on Credit Line | G52: 0.09 | I52: 4.902633511 | J52: =+SUM(J17:J51)/2*H52 -> 0 | M52: 0 | N52: =+SUM(N17:N51)/2*L52 -> 0 | O52: 4.902633511 | P52: =+SUM(P17:P51)/2*L52 -> 0 | Q52: 490.2633511 | R52: =+J52*E$7 -> 0
A53: Total Variable Costs | I53: 375.5505373 | J53: =SUM(J18:J52) -> 0 | M53: 0 | N53: =SUM(N18:N52) -> 0 | O53: 375.5505373 | P53: =SUM(P18:P52) -> 0 | Q53: 37555.05373 | R53: =SUM(R18:R52) -> 0
A54: Planned Returns Above Variable Costs: | I54: -375.5505373 | J54: =+J13-J53 -> 0 | M54: 0 | N54: =+N13-N53 -> 0 | O54: -375.5505373 | P54: =+P13-P53 -> 0 | Q54: -37555.05373 | R54: =+R13-R53 -> 0
B55: Breakeven Price to Cover Variable Costs | G55: n/a | H55: =IF(E10=0,"n/a",(YVarExp-(YTotExp+YTotRet-J10))/E10) -> n/a
Q56: Enterprise | R56: Enterprise
A57: FIXED COSTS | D57: Quantity | E57: Quantity | F57: Units | G57: $/Unit | H57: $/Unit | I57: Total | J57: Total | K57: Share | L57: Share | M57: Landlord | N57: Landlord | O57: Tenant | P57: Tenant | Q57: Total | R57: Total
B58: Machinery Depreciation
C59: Pickup/General Use Equipment | D59: 1 | F59: Acre | G59: 4.165 | I59: 4.165 | J59: =E59*H59 -> 0 | K59: 0 | M59: 0 | N59: =J59*L59 -> 0 | O59: 4.165 | P59: =+J59-N59 -> 0 | Q59: 416.5 | R59: =+J59*E$7 -> 0
C60: Irrigation Equipment | D60: 1 | F60: Acre | G60: 9 | I60: 9 | J60: 0 | K60: 0 | M60: 0 | N60: =J60*L60 -> 0 | O60: 9 | P60: 0 | Q60: 900 | R60: 0
C61: Tractors/Self-Propelled | D61: 1 | F61: Acre | G61: 4.583127225 | I61: 4.583127225 | J61: 0 | K61: 0 | M61: 0 | N61: =J61*L61 -> 0 | O61: 4.583127225 | P61: 0 | Q61: 458.3127225 | R61: 0
C62: Implements | D62: 1 | F62: Acre | G62: 5.690368046 | I62: 5.690368046 | J62: 0 | K62: 0 | M62: 0 | N62: =J62*L62 -> 0 | O62: 5.690368046 | P62: 0 | Q62: 569.0368046 | R62: 0
B63: Equipment Investment
C64: Pickup/General Use Equipment | D64: 29.175 | F64: Dollars | G64: 0.08 | I64: 2.334 | J64: =E64*H64 -> 0 | K64: 0 | M64: 0 | N64: =J64*L64 -> 0 | O64: 2.334 | P64: =+J64-N64 -> 0 | Q64: 233.4 | R64: =+J64*E$7 -> 0
C65: Irrigation Equipment | D65: 262.5 | F65: Dollars | G65: 0.08 | I65: 21 | J65: 0 | K65: 0 | M65: 0 | N65: =J65*L65 -> 0 | O65: 21 | P65: 0 | Q65: 2100 | R65: 0
C66: Tractors/Self-Propelled | D66: 35.70403951 | F66: Dollars | G66: 0.08 | I66: 2.856323161 | J66: 0 | K66: 0 | M66: 0 | N66: =J66*L66 -> 0 | O66: 2.856323161 | P66: 0 | Q66: 285.6323161 | R66: 0
C67: Implements | D67: 24.34212997 | F67: Dollars | G67: 0.08 | I67: 1.947370398 | J67: 0 | K67: 0 | M67: 0 | N67: =J67*L67 -> 0 | O67: 1.947370398 | P67: 0 | Q67: 194.7370398 | R67: 0
B68: Salaried Labor | D68: 1 | F68: Acre | G68: 0 | I68: 0 | J68: 0 | K68: 0 | M68: 0 | N68: =J68*L68 -> 0 | O68: 0 | P68: =+J68-N68 -> 0 | Q68: 0 | R68: =+J68*E$7 -> 0
B69: Management Fee, Owner/Operator Labor | D69: 1 | F69: Acre | G69: 0 | I69: 0 | J69: 0 | K69: 0 | M69: 0 | N69: 0 | O69: 0 | P69: 0 | Q69: 0 | R69: 0
B70: Allocated Establishment Cost | D70: 1 | F70: Acre | G70: 0 | I70: 0 | J70: 0 | K70: 0 | M70: 0 | N70: 0 | O70: 0 | P70: 0 | Q70: 0 | R70: 0
B71: Cash Rent - Irrigated Alfalfa | D71: 1 | F71: Acre | G71: 90 | I71: 90 | J71: 0 | K71: 0 | M71: 0 | N71: 0 | O71: 90 | P71: 0 | Q71: 9000 | R71: 0
B72: Property Taxes | D72: 1 | F72: Acre | G72: 0 | I72: 0 | J72: 0 | K72: 0 | M72: 0 | N72: 0 | O72: 0 | P72: 0 | Q72: 0 | R72: 0
B73: Whole Farm Insurance | D73: 1 | F73: Acre | G73: 0 | I73: 0 | J73: 0 | K73: 0 | M73: 0 | N73: 0 | O73: 0 | P73: 0 | Q73: 0 | R73: 0
D74: 1 | G74: 0 | I74: 0 | J74: 0 | K74: 0 | M74: 0 | N74: 0 | O74: 0 | P74: 0 | Q74: 0 | R74: 0
D75: 1 | G75: 0 | I75: 0 | J75: =E75*H75 -> 0 | K75: 0 | M75: 0 | N75: 0 | O75: 0 | P75: 0 | Q75: 0 | R75: 0
A76: Total Fixed Costs | I76: 141.5761888 | J76: =+SUM(J59:J75) -> 0 | M76: 0 | N76: =+SUM(N59:N75) -> 0 | O76: 141.5761888 | P76: =+SUM(P59:P75) -> 0 | Q76: 14157.61888 | R76: =+SUM(R59:R75) -> 0
A77: Total Specified Costs | I77: 517.1267261 | J77: =+J53+J76 -> 0 | M77: 0 | N77: =+N53+N76 -> 0 | O77: 517.1267261 | P77: =+P53+P76 -> 0 | Q77: 51712.67261 | R77: =+R53+R76 -> 0
A79: Returns Above Specified Costs | I79: -517.1267261 | J79: =+J13-J77 -> 0 | M79: 0 | N79: =+N13-N77 -> 0 | O79: -517.1267261 | P79: =+P13-P77 -> 0 | Q79: -51712.67261 | R79: =+R13-R77 -> 0
A81: Breakeven Price to Cover Total Costs | G81: n/a | H81: =IF(E10=0,"n/a",(YTotExp-(YTotExp+YTotRet-J10))/E10) -> n/a
D83: Example Breakeven Prices
B84: Example | C84: Example | D84: To Cover | G84: To Cover
B85: Yield | C85: Yield | D85: Variable | G85: Total
B86: Percent | D86: Costs | G86: Costs
B87: 0.75 | C87: 0 | D87: 0 | G87: 0
B88: 0.9 | C88: 0 | D88: 0 | G88: 0
B89: 1 | C89: 0 | D89: 0 | G89: 0
B90: 1.1 | C90: 0 | D90: 0 | G90: 0
B91: 1.25 | C91: 0 | D91: 0 | G91: 0
A93: Developed by Francisco Abelló, Assistant Professor and Extension Specialist, Texas A&M AgriLife Extension, 940-647-3908
A95: Information presented is prepared solely as a general guide and not intended to recognize or predict the costs and returns from any one operation. Brand names are mentioned only as examples and imply no endorsement.

Sheet AlfalfaHayIrrigated
A1: Projections for Planning Purposes Only -- Not to be Used without Updating
A2: 2025 Estimated Costs and Returns per Acre
A3: Irrigated Alfalfa Hay
A4: Enter your name for this budget in the cell above.
A5: Enter Your Values in the cells highlighed in MAROON.
E6: Your Acres | R6: Your
C7: Crop Acres | D7: 100 | L7: Your | Q7: Enterprise | R7: Enterprise
E8: Your | H8: Your | I8: Cash | J8: Your | K8: Landlord | L8: Landlord | N8: Your | P8: Your | Q8: Total | R8: Total
A9: REVENUE | D9: Quantity | E9: Quantity | F9: Units | G9: $/Unit | H9: $/Unit | I9: Total | J9: Total | K9: Share | L9: Share | M9: Landlord | N9: Landlord | O9: Tenant | P9: Tenant | Q9: (100 acres) | R9: ="(" & E7 & " acres)" -> ( acres)
B10: Alfalfa Hay | D10: 6.5 | F10: Ton | G10: 250 | I10: 1625 | J10: =E10*H10 -> 0 | K10: 0 | M10: 0 | N10: =J10*L10 -> 0 | O10: 1625 | P10: =+J10-N10 -> 0 | Q10: 162500 | R10: =+J10*E$7 -> 0
D11: 0 | G11: 0 | I11: 0 | J11: 0 | K11: 0 | M11: 0 | N11: 0 | O11: 0 | P11: =+J11-N11 -> 0 | Q11: 0 | R11: 0
D12: 0 | G12: 0 | I12: 0 | J12: 0 | K12: 0 | M12: 0 | N12: 0 | O12: 0 | P12: 0 | Q12: 0 | R12: 0
A13: Total Revenue | I13: 1625 | J13: =SUM(J10:J12) -> 0 | M13: 0 | N13: =SUM(N10:N12) -> 0 | O13: 1625 | P13: =SUM(P10:P12) -> 0 | Q13: 162500 | R13: =SUM(R10:R12) -> 0
Q14: Enterprise | R14: Enterprise
A15: VARIABLE COSTS | D15: Quantity | E15: Quantity | F15: Units | G15: $/Unit | H15: $/Unit | I15: Total | J15: Total | K15: Share | L15: Share | M15: Landlord | N15: Landlord | O15: Tenant | P15: Tenant | Q15: Total | R15: Total
A16: Production Costs
B17: Custom
C18: Herbicide Application | D18: 2 | F18: Acre | G18: 5.5 | I18: 11 | J18: =E18*H18 -> 0 | K18: 0 | M18: 0 | N18: =J18*L18 -> 0 | O18: 11 | P18: =+J18-N18 -> 0 | Q18: 1100 | R18: =+J18*E$7 -> 0
C19: Insecticide Application | D19: 3 | F19: Acre | G19: 5.5 | I19: 16.5 | J19: 0 | K19: 0 | M19: 0 | N19: 0 | O19: 16.5 | P19: 0 | Q19: 1650 | R19: 0
C20: Fertilizer Application | D20: 1 | F20: Acre | G20: 5 | I20: 5 | J20: 0 | K20: 0 | M20: 0 | N20: 0 | O20: 5 | P20: 0 | Q20: 500 | R20: 0
C21: Custom Baling - Alfalfa | D21: 6.5 | F21: Ton | G21: 35 | I21: 227.5 | J21: 0 | K21: 0 | M21: 0 | N21: 0 | O21: 227.5 | P21: 0 | Q21: 22750 | R21: 0
B22: Fertilizer
C23: Fertilizer (N) | D23: 30 | F23: Pound | G23: 0.505 | I23: 15.15 | J23: 0 | K23: 0 | M23: 0 | N23: 0 | O23: 15.15 | P23: 0 | Q23: 1515 | R23: 0
C24: Fertilizer (P) | D24: 50 | F24: Pound | G24: 0.60657 | I24: 30.3285 | J24: 0 | K24: 0 | M24: 0 | N24: 0 | O24: 30.3285 | P24: 0 | Q24: 3032.85 | R24: 0
C25: Sulfur | D25: 12 | F25: Pound | G25: 0.3 | I25: 3.6 | J25: 0 | K25: 0 | M25: 0 | N25: 0 | O25: 3.6 | P25: 0 | Q25: 360 | R25: 0
B26: Herbicide
C27: Valpar | D27: 2 | F27: Pint | G27: 11.875 | I27: 23.75 | J27: 0 | K27: 0 | M27: 0 | N27: 0 | O27: 23.75 | P27: 0 | Q27: 2375 | R27: 0
C28: Butyrac | D28: 2 | F28: Pint | G28: 3.75 | I28: 7.5 | J28: 0 | K28: 0 | M28: 0 | N28: 0 | O28: 7.5 | P28: 0 | Q28: 750 | R28: 0
B29: Insecticide
C30: Insecticide - Alfalfa 1 | D30: 2 | F30: Pint | G30: 4.12 | I30: 8.24 | J30: 0 | K30: 0 | M30: 0 | N30: 0 | O30: 8.24 | P30: 0 | Q30: 824 | R30: 0
C31: Insecticide - Alfalfa 2 Baythroid | D31: 3 | F31: Fluid Ounce | G31: 1.0546875 | I31: 3.1640625 | J31: 0 | K31: 0 | M31: 0 | N31: 0 | O31: 3.1640625 | P31: 0 | Q31: 316.40625 | R31: 0
D32: 0 | G32: 0 | I32: 0 | J32: 0 | K32: 0 | M32: 0 | N32: 0 | O32: 0 | P32: 0 | Q32: 0 | R32: 0
D33: 0 | G33: 0 | I33: 0 | J33: 0 | K33: 0 | M33: 0 | N33: 0 | O33: 0 | P33: 0 | Q33: 0 | R33: 0
D34: 0 | G34: 0 | I34: 0 | J34: =E34*H34 -> 0 | K34: 0 | M34: 0 | N34: =J34*L34 -> 0 | O34: 0 | P34: =+J34-N34 -> 0 | Q34: 0 | R34: =+J34*E$7 -> 0
B35: Irrigation
C36: Energy Cost | D36: 10 | F36: AcreInch | G36: 6.75 | I36: 67.5 | J36: =E36*H36 -> 0 | K36: 0 | M36: 0 | N36: =J36*L36 -> 0 | O36: 67.5 | P36: =+J36-N36 -> 0 | Q36: 6750 | R36: =+J36*E$7 -> 0
C37: Irrigation Labor | D37: 0.96 | F37: Hour | G37: 15 | I37: 14.4 | J37: 0 | K37: 0 | M37: 0 | N37: 0 | O37: 14.4 | P37: 0 | Q37: 1440 | R37: 0
B38: Machinery Labor
C39: Tractors/Self-Propelled | D39: 0 | F39: Hour | G39: 15 | I39: 0 | J39: =E39*H39 -> 0 | K39: 0 | M39: 0 | N39: =J39*L39 -> 0 | O39: 0 | P39: =+J39-N39 -> 0 | Q39: 0 | R39: =+J39*E$7 -> 0
C40: Other Labor | D40: 0 | F40: Hour | G40: 15 | I40: 0 | J40: =E40*H40 -> 0 | K40: 0 | M40: 0 | N40: =J40*L40 -> 0 | O40: 0 | P40: =+J40-N40 -> 0 | Q40: 0 | R40: =+J40*E$7 -> 0
B42: Diesel Fuel
C43: Pickup/General Use Equipment | D43: 1 | F43: Acre | G43: 0 | I43: 0 | J43: =E43*H43 -> 0 | K43: 0 | M43: 0 | N43: =J43*L43 -> 0 | O43: 0 | P43: =+J43-N43 -> 0 | Q43: 0 | R43: =+J43*E$7 -> 0
C44: Tractors/Self-Propelled | D44: 0 | F44: Gallon | G44: 2.59 | I44: 0 | J44: =E44*H44 -> 0 | K44: 0 | M44: 0 | N44: =J44*L44 -> 0 | O44: 0 | P44: =+J44-N44 -> 0 | Q44: 0 | R44: =+J44*E$7 -> 0
B46: Gasoline
C47: Pickup/General Use Equipment | D47: 1 | F47: Acre | G47: 6.75 | I47: 6.75 | J47: =E47*H47 -> 0 | K47: 0 | M47: 0 | N47: =J47*L47 -> 0 | O47: 6.75 | P47: =+J47-N47 -> 0 | Q47: 675 | R47: =+J47*E$7 -> 0
C48: Tractors/Self-Propelled | D48: 0 | F48: Gallon | G48: 3.1 | I48: 0 | J48: =E48*H48 -> 0 | K48: 0 | M48: 0 | N48: =J48*L48 -> 0 | O48: 0 | P48: =+J48-N48 -> 0 | Q48: 0 | R48: =+J48*E$7 -> 0
B50: Repairs & Maintenance
C51: Pickup/General Use Equipment | D51: 1 | F51: Acre | G51: 26.25 | I51: 26.25 | J51: =E51*H51 -> 0 | K51: 0 | M51: 0 | N51: =J51*L51 -> 0 | O51: 26.25 | P51: =+J51-N51 -> 0 | Q51: 2625 | R51: =+J51*E$7 -> 0
C52: Irrigation Equipment | D52: 1 | F52: Acre | G52: 20 | I52: 20 | J52: 0 | K52: 0 | M52: 0 | N52: 0 | O52: 20 | P52: 0 | Q52: 2000 | R52: 0
C53: Tractors/Self-Propelled | D53: 1 | F53: Acre | G53: 0 | I53: 0 | J53: 0 | K53: 0 | M53: 0 | N53: 0 | O53: 0 | P53: 0 | Q53: 0 | R53: 0
C54: Implements | D54: 1 | F54: Acre | G54: 0 | I54: 0 | J54: 0 | K54: 0 | M54: 0 | N54: 0 | O54: 0 | P54: 0 | Q54: 0 | R54: 0
I55: 0 | J55: 0 | K55: 0 | M55: 0 | N55: 0 | O55: 0 | P55: 0 | Q55: 0 | R55: 0
I56: 0 | J56: 0 | K56: 0 | M56: 0 | N56: 0 | O56: 0 | P56: 0 | Q56: 0 | R56: 0
B57: Interest on Credit Line | G57: 0.09 | I57: 12.87165837 | J57: =+SUM(J17:J56)/2*H57 -> 0 | M57: 0 | N57: =+SUM(N17:N56)/2*L57 -> 0 | O57: 12.87165837 | P57: =+SUM(P17:P56)/2*L57 -> 0 | Q57: 1287.165837 | R57: =+J57*E$7 -> 0
A58: Total Variable Costs | I58: 499.5042209 | J58: =SUM(J18:J57) -> 0 | M58: 0 | N58: =SUM(N18:N57) -> 0 | O58: 499.5042209 | P58: =SUM(P18:P57) -> 0 | Q58: 49950.42209 | R58: =SUM(R18:R57) -> 0
A59: Planned Returns Above Variable Costs: | I59: 1125.495779 | J59: =+J13-J58 -> 0 | M59: 0 | N59: =+N13-N58 -> 0 | O59: 1125.495779 | P59: =+P13-P58 -> 0 | Q59: 112549.5779 | R59: =+R13-R58 -> 0
B60: Breakeven Price to Cover Variable Costs | G60: 76.84680321 | H60: =IF(E10=0,"n/a",(YVarExp-(YTotExp+YTotRet-J10))/E10) -> n/a | I60: Ton
Q61: Enterprise | R61: Enterprise
A62: FIXED COSTS | D62: Quantity | E62: Quantity | F62: Units | G62: $/Unit | H62: $/Unit | I62: Total | J62: Total | K62: Share | L62: Share | M62: Landlord | N62: Landlord | O62: Tenant | P62: Tenant | Q62: Total | R62: Total
B63: Machinery Depreciation
C64: Pickup/General Use Equipment | D64: 1 | F64: Acre | G64: 38.11375 | I64: 38.11375 | J64: =E64*H64 -> 0 | K64: 0 | M64: 0 | N64: =J64*L64 -> 0 | O64: 38.11375 | P64: =+J64-N64 -> 0 | Q64: 3811.375 | R64: =+J64*E$7 -> 0
C65: Irrigation Equipment | D65: 1 | F65: Acre | G65: 18 | I65: 18 | J65: 0 | K65: 0 | M65: 0 | N65: =J65*L65 -> 0 | O65: 18 | P65: 0 | Q65: 1800 | R65: 0
B66: Equipment Investment
C67: Pickup/General Use Equipment | D67: 296.93125 | F67: Dollars | G67: 0.08 | I67: 23.7545 | J67: =E67*H67 -> 0 | K67: 0 | M67: 0 | N67: =J67*L67 -> 0 | O67: 23.7545 | P67: =+J67-N67 -> 0 | Q67: 2375.45 | R67: =+J67*E$7 -> 0
C68: Irrigation Equipment | D68: 525 | F68: Dollars | G68: 0.08 | I68: 42 | J68: 0 | K68: 0 | M68: 0 | N68: =J68*L68 -> 0 | O68: 42 | P68: 0 | Q68: 4200 | R68: 0
B69: Salaried Labor | D69: 1 | F69: Acre | G69: 0 | I69: 0 | J69: 0 | K69: 0 | M69: 0 | N69: =J69*L69 -> 0 | O69: 0 | P69: =+J69-N69 -> 0 | Q69: 0 | R69: =+J69*E$7 -> 0
B70: Management Fee, Owner/Operator Labor | D70: 1 | F70: Acre | G70: 0 | I70: 0 | J70: 0 | K70: 0 | M70: 0 | N70: 0 | O70: 0 | P70: 0 | Q70: 0 | R70: 0
B71: Allocated Establishment Cost | D71: 1 | F71: Acre | G71: 85.66 | I71: 85.66 | J71: 0 | K71: 0 | M71: 0 | N71: 0 | O71: 85.66 | P71: 0 | Q71: 8566 | R71: 0
B72: Cash Rent - Irrigated Alfalfa | D72: 1 | F72: Acre | G72: 90 | I72: 90 | J72: 0 | K72: 0 | M72: 0 | N72: 0 | O72: 90 | P72: 0 | Q72: 9000 | R72: 0
B73: Property Taxes | D73: 1 | F73: Acre | G73: 0 | I73: 0 | J73: 0 | K73: 0 | M73: 0 | N73: 0 | O73: 0 | P73: 0 | Q73: 0 | R73: 0
B74: Whole Farm Insurance | D74: 1 | F74: Acre | G74: 0 | I74: 0 | J74: 0 | K74: 0 | M74: 0 | N74: 0 | O74: 0 | P74: 0 | Q74: 0 | R74: 0
D75: 1 | G75: 0 | I75: 0 | J75: 0 | K75: 0 | M75: 0 | N75: 0 | O75: 0 | P75: 0 | Q75: 0 | R75: 0
D76: 1 | G76: 0 | I76: 0 | J76: =E76*H76 -> 0 | K76: 0 | M76: 0 | N76: 0 | O76: 0 | P76: 0 | Q76: 0 | R76: 0
A77: Total Fixed Costs | I77: 297.52825 | J77: =+SUM(J64:J76) -> 0 | M77: 0 | N77: =+SUM(N64:N76) -> 0 | O77: 297.52825 | P77: =+SUM(P64:P76) -> 0 | Q77: 29752.825 | R77: =+SUM(R64:R76) -> 0
A78: Total Specified Costs | I78: 797.0324709 | J78: =+J58+J77 -> 0 | M78: 0 | N78: =+N58+N77 -> 0 | O78: 797.0324709 | P78: =+P58+P77 -> 0 | Q78: 79703.24709 | R78: =+R58+R77 -> 0
A80: Returns Above Specified Costs | I80: 827.9675291 | J80: =+J13-J78 -> 0 | M80: 0 | N80: =+N13-N78 -> 0 | O80: 827.9675291 | P80: =+P13-P78 -> 0 | Q80: 82796.75291 | R80: =+R13-R78 -> 0
A82: Breakeven Price to Cover Total Costs | G82: 122.6203801 | H82: =IF(E10=0,"n/a",(YTotExp-(YTotExp+YTotRet-J10))/E10) -> n/a | I82: Ton
D84: Example Breakeven Prices
B85: Example | C85: Example | D85: To Cover | G85: To Cover
B86: Yield | C86: Yield | D86: Variable | G86: Total
B87: Percent | C87: Ton | D87: Costs | G87: Costs
B88: 0.75 | C88: 4.875 | D88: 102.4624043 | G88: 163.4938402
B89: 0.9 | C89: 5.85 | D89: 85.3853369 | G89: 136.2448668
B90: 1 | C90: 6.5 | D90: 76.84680321 | G90: 122.6203801
B91: 1.1 | C91: 7.15 | D91: 69.86073019 | G91: 111.4730728
B92: 1.25 | C92: 8.125 | D92: 61.47744257 | G92: 98.09630411
A94: Developed by Francisco Abelló, Assistant Professor and Extension Specialist, Texas A&M AgriLife Extension, 940-647-3908
A96: Information presented is prepared solely as a general guide and not intended to recognize or predict the costs and returns from any one operation. Brand names are mentioned only as examples and imply no endorsement.

Sheet CottonDryland2X1
A1: Projections for Planning Purposes Only -- Not to be Used without Updating
A2: 2025 Estimated Costs and Returns per Acre
A3: Dryland Cotton (2X1 Planting Pattern)
A4: Enter your name for this budget in the cell above.
A5: Enter Your Values in the cells highlighed in MAROON.
E6: Your Acres | R6: Your
C7: Crop Acres | D7: 640 | L7: Your | Q7: Enterprise | R7: Enterprise
E8: Your | H8: Your | I8: Cash | J8: Your | K8: Landlord | L8: Landlord | N8: Your | P8: Your | Q8: Total | R8: Total
A9: REVENUE | D9: Quantity | E9: Quantity | F9: Units | G9: $/Unit | H9: $/Unit | I9: Total | J9: Total | K9: Share | L9: Share | M9: Landlord | N9: Landlord | O9: Tenant | P9: Tenant | Q9: (640 acres) | R9: ="(" & E7 & " acres)" -> ( acres)
B10: Cotton Lint | D10: 400 | F10: Pound | G10: 0.65 | I10: 260 | J10: =E10*H10 -> 0 | K10: 0 | M10: 0 | N10: =J10*L10 -> 0 | O10: 260 | P10: =+J10-N10 -> 0 | Q10: 166400 | R10: =+J10*E$7 -> 0
B11: Cottonseed | D11: 0.3300330033 | F11: Ton | G11: 225 | I11: 74.25742574 | J11: 0 | K11: 0 | M11: 0 | N11: 0 | O11: 74.25742574 | P11: =+J11-N11 -> 0 | Q11: 47524.75248 | R11: 0
D12: 0 | G12: 0 | I12: 0 | J12: 0 | K12: 0 | M12: 0 | N12: 0 | O12: 0 | P12: 0 | Q12: 0 | R12: 0
D13: 0 | G13: 0 | I13: 0 | J13: 0 | K13: 0 | M13: 0 | N13: 0 | O13: 0 | P13: 0 | Q13: 0 | R13: 0
A14: Total Revenue | I14: 334.2574257 | J14: =SUM(J10:J13) -> 0 | M14: 0 | N14: =SUM(N10:N13) -> 0 | O14: 334.2574257 | P14: =SUM(P10:P13) -> 0 | Q14: 213924.7525 | R14: =SUM(R10:R13) -> 0
Q15: Enterprise | R15: Enterprise
A16: VARIABLE COSTS | D16: Quantity | E16: Quantity | F16: Units | G16: $/Unit | H16: $/Unit | I16: Total | J16: Total | K16: Share | L16: Share | M16: Landlord | N16: Landlord | O16: Tenant | P16: Tenant | Q16: Total | R16: Total
A17: Production Costs
B18: Custom
C19: Insecticide Application | D19: 1 | F19: Acre | G19: 5.5 | I19: 5.5 | J19: =E19*H19 -> 0 | K19: 0 | M19: 0 | N19: =J19*L19 -> 0 | O19: 5.5 | P19: =+J19-N19 -> 0 | Q19: 3520 | R19: =+J19*E$7 -> 0
C20: Gin, Bag, Ties | D20: 320 | F20: Pound | G20: 0.13 | I20: 41.6 | J20: 0 | K20: 0 | M20: 0 | N20: 0 | O20: 41.6 | P20: 0 | Q20: 26624 | R20: 0
C21: Custom Stripping | D21: 320 | F21: Pound | G21: 0.12 | I21: 38.4 | J21: 0 | K21: 0 | M21: 0 | N21: 0 | O21: 38.4 | P21: 0 | Q21: 24576 | R21: 0
B22: Fertilizer
C23: Fertilizer (N) | D23: 57 | F23: Pound | G23: 0.505 | I23: 28.785 | J23: 0 | K23: 0 | M23: 0 | N23: 0 | O23: 28.785 | P23: 0 | Q23: 18422.4 | R23: 0
B24: Herbicide
C25: Roundup | D25: 2 | F25: Pint | G25: 2.18 | I25: 4.36 | J25: 0 | K25: 0 | M25: 0 | N25: 0 | O25: 4.36 | P25: 0 | Q25: 2790.4 | R25: 0
B26: Insecticide
C27: Insecticide - Cotton | D27: 0.5 | F27: Pound | G27: 7.2 | I27: 3.6 | J27: 0 | K27: 0 | M27: 0 | N27: 0 | O27: 3.6 | P27: 0 | Q27: 2304 | R27: 0
C28: Bollweevil Eradication | D28: 1 | F28: Acre | G28: 2.5 | I28: 2.5 | J28: 0 | K28: 0 | M28: 0 | N28: 0 | O28: 2.5 | P28: 0 | Q28: 1600 | R28: 0
B29: Miscellaneous
C30: Insurance - Dryland Cotton | D30: 1 | F30: Acre | G30: 15 | I30: 15 | J30: 0 | K30: 0 | M30: 0 | N30: 0 | O30: 15 | P30: 0 | Q30: 9600 | R30: 0
B31: Seed
C32: Cotton Seed | D32: 5 | F32: Pound | G32: 8 | I32: 40 | J32: 0 | K32: 0 | M32: 0 | N32: 0 | O32: 40 | P32: 0 | Q32: 25600 | R32: 0
D33: 0 | G33: 0 | I33: 0 | J33: 0 | K33: 0 | M33: 0 | N33: 0 | O33: 0 | P33: 0 | Q33: 0 | R33: 0
D34: 0 | G34: 0 | I34: 0 | J34: 0 | K34: 0 | M34: 0 | N34: 0 | O34: 0 | P34: 0 | Q34: 0 | R34: 0
D35: 0 | G35: 0 | I35: 0 | J35: =E35*H35 -> 0 | K35: 0 | M35: 0 | N35: =J35*L35 -> 0 | O35: 0 | P35: =+J35-N35 -> 0 | Q35: 0 | R35: =+J35*E$7 -> 0
B36: Machinery Labor
C37: Tractors/Self-Propelled | D37: 0.51 | F37: Hour | G37: 15 | I37: 7.65 | J37: =E37*H37 -> 0 | K37: 0 | M37: 0 | N37: =J37*L37 -> 0 | O37: 7.65 | P37: =+J37-N37 -> 0 | Q37: 4896 | R37: =+J37*E$7 -> 0
C38: Other Labor | D38: 0.62 | F38: Hour | G38: 15 | I38: 9.3 | J38: =E38*H38 -> 0 | K38: 0 | M38: 0 | N38: =J38*L38 -> 0 | O38: 9.3 | P38: =+J38-N38 -> 0 | Q38: 5952 | R38: =+J38*E$7 -> 0
B40: Diesel Fuel
C41: Pickup/General Use Equipment | D41: 1 | F41: Acre | G41: 0 | I41: 0 | J41: =E41*H41 -> 0 | K41: 0 | M41: 0 | N41: =J41*L41 -> 0 | O41: 0 | P41: =+J41-N41 -> 0 | Q41: 0 | R41: =+J41*E$7 -> 0
C42: Tractors/Self-Propelled | D42: 3.57 | F42: Gallon | G42: 2.59 | I42: 9.2463 | J42: =E42*H42 -> 0 | K42: 0 | M42: 0 | N42: =J42*L42 -> 0 | O42: 9.2463 | P42: =+J42-N42 -> 0 | Q42: 5917.632 | R42: =+J42*E$7 -> 0
B44: Gasoline
C45: Pickup/General Use Equipment | D45: 1 | F45: Acre | G45: 1.0546875 | I45: 1.0546875 | J45: =E45*H45 -> 0 | K45: 0 | M45: 0 | N45: =J45*L45 -> 0 | O45: 1.0546875 | P45: =+J45-N45 -> 0 | Q45: 675 | R45: =+J45*E$7 -> 0
C46: Tractors/Self-Propelled | D46: 0 | F46: Gallon | G46: 3.1 | I46: 0 | J46: =E46*H46 -> 0 | K46: 0 | M46: 0 | N46: =J46*L46 -> 0 | O46: 0 | P46: =+J46-N46 -> 0 | Q46: 0 | R46: =+J46*E$7 -> 0
B48: Repairs & Maintenance
C49: Pickup/General Use Equipment | D49: 1 | F49: Acre | G49: 0.3515625 | I49: 0.3515625 | J49: =E49*H49 -> 0 | K49: 0 | M49: 0 | N49: =J49*L49 -> 0 | O49: 0.3515625 | P49: =+J49-N49 -> 0 | Q49: 225 | R49: =+J49*E$7 -> 0
C50: Irrigation Equipment | D50: 1 | F50: Acre | G50: 0 | I50: 0 | J50: 0 | K50: 0 | M50: 0 | N50: 0 | O50: 0 | P50: 0 | Q50: 0 | R50: 0
C51: Tractors/Self-Propelled | D51: 1 | F51: Acre | G51: 7.6298725 | I51: 7.6298725 | J51: 0 | K51: 0 | M51: 0 | N51: 0 | O51: 7.6298725 | P51: 0 | Q51: 4883.1184 | R51: 0
C52: Implements | D52: 1 | F52: Acre | G52: 8.638879809 | I52: 8.638879809 | J52: 0 | K52: 0 | M52: 0 | N52: 0 | O52: 8.638879809 | P52: 0 | Q52: 5528.883078 | R52: 0
I53: 0 | J53: 0 | K53: 0 | M53: 0 | N53: 0 | O53: 0 | P53: 0 | Q53: 0 | R53: 0
I54: 0 | J54: 0 | K54: 0 | M54: 0 | N54: 0 | O54: 0 | P54: 0 | Q54: 0 | R54: 0
B55: Interest on Credit Line | G55: 0.09 | I55: 6.972376606 | J55: =+SUM(J18:J54)/2*H55 -> 0 | M55: 0 | N55: =+SUM(N18:N54)/2*L55 -> 0 | O55: 6.972376606 | P55: =+SUM(P18:P54)/2*L55 -> 0 | Q55: 4462.321028 | R55: =+J55*E$7 -> 0
A56: Total Variable Costs | I56: 230.5886789 | J56: =SUM(J19:J55) -> 0 | M56: 0 | N56: =SUM(N19:N55) -> 0 | O56: 230.5886789 | P56: =SUM(P19:P55) -> 0 | Q56: 147576.7545 | R56: =SUM(R19:R55) -> 0
A57: Planned Returns Above Variable Costs: | I57: 103.6687468 | J57: =+J14-J56 -> 0 | M57: 0 | N57: =+N14-N56 -> 0 | O57: 103.6687468 | P57: =+P14-P56 -> 0 | Q57: 66347.99797 | R57: =+R14-R56 -> 0
B58: Breakeven Price to Cover Variable Costs | G58: 0.3908281329 | H58: =IF(E10=0,"n/a",(YVarExp-(YTotExp+YTotRet-J10))/E10) -> n/a | I58: Pound
Q59: Enterprise | R59: Enterprise
A60: FIXED COSTS | D60: Quantity | E60: Quantity | F60: Units | G60: $/Unit | H60: $/Unit | I60: Total | J60: Total | K60: Share | L60: Share | M60: Landlord | N60: Landlord | O60: Tenant | P60: Tenant | Q60: Total | R60: Total
B61: Machinery Depreciation
C62: Pickup/General Use Equipment | D62: 1 | F62: Acre | G62: 0.4880859375 | I62: 0.4880859375 | J62: =E62*H62 -> 0 | K62: 0 | M62: 0 | N62: =J62*L62 -> 0 | O62: 0.4880859375 | P62: =+J62-N62 -> 0 | Q62: 312.375 | R62: =+J62*E$7 -> 0
C63: Tractors/Self-Propelled | D63: 1 | F63: Acre | G63: 7.884201583 | I63: 7.884201583 | J63: 0 | K63: 0 | M63: 0 | N63: =J63*L63 -> 0 | O63: 7.884201583 | P63: 0 | Q63: 5045.889013 | R63: 0
C64: Implements | D64: 1 | F64: Acre | G64: 10.44669519 | I64: 10.44669519 | J64: 0 | K64: 0 | M64: 0 | N64: =J64*L64 -> 0 | O64: 10.44669519 | P64: 0 | Q64: 6685.884922 | R64: 0
B65: Equipment Investment
C66: Pickup/General Use Equipment | D66: 3.418945312 | F66: Dollars | G66: 0.08 | I66: 0.273515625 | J66: =E66*H66 -> 0 | K66: 0 | M66: 0 | N66: =J66*L66 -> 0 | O66: 0.273515625 | P66: =+J66-N66 -> 0 | Q66: 175.05 | R66: =+J66*E$7 -> 0
C67: Tractors/Self-Propelled | D67: 61.42047363 | F67: Dollars | G67: 0.08 | I67: 4.91363789 | J67: 0 | K67: 0 | M67: 0 | N67: =J67*L67 -> 0 | O67: 4.91363789 | P67: 0 | Q67: 3144.72825 | R67: 0
C68: Implements | D68: 44.68864054 | F68: Dollars | G68: 0.08 | I68: 3.575091243 | J68: 0 | K68: 0 | M68: 0 | N68: =J68*L68 -> 0 | O68: 3.575091243 | P68: 0 | Q68: 2288.058396 | R68: 0
B69: Salaried Labor | D69: 1 | F69: Acre | G69: 0 | I69: 0 | J69: 0 | K69: 0 | M69: 0 | N69: =J69*L69 -> 0 | O69: 0 | P69: =+J69-N69 -> 0 | Q69: 0 | R69: =+J69*E$7 -> 0
B70: Management Fee, Owner/Operator Labor | D70: 1 | F70: Acre | G70: 0 | I70: 0 | J70: 0 | K70: 0 | M70: 0 | N70: 0 | O70: 0 | P70: 0 | Q70: 0 | R70: 0
B71: Allocated Establishment Cost | D71: 1 | F71: Acre | G71: 0 | I71: 0 | J71: 0 | K71: 0 | M71: 0 | N71: 0 | O71: 0 | P71: 0 | Q71: 0 | R71: 0
B72: Cash Rent - Dryland Cotton | D72: 1 | F72: Acre | G72: 30 | I72: 30 | J72: 0 | K72: 0 | M72: 0 | N72: 0 | O72: 30 | P72: 0 | Q72: 19200 | R72: 0
B73: Property Taxes | D73: 1 | F73: Acre | G73: 0 | I73: 0 | J73: 0 | K73: 0 | M73: 0 | N73: 0 | O73: 0 | P73: 0 | Q73: 0 | R73: 0
B74: Whole Farm Insurance | D74: 1 | F74: Acre | G74: 0 | I74: 0 | J74: 0 | K74: 0 | M74: 0 | N74: 0 | O74: 0 | P74: 0 | Q74: 0 | R74: 0
D75: 1 | G75: 0 | I75: 0 | J75: 0 | K75: 0 | M75: 0 | N75: 0 | O75: 0 | P75: 0 | Q75: 0 | R75: 0
D76: 1 | G76: 0 | I76: 0 | J76: =E76*H76 -> 0 | K76: 0 | M76: 0 | N76: 0 | O76: 0 | P76: 0 | Q76: 0 | R76: 0
A77: Total Fixed Costs | I77: 57.58122747 | J77: =+SUM(J62:J76) -> 0 | M77: 0 | N77: =+SUM(N62:N76) -> 0 | O77: 57.58122747 | P77: =+SUM(P62:P76) -> 0 | Q77: 36851.98558 | R77: =+SUM(R62:R76) -> 0
A78: Total Specified Costs | I78: 288.1699064 | J78: =+J56+J77 -> 0 | M78: 0 | N78: =+N56+N77 -> 0 | O78: 288.1699064 | P78: =+P56+P77 -> 0 | Q78: 184428.7401 | R78: =+R56+R77 -> 0
A80: Returns Above Specified Costs | I80: 46.08751936 | J80: =+J14-J78 -> 0 | M80: 0 | N80: =+N14-N78 -> 0 | O80: 46.08751936 | P80: =+P14-P78 -> 0 | Q80: 29496.01239 | R80: =+R14-R78 -> 0
A82: Breakeven Price to Cover Total Costs | G82: 0.5347812016 | H82: =IF(E10=0,"n/a",(YTotExp-(YTotExp+YTotRet-J10))/E10) -> n/a | I82: Pound
D84: Example Breakeven Prices
B85: Example | C85: Example | D85: To Cover | G85: To Cover
B86: Yield | C86: Yield | D86: Variable | G86: Total
B87: Percent | C87: Pound | D87: Costs | G87: Costs
B88: 0.75 | C88: 300 | D88: 0.5211041772 | G88: 0.7130416021
B89: 0.9 | C89: 360 | D89: 0.434253481 | G89: 0.5942013351
B90: 1 | C90: 400 | D90: 0.3908281329 | G90: 0.5347812016
B91: 1.1 | C91: 440 | D91: 0.3552983027 | G91: 0.4861647287
B92: 1.25 | C92: 500 | D92: 0.3126625063 | G92: 0.4278249613
A94: Developed by Francisco Abelló, Assistant Professor and Extension Specialist, Texas A&M AgriLife Extension, 940-647-3908
A96: Information presented is prepared solely as a general guide and not intended to recognize or predict the costs and returns from any one operation. Brand names are mentioned only as examples and imply no endorsement.

Sheet CottonDrylandSolid
A1: Projections for Planning Purposes Only -- Not to be Used without Updating
A2: 2025 Estimated Costs and Returns per Acre
A3: Dryland Cotton (Solid 40" Rows)
A4: Enter your name for this budget in the cell above.
A5: Enter Your Values in the cells highlighed in MAROON.
E6: Your Acres | R6: Your
C7: Crop Acres | D7: 640 | L7: Your | Q7: Enterprise | R7: Enterprise
E8: Your | H8: Your | I8: Cash | J8: Your | K8: Landlord | L8: Landlord | N8: Your | P8: Your | Q8: Total | R8: Total
A9: REVENUE | D9: Quantity | E9: Quantity | F9: Units | G9: $/Unit | H9: $/Unit | I9: Total | J9: Total | K9: Share | L9: Share | M9: Landlord | N9: Landlord | O9: Tenant | P9: Tenant | Q9: (640 acres) | R9: ="(" & E7 & " acres)" -> ( acres)
B10: Cotton Lint | D10: 440 | F10: Pound | G10: 0.65 | I10: 286 | J10: =E10*H10 -> 0 | K10: 0 | M10: 0 | N10: =J10*L10 -> 0 | O10: 286 | P10: =+J10-N10 -> 0 | Q10: 183040 | R10: =+J10*E$7 -> 0
D11: 0 | G11: 0 | I11: 0 | J11: 0 | K11: 0 | M11: 0 | N11: 0 | O11: 0 | P11: =+J11-N11 -> 0 | Q11: 0 | R11: 0
D12: 0 | G12: 0 | I12: 0 | J12: 0 | K12: 0 | M12: 0 | N12: 0 | O12: 0 | P12: 0 | Q12: 0 | R12: 0
A13: Total Revenue | I13: 286 | J13: =SUM(J10:J12) -> 0 | M13: 0 | N13: =SUM(N10:N12) -> 0 | O13: 286 | P13: =SUM(P10:P12) -> 0 | Q13: 183040 | R13: =SUM(R10:R12) -> 0
Q14: Enterprise | R14: Enterprise
A15: VARIABLE COSTS | D15: Quantity | E15: Quantity | F15: Units | G15: $/Unit | H15: $/Unit | I15: Total | J15: Total | K15: Share | L15: Share | M15: Landlord | N15: Landlord | O15: Tenant | P15: Tenant | Q15: Total | R15: Total
A16: Production Costs
B17: Custom
C18: Fertilizer Application | D18: 1 | F18: Acre | G18: 5 | I18: 5 | J18: =E18*H18 -> 0 | K18: 0 | M18: 0 | N18: =J18*L18 -> 0 | O18: 5 | P18: =+J18-N18 -> 0 | Q18: 3200 | R18: =+J18*E$7 -> 0
C19: Custom Stripping | D19: 480 | F19: Pound | G19: 0.12 | I19: 57.6 | J19: 0 | K19: 0 | M19: 0 | N19: 0 | O19: 57.6 | P19: 0 | Q19: 36864 | R19: 0
B20: Fertilizer
C21: Fertilizer (N) | D21: 57 | F21: Pound | G21: 0.505 | I21: 28.785 | J21: 0 | K21: 0 | M21: 0 | N21: 0 | O21: 28.785 | P21: 0 | Q21: 18422.4 | R21: 0
B22: Herbicide
C23: Roundup | D23: 4 | F23: Pint | G23: 2.18 | I23: 8.72 | J23: 0 | K23: 0 | M23: 0 | N23: 0 | O23: 8.72 | P23: 0 | Q23: 5580.8 | R23: 0
C24: Prowl | D24: 64 | F24: Ounces | G24: 0.38 | I24: 24.32 | J24: 0 | K24: 0 | M24: 0 | N24: 0 | O24: 24.32 | P24: 0 | Q24: 15564.8 | R24: 0
C25: Enlist Duo | D25: 4.7 | F25: Pint | G25: 5.911 | I25: 27.7817 | J25: 0 | K25: 0 | M25: 0 | N25: 0 | O25: 27.7817 | P25: 0 | Q25: 17780.288 | R25: 0
C26: Liberty | D26: 29 | F26: Ounce | G26: 0.47 | I26: 13.63 | J26: 0 | K26: 0 | M26: 0 | N26: 0 | O26: 13.63 | P26: 0 | Q26: 8723.2 | R26: 0
C27: Harvest Aid - Prep | D27: 1 | F27: Pint | G27: 3.75 | I27: 3.75 | J27: 0 | K27: 0 | M27: 0 | N27: 0 | O27: 3.75 | P27: 0 | Q27: 2400 | R27: 0
C28: Harvest Aid -Def | D28: 1 | F28: Ounce | G28: 0.546875 | I28: 0.546875 | J28: 0 | K28: 0 | M28: 0 | N28: 0 | O28: 0.546875 | P28: 0 | Q28: 350 | R28: 0
C29: 2,4D | D29: 1.5 | F29: Pint | G29: 4.634 | I29: 6.951 | J29: 0 | K29: 0 | M29: 0 | N29: 0 | O29: 6.951 | P29: 0 | Q29: 4448.64 | R29: 0
B30: Insecticide
C31: Insecticide - Cotton | D31: 0.5 | F31: Pound | G31: 7.2 | I31: 3.6 | J31: 0 | K31: 0 | M31: 0 | N31: 0 | O31: 3.6 | P31: 0 | Q31: 2304 | R31: 0
C32: Prevathon | D32: 16 | F32: Ounce | G32: 1.16 | I32: 18.56 | J32: 0 | K32: 0 | M32: 0 | N32: 0 | O32: 18.56 | P32: 0 | Q32: 11878.4 | R32: 0
C33: Brigade | D33: 2 | F33: Ounce | G33: 1.74875 | I33: 3.4975 | J33: 0 | K33: 0 | M33: 0 | N33: 0 | O33: 3.4975 | P33: 0 | Q33: 2238.4 | R33: 0
B34: Miscellaneous
C35: Insurance - Dryland Cotton | D35: 1 | F35: Acre | G35: 15 | I35: 15 | J35: 0 | K35: 0 | M35: 0 | N35: 0 | O35: 15 | P35: 0 | Q35: 9600 | R35: 0
B36: Seed
C37: Cotton Seed | D37: 5 | F37: Pound | G37: 8 | I37: 40 | J37: 0 | K37: 0 | M37: 0 | N37: 0 | O37: 40 | P37: 0 | Q37: 25600 | R37: 0
D38: 0 | G38: 0 | I38: 0 | J38: 0 | K38: 0 | M38: 0 | N38: 0 | O38: 0 | P38: 0 | Q38: 0 | R38: 0
D39: 0 | G39: 0 | I39: 0 | J39: 0 | K39: 0 | M39: 0 | N39: 0 | O39: 0 | P39: 0 | Q39: 0 | R39: 0
D40: 0 | G40: 0 | I40: 0 | J40: =E40*H40 -> 0 | K40: 0 | M40: 0 | N40: =J40*L40 -> 0 | O40: 0 | P40: =+J40-N40 -> 0 | Q40: 0 | R40: =+J40*E$7 -> 0
B41: Machinery Labor
C42: Tractors/Self-Propelled | D42: 0.29 | F42: Hour | G42: 15 | I42: 4.35 | J42: =E42*H42 -> 0 | K42: 0 | M42: 0 | N42: =J42*L42 -> 0 | O42: 4.35 | P42: =+J42-N42 -> 0 | Q42: 2784 | R42: =+J42*E$7 -> 0
C43: Other Labor | D43: 0.34 | F43: Hour | G43: 15 | I43: 5.1 | J43: =E43*H43 -> 0 | K43: 0 | M43: 0 | N43: =J43*L43 -> 0 | O43: 5.1 | P43: =+J43-N43 -> 0 | Q43: 3264 | R43: =+J43*E$7 -> 0
B45: Diesel Fuel
C46: Pickup/General Use Equipment | D46: 1 | F46: Acre | G46: 0 | I46: 0 | J46: =E46*H46 -> 0 | K46: 0 | M46: 0 | N46: =J46*L46 -> 0 | O46: 0 | P46: =+J46-N46 -> 0 | Q46: 0 | R46: =+J46*E$7 -> 0
C47: Tractors/Self-Propelled | D47: 4.96 | F47: Gallon | G47: 2.59 | I47: 12.8464 | J47: =E47*H47 -> 0 | K47: 0 | M47: 0 | N47: =J47*L47 -> 0 | O47: 12.8464 | P47: =+J47-N47 -> 0 | Q47: 8221.696 | R47: =+J47*E$7 -> 0
B49: Gasoline
C50: Pickup/General Use Equipment | D50: 1 | F50: Acre | G50: 1.0546875 | I50: 1.0546875 | J50: =E50*H50 -> 0 | K50: 0 | M50: 0 | N50: =J50*L50 -> 0 | O50: 1.0546875 | P50: =+J50-N50 -> 0 | Q50: 675 | R50: =+J50*E$7 -> 0
C51: Tractors/Self-Propelled | D51: 0 | F51: Gallon | G51: 3.1 | I51: 0 | J51: =E51*H51 -> 0 | K51: 0 | M51: 0 | N51: =J51*L51 -> 0 | O51: 0 | P51: =+J51-N51 -> 0 | Q51: 0 | R51: =+J51*E$7 -> 0
B53: Repairs & Maintenance
C54: Pickup/General Use Equipment | D54: 1 | F54: Acre | G54: 0.3515625 | I54: 0.3515625 | J54: =E54*H54 -> 0 | K54: 0 | M54: 0 | N54: =J54*L54 -> 0 | O54: 0.3515625 | P54: =+J54-N54 -> 0 | Q54: 225 | R54: =+J54*E$7 -> 0
C55: Irrigation Equipment | D55: 1 | F55: Acre | G55: 0 | I55: 0 | J55: 0 | K55: 0 | M55: 0 | N55: 0 | O55: 0 | P55: 0 | Q55: 0 | R55: 0
C56: Tractors/Self-Propelled | D56: 1 | F56: Acre | G56: 14.52888474 | I56: 14.52888474 | J56: 0 | K56: 0 | M56: 0 | N56: 0 | O56: 14.52888474 | P56: 0 | Q56: 9298.486235 | R56: 0
C57: Implements | D57: 1 | F57: Acre | G57: 6.223075593 | I57: 6.223075593 | J57: 0 | K57: 0 | M57: 0 | N57: 0 | O57: 6.223075593 | P57: 0 | Q57: 3982.768379 | R57: 0
I58: 0 | J58: 0 | K58: 0 | M58: 0 | N58: 0 | O58: 0 | P58: 0 | Q58: 0 | R58: 0
I59: 0 | J59: 0 | K59: 0 | M59: 0 | N59: 0 | O59: 0 | P59: 0 | Q59: 0 | R59: 0
B60: Interest on Credit Line | G60: 0.09 | I60: 42.02191202 | J60: =+SUM(J17:J59)/2*H60 -> 0 | M60: 0 | N60: =+SUM(N17:N59)/2*L60 -> 0 | O60: 42.02191202 | P60: =+SUM(P17:P59)/2*L60 -> 0 | Q60: 26894.02369 | R60: =+J60*E$7 -> 0
A61: Total Variable Costs | I61: 344.2185974 | J61: =SUM(J18:J60) -> 0 | M61: 0 | N61: =SUM(N18:N60) -> 0 | O61: 344.2185974 | P61: =SUM(P18:P60) -> 0 | Q61: 220299.9023 | R61: =SUM(R18:R60) -> 0
A62: Planned Returns Above Variable Costs: | I62: -58.21859736 | J62: =+J13-J61 -> 0 | M62: 0 | N62: =+N13-N61 -> 0 | O62: -58.21859736 | P62: =+P13-P61 -> 0 | Q62: -37259.90231 | R62: =+R13-R61 -> 0
B63: Breakeven Price to Cover Variable Costs | G63: 0.782314994 | H63: =IF(E10=0,"n/a",(YVarExp-(YTotExp+YTotRet-J10))/E10) -> n/a | I63: Pound
Q64: Enterprise | R64: Enterprise
A65: FIXED COSTS | D65: Quantity | E65: Quantity | F65: Units | G65: $/Unit | H65: $/Unit | I65: Total | J65: Total | K65: Share | L65: Share | M65: Landlord | N65: Landlord | O65: Tenant | P65: Tenant | Q65: Total | R65: Total
B66: Machinery Depreciation
C67: Pickup/General Use Equipment | D67: 1 | F67: Acre | G67: 0.4880859375 | I67: 0.4880859375 | J67: =E67*H67 -> 0 | K67: 0 | M67: 0 | N67: =J67*L67 -> 0 | O67: 0.4880859375 | P67: =+J67-N67 -> 0 | Q67: 312.375 | R67: =+J67*E$7 -> 0
C68: Tractors/Self-Propelled | D68: 1 | F68: Acre | G68: 19.48322054 | I68: 19.48322054 | J68: 0 | K68: 0 | M68: 0 | N68: =J68*L68 -> 0 | O68: 19.48322054 | P68: 0 | Q68: 12469.26115 | R68: 0
C69: Implements | D69: 1 | F69: Acre | G69: 8.514219541 | I69: 8.514219541 | J69: 0 | K69: 0 | M69: 0 | N69: =J69*L69 -> 0 | O69: 8.514219541 | P69: 0 | Q69: 5449.100506 | R69: 0
B70: Equipment Investment
C71: Pickup/General Use Equipment | D71: 3.418945312 | F71: Dollars | G71: 0.08 | I71: 0.273515625 | J71: =E71*H71 -> 0 | K71: 0 | M71: 0 | N71: =J71*L71 -> 0 | O71: 0.273515625 | P71: =+J71-N71 -> 0 | Q71: 175.05 | R71: =+J71*E$7 -> 0
C72: Tractors/Self-Propelled | D72: 149.7036383 | F72: Dollars | G72: 0.08 | I72: 11.97629106 | J72: 0 | K72: 0 | M72: 0 | N72: =J72*L72 -> 0 | O72: 11.97629106 | P72: 0 | Q72: 7664.826279 | R72: 0
C73: Implements | D73: 36.42193915 | F73: Dollars | G73: 0.08 | I73: 2.913755132 | J73: 0 | K73: 0 | M73: 0 | N73: =J73*L73 -> 0 | O73: 2.913755132 | P73: 0 | Q73: 1864.803284 | R73: 0
B74: Salaried Labor | D74: 1 | F74: Acre | G74: 0 | I74: 0 | J74: 0 | K74: 0 | M74: 0 | N74: =J74*L74 -> 0 | O74: 0 | P74: =+J74-N74 -> 0 | Q74: 0 | R74: =+J74*E$7 -> 0
B75: Management Fee, Owner/Operator Labor | D75: 1 | F75: Acre | G75: 0 | I75: 0 | J75: 0 | K75: 0 | M75: 0 | N75: 0 | O75: 0 | P75: 0 | Q75: 0 | R75: 0
B76: Allocated Establishment Cost | D76: 1 | F76: Acre | G76: 0 | I76: 0 | J76: 0 | K76: 0 | M76: 0 | N76: 0 | O76: 0 | P76: 0 | Q76: 0 | R76: 0
B77: Cash Rent - Dryland Cotton | D77: 1 | F77: Acre | G77: 30 | I77: 30 | J77: 0 | K77: 0 | M77: 0 | N77: 0 | O77: 30 | P77: 0 | Q77: 19200 | R77: 0
B78: Property Taxes | D78: 1 | F78: Acre | G78: 0 | I78: 0 | J78: 0 | K78: 0 | M78: 0 | N78: 0 | O78: 0 | P78: 0 | Q78: 0 | R78: 0
B79: Whole Farm Insurance | D79: 1 | F79: Acre | G79: 0 | I79: 0 | J79: 0 | K79: 0 | M79: 0 | N79: 0 | O79: 0 | P79: 0 | Q79: 0 | R79: 0
D80: 1 | G80: 0 | I80: 0 | J80: 0 | K80: 0 | M80: 0 | N80: 0 | O80: 0 | P80: 0 | Q80: 0 | R80: 0
D81: 1 | G81: 0 | I81: 0 | J81: =E81*H81 -> 0 | K81: 0 | M81: 0 | N81: 0 | O81: 0 | P81: 0 | Q81: 0 | R81: 0
A82: Total Fixed Costs | I82: 73.64908784 | J82: =+SUM(J67:J81) -> 0 | M82: 0 | N82: =+SUM(N67:N81) -> 0 | O82: 73.64908784 | P82: =+SUM(P67:P81) -> 0 | Q82: 47135.41622 | R82: =+SUM(R67:R81) -> 0
A83: Total Specified Costs | I83: 417.8676852 | J83: =+J61+J82 -> 0 | M83: 0 | N83: =+N61+N82 -> 0 | O83: 417.8676852 | P83: =+P61+P82 -> 0 | Q83: 267435.3185 | R83: =+R61+R82 -> 0
A85: Returns Above Specified Costs | I85: -131.8676852 | J85: =+J13-J83 -> 0 | M85: 0 | N85: =+N13-N83 -> 0 | O85: -131.8676852 | P85: =+P13-P83 -> 0 | Q85: -84395.31852 | R85: =+R13-R83 -> 0
A87: Breakeven Price to Cover Total Costs | G87: 0.9496992845 | H87: =IF(E10=0,"n/a",(YTotExp-(YTotExp+YTotRet-J10))/E10) -> n/a | I87: Pound
D89: Example Breakeven Prices
B90: Example | C90: Example | D90: To Cover | G90: To Cover
B91: Yield | C91: Yield | D91: Variable | G91: Total
B92: Percent | C92: Pound | D92: Costs | G92: Costs
B93: 0.75 | C93: 330 | D93: 1.043086659 | G93: 1.266265713
B94: 0.9 | C94: 396 | D94: 0.8692388822 | G94: 1.055221427
B95: 1 | C95: 440 | D95: 0.782314994 | G95: 0.9496992845
B96: 1.1 | C96: 484 | D96: 0.7111954491 | G96: 0.8633629859
B97: 1.25 | C97: 550 | D97: 0.6258519952 | G97: 0.7597594276
A99: Developed by Francisco Abelló, Assistant Professor and Extension Specialist, Texas A&M AgriLife Extension, 940-647-3908
A101: Information presented is prepared solely as a general guide and not intended to recognize or predict the costs and returns from any one operation. Brand names are mentioned only as examples and imply no endorsement.

Sheet Red Till Irrig Cotton
A1: Projections for Planning Purposes Only -- Not to be Used without Updating
A2: 2025 Estimated Costs and Returns per Acre
A3: Cotton - Red Till Irrig
A4: Enter your name for this budget in the cell above.
A5: Enter Your Values in the cells highlighed in MAROON.
E6: Your Acres | R6: Your
C7: Crop Acres | D7: 640 | L7: Your | Q7: Enterprise | R7: Enterprise
E8: Your | H8: Your | I8: Cash | J8: Your | K8: Landlord | L8: Landlord | N8: Your | P8: Your | Q8: Total | R8: Total
A9: REVENUE | D9: Quantity | E9: Quantity | F9: Units | G9: $/Unit | H9: $/Unit | I9: Total | J9: Total | K9: Share | L9: Share | M9: Landlord | N9: Landlord | O9: Tenant | P9: Tenant | Q9: (640 acres) | R9: ="(" & E7 & " acres)" -> ( acres)
B10: Cotton Lint | D10: 1267 | F10: Pound | G10: 0.65 | I10: 823.55 | J10: =E10*H10 -> 0 | K10: 0 | M10: 0 | N10: =J10*L10 -> 0 | O10: 823.55 | P10: =+J10-N10 -> 0 | Q10: 527072 | R10: =+J10*E$7 -> 0
D11: 0 | G11: 0 | I11: 0 | J11: 0 | K11: 0 | M11: 0 | N11: 0 | O11: 0 | P11: =+J11-N11 -> 0 | Q11: 0 | R11: 0
D12: 0 | G12: 0 | I12: 0 | J12: 0 | K12: 0 | M12: 0 | N12: 0 | O12: 0 | P12: 0 | Q12: 0 | R12: 0
A13: Total Revenue | I13: 823.55 | J13: =SUM(J10:J12) -> 0 | M13: 0 | N13: =SUM(N10:N12) -> 0 | O13: 823.55 | P13: =SUM(P10:P12) -> 0 | Q13: 527072 | R13: =SUM(R10:R12) -> 0
Q14: Enterprise | R14: Enterprise
A15: VARIABLE COSTS | D15: Quantity | E15: Quantity | F15: Units | G15: $/Unit | H15: $/Unit | I15: Total | J15: Total | K15: Share | L15: Share | M15: Landlord | N15: Landlord | O15: Tenant | P15: Tenant | Q15: Total | R15: Total
A16: Production Costs
B17: Custom
C18: Fertilizer Application | D18: 1 | F18: Acre | G18: 5 | I18: 5 | J18: =E18*H18 -> 0 | K18: 0 | M18: 0 | N18: =J18*L18 -> 0 | O18: 5 | P18: =+J18-N18 -> 0 | Q18: 3200 | R18: =+J18*E$7 -> 0
C19: Custom Stripping | D19: 1267 | F19: Pound | G19: 0.12 | I19: 152.04 | J19: 0 | K19: 0 | M19: 0 | N19: 0 | O19: 152.04 | P19: 0 | Q19: 97305.6 | R19: 0
B20: Fertilizer
C21: Fertilizer (N) | D21: 100 | F21: Pound | G21: 0.505 | I21: 50.5 | J21: 0 | K21: 0 | M21: 0 | N21: 0 | O21: 50.5 | P21: 0 | Q21: 32320 | R21: 0
C22: Fertilizer (P) | D22: 50 | F22: Pound | G22: 0.60657 | I22: 30.3285 | J22: 0 | K22: 0 | M22: 0 | N22: 0 | O22: 30.3285 | P22: 0 | Q22: 19410.24 | R22: 0
B23: Herbicide
C24: Roundup | D24: 4 | F24: Pint | G24: 2.18 | I24: 8.72 | J24: 0 | K24: 0 | M24: 0 | N24: 0 | O24: 8.72 | P24: 0 | Q24: 5580.8 | R24: 0
C25: Prowl | D25: 64 | F25: Ounces | G25: 0.38 | I25: 24.32 | J25: 0 | K25: 0 | M25: 0 | N25: 0 | O25: 24.32 | P25: 0 | Q25: 15564.8 | R25: 0
C26: Enlist Duo | D26: 4.7 | F26: Pint | G26: 5.911 | I26: 27.7817 | J26: 0 | K26: 0 | M26: 0 | N26: 0 | O26: 27.7817 | P26: 0 | Q26: 17780.288 | R26: 0
C27: Liberty | D27: 29 | F27: Ounce | G27: 0.47 | I27: 13.63 | J27: 0 | K27: 0 | M27: 0 | N27: 0 | O27: 13.63 | P27: 0 | Q27: 8723.2 | R27: 0
C28: Harvest Aid - Prep | D28: 1 | F28: Pint | G28: 3.75 | I28: 3.75 | J28: 0 | K28: 0 | M28: 0 | N28: 0 | O28: 3.75 | P28: 0 | Q28: 2400 | R28: 0
C29: Harvest Aid -Def | D29: 1 | F29: Ounce | G29: 0.546875 | I29: 0.546875 | J29: 0 | K29: 0 | M29: 0 | N29: 0 | O29: 0.546875 | P29: 0 | Q29: 350 | R29: 0
C30: 2,4D | D30: 1.5 | F30: Pint | G30: 4.634 | I30: 6.951 | J30: 0 | K30: 0 | M30: 0 | N30: 0 | O30: 6.951 | P30: 0 | Q30: 4448.64 | R30: 0
B31: Insecticide
C32: Insecticide - Cotton | D32: 0.5 | F32: Pound | G32: 7.2 | I32: 3.6 | J32: 0 | K32: 0 | M32: 0 | N32: 0 | O32: 3.6 | P32: 0 | Q32: 2304 | R32: 0
C33: Prevathon | D33: 16 | F33: Ounce | G33: 1.16 | I33: 18.56 | J33: 0 | K33: 0 | M33: 0 | N33: 0 | O33: 18.56 | P33: 0 | Q33: 11878.4 | R33: 0
C34: Brigade | D34: 2 | F34: Ounce | G34: 1.74875 | I34: 3.4975 | J34: 0 | K34: 0 | M34: 0 | N34: 0 | O34: 3.4975 | P34: 0 | Q34: 2238.4 | R34: 0
B35: Miscellaneous
C36: Insurance - Dryland Cotton | D36: 1 | F36: Acre | G36: 15 | I36: 15 | J36: 0 | K36: 0 | M36: 0 | N36: 0 | O36: 15 | P36: 0 | Q36: 9600 | R36: 0
B37: Seed
C38: Cotton Seed | D38: 11.5 | F38: Pound | G38: 8 | I38: 92 | J38: 0 | K38: 0 | M38: 0 | N38: 0 | O38: 92 | P38: 0 | Q38: 58880 | R38: 0
D39: 0 | G39: 0 | I39: 0 | J39: 0 | K39: 0 | M39: 0 | N39: 0 | O39: 0 | P39: 0 | Q39: 0 | R39: 0
D40: 0 | G40: 0 | I40: 0 | J40: 0 | K40: 0 | M40: 0 | N40: 0 | O40: 0 | P40: 0 | Q40: 0 | R40: 0
D41: 0 | G41: 0 | I41: 0 | J41: =E41*H41 -> 0 | K41: 0 | M41: 0 | N41: =J41*L41 -> 0 | O41: 0 | P41: =+J41-N41 -> 0 | Q41: 0 | R41: =+J41*E$7 -> 0
B42: Irrigation
C43: Energy Cost | D43: 11.8 | F43: AcreInch | G43: 6.75 | I43: 79.65 | J43: =E43*H43 -> 0 | K43: 0 | M43: 0 | N43: =J43*L43 -> 0 | O43: 79.65 | P43: =+J43-N43 -> 0 | Q43: 50976 | R43: =+J43*E$7 -> 0
C44: Irrigation Labor | D44: 0.96 | F44: Hour | G44: 15 | I44: 14.4 | J44: 0 | K44: 0 | M44: 0 | N44: 0 | O44: 14.4 | P44: 0 | Q44: 9216 | R44: 0
B45: Machinery Labor
C46: Tractors/Self-Propelled | D46: 0.32 | F46: Hour | G46: 15 | I46: 4.8 | J46: =E46*H46 -> 0 | K46: 0 | M46: 0 | N46: =J46*L46 -> 0 | O46: 4.8 | P46: =+J46-N46 -> 0 | Q46: 3072 | R46: =+J46*E$7 -> 0
C47: Other Labor | D47: 0.38 | F47: Hour | G47: 15 | I47: 5.7 | J47: =E47*H47 -> 0 | K47: 0 | M47: 0 | N47: =J47*L47 -> 0 | O47: 5.7 | P47: =+J47-N47 -> 0 | Q47: 3648 | R47: =+J47*E$7 -> 0
B49: Diesel Fuel
C50: Pickup/General Use Equipment | D50: 1 | F50: Acre | G50: 0 | I50: 0 | J50: =E50*H50 -> 0 | K50: 0 | M50: 0 | N50: =J50*L50 -> 0 | O50: 0 | P50: =+J50-N50 -> 0 | Q50: 0 | R50: =+J50*E$7 -> 0
C51: Tractors/Self-Propelled | D51: 3.91 | F51: Gallon | G51: 2.59 | I51: 10.1269 | J51: =E51*H51 -> 0 | K51: 0 | M51: 0 | N51: =J51*L51 -> 0 | O51: 10.1269 | P51: =+J51-N51 -> 0 | Q51: 6481.216 | R51: =+J51*E$7 -> 0
B53: Gasoline
C54: Pickup/General Use Equipment | D54: 1 | F54: Acre | G54: 1.0546875 | I54: 1.0546875 | J54: =E54*H54 -> 0 | K54: 0 | M54: 0 | N54: =J54*L54 -> 0 | O54: 1.0546875 | P54: =+J54-N54 -> 0 | Q54: 675 | R54: =+J54*E$7 -> 0
C55: Tractors/Self-Propelled | D55: 0 | F55: Gallon | G55: 3.1 | I55: 0 | J55: =E55*H55 -> 0 | K55: 0 | M55: 0 | N55: =J55*L55 -> 0 | O55: 0 | P55: =+J55-N55 -> 0 | Q55: 0 | R55: =+J55*E$7 -> 0
B57: Repairs & Maintenance
C58: Pickup/General Use Equipment | D58: 1 | F58: Acre | G58: 0.3515625 | I58: 0.3515625 | J58: =E58*H58 -> 0 | K58: 0 | M58: 0 | N58: =J58*L58 -> 0 | O58: 0.3515625 | P58: =+J58-N58 -> 0 | Q58: 225 | R58: =+J58*E$7 -> 0
C59: Irrigation Equipment | D59: 1 | F59: Acre | G59: 13.11334 | I59: 13.11334 | J59: 0 | K59: 0 | M59: 0 | N59: 0 | O59: 13.11334 | P59: 0 | Q59: 8392.5376 | R59: 0
C60: Tractors/Self-Propelled | D60: 1 | F60: Acre | G60: 11.30216344 | I60: 11.30216344 | J60: 0 | K60: 0 | M60: 0 | N60: 0 | O60: 11.30216344 | P60: 0 | Q60: 7233.3846 | R60: 0
C61: Implements | D61: 1 | F61: Acre | G61: 8.683375618 | I61: 8.683375618 | J61: 0 | K61: 0 | M61: 0 | N61: 0 | O61: 8.683375618 | P61: 0 | Q61: 5557.360396 | R61: 0
I62: 0 | J62: 0 | K62: 0 | M62: 0 | N62: 0 | O62: 0 | P62: 0 | Q62: 0 | R62: 0
I63: 0 | J63: 0 | K63: 0 | M63: 0 | N63: 0 | O63: 0 | P63: 0 | Q63: 0 | R63: 0
B64: Interest on Credit Line | G64: 0.09 | I64: 21.4566754 | J64: =+SUM(J17:J63)/2*H64 -> 0 | M64: 0 | N64: =+SUM(N17:N63)/2*L64 -> 0 | O64: 21.4566754 | P64: =+SUM(P17:P63)/2*L64 -> 0 | Q64: 13732.27226 | R64: =+J64*E$7 -> 0
A65: Total Variable Costs | I65: 626.8642795 | J65: =SUM(J18:J64) -> 0 | M65: 0 | N65: =SUM(N18:N64) -> 0 | O65: 626.8642795 | P65: =SUM(P18:P64) -> 0 | Q65: 401193.1389 | R65: =SUM(R18:R64) -> 0
A66: Planned Returns Above Variable Costs: | I66: 196.6857205 | J66: =+J13-J65 -> 0 | M66: 0 | N66: =+N13-N65 -> 0 | O66: 196.6857205 | P66: =+P13-P65 -> 0 | Q66: 125878.8611 | R66: =+R13-R65 -> 0
B67: Breakeven Price to Cover Variable Costs | G67: 0.4947626515 | H67: =IF(E10=0,"n/a",(YVarExp-(YTotExp+YTotRet-J10))/E10) -> n/a | I67: Pound
Q68: Enterprise | R68: Enterprise
A69: FIXED COSTS | D69: Quantity | E69: Quantity | F69: Units | G69: $/Unit | H69: $/Unit | I69: Total | J69: Total | K69: Share | L69: Share | M69: Landlord | N69: Landlord | O69: Tenant | P69: Tenant | Q69: Total | R69: Total
B70: Machinery Depreciation
C71: Pickup/General Use Equipment | D71: 1 | F71: Acre | G71: 0.4880859375 | I71: 0.4880859375 | J71: =E71*H71 -> 0 | K71: 0 | M71: 0 | N71: =J71*L71 -> 0 | O71: 0.4880859375 | P71: =+J71-N71 -> 0 | Q71: 312.375 | R71: =+J71*E$7 -> 0
C72: Irrigation Equipment | D72: 1 | F72: Acre | G72: 24.375 | I72: 24.375 | J72: 0 | K72: 0 | M72: 0 | N72: =J72*L72 -> 0 | O72: 24.375 | P72: 0 | Q72: 15600 | R72: 0
C73: Tractors/Self-Propelled | D73: 1 | F73: Acre | G73: 16.14894186 | I73: 16.14894186 | J73: 0 | K73: 0 | M73: 0 | N73: =J73*L73 -> 0 | O73: 16.14894186 | P73: 0 | Q73: 10335.32279 | R73: 0
C74: Implements | D74: 1 | F74: Acre | G74: 11.67665305 | I74: 11.67665305 | J74: 0 | K74: 0 | M74: 0 | N74: =J74*L74 -> 0 | O74: 11.67665305 | P74: 0 | Q74: 7473.057955 | R74: 0
B75: Equipment Investment
C76: Pickup/General Use Equipment | D76: 3.418945312 | F76: Dollars | G76: 0.08 | I76: 0.273515625 | J76: =E76*H76 -> 0 | K76: 0 | M76: 0 | N76: =J76*L76 -> 0 | O76: 0.273515625 | P76: =+J76-N76 -> 0 | Q76: 175.05 | R76: =+J76*E$7 -> 0
C77: Irrigation Equipment | D77: 710.9375 | F77: Dollars | G77: 0.08 | I77: 56.875 | J77: 0 | K77: 0 | M77: 0 | N77: =J77*L77 -> 0 | O77: 56.875 | P77: 0 | Q77: 36400 | R77: 0
C78: Tractors/Self-Propelled | D78: 123.7285317 | F78: Dollars | G78: 0.08 | I78: 9.898282539 | J78: 0 | K78: 0 | M78: 0 | N78: =J78*L78 -> 0 | O78: 9.898282539 | P78: 0 | Q78: 6334.900825 | R78: 0
C79: Implements | D79: 49.95012695 | F79: Dollars | G79: 0.08 | I79: 3.996010156 | J79: 0 | K79: 0 | M79: 0 | N79: =J79*L79 -> 0 | O79: 3.996010156 | P79: 0 | Q79: 2557.4465 | R79: 0
B80: Salaried Labor | D80: 1 | F80: Acre | G80: 0 | I80: 0 | J80: 0 | K80: 0 | M80: 0 | N80: =J80*L80 -> 0 | O80: 0 | P80: =+J80-N80 -> 0 | Q80: 0 | R80: =+J80*E$7 -> 0
B81: Management Fee, Owner/Operator Labor | D81: 1 | F81: Acre | G81: 0 | I81: 0 | J81: 0 | K81: 0 | M81: 0 | N81: 0 | O81: 0 | P81: 0 | Q81: 0 | R81: 0
B82: Allocated Establishment Cost | D82: 1 | F82: Acre | G82: 0 | I82: 0 | J82: 0 | K82: 0 | M82: 0 | N82: 0 | O82: 0 | P82: 0 | Q82: 0 | R82: 0
B83: Cash Rent - Irrigated Cotton | D83: 1 | F83: Acre | G83: 90 | I83: 90 | J83: 0 | K83: 0 | M83: 0 | N83: 0 | O83: 90 | P83: 0 | Q83: 57600 | R83: 0
B84: Property Taxes | D84: 1 | F84: Acre | G84: 0 | I84: 0 | J84: 0 | K84: 0 | M84: 0 | N84: 0 | O84: 0 | P84: 0 | Q84: 0 | R84: 0
B85: Whole Farm Insurance | D85: 1 | F85: Acre | G85: 0 | I85: 0 | J85: 0 | K85: 0 | M85: 0 | N85: 0 | O85: 0 | P85: 0 | Q85: 0 | R85: 0
D86: 1 | G86: 0 | I86: 0 | J86: 0 | K86: 0 | M86: 0 | N86: 0 | O86: 0 | P86: 0 | Q86: 0 | R86: 0
D87: 1 | G87: 0 | I87: 0 | J87: =E87*H87 -> 0 | K87: 0 | M87: 0 | N87: 0 | O87: 0 | P87: 0 | Q87: 0 | R87: 0
A88: Total Fixed Costs | I88: 213.7314892 | J88: =+SUM(J71:J87) -> 0 | M88: 0 | N88: =+SUM(N71:N87) -> 0 | O88: 213.7314892 | P88: =+SUM(P71:P87) -> 0 | Q88: 136788.1531 | R88: =+SUM(R71:R87) -> 0
A89: Total Specified Costs | I89: 840.5957686 | J89: =+J65+J88 -> 0 | M89: 0 | N89: =+N65+N88 -> 0 | O89: 840.5957686 | P89: =+P65+P88 -> 0 | Q89: 537981.2919 | R89: =+R65+R88 -> 0
A91: Returns Above Specified Costs | I91: -17.04576863 | J91: =+J13-J89 -> 0 | M91: 0 | N91: =+N13-N89 -> 0 | O91: -17.04576863 | P91: =+P13-P89 -> 0 | Q91: -10909.29192 | R91: =+R13-R89 -> 0
A93: Breakeven Price to Cover Total Costs | G93: 0.6634536453 | H93: =IF(E10=0,"n/a",(YTotExp-(YTotExp+YTotRet-J10))/E10) -> n/a | I93: Pound
D95: Example Breakeven Prices
B96: Example | C96: Example | D96: To Cover | G96: To Cover
B97: Yield | C97: Yield | D97: Variable | G97: Total
B98: Percent | C98: Pound | D98: Costs | G98: Costs
B99: 0.75 | C99: 950.25 | D99: 0.6596835353 | G99: 0.8846048604
B100: 0.9 | C100: 1140.3 | D100: 0.5497362795 | G100: 0.737170717
B101: 1 | C101: 1267 | D101: 0.4947626515 | G101: 0.6634536453
B102: 1.1 | C102: 1393.7 | D102: 0.4497842286 | G102: 0.6031396776
B103: 1.25 | C103: 1583.75 | D103: 0.3958101212 | G103: 0.5307629163
A105: Developed by Francisco Abelló, Assistant Professor and Extension Specialist, Texas A&M AgriLife Extension, 940-647-3908
A107: Information presented is prepared solely as a general guide and not intended to recognize or predict the costs and returns from any one operation. Brand names are mentioned only as examples and imply no endorsement.

Sheet Conv M Irrig Cotton
A1: Projections for Planning Purposes Only -- Not to be Used without Updating
A2: 2025 Estimated Costs and Returns per Acre
A3: Conventional Irrig Cotton
A4: Enter your name for this budget in the cell above.
A5: Enter Your Values in the cells highlighed in MAROON.
E6: Your Acres | R6: Your
C7: Crop Acres | D7: 640 | L7: Your | Q7: Enterprise | R7: Enterprise
E8: Your | H8: Your | I8: Cash | J8: Your | K8: Landlord | L8: Landlord | N8: Your | P8: Your | Q8: Total | R8: Total
A9: REVENUE | D9: Quantity | E9: Quantity | F9: Units | G9: $/Unit | H9: $/Unit | I9: Total | J9: Total | K9: Share | L9: Share | M9: Landlord | N9: Landlord | O9: Tenant | P9: Tenant | Q9: (640 acres) | R9: ="(" & E7 & " acres)" -> ( acres)
B10: Cotton Lint | D10: 1312 | F10: Pound | G10: 0.65 | I10: 852.8 | J10: =E10*H10 -> 0 | K10: 0 | M10: 0 | N10: =J10*L10 -> 0 | O10: 852.8 | P10: =+J10-N10 -> 0 | Q10: 545792 | R10: =+J10*E$7 -> 0
D11: 0 | G11: 0 | I11: 0 | J11: 0 | K11: 0 | M11: 0 | N11: 0 | O11: 0 | P11: =+J11-N11 -> 0 | Q11: 0 | R11: 0
D12: 0 | G12: 0 | I12: 0 | J12: 0 | K12: 0 | M12: 0 | N12: 0 | O12: 0 | P12: 0 | Q12: 0 | R12: 0
A13: Total Revenue | I13: 852.8 | J13: =SUM(J10:J12) -> 0 | M13: 0 | N13: =SUM(N10:N12) -> 0 | O13: 852.8 | P13: =SUM(P10:P12) -> 0 | Q13: 545792 | R13: =SUM(R10:R12) -> 0
Q14: Enterprise | R14: Enterprise
A15: VARIABLE COSTS | D15: Quantity | E15: Quantity | F15: Units | G15: $/Unit | H15: $/Unit | I15: Total | J15: Total | K15: Share | L15: Share | M15: Landlord | N15: Landlord | O15: Tenant | P15: Tenant | Q15: Total | R15: Total
A16: Production Costs
B17: Custom
C18: Fertilizer Application | D18: 1 | F18: Acre | G18: 5 | I18: 5 | J18: =E18*H18 -> 0 | K18: 0 | M18: 0 | N18: =J18*L18 -> 0 | O18: 5 | P18: =+J18-N18 -> 0 | Q18: 3200 | R18: =+J18*E$7 -> 0
C19: Custom Stripping | D19: 1312 | F19: Pound | G19: 0.12 | I19: 157.44 | J19: 0 | K19: 0 | M19: 0 | N19: 0 | O19: 157.44 | P19: 0 | Q19: 100761.6 | R19: 0
C20: Herbicide Application | D20: 4 | F20: Acre | G20: 5.5 | I20: 22 | J20: 0 | K20: 0 | M20: 0 | N20: 0 | O20: 22 | P20: 0 | Q20: 14080 | R20: 0
B21: Fertilizer
C22: Fertilizer (N) | D22: 100 | F22: Pound | G22: 0.505 | I22: 50.5 | J22: 0 | K22: 0 | M22: 0 | N22: 0 | O22: 50.5 | P22: 0 | Q22: 32320 | R22: 0
C23: Fertilizer (P) | D23: 50 | F23: Pound | G23: 0.60657 | I23: 30.3285 | J23: 0 | K23: 0 | M23: 0 | N23: 0 | O23: 30.3285 | P23: 0 | Q23: 19410.24 | R23: 0
B24: Herbicide
C25: Prowl | D25: 64 | F25: Ounces | G25: 0.38 | I25: 24.32 | J25: 0 | K25: 0 | M25: 0 | N25: 0 | O25: 24.32 | P25: 0 | Q25: 15564.8 | R25: 0
C26: Enlist Duo | D26: 4.7 | F26: Pint | G26: 5.911 | I26: 27.7817 | J26: 0 | K26: 0 | M26: 0 | N26: 0 | O26: 27.7817 | P26: 0 | Q26: 17780.288 | R26: 0
C27: Liberty | D27: 29 | F27: Ounce | G27: 0.47 | I27: 13.63 | J27: 0 | K27: 0 | M27: 0 | N27: 0 | O27: 13.63 | P27: 0 | Q27: 8723.2 | R27: 0
C28: Harvest Aid - Prep | D28: 1 | F28: Pint | G28: 3.75 | I28: 3.75 | J28: 0 | K28: 0 | M28: 0 | N28: 0 | O28: 3.75 | P28: 0 | Q28: 2400 | R28: 0
C29: Harvest Aid -Def | D29: 1 | F29: Ounce | G29: 0.546875 | I29: 0.546875 | J29: 0 | K29: 0 | M29: 0 | N29: 0 | O29: 0.546875 | P29: 0 | Q29: 350 | R29: 0
B30: Insecticide
C31: Prevathon | D31: 16 | F31: Ounce | G31: 1.16 | I31: 18.56 | J31: 0 | K31: 0 | M31: 0 | N31: 0 | O31: 18.56 | P31: 0 | Q31: 11878.4 | R31: 0
C32: Brigade | D32: 2 | F32: Ounce | G32: 1.74875 | I32: 3.4975 | J32: 0 | K32: 0 | M32: 0 | N32: 0 | O32: 3.4975 | P32: 0 | Q32: 2238.4 | R32: 0
B33: Miscellaneous
C34: Insurance - Dryland Cotton | D34: 1 | F34: Acre | G34: 15 | I34: 15 | J34: 0 | K34: 0 | M34: 0 | N34: 0 | O34: 15 | P34: 0 | Q34: 9600 | R34: 0
B35: Seed
C36: Cotton Seed | D36: 11.5 | F36: Pound | G36: 8 | I36: 92 | J36: 0 | K36: 0 | M36: 0 | N36: 0 | O36: 92 | P36: 0 | Q36: 58880 | R36: 0
D37: 0 | G37: 0 | I37: 0 | J37: 0 | K37: 0 | M37: 0 | N37: 0 | O37: 0 | P37: 0 | Q37: 0 | R37: 0
D38: 0 | G38: 0 | I38: 0 | J38: 0 | K38: 0 | M38: 0 | N38: 0 | O38: 0 | P38: 0 | Q38: 0 | R38: 0
D39: 0 | G39: 0 | I39: 0 | J39: =E39*H39 -> 0 | K39: 0 | M39: 0 | N39: =J39*L39 -> 0 | O39: 0 | P39: =+J39-N39 -> 0 | Q39: 0 | R39: =+J39*E$7 -> 0
B40: Irrigation
C41: Energy Cost | D41: 11.8 | F41: AcreInch | G41: 6.75 | I41: 79.65 | J41: =E41*H41 -> 0 | K41: 0 | M41: 0 | N41: =J41*L41 -> 0 | O41: 79.65 | P41: =+J41-N41 -> 0 | Q41: 50976 | R41: =+J41*E$7 -> 0
C42: Irrigation Labor | D42: 0.96 | F42: Hour | G42: 15 | I42: 14.4 | J42: 0 | K42: 0 | M42: 0 | N42: 0 | O42: 14.4 | P42: 0 | Q42: 9216 | R42: 0
B43: Machinery Labor
C44: Tractors/Self-Propelled | D44: 0.3 | F44: Hour | G44: 15 | I44: 4.5 | J44: =E44*H44 -> 0 | K44: 0 | M44: 0 | N44: =J44*L44 -> 0 | O44: 4.5 | P44: =+J44-N44 -> 0 | Q44: 2880 | R44: =+J44*E$7 -> 0
C45: Other Labor | D45: 0.36 | F45: Hour | G45: 15 | I45: 5.4 | J45: =E45*H45 -> 0 | K45: 0 | M45: 0 | N45: =J45*L45 -> 0 | O45: 5.4 | P45: =+J45-N45 -> 0 | Q45: 3456 | R45: =+J45*E$7 -> 0
B47: Diesel Fuel
C48: Pickup/General Use Equipment | D48: 1 | F48: Acre | G48: 0 | I48: 0 | J48: =E48*H48 -> 0 | K48: 0 | M48: 0 | N48: =J48*L48 -> 0 | O48: 0 | P48: =+J48-N48 -> 0 | Q48: 0 | R48: =+J48*E$7 -> 0
C49: Tractors/Self-Propelled | D49: 3.69 | F49: Gallon | G49: 2.59 | I49: 9.5571 | J49: =E49*H49 -> 0 | K49: 0 | M49: 0 | N49: =J49*L49 -> 0 | O49: 9.5571 | P49: =+J49-N49 -> 0 | Q49: 6116.544 | R49: =+J49*E$7 -> 0
B51: Gasoline
C52: Pickup/General Use Equipment | D52: 1 | F52: Acre | G52: 1.0546875 | I52: 1.0546875 | J52: =E52*H52 -> 0 | K52: 0 | M52: 0 | N52: =J52*L52 -> 0 | O52: 1.0546875 | P52: =+J52-N52 -> 0 | Q52: 675 | R52: =+J52*E$7 -> 0
C53: Tractors/Self-Propelled | D53: 0 | F53: Gallon | G53: 3.1 | I53: 0 | J53: =E53*H53 -> 0 | K53: 0 | M53: 0 | N53: =J53*L53 -> 0 | O53: 0 | P53: =+J53-N53 -> 0 | Q53: 0 | R53: =+J53*E$7 -> 0
B55: Repairs & Maintenance
C56: Pickup/General Use Equipment | D56: 1 | F56: Acre | G56: 0.3515625 | I56: 0.3515625 | J56: =E56*H56 -> 0 | K56: 0 | M56: 0 | N56: =J56*L56 -> 0 | O56: 0.3515625 | P56: =+J56-N56 -> 0 | Q56: 225 | R56: =+J56*E$7 -> 0
C57: Irrigation Equipment | D57: 1 | F57: Acre | G57: 13.11334 | I57: 13.11334 | J57: 0 | K57: 0 | M57: 0 | N57: 0 | O57: 13.11334 | P57: 0 | Q57: 8392.5376 | R57: 0
C58: Tractors/Self-Propelled | D58: 1 | F58: Acre | G58: 11.29869581 | I58: 11.29869581 | J58: 0 | K58: 0 | M58: 0 | N58: 0 | O58: 11.29869581 | P58: 0 | Q58: 7231.165321 | R58: 0
C59: Implements | D59: 1 | F59: Acre | G59: 10.67293128 | I59: 10.67293128 | J59: 0 | K59: 0 | M59: 0 | N59: 0 | O59: 10.67293128 | P59: 0 | Q59: 6830.676021 | R59: 0
I60: 0 | J60: 0 | K60: 0 | M60: 0 | N60: 0 | O60: 0 | P60: 0 | Q60: 0 | R60: 0
I61: 0 | J61: 0 | K61: 0 | M61: 0 | N61: 0 | O61: 0 | P61: 0 | Q61: 0 | R61: 0
B62: Interest on Credit Line | G62: 0.09 | I62: 31.08935234 | J62: =+SUM(J17:J61)/2*H62 -> 0 | M62: 0 | N62: =+SUM(N17:N61)/2*L62 -> 0 | O62: 31.08935234 | P62: =+SUM(P17:P61)/2*L62 -> 0 | Q62: 19897.1855 | R62: =+J62*E$7 -> 0
A63: Total Variable Costs | I63: 645.4422444 | J63: =SUM(J18:J62) -> 0 | M63: 0 | N63: =SUM(N18:N62) -> 0 | O63: 645.4422444 | P63: =SUM(P18:P62) -> 0 | Q63: 413083.0364 | R63: =SUM(R18:R62) -> 0
A64: Planned Returns Above Variable Costs: | I64: 207.3577556 | J64: =+J13-J63 -> 0 | M64: 0 | N64: =+N13-N63 -> 0 | O64: 207.3577556 | P64: =+P13-P63 -> 0 | Q64: 132708.9636 | R64: =+R13-R63 -> 0
B65: Breakeven Price to Cover Variable Costs | G65: 0.4919529302 | H65: =IF(E10=0,"n/a",(YVarExp-(YTotExp+YTotRet-J10))/E10) -> n/a | I65: Pound
Q66: Enterprise | R66: Enterprise
A67: FIXED COSTS | D67: Quantity | E67: Quantity | F67: Units | G67: $/Unit | H67: $/Unit | I67: Total | J67: Total | K67: Share | L67: Share | M67: Landlord | N67: Landlord | O67: Tenant | P67: Tenant | Q67: Total | R67: Total
B68: Machinery Depreciation
C69: Pickup/General Use Equipment | D69: 1 | F69: Acre | G69: 0.4880859375 | I69: 0.4880859375 | J69: =E69*H69 -> 0 | K69: 0 | M69: 0 | N69: =J69*L69 -> 0 | O69: 0.4880859375 | P69: =+J69-N69 -> 0 | Q69: 312.375 | R69: =+J69*E$7 -> 0
C70: Irrigation Equipment | D70: 1 | F70: Acre | G70: 24.375 | I70: 24.375 | J70: 0 | K70: 0 | M70: 0 | N70: =J70*L70 -> 0 | O70: 24.375 | P70: 0 | Q70: 15600 | R70: 0
C71: Tractors/Self-Propelled | D71: 1 | F71: Acre | G71: 11.67531901 | I71: 11.67531901 | J71: 0 | K71: 0 | M71: 0 | N71: =J71*L71 -> 0 | O71: 11.67531901 | P71: 0 | Q71: 7472.204165 | R71: 0
C72: Implements | D72: 1 | F72: Acre | G72: 13.91490318 | I72: 13.91490318 | J72: 0 | K72: 0 | M72: 0 | N72: =J72*L72 -> 0 | O72: 13.91490318 | P72: 0 | Q72: 8905.538033 | R72: 0
B73: Equipment Investment
C74: Pickup/General Use Equipment | D74: 3.418945312 | F74: Dollars | G74: 0.08 | I74: 0.273515625 | J74: =E74*H74 -> 0 | K74: 0 | M74: 0 | N74: =J74*L74 -> 0 | O74: 0.273515625 | P74: =+J74-N74 -> 0 | Q74: 175.05 | R74: =+J74*E$7 -> 0
C75: Irrigation Equipment | D75: 710.9375 | F75: Dollars | G75: 0.08 | I75: 56.875 | J75: 0 | K75: 0 | M75: 0 | N75: =J75*L75 -> 0 | O75: 56.875 | P75: 0 | Q75: 36400 | R75: 0
C76: Tractors/Self-Propelled | D76: 90.9545013 | F76: Dollars | G76: 0.08 | I76: 7.276360104 | J76: 0 | K76: 0 | M76: 0 | N76: =J76*L76 -> 0 | O76: 7.276360104 | P76: 0 | Q76: 4656.870467 | R76: 0
C77: Implements | D77: 59.52486359 | F77: Dollars | G77: 0.08 | I77: 4.761989087 | J77: 0 | K77: 0 | M77: 0 | N77: =J77*L77 -> 0 | O77: 4.761989087 | P77: 0 | Q77: 3047.673016 | R77: 0
B78: Salaried Labor | D78: 1 | F78: Acre | G78: 0 | I78: 0 | J78: 0 | K78: 0 | M78: 0 | N78: =J78*L78 -> 0 | O78: 0 | P78: =+J78-N78 -> 0 | Q78: 0 | R78: =+J78*E$7 -> 0
B79: Management Fee, Owner/Operator Labor | D79: 1 | F79: Acre | G79: 0 | I79: 0 | J79: 0 | K79: 0 | M79: 0 | N79: 0 | O79: 0 | P79: 0 | Q79: 0 | R79: 0
B80: Allocated Establishment Cost | D80: 1 | F80: Acre | G80: 0 | I80: 0 | J80: 0 | K80: 0 | M80: 0 | N80: 0 | O80: 0 | P80: 0 | Q80: 0 | R80: 0
B81: Cash Rent - Irrigated Cotton | D81: 1 | F81: Acre | G81: 90 | I81: 90 | J81: 0 | K81: 0 | M81: 0 | N81: 0 | O81: 90 | P81: 0 | Q81: 57600 | R81: 0
B82: Property Taxes | D82: 1 | F82: Acre | G82: 0 | I82: 0 | J82: 0 | K82: 0 | M82: 0 | N82: 0 | O82: 0 | P82: 0 | Q82: 0 | R82: 0
B83: Whole Farm Insurance | D83: 1 | F83: Acre | G83: 0 | I83: 0 | J83: 0 | K83: 0 | M83: 0 | N83: 0 | O83: 0 | P83: 0 | Q83: 0 | R83: 0
D84: 1 | G84: 0 | I84: 0 | J84: 0 | K84: 0 | M84: 0 | N84: 0 | O84: 0 | P84: 0 | Q84: 0 | R84: 0
D85: 1 | G85: 0 | I85: 0 | J85: =E85*H85 -> 0 | K85: 0 | M85: 0 | N85: 0 | O85: 0 | P85: 0 | Q85: 0 | R85: 0
A86: Total Fixed Costs | I86: 209.6401729 | J86: =+SUM(J69:J85) -> 0 | M86: 0 | N86: =+SUM(N69:N85) -> 0 | O86: 209.6401729 | P86: =+SUM(P69:P85) -> 0 | Q86: 134169.7107 | R86: =+SUM(R69:R85) -> 0
A87: Total Specified Costs | I87: 855.0824174 | J87: =+J63+J86 -> 0 | M87: 0 | N87: =+N63+N86 -> 0 | O87: 855.0824174 | P87: =+P63+P86 -> 0 | Q87: 547252.7471 | R87: =+R63+R86 -> 0
A89: Returns Above Specified Costs | I89: -2.282417373 | J89: =+J13-J87 -> 0 | M89: 0 | N89: =+N13-N87 -> 0 | O89: -2.282417373 | P89: =+P13-P87 -> 0 | Q89: -1460.747119 | R89: =+R13-R87 -> 0
A91: Breakeven Price to Cover Total Costs | G91: 0.6517396474 | H91: =IF(E10=0,"n/a",(YTotExp-(YTotExp+YTotRet-J10))/E10) -> n/a | I91: Pound
D93: Example Breakeven Prices
B94: Example | C94: Example | D94: To Cover | G94: To Cover
B95: Yield | C95: Yield | D95: Variable | G95: Total
B96: Percent | C96: Pound | D96: Costs | G96: Costs
B97: 0.75 | C97: 984 | D97: 0.6559372403 | G97: 0.8689861965
B98: 0.9 | C98: 1180.8 | D98: 0.5466143669 | G98: 0.7241551638
B99: 1 | C99: 1312 | D99: 0.4919529302 | G99: 0.6517396474
B100: 1.1 | C100: 1443.2 | D100: 0.4472299366 | G100: 0.5924905885
B101: 1.25 | C101: 1640 | D101: 0.3935623442 | G101: 0.5213917179
A103: Developed by Francisco Abelló, Assistant Professor and Extension Specialist, Texas A&M AgriLife Extension, 940-647-3908
A105: Information presented is prepared solely as a general guide and not intended to recognize or predict the costs and returns from any one operation. Brand names are mentioned only as examples and imply no endorsement.

Sheet Conv L Irrig Cotton
A1: Projections for Planning Purposes Only -- Not to be Used without Updating
A2: 2025 Estimated Costs and Returns per Acre
A3: Conventional Low Irrig Cotton
A4: Enter your name for this budget in the cell above.
A5: Enter Your Values in the cells highlighed in MAROON.
E6: Your Acres | R6: Your
C7: Crop Acres | D7: 640 | L7: Your | Q7: Enterprise | R7: Enterprise
E8: Your | H8: Your | I8: Cash | J8: Your | K8: Landlord | L8: Landlord | N8: Your | P8: Your | Q8: Total | R8: Total
A9: REVENUE | D9: Quantity | E9: Quantity | F9: Units | G9: $/Unit | H9: $/Unit | I9: Total | J9: Total | K9: Share | L9: Share | M9: Landlord | N9: Landlord | O9: Tenant | P9: Tenant | Q9: (640 acres) | R9: ="(" & E7 & " acres)" -> ( acres)
B10: Cotton Lint | D10: 1092 | F10: Pound | G10: 0.65 | I10: 709.8 | J10: =E10*H10 -> 0 | K10: 0 | M10: 0 | N10: =J10*L10 -> 0 | O10: 709.8 | P10: =+J10-N10 -> 0 | Q10: 454272 | R10: =+J10*E$7 -> 0
B11: Cottonseed | D11: 0.65 | F11: Ton | G11: 225 | I11: 146.25 | J11: 0 | K11: 0 | M11: 0 | N11: 0 | O11: 146.25 | P11: =+J11-N11 -> 0 | Q11: 93600 | R11: 0
D12: 0 | G12: 0 | I12: 0 | J12: 0 | K12: 0 | M12: 0 | N12: 0 | O12: 0 | P12: 0 | Q12: 0 | R12: 0
D13: 0 | G13: 0 | I13: 0 | J13: 0 | K13: 0 | M13: 0 | N13: 0 | O13: 0 | P13: 0 | Q13: 0 | R13: 0
A14: Total Revenue | I14: 856.05 | J14: =SUM(J10:J13) -> 0 | M14: 0 | N14: =SUM(N10:N13) -> 0 | O14: 856.05 | P14: =SUM(P10:P13) -> 0 | Q14: 547872 | R14: =SUM(R10:R13) -> 0
Q15: Enterprise | R15: Enterprise
A16: VARIABLE COSTS | D16: Quantity | E16: Quantity | F16: Units | G16: $/Unit | H16: $/Unit | I16: Total | J16: Total | K16: Share | L16: Share | M16: Landlord | N16: Landlord | O16: Tenant | P16: Tenant | Q16: Total | R16: Total
A17: Production Costs
B18: Custom
C19: Fertilizer Application | D19: 1 | F19: Acre | G19: 5 | I19: 5 | J19: =E19*H19 -> 0 | K19: 0 | M19: 0 | N19: =J19*L19 -> 0 | O19: 5 | P19: =+J19-N19 -> 0 | Q19: 3200 | R19: =+J19*E$7 -> 0
C20: Gin, Bag, Ties | D20: 1092 | F20: Pound | G20: 0.13 | I20: 141.96 | J20: 0 | K20: 0 | M20: 0 | N20: 0 | O20: 141.96 | P20: 0 | Q20: 90854.4 | R20: 0
C21: Custom Stripping | D21: 1092 | F21: Pound | G21: 0.12 | I21: 131.04 | J21: 0 | K21: 0 | M21: 0 | N21: 0 | O21: 131.04 | P21: 0 | Q21: 83865.6 | R21: 0
C22: Herbicide Application | D22: 4 | F22: Acre | G22: 5.5 | I22: 22 | J22: 0 | K22: 0 | M22: 0 | N22: 0 | O22: 22 | P22: 0 | Q22: 14080 | R22: 0
B23: Fertilizer
C24: Fertilizer (N) | D24: 100 | F24: Pound | G24: 0.505 | I24: 50.5 | J24: 0 | K24: 0 | M24: 0 | N24: 0 | O24: 50.5 | P24: 0 | Q24: 32320 | R24: 0
C25: Fertilizer (P) | D25: 50 | F25: Pound | G25: 0.60657 | I25: 30.3285 | J25: 0 | K25: 0 | M25: 0 | N25: 0 | O25: 30.3285 | P25: 0 | Q25: 19410.24 | R25: 0
B26: Herbicide
C27: Prowl | D27: 64 | F27: Ounces | G27: 0.38 | I27: 24.32 | J27: 0 | K27: 0 | M27: 0 | N27: 0 | O27: 24.32 | P27: 0 | Q27: 15564.8 | R27: 0
C28: Enlist Duo | D28: 4.7 | F28: Pint | G28: 5.911 | I28: 27.7817 | J28: 0 | K28: 0 | M28: 0 | N28: 0 | O28: 27.7817 | P28: 0 | Q28: 17780.288 | R28: 0
C29: Liberty | D29: 29 | F29: Ounce | G29: 0.47 | I29: 13.63 | J29: 0 | K29: 0 | M29: 0 | N29: 0 | O29: 13.63 | P29: 0 | Q29: 8723.2 | R29: 0
C30: Harvest Aid - Prep | D30: 1 | F30: Pint | G30: 3.75 | I30: 3.75 | J30: 0 | K30: 0 | M30: 0 | N30: 0 | O30: 3.75 | P30: 0 | Q30: 2400 | R30: 0
C31: Harvest Aid -Def | D31: 1 | F31: Ounce | G31: 0.546875 | I31: 0.546875 | J31: 0 | K31: 0 | M31: 0 | N31: 0 | O31: 0.546875 | P31: 0 | Q31: 350 | R31: 0
B32: Insecticide
C33: Prevathon | D33: 16 | F33: Ounce | G33: 1.16 | I33: 18.56 | J33: 0 | K33: 0 | M33: 0 | N33: 0 | O33: 18.56 | P33: 0 | Q33: 11878.4 | R33: 0
C34: Brigade | D34: 2 | F34: Ounce | G34: 1.74875 | I34: 3.4975 | J34: 0 | K34: 0 | M34: 0 | N34: 0 | O34: 3.4975 | P34: 0 | Q34: 2238.4 | R34: 0
B35: Miscellaneous
C36: Insurance - Dryland Cotton | D36: 1 | F36: Acre | G36: 15 | I36: 15 | J36: 0 | K36: 0 | M36: 0 | N36: 0 | O36: 15 | P36: 0 | Q36: 9600 | R36: 0
B37: Seed
C38: Cotton Seed | D38: 11.5 | F38: Pound | G38: 8 | I38: 92 | J38: 0 | K38: 0 | M38: 0 | N38: 0 | O38: 92 | P38: 0 | Q38: 58880 | R38: 0
D39: 0 | G39: 0 | I39: 0 | J39: 0 | K39: 0 | M39: 0 | N39: 0 | O39: 0 | P39: 0 | Q39: 0 | R39: 0
D40: 0 | G40: 0 | I40: 0 | J40: 0 | K40: 0 | M40: 0 | N40: 0 | O40: 0 | P40: 0 | Q40: 0 | R40: 0
D41: 0 | G41: 0 | I41: 0 | J41: =E41*H41 -> 0 | K41: 0 | M41: 0 | N41: =J41*L41 -> 0 | O41: 0 | P41: =+J41-N41 -> 0 | Q41: 0 | R41: =+J41*E$7 -> 0
B42: Irrigation
C43: Irrigation Labor | D43: 0.768 | F43: Hour | G43: 15 | I43: 11.52 | J43: =E43*H43 -> 0 | K43: 0 | M43: 0 | N43: =J43*L43 -> 0 | O43: 11.52 | P43: =+J43-N43 -> 0 | Q43: 7372.8 | R43: =+J43*E$7 -> 0
B44: Machinery Labor
C45: Tractors/Self-Propelled | D45: 0.3 | F45: Hour | G45: 15 | I45: 4.5 | J45: =E45*H45 -> 0 | K45: 0 | M45: 0 | N45: =J45*L45 -> 0 | O45: 4.5 | P45: =+J45-N45 -> 0 | Q45: 2880 | R45: =+J45*E$7 -> 0
C46: Other Labor | D46: 0.36 | F46: Hour | G46: 15 | I46: 5.4 | J46: =E46*H46 -> 0 | K46: 0 | M46: 0 | N46: =J46*L46 -> 0 | O46: 5.4 | P46: =+J46-N46 -> 0 | Q46: 3456 | R46: =+J46*E$7 -> 0
B48: Diesel Fuel
C49: Pickup/General Use Equipment | D49: 1 | F49: Acre | G49: 0 | I49: 0 | J49: =E49*H49 -> 0 | K49: 0 | M49: 0 | N49: =J49*L49 -> 0 | O49: 0 | P49: =+J49-N49 -> 0 | Q49: 0 | R49: =+J49*E$7 -> 0
C50: Tractors/Self-Propelled | D50: 3.69 | F50: Gallon | G50: 2.59 | I50: 9.5571 | J50: =E50*H50 -> 0 | K50: 0 | M50: 0 | N50: =J50*L50 -> 0 | O50: 9.5571 | P50: =+J50-N50 -> 0 | Q50: 6116.544 | R50: =+J50*E$7 -> 0
B52: Gasoline
C53: Pickup/General Use Equipment | D53: 1 | F53: Acre | G53: 1.0546875 | I53: 1.0546875 | J53: =E53*H53 -> 0 | K53: 0 | M53: 0 | N53: =J53*L53 -> 0 | O53: 1.0546875 | P53: =+J53-N53 -> 0 | Q53: 675 | R53: =+J53*E$7 -> 0
C54: Tractors/Self-Propelled | D54: 0 | F54: Gallon | G54: 3.1 | I54: 0 | J54: =E54*H54 -> 0 | K54: 0 | M54: 0 | N54: =J54*L54 -> 0 | O54: 0 | P54: =+J54-N54 -> 0 | Q54: 0 | R54: =+J54*E$7 -> 0
B56: Repairs & Maintenance
C57: Pickup/General Use Equipment | D57: 1 | F57: Acre | G57: 0.3515625 | I57: 0.3515625 | J57: =E57*H57 -> 0 | K57: 0 | M57: 0 | N57: =J57*L57 -> 0 | O57: 0.3515625 | P57: =+J57-N57 -> 0 | Q57: 225 | R57: =+J57*E$7 -> 0
C58: Irrigation Equipment | D58: 1 | F58: Acre | G58: 8.8904 | I58: 8.8904 | J58: 0 | K58: 0 | M58: 0 | N58: 0 | O58: 8.8904 | P58: 0 | Q58: 5689.856 | R58: 0
C59: Tractors/Self-Propelled | D59: 1 | F59: Acre | G59: 11.29869581 | I59: 11.29869581 | J59: 0 | K59: 0 | M59: 0 | N59: 0 | O59: 11.29869581 | P59: 0 | Q59: 7231.165321 | R59: 0
C60: Implements | D60: 1 | F60: Acre | G60: 10.67293128 | I60: 10.67293128 | J60: 0 | K60: 0 | M60: 0 | N60: 0 | O60: 10.67293128 | P60: 0 | Q60: 6830.676021 | R60: 0
I61: 0 | J61: 0 | K61: 0 | M61: 0 | N61: 0 | O61: 0 | P61: 0 | Q61: 0 | R61: 0
I62: 0 | J62: 0 | K62: 0 | M62: 0 | N62: 0 | O62: 0 | P62: 0 | Q62: 0 | R62: 0
B63: Interest on Credit Line | G63: 0.09 | I63: 20.60806508 | J63: =+SUM(J18:J62)/2*H63 -> 0 | M63: 0 | N63: =+SUM(N18:N62)/2*L63 -> 0 | O63: 20.60806508 | P63: =+SUM(P18:P62)/2*L63 -> 0 | Q63: 13189.16165 | R63: =+J63*E$7 -> 0
A64: Total Variable Costs | I64: 663.7680172 | J64: =SUM(J19:J63) -> 0 | M64: 0 | N64: =SUM(N19:N63) -> 0 | O64: 663.7680172 | P64: =SUM(P19:P63) -> 0 | Q64: 424811.531 | R64: =SUM(R19:R63) -> 0
A65: Planned Returns Above Variable Costs: | I65: 192.2819828 | J65: =+J14-J64 -> 0 | M65: 0 | N65: =+N14-N64 -> 0 | O65: 192.2819828 | P65: =+P14-P64 -> 0 | Q65: 123060.469 | R65: =+R14-R64 -> 0
B66: Breakeven Price to Cover Variable Costs | G66: 0.4739175981 | H66: =IF(E10=0,"n/a",(YVarExp-(YTotExp+YTotRet-J10))/E10) -> n/a | I66: Pound
Q67: Enterprise | R67: Enterprise
A68: FIXED COSTS | D68: Quantity | E68: Quantity | F68: Units | G68: $/Unit | H68: $/Unit | I68: Total | J68: Total | K68: Share | L68: Share | M68: Landlord | N68: Landlord | O68: Tenant | P68: Tenant | Q68: Total | R68: Total
B69: Machinery Depreciation
C70: Pickup/General Use Equipment | D70: 1 | F70: Acre | G70: 0.4880859375 | I70: 0.4880859375 | J70: =E70*H70 -> 0 | K70: 0 | M70: 0 | N70: =J70*L70 -> 0 | O70: 0.4880859375 | P70: =+J70-N70 -> 0 | Q70: 312.375 | R70: =+J70*E$7 -> 0
C71: Irrigation Equipment | D71: 1 | F71: Acre | G71: 24.375 | I71: 24.375 | J71: 0 | K71: 0 | M71: 0 | N71: =J71*L71 -> 0 | O71: 24.375 | P71: 0 | Q71: 15600 | R71: 0
C72: Tractors/Self-Propelled | D72: 1 | F72: Acre | G72: 11.67531901 | I72: 11.67531901 | J72: 0 | K72: 0 | M72: 0 | N72: =J72*L72 -> 0 | O72: 11.67531901 | P72: 0 | Q72: 7472.204165 | R72: 0
C73: Implements | D73: 1 | F73: Acre | G73: 13.91490318 | I73: 13.91490318 | J73: 0 | K73: 0 | M73: 0 | N73: =J73*L73 -> 0 | O73: 13.91490318 | P73: 0 | Q73: 8905.538033 | R73: 0
B74: Equipment Investment
C75: Pickup/General Use Equipment | D75: 3.418945312 | F75: Dollars | G75: 0.08 | I75: 0.273515625 | J75: =E75*H75 -> 0 | K75: 0 | M75: 0 | N75: =J75*L75 -> 0 | O75: 0.273515625 | P75: =+J75-N75 -> 0 | Q75: 175.05 | R75: =+J75*E$7 -> 0
C76: Irrigation Equipment | D76: 710.9375 | F76: Dollars | G76: 0.08 | I76: 56.875 | J76: 0 | K76: 0 | M76: 0 | N76: =J76*L76 -> 0 | O76: 56.875 | P76: 0 | Q76: 36400 | R76: 0
C77: Tractors/Self-Propelled | D77: 90.9545013 | F77: Dollars | G77: 0.08 | I77: 7.276360104 | J77: 0 | K77: 0 | M77: 0 | N77: =J77*L77 -> 0 | O77: 7.276360104 | P77: 0 | Q77: 4656.870467 | R77: 0
C78: Implements | D78: 59.52486359 | F78: Dollars | G78: 0.08 | I78: 4.761989087 | J78: 0 | K78: 0 | M78: 0 | N78: =J78*L78 -> 0 | O78: 4.761989087 | P78: 0 | Q78: 3047.673016 | R78: 0
B79: Salaried Labor | D79: 1 | F79: Acre | G79: 0 | I79: 0 | J79: 0 | K79: 0 | M79: 0 | N79: =J79*L79 -> 0 | O79: 0 | P79: =+J79-N79 -> 0 | Q79: 0 | R79: =+J79*E$7 -> 0
B80: Management Fee, Owner/Operator Labor | D80: 1 | F80: Acre | G80: 0 | I80: 0 | J80: 0 | K80: 0 | M80: 0 | N80: 0 | O80: 0 | P80: 0 | Q80: 0 | R80: 0
B81: Allocated Establishment Cost | D81: 1 | F81: Acre | G81: 0 | I81: 0 | J81: 0 | K81: 0 | M81: 0 | N81: 0 | O81: 0 | P81: 0 | Q81: 0 | R81: 0
B82: Cash Rent - Irrigated Cotton | D82: 1 | F82: Acre | G82: 90 | I82: 90 | J82: 0 | K82: 0 | M82: 0 | N82: 0 | O82: 90 | P82: 0 | Q82: 57600 | R82: 0
B83: Property Taxes | D83: 1 | F83: Acre | G83: 0 | I83: 0 | J83: 0 | K83: 0 | M83: 0 | N83: 0 | O83: 0 | P83: 0 | Q83: 0 | R83: 0
B84: Whole Farm Insurance | D84: 1 | F84: Acre | G84: 0 | I84: 0 | J84: 0 | K84: 0 | M84: 0 | N84: 0 | O84: 0 | P84: 0 | Q84: 0 | R84: 0
D85: 1 | G85: 0 | I85: 0 | J85: 0 | K85: 0 | M85: 0 | N85: 0 | O85: 0 | P85: 0 | Q85: 0 | R85: 0
D86: 1 | G86: 0 | I86: 0 | J86: =E86*H86 -> 0 | K86: 0 | M86: 0 | N86: 0 | O86: 0 | P86: 0 | Q86: 0 | R86: 0
A87: Total Fixed Costs | I87: 209.6401729 | J87: =+SUM(J70:J86) -> 0 | M87: 0 | N87: =+SUM(N70:N86) -> 0 | O87: 209.6401729 | P87: =+SUM(P70:P86) -> 0 | Q87: 134169.7107 | R87: =+SUM(R70:R86) -> 0
A88: Total Specified Costs | I88: 873.4081901 | J88: =+J64+J87 -> 0 | M88: 0 | N88: =+N64+N87 -> 0 | O88: 873.4081901 | P88: =+P64+P87 -> 0 | Q88: 558981.2417 | R88: =+R64+R87 -> 0
A90: Returns Above Specified Costs | I90: -17.35819011 | J90: =+J14-J88 -> 0 | M90: 0 | N90: =+N14-N88 -> 0 | O90: -17.35819011 | P90: =+P14-P88 -> 0 | Q90: -11109.24167 | R90: =+R14-R88 -> 0
A92: Breakeven Price to Cover Total Costs | G92: 0.6658957785 | H92: =IF(E10=0,"n/a",(YTotExp-(YTotExp+YTotRet-J10))/E10) -> n/a | I92: Pound
D94: Example Breakeven Prices
B95: Example | C95: Example | D95: To Cover | G95: To Cover
B96: Yield | C96: Yield | D96: Variable | G96: Total
B97: Percent | C97: Pound | D97: Costs | G97: Costs
B98: 0.75 | C98: 819 | D98: 0.6318901309 | G98: 0.887861038
B99: 0.9 | C99: 982.8 | D99: 0.526575109 | G99: 0.7398841983
B100: 1 | C100: 1092 | D100: 0.4739175981 | G100: 0.6658957785
B101: 1.1 | C101: 1201.2 | D101: 0.4308341801 | G101: 0.6053597986
B102: 1.25 | C102: 1365 | D102: 0.3791340785 | G102: 0.5327166228
A104: Developed by Francisco Abelló, Assistant Professor and Extension Specialist, Texas A&M AgriLife Extension, 940-647-3908
A106: Information presented is prepared solely as a general guide and not intended to recognize or predict the costs and returns from any one operation. Brand names are mentioned only as examples and imply no endorsement.

Sheet Red Till L Irrig Cotton
A1: Projections for Planning Purposes Only -- Not to be Used without Updating
A2: 2025 Estimated Costs and Returns per Acre
A3: Red Till Irrig Low Cotton
A4: Enter your name for this budget in the cell above.
A5: Enter Your Values in the cells highlighed in MAROON.
E6: Your Acres | R6: Your
C7: Crop Acres | D7: 640 | L7: Your | Q7: Enterprise | R7: Enterprise
E8: Your | H8: Your | I8: Cash | J8: Your | K8: Landlord | L8: Landlord | N8: Your | P8: Your | Q8: Total | R8: Total
A9: REVENUE | D9: Quantity | E9: Quantity | F9: Units | G9: $/Unit | H9: $/Unit | I9: Total | J9: Total | K9: Share | L9: Share | M9: Landlord | N9: Landlord | O9: Tenant | P9: Tenant | Q9: (640 acres) | R9: ="(" & E7 & " acres)" -> ( acres)
B10: Cotton Lint | D10: 1126 | F10: Pound | G10: 0.65 | I10: 731.9 | J10: =E10*H10 -> 0 | K10: 0 | M10: 0 | N10: =J10*L10 -> 0 | O10: 731.9 | P10: =+J10-N10 -> 0 | Q10: 468416 | R10: =+J10*E$7 -> 0
B11: Cottonseed | D11: 0.65 | F11: Ton | G11: 225 | I11: 146.25 | J11: 0 | K11: 0 | M11: 0 | N11: 0 | O11: 146.25 | P11: =+J11-N11 -> 0 | Q11: 93600 | R11: 0
D12: 0 | G12: 0 | I12: 0 | J12: 0 | K12: 0 | M12: 0 | N12: 0 | O12: 0 | P12: 0 | Q12: 0 | R12: 0
D13: 0 | G13: 0 | I13: 0 | J13: 0 | K13: 0 | M13: 0 | N13: 0 | O13: 0 | P13: 0 | Q13: 0 | R13: 0
A14: Total Revenue | I14: 878.15 | J14: =SUM(J10:J13) -> 0 | M14: 0 | N14: =SUM(N10:N13) -> 0 | O14: 878.15 | P14: =SUM(P10:P13) -> 0 | Q14: 562016 | R14: =SUM(R10:R13) -> 0
Q15: Enterprise | R15: Enterprise
A16: VARIABLE COSTS | D16: Quantity | E16: Quantity | F16: Units | G16: $/Unit | H16: $/Unit | I16: Total | J16: Total | K16: Share | L16: Share | M16: Landlord | N16: Landlord | O16: Tenant | P16: Tenant | Q16: Total | R16: Total
A17: Production Costs
B18: Custom
C19: Fertilizer Application | D19: 1 | F19: Acre | G19: 5 | I19: 5 | J19: =E19*H19 -> 0 | K19: 0 | M19: 0 | N19: =J19*L19 -> 0 | O19: 5 | P19: =+J19-N19 -> 0 | Q19: 3200 | R19: =+J19*E$7 -> 0
C20: Gin, Bag, Ties | D20: 1126 | F20: Pound | G20: 0.13 | I20: 146.38 | J20: 0 | K20: 0 | M20: 0 | N20: 0 | O20: 146.38 | P20: 0 | Q20: 93683.2 | R20: 0
C21: Custom Stripping | D21: 1126 | F21: Pound | G21: 0.12 | I21: 135.12 | J21: 0 | K21: 0 | M21: 0 | N21: 0 | O21: 135.12 | P21: 0 | Q21: 86476.8 | R21: 0
B22: Fertilizer
C23: Fertilizer (N) | D23: 100 | F23: Pound | G23: 0.505 | I23: 50.5 | J23: 0 | K23: 0 | M23: 0 | N23: 0 | O23: 50.5 | P23: 0 | Q23: 32320 | R23: 0
C24: Fertilizer (P) | D24: 50 | F24: Pound | G24: 0.60657 | I24: 30.3285 | J24: 0 | K24: 0 | M24: 0 | N24: 0 | O24: 30.3285 | P24: 0 | Q24: 19410.24 | R24: 0
B25: Herbicide
C26: Roundup | D26: 4 | F26: Pint | G26: 2.18 | I26: 8.72 | J26: 0 | K26: 0 | M26: 0 | N26: 0 | O26: 8.72 | P26: 0 | Q26: 5580.8 | R26: 0
C27: Prowl | D27: 64 | F27: Ounces | G27: 0.38 | I27: 24.32 | J27: 0 | K27: 0 | M27: 0 | N27: 0 | O27: 24.32 | P27: 0 | Q27: 15564.8 | R27: 0
C28: Enlist Duo | D28: 4.7 | F28: Pint | G28: 5.911 | I28: 27.7817 | J28: 0 | K28: 0 | M28: 0 | N28: 0 | O28: 27.7817 | P28: 0 | Q28: 17780.288 | R28: 0
C29: Liberty | D29: 29 | F29: Ounce | G29: 0.47 | I29: 13.63 | J29: 0 | K29: 0 | M29: 0 | N29: 0 | O29: 13.63 | P29: 0 | Q29: 8723.2 | R29: 0
C30: Harvest Aid - Prep | D30: 1 | F30: Pint | G30: 3.75 | I30: 3.75 | J30: 0 | K30: 0 | M30: 0 | N30: 0 | O30: 3.75 | P30: 0 | Q30: 2400 | R30: 0
C31: Harvest Aid -Def | D31: 1 | F31: Ounce | G31: 0.546875 | I31: 0.546875 | J31: 0 | K31: 0 | M31: 0 | N31: 0 | O31: 0.546875 | P31: 0 | Q31: 350 | R31: 0
C32: 2,4D | D32: 1.5 | F32: Pint | G32: 4.634 | I32: 6.951 | J32: 0 | K32: 0 | M32: 0 | N32: 0 | O32: 6.951 | P32: 0 | Q32: 4448.64 | R32: 0
B33: Insecticide
C34: Insecticide - Cotton | D34: 0.5 | F34: Pound | G34: 7.2 | I34: 3.6 | J34: 0 | K34: 0 | M34: 0 | N34: 0 | O34: 3.6 | P34: 0 | Q34: 2304 | R34: 0
C35: Prevathon | D35: 16 | F35: Ounce | G35: 1.16 | I35: 18.56 | J35: 0 | K35: 0 | M35: 0 | N35: 0 | O35: 18.56 | P35: 0 | Q35: 11878.4 | R35: 0
C36: Brigade | D36: 2 | F36: Ounce | G36: 1.74875 | I36: 3.4975 | J36: 0 | K36: 0 | M36: 0 | N36: 0 | O36: 3.4975 | P36: 0 | Q36: 2238.4 | R36: 0
B37: Miscellaneous
C38: Insurance - Dryland Cotton | D38: 1 | F38: Acre | G38: 15 | I38: 15 | J38: 0 | K38: 0 | M38: 0 | N38: 0 | O38: 15 | P38: 0 | Q38: 9600 | R38: 0
B39: Seed
C40: Cotton Seed | D40: 11.5 | F40: Pound | G40: 8 | I40: 92 | J40: 0 | K40: 0 | M40: 0 | N40: 0 | O40: 92 | P40: 0 | Q40: 58880 | R40: 0
D41: 0 | G41: 0 | I41: 0 | J41: 0 | K41: 0 | M41: 0 | N41: 0 | O41: 0 | P41: 0 | Q41: 0 | R41: 0
D42: 0 | G42: 0 | I42: 0 | J42: 0 | K42: 0 | M42: 0 | N42: 0 | O42: 0 | P42: 0 | Q42: 0 | R42: 0
D43: 0 | G43: 0 | I43: 0 | J43: =E43*H43 -> 0 | K43: 0 | M43: 0 | N43: =J43*L43 -> 0 | O43: 0 | P43: =+J43-N43 -> 0 | Q43: 0 | R43: =+J43*E$7 -> 0
B44: Irrigation
C45: Irrigation Labor | D45: 0.768 | F45: Hour | G45: 15 | I45: 11.52 | J45: =E45*H45 -> 0 | K45: 0 | M45: 0 | N45: =J45*L45 -> 0 | O45: 11.52 | P45: =+J45-N45 -> 0 | Q45: 7372.8 | R45: =+J45*E$7 -> 0
B46: Machinery Labor
C47: Tractors/Self-Propelled | D47: 0.32 | F47: Hour | G47: 15 | I47: 4.8 | J47: =E47*H47 -> 0 | K47: 0 | M47: 0 | N47: =J47*L47 -> 0 | O47: 4.8 | P47: =+J47-N47 -> 0 | Q47: 3072 | R47: =+J47*E$7 -> 0
C48: Other Labor | D48: 0.38 | F48: Hour | G48: 15 | I48: 5.7 | J48: =E48*H48 -> 0 | K48: 0 | M48: 0 | N48: =J48*L48 -> 0 | O48: 5.7 | P48: =+J48-N48 -> 0 | Q48: 3648 | R48: =+J48*E$7 -> 0
B50: Diesel Fuel
C51: Pickup/General Use Equipment | D51: 1 | F51: Acre | G51: 0 | I51: 0 | J51: =E51*H51 -> 0 | K51: 0 | M51: 0 | N51: =J51*L51 -> 0 | O51: 0 | P51: =+J51-N51 -> 0 | Q51: 0 | R51: =+J51*E$7 -> 0
C52: Tractors/Self-Propelled | D52: 3.91 | F52: Gallon | G52: 2.59 | I52: 10.1269 | J52: =E52*H52 -> 0 | K52: 0 | M52: 0 | N52: =J52*L52 -> 0 | O52: 10.1269 | P52: =+J52-N52 -> 0 | Q52: 6481.216 | R52: =+J52*E$7 -> 0
B54: Gasoline
C55: Pickup/General Use Equipment | D55: 1 | F55: Acre | G55: 1.0546875 | I55: 1.0546875 | J55: =E55*H55 -> 0 | K55: 0 | M55: 0 | N55: =J55*L55 -> 0 | O55: 1.0546875 | P55: =+J55-N55 -> 0 | Q55: 675 | R55: =+J55*E$7 -> 0
C56: Tractors/Self-Propelled | D56: 0 | F56: Gallon | G56: 3.1 | I56: 0 | J56: =E56*H56 -> 0 | K56: 0 | M56: 0 | N56: =J56*L56 -> 0 | O56: 0 | P56: =+J56-N56 -> 0 | Q56: 0 | R56: =+J56*E$7 -> 0
B58: Repairs & Maintenance
C59: Pickup/General Use Equipment | D59: 1 | F59: Acre | G59: 0.3515625 | I59: 0.3515625 | J59: =E59*H59 -> 0 | K59: 0 | M59: 0 | N59: =J59*L59 -> 0 | O59: 0.3515625 | P59: =+J59-N59 -> 0 | Q59: 225 | R59: =+J59*E$7 -> 0
C60: Irrigation Equipment | D60: 1 | F60: Acre | G60: 8.8904 | I60: 8.8904 | J60: 0 | K60: 0 | M60: 0 | N60: 0 | O60: 8.8904 | P60: 0 | Q60: 5689.856 | R60: 0
C61: Tractors/Self-Propelled | D61: 1 | F61: Acre | G61: 11.30216344 | I61: 11.30216344 | J61: 0 | K61: 0 | M61: 0 | N61: 0 | O61: 11.30216344 | P61: 0 | Q61: 7233.3846 | R61: 0
C62: Implements | D62: 1 | F62: Acre | G62: 8.683375618 | I62: 8.683375618 | J62: 0 | K62: 0 | M62: 0 | N62: 0 | O62: 8.683375618 | P62: 0 | Q62: 5557.360396 | R62: 0
I63: 0 | J63: 0 | K63: 0 | M63: 0 | N63: 0 | O63: 0 | P63: 0 | Q63: 0 | R63: 0
I64: 0 | J64: 0 | K64: 0 | M64: 0 | N64: 0 | O64: 0 | P64: 0 | Q64: 0 | R64: 0
B65: Interest on Credit Line | G65: 0.09 | I65: 20.70577368 | J65: =+SUM(J18:J64)/2*H65 -> 0 | M65: 0 | N65: =+SUM(N18:N64)/2*L65 -> 0 | O65: 20.70577368 | P65: =+SUM(P18:P64)/2*L65 -> 0 | Q65: 13251.69515 | R65: =+J65*E$7 -> 0
A66: Total Variable Costs | I66: 668.8204377 | J66: =SUM(J19:J65) -> 0 | M66: 0 | N66: =SUM(N19:N65) -> 0 | O66: 668.8204377 | P66: =SUM(P19:P65) -> 0 | Q66: 428045.0801 | R66: =SUM(R19:R65) -> 0
A67: Planned Returns Above Variable Costs: | I67: 209.3295623 | J67: =+J14-J66 -> 0 | M67: 0 | N67: =+N14-N66 -> 0 | O67: 209.3295623 | P67: =+P14-P66 -> 0 | Q67: 133970.9199 | R67: =+R14-R66 -> 0
B68: Breakeven Price to Cover Variable Costs | G68: 0.4640945273 | H68: =IF(E10=0,"n/a",(YVarExp-(YTotExp+YTotRet-J10))/E10) -> n/a | I68: Pound
Q69: Enterprise | R69: Enterprise
A70: FIXED COSTS | D70: Quantity | E70: Quantity | F70: Units | G70: $/Unit | H70: $/Unit | I70: Total | J70: Total | K70: Share | L70: Share | M70: Landlord | N70: Landlord | O70: Tenant | P70: Tenant | Q70: Total | R70: Total
B71: Machinery Depreciation
C72: Pickup/General Use Equipment | D72: 1 | F72: Acre | G72: 0.4880859375 | I72: 0.4880859375 | J72: =E72*H72 -> 0 | K72: 0 | M72: 0 | N72: =J72*L72 -> 0 | O72: 0.4880859375 | P72: =+J72-N72 -> 0 | Q72: 312.375 | R72: =+J72*E$7 -> 0
C73: Irrigation Equipment | D73: 1 | F73: Acre | G73: 24.375 | I73: 24.375 | J73: 0 | K73: 0 | M73: 0 | N73: =J73*L73 -> 0 | O73: 24.375 | P73: 0 | Q73: 15600 | R73: 0
C74: Tractors/Self-Propelled | D74: 1 | F74: Acre | G74: 16.14894186 | I74: 16.14894186 | J74: 0 | K74: 0 | M74: 0 | N74: =J74*L74 -> 0 | O74: 16.14894186 | P74: 0 | Q74: 10335.32279 | R74: 0
C75: Implements | D75: 1 | F75: Acre | G75: 11.67665305 | I75: 11.67665305 | J75: 0 | K75: 0 | M75: 0 | N75: =J75*L75 -> 0 | O75: 11.67665305 | P75: 0 | Q75: 7473.057955 | R75: 0
B76: Equipment Investment
C77: Pickup/General Use Equipment | D77: 3.418945312 | F77: Dollars | G77: 0.08 | I77: 0.273515625 | J77: =E77*H77 -> 0 | K77: 0 | M77: 0 | N77: =J77*L77 -> 0 | O77: 0.273515625 | P77: =+J77-N77 -> 0 | Q77: 175.05 | R77: =+J77*E$7 -> 0
C78: Irrigation Equipment | D78: 710.9375 | F78: Dollars | G78: 0.08 | I78: 56.875 | J78: 0 | K78: 0 | M78: 0 | N78: =J78*L78 -> 0 | O78: 56.875 | P78: 0 | Q78: 36400 | R78: 0
C79: Tractors/Self-Propelled | D79: 123.7285317 | F79: Dollars | G79: 0.08 | I79: 9.898282539 | J79: 0 | K79: 0 | M79: 0 | N79: =J79*L79 -> 0 | O79: 9.898282539 | P79: 0 | Q79: 6334.900825 | R79: 0
C80: Implements | D80: 49.95012695 | F80: Dollars | G80: 0.08 | I80: 3.996010156 | J80: 0 | K80: 0 | M80: 0 | N80: =J80*L80 -> 0 | O80: 3.996010156 | P80: 0 | Q80: 2557.4465 | R80: 0
B81: Salaried Labor | D81: 1 | F81: Acre | G81: 0 | I81: 0 | J81: 0 | K81: 0 | M81: 0 | N81: =J81*L81 -> 0 | O81: 0 | P81: =+J81-N81 -> 0 | Q81: 0 | R81: =+J81*E$7 -> 0
B82: Management Fee, Owner/Operator Labor | D82: 1 | F82: Acre | G82: 0 | I82: 0 | J82: 0 | K82: 0 | M82: 0 | N82: 0 | O82: 0 | P82: 0 | Q82: 0 | R82: 0
B83: Allocated Establishment Cost | D83: 1 | F83: Acre | G83: 0 | I83: 0 | J83: 0 | K83: 0 | M83: 0 | N83: 0 | O83: 0 | P83: 0 | Q83: 0 | R83: 0
B84: Cash Rent - Irrigated Cotton | D84: 1 | F84: Acre | G84: 90 | I84: 90 | J84: 0 | K84: 0 | M84: 0 | N84: 0 | O84: 90 | P84: 0 | Q84: 57600 | R84: 0
B85: Property Taxes | D85: 1 | F85: Acre | G85: 0 | I85: 0 | J85: 0 | K85: 0 | M85: 0 | N85: 0 | O85: 0 | P85: 0 | Q85: 0 | R85: 0
B86: Whole Farm Insurance | D86: 1 | F86: Acre | G86: 0 | I86: 0 | J86: 0 | K86: 0 | M86: 0 | N86: 0 | O86: 0 | P86: 0 | Q86: 0 | R86: 0
D87: 1 | G87: 0 | I87: 0 | J87: 0 | K87: 0 | M87: 0 | N87: 0 | O87: 0 | P87: 0 | Q87: 0 | R87: 0
D88: 1 | G88: 0 | I88: 0 | J88: =E88*H88 -> 0 | K88: 0 | M88: 0 | N88: 0 | O88: 0 | P88: 0 | Q88: 0 | R88: 0
A89: Total Fixed Costs | I89: 213.7314892 | J89: =+SUM(J72:J88) -> 0 | M89: 0 | N89: =+SUM(N72:N88) -> 0 | O89: 213.7314892 | P89: =+SUM(P72:P88) -> 0 | Q89: 136788.1531 | R89: =+SUM(R72:R88) -> 0
A90: Total Specified Costs | I90: 882.5519269 | J90: =+J66+J89 -> 0 | M90: 0 | N90: =+N66+N89 -> 0 | O90: 882.5519269 | P90: =+P66+P89 -> 0 | Q90: 564833.2332 | R90: =+R66+R89 -> 0
A92: Returns Above Specified Costs | I92: -4.401926901 | J92: =+J14-J90 -> 0 | M92: 0 | N92: =+N14-N90 -> 0 | O92: -4.401926901 | P92: =+P14-P90 -> 0 | Q92: -2817.233216 | R92: =+R14-R90 -> 0
A94: Breakeven Price to Cover Total Costs | G94: 0.6539093489 | H94: =IF(E10=0,"n/a",(YTotExp-(YTotExp+YTotRet-J10))/E10) -> n/a | I94: Pound
D96: Example Breakeven Prices
B97: Example | C97: Example | D97: To Cover | G97: To Cover
B98: Yield | C98: Yield | D98: Variable | G98: Total
B99: Percent | C99: Pound | D99: Costs | G99: Costs
B100: 0.75 | C100: 844.5 | D100: 0.6187927031 | G100: 0.8718791319
B101: 0.9 | C101: 1013.4 | D101: 0.5156605859 | G101: 0.7265659433
B102: 1 | C102: 1126 | D102: 0.4640945273 | G102: 0.6539093489
B103: 1.1 | C103: 1238.6 | D103: 0.4219041157 | G103: 0.5944630445
B104: 1.25 | C104: 1407.5 | D104: 0.3712756218 | G104: 0.5231274791
A106: Developed by Francisco Abelló, Assistant Professor and Extension Specialist, Texas A&M AgriLife Extension, 940-647-3908
A108: Information presented is prepared solely as a general guide and not intended to recognize or predict the costs and returns from any one operation. Brand names are mentioned only as examples and imply no endorsement.

Sheet No Till Dryland Cotton
A1: Projections for Planning Purposes Only -- Not to be Used without Updating
A2: 2025 Estimated Costs and Returns per Acre
A3: Cotton - No Till Dryland
A4: Enter your name for this budget in the cell above.
A5: Enter Your Values in the cells highlighed in MAROON.
E6: Your Acres | R6: Your
C7: Crop Acres | D7: 640 | L7: Your | Q7: Enterprise | R7: Enterprise
E8: Your | H8: Your | I8: Cash | J8: Your | K8: Landlord | L8: Landlord | N8: Your | P8: Your | Q8: Total | R8: Total
A9: REVENUE | D9: Quantity | E9: Quantity | F9: Units | G9: $/Unit | H9: $/Unit | I9: Total | J9: Total | K9: Share | L9: Share | M9: Landlord | N9: Landlord | O9: Tenant | P9: Tenant | Q9: (640 acres) | R9: ="(" & E7 & " acres)" -> ( acres)
B10: Cotton Lint | D10: 440 | F10: Pound | G10: 0.65 | I10: 286 | J10: =E10*H10 -> 0 | K10: 0 | M10: 0 | N10: =J10*L10 -> 0 | O10: 286 | P10: =+J10-N10 -> 0 | Q10: 183040 | R10: =+J10*E$7 -> 0
D11: 0 | G11: 0 | I11: 0 | J11: 0 | K11: 0 | M11: 0 | N11: 0 | O11: 0 | P11: =+J11-N11 -> 0 | Q11: 0 | R11: 0
D12: 0 | G12: 0 | I12: 0 | J12: 0 | K12: 0 | M12: 0 | N12: 0 | O12: 0 | P12: 0 | Q12: 0 | R12: 0
A13: Total Revenue | I13: 286 | J13: =SUM(J10:J12) -> 0 | M13: 0 | N13: =SUM(N10:N12) -> 0 | O13: 286 | P13: =SUM(P10:P12) -> 0 | Q13: 183040 | R13: =SUM(R10:R12) -> 0
Q14: Enterprise | R14: Enterprise
A15: VARIABLE COSTS | D15: Quantity | E15: Quantity | F15: Units | G15: $/Unit | H15: $/Unit | I15: Total | J15: Total | K15: Share | L15: Share | M15: Landlord | N15: Landlord | O15: Tenant | P15: Tenant | Q15: Total | R15: Total
A16: Production Costs
B17: Custom
C18: Fertilizer Application | D18: 1 | F18: Acre | G18: 5 | I18: 5 | J18: =E18*H18 -> 0 | K18: 0 | M18: 0 | N18: =J18*L18 -> 0 | O18: 5 | P18: =+J18-N18 -> 0 | Q18: 3200 | R18: =+J18*E$7 -> 0
C19: Custom Stripping | D19: 480 | F19: Pound | G19: 0.12 | I19: 57.6 | J19: 0 | K19: 0 | M19: 0 | N19: 0 | O19: 57.6 | P19: 0 | Q19: 36864 | R19: 0
B20: Fertilizer
C21: Fertilizer (N) | D21: 57 | F21: Pound | G21: 0.505 | I21: 28.785 | J21: 0 | K21: 0 | M21: 0 | N21: 0 | O21: 28.785 | P21: 0 | Q21: 18422.4 | R21: 0
B22: Herbicide
C23: Roundup | D23: 4 | F23: Pint | G23: 2.18 | I23: 8.72 | J23: 0 | K23: 0 | M23: 0 | N23: 0 | O23: 8.72 | P23: 0 | Q23: 5580.8 | R23: 0
C24: Prowl | D24: 64 | F24: Ounces | G24: 0.38 | I24: 24.32 | J24: 0 | K24: 0 | M24: 0 | N24: 0 | O24: 24.32 | P24: 0 | Q24: 15564.8 | R24: 0
C25: Enlist Duo | D25: 4.7 | F25: Pint | G25: 5.911 | I25: 27.7817 | J25: 0 | K25: 0 | M25: 0 | N25: 0 | O25: 27.7817 | P25: 0 | Q25: 17780.288 | R25: 0
C26: Liberty | D26: 29 | F26: Ounce | G26: 0.47 | I26: 13.63 | J26: 0 | K26: 0 | M26: 0 | N26: 0 | O26: 13.63 | P26: 0 | Q26: 8723.2 | R26: 0
C27: Harvest Aid - Prep | D27: 1 | F27: Pint | G27: 3.75 | I27: 3.75 | J27: 0 | K27: 0 | M27: 0 | N27: 0 | O27: 3.75 | P27: 0 | Q27: 2400 | R27: 0
C28: Harvest Aid -Def | D28: 1 | F28: Ounce | G28: 0.546875 | I28: 0.546875 | J28: 0 | K28: 0 | M28: 0 | N28: 0 | O28: 0.546875 | P28: 0 | Q28: 350 | R28: 0
C29: 2,4D | D29: 2.8 | F29: Pint | G29: 4.634 | I29: 12.9752 | J29: 0 | K29: 0 | M29: 0 | N29: 0 | O29: 12.9752 | P29: 0 | Q29: 8304.128 | R29: 0
C30: Caparol | D30: 1.4 | F30: Pint | G30: 4.73 | I30: 6.622 | J30: 0 | K30: 0 | M30: 0 | N30: 0 | O30: 6.622 | P30: 0 | Q30: 4238.08 | R30: 0
C31: Dual Magnun | D31: 1.3 | F31: Pint | G31: 9.14 | I31: 11.882 | J31: 0 | K31: 0 | M31: 0 | N31: 0 | O31: 11.882 | P31: 0 | Q31: 7604.48 | R31: 0
B32: Insecticide
C33: Prevathon | D33: 16 | F33: Ounce | G33: 1.16 | I33: 18.56 | J33: 0 | K33: 0 | M33: 0 | N33: 0 | O33: 18.56 | P33: 0 | Q33: 11878.4 | R33: 0
C34: Brigade | D34: 2 | F34: Ounce | G34: 1.74875 | I34: 3.4975 | J34: 0 | K34: 0 | M34: 0 | N34: 0 | O34: 3.4975 | P34: 0 | Q34: 2238.4 | R34: 0
B35: Miscellaneous
C36: Insurance - Dryland Cotton | D36: 1 | F36: Acre | G36: 15 | I36: 15 | J36: 0 | K36: 0 | M36: 0 | N36: 0 | O36: 15 | P36: 0 | Q36: 9600 | R36: 0
B37: Seed
C38: Cotton Seed | D38: 5 | F38: Pound | G38: 8 | I38: 40 | J38: 0 | K38: 0 | M38: 0 | N38: 0 | O38: 40 | P38: 0 | Q38: 25600 | R38: 0
D39: 0 | G39: 0 | I39: 0 | J39: 0 | K39: 0 | M39: 0 | N39: 0 | O39: 0 | P39: 0 | Q39: 0 | R39: 0
D40: 0 | G40: 0 | I40: 0 | J40: 0 | K40: 0 | M40: 0 | N40: 0 | O40: 0 | P40: 0 | Q40: 0 | R40: 0
D41: 0 | G41: 0 | I41: 0 | J41: =E41*H41 -> 0 | K41: 0 | M41: 0 | N41: =J41*L41 -> 0 | O41: 0 | P41: =+J41-N41 -> 0 | Q41: 0 | R41: =+J41*E$7 -> 0
B42: Machinery Labor
C43: Tractors/Self-Propelled | D43: 0.27 | F43: Hour | G43: 15 | I43: 4.05 | J43: =E43*H43 -> 0 | K43: 0 | M43: 0 | N43: =J43*L43 -> 0 | O43: 4.05 | P43: =+J43-N43 -> 0 | Q43: 2592 | R43: =+J43*E$7 -> 0
C44: Other Labor | D44: 0.32 | F44: Hour | G44: 15 | I44: 4.8 | J44: =E44*H44 -> 0 | K44: 0 | M44: 0 | N44: =J44*L44 -> 0 | O44: 4.8 | P44: =+J44-N44 -> 0 | Q44: 3072 | R44: =+J44*E$7 -> 0
B46: Diesel Fuel
C47: Pickup/General Use Equipment | D47: 1 | F47: Acre | G47: 0 | I47: 0 | J47: =E47*H47 -> 0 | K47: 0 | M47: 0 | N47: =J47*L47 -> 0 | O47: 0 | P47: =+J47-N47 -> 0 | Q47: 0 | R47: =+J47*E$7 -> 0
C48: Tractors/Self-Propelled | D48: 3.26 | F48: Gallon | G48: 2.59 | I48: 8.4434 | J48: =E48*H48 -> 0 | K48: 0 | M48: 0 | N48: =J48*L48 -> 0 | O48: 8.4434 | P48: =+J48-N48 -> 0 | Q48: 5403.776 | R48: =+J48*E$7 -> 0
B50: Gasoline
C51: Pickup/General Use Equipment | D51: 1 | F51: Acre | G51: 1.0546875 | I51: 1.0546875 | J51: =E51*H51 -> 0 | K51: 0 | M51: 0 | N51: =J51*L51 -> 0 | O51: 1.0546875 | P51: =+J51-N51 -> 0 | Q51: 675 | R51: =+J51*E$7 -> 0
C52: Tractors/Self-Propelled | D52: 0 | F52: Gallon | G52: 3.1 | I52: 0 | J52: =E52*H52 -> 0 | K52: 0 | M52: 0 | N52: =J52*L52 -> 0 | O52: 0 | P52: =+J52-N52 -> 0 | Q52: 0 | R52: =+J52*E$7 -> 0
B54: Repairs & Maintenance
C55: Pickup/General Use Equipment | D55: 1 | F55: Acre | G55: 0.3515625 | I55: 0.3515625 | J55: =E55*H55 -> 0 | K55: 0 | M55: 0 | N55: =J55*L55 -> 0 | O55: 0.3515625 | P55: =+J55-N55 -> 0 | Q55: 225 | R55: =+J55*E$7 -> 0
C56: Irrigation Equipment | D56: 1 | F56: Acre | G56: 0 | I56: 0 | J56: 0 | K56: 0 | M56: 0 | N56: 0 | O56: 0 | P56: 0 | Q56: 0 | R56: 0
C57: Tractors/Self-Propelled | D57: 1 | F57: Acre | G57: 9.138434332 | I57: 9.138434332 | J57: 0 | K57: 0 | M57: 0 | N57: 0 | O57: 9.138434332 | P57: 0 | Q57: 5848.597972 | R57: 0
C58: Implements | D58: 1 | F58: Acre | G58: 3.10832009 | I58: 3.10832009 | J58: 0 | K58: 0 | M58: 0 | N58: 0 | O58: 3.10832009 | P58: 0 | Q58: 1989.324858 | R58: 0
I59: 0 | J59: 0 | K59: 0 | M59: 0 | N59: 0 | O59: 0 | P59: 0 | Q59: 0 | R59: 0
I60: 0 | J60: 0 | K60: 0 | M60: 0 | N60: 0 | O60: 0 | P60: 0 | Q60: 0 | R60: 0
B61: Interest on Credit Line | G61: 0.09 | I61: 12.66233529 | J61: =+SUM(J17:J60)/2*H61 -> 0 | M61: 0 | N61: =+SUM(N17:N60)/2*L61 -> 0 | O61: 12.66233529 | P61: =+SUM(P17:P60)/2*L61 -> 0 | Q61: 8103.894588 | R61: =+J61*E$7 -> 0
A62: Total Variable Costs | I62: 322.2790147 | J62: =SUM(J18:J61) -> 0 | M62: 0 | N62: =SUM(N18:N61) -> 0 | O62: 322.2790147 | P62: =SUM(P18:P61) -> 0 | Q62: 206258.5694 | R62: =SUM(R18:R61) -> 0
A63: Planned Returns Above Variable Costs: | I63: -36.27901472 | J63: =+J13-J62 -> 0 | M63: 0 | N63: =+N13-N62 -> 0 | O63: -36.27901472 | P63: =+P13-P62 -> 0 | Q63: -23218.56942 | R63: =+R13-R62 -> 0
B64: Breakeven Price to Cover Variable Costs | G64: 0.7324523062 | H64: =IF(E10=0,"n/a",(YVarExp-(YTotExp+YTotRet-J10))/E10) -> n/a | I64: Pound
Q65: Enterprise | R65: Enterprise
A66: FIXED COSTS | D66: Quantity | E66: Quantity | F66: Units | G66: $/Unit | H66: $/Unit | I66: Total | J66: Total | K66: Share | L66: Share | M66: Landlord | N66: Landlord | O66: Tenant | P66: Tenant | Q66: Total | R66: Total
B67: Machinery Depreciation
C68: Pickup/General Use Equipment | D68: 1 | F68: Acre | G68: 0.4880859375 | I68: 0.4880859375 | J68: =E68*H68 -> 0 | K68: 0 | M68: 0 | N68: =J68*L68 -> 0 | O68: 0.4880859375 | P68: =+J68-N68 -> 0 | Q68: 312.375 | R68: =+J68*E$7 -> 0
C69: Tractors/Self-Propelled | D69: 1 | F69: Acre | G69: 14.65809506 | I69: 14.65809506 | J69: 0 | K69: 0 | M69: 0 | N69: =J69*L69 -> 0 | O69: 14.65809506 | P69: 0 | Q69: 9381.180836 | R69: 0
C70: Implements | D70: 1 | F70: Acre | G70: 4.623048024 | I70: 4.623048024 | J70: 0 | K70: 0 | M70: 0 | N70: =J70*L70 -> 0 | O70: 4.623048024 | P70: 0 | Q70: 2958.750735 | R70: 0
B71: Equipment Investment
C72: Pickup/General Use Equipment | D72: 3.418945312 | F72: Dollars | G72: 0.08 | I72: 0.273515625 | J72: =E72*H72 -> 0 | K72: 0 | M72: 0 | N72: =J72*L72 -> 0 | O72: 0.273515625 | P72: =+J72-N72 -> 0 | Q72: 175.05 | R72: =+J72*E$7 -> 0
C73: Tractors/Self-Propelled | D73: 111.7681985 | F73: Dollars | G73: 0.08 | I73: 8.941455877 | J73: 0 | K73: 0 | M73: 0 | N73: =J73*L73 -> 0 | O73: 8.941455877 | P73: 0 | Q73: 5722.531761 | R73: 0
C74: Implements | D74: 19.7763721 | F74: Dollars | G74: 0.08 | I74: 1.582109768 | J74: 0 | K74: 0 | M74: 0 | N74: =J74*L74 -> 0 | O74: 1.582109768 | P74: 0 | Q74: 1012.550252 | R74: 0
B75: Salaried Labor | D75: 1 | F75: Acre | G75: 0 | I75: 0 | J75: 0 | K75: 0 | M75: 0 | N75: =J75*L75 -> 0 | O75: 0 | P75: =+J75-N75 -> 0 | Q75: 0 | R75: =+J75*E$7 -> 0
B76: Management Fee, Owner/Operator Labor | D76: 1 | F76: Acre | G76: 0 | I76: 0 | J76: 0 | K76: 0 | M76: 0 | N76: 0 | O76: 0 | P76: 0 | Q76: 0 | R76: 0
B77: Allocated Establishment Cost | D77: 1 | F77: Acre | G77: 0 | I77: 0 | J77: 0 | K77: 0 | M77: 0 | N77: 0 | O77: 0 | P77: 0 | Q77: 0 | R77: 0
B78: Cash Rent - Dryland Cotton | D78: 1 | F78: Acre | G78: 30 | I78: 30 | J78: 0 | K78: 0 | M78: 0 | N78: 0 | O78: 30 | P78: 0 | Q78: 19200 | R78: 0
B79: Property Taxes | D79: 1 | F79: Acre | G79: 0 | I79: 0 | J79: 0 | K79: 0 | M79: 0 | N79: 0 | O79: 0 | P79: 0 | Q79: 0 | R79: 0
B80: Whole Farm Insurance | D80: 1 | F80: Acre | G80: 0 | I80: 0 | J80: 0 | K80: 0 | M80: 0 | N80: 0 | O80: 0 | P80: 0 | Q80: 0 | R80: 0
D81: 1 | G81: 0 | I81: 0 | J81: 0 | K81: 0 | M81: 0 | N81: 0 | O81: 0 | P81: 0 | Q81: 0 | R81: 0
D82: 1 | G82: 0 | I82: 0 | J82: =E82*H82 -> 0 | K82: 0 | M82: 0 | N82: 0 | O82: 0 | P82: 0 | Q82: 0 | R82: 0
A83: Total Fixed Costs | I83: 60.56631029 | J83: =+SUM(J68:J82) -> 0 | M83: 0 | N83: =+SUM(N68:N82) -> 0 | O83: 60.56631029 | P83: =+SUM(P68:P82) -> 0 | Q83: 38762.43858 | R83: =+SUM(R68:R82) -> 0
A84: Total Specified Costs | I84: 382.845325 | J84: =+J62+J83 -> 0 | M84: 0 | N84: =+N62+N83 -> 0 | O84: 382.845325 | P84: =+P62+P83 -> 0 | Q84: 245021.008 | R84: =+R62+R83 -> 0
A86: Returns Above Specified Costs | I86: -96.845325 | J86: =+J13-J84 -> 0 | M86: 0 | N86: =+N13-N84 -> 0 | O86: -96.845325 | P86: =+P13-P84 -> 0 | Q86: -61981.008 | R86: =+R13-R84 -> 0
A88: Breakeven Price to Cover Total Costs | G88: 0.8701030114 | H88: =IF(E10=0,"n/a",(YTotExp-(YTotExp+YTotRet-J10))/E10) -> n/a | I88: Pound
D90: Example Breakeven Prices
B91: Example | C91: Example | D91: To Cover | G91: To Cover
B92: Yield | C92: Yield | D92: Variable | G92: Total
B93: Percent | C93: Pound | D93: Costs | G93: Costs
B94: 0.75 | C94: 330 | D94: 0.9766030749 | G94: 1.160137348
B95: 0.9 | C95: 396 | D95: 0.8138358957 | G95: 0.9667811237
B96: 1 | C96: 440 | D96: 0.7324523062 | G96: 0.8701030114
B97: 1.1 | C97: 484 | D97: 0.6658657329 | G97: 0.7910027376
B98: 1.25 | C98: 550 | D98: 0.5859618449 | G98: 0.6960824091
A100: Developed by Francisco Abelló, Assistant Professor and Extension Specialist, Texas A&M AgriLife Extension, 940-647-3908
A102: Information presented is prepared solely as a general guide and not intended to recognize or predict the costs and returns from any one operation. Brand names are mentioned only as examples and imply no endorsement.

Sheet NT Irrig M Cotton
A1: Projections for Planning Purposes Only -- Not to be Used without Updating
A2: 2025 Estimated Costs and Returns per Acre
A3: Cotton - No-Till Irrigated
A4: Enter your name for this budget in the cell above.
A5: Enter Your Values in the cells highlighed in MAROON.
E6: Your Acres | R6: Your
C7: Crop Acres | D7: 640 | L7: Your | Q7: Enterprise | R7: Enterprise
E8: Your | H8: Your | I8: Cash | J8: Your | K8: Landlord | L8: Landlord | N8: Your | P8: Your | Q8: Total | R8: Total
A9: REVENUE | D9: Quantity | E9: Quantity | F9: Units | G9: $/Unit | H9: $/Unit | I9: Total | J9: Total | K9: Share | L9: Share | M9: Landlord | N9: Landlord | O9: Tenant | P9: Tenant | Q9: (640 acres) | R9: ="(" & E7 & " acres)" -> ( acres)
B10: Cotton Lint | D10: 1404 | F10: Pound | G10: 0.65 | I10: 912.6 | J10: =E10*H10 -> 0 | K10: 0 | M10: 0 | N10: =J10*L10 -> 0 | O10: 912.6 | P10: =+J10-N10 -> 0 | Q10: 584064 | R10: =+J10*E$7 -> 0
D11: 0 | G11: 0 | I11: 0 | J11: 0 | K11: 0 | M11: 0 | N11: 0 | O11: 0 | P11: =+J11-N11 -> 0 | Q11: 0 | R11: 0
D12: 0 | G12: 0 | I12: 0 | J12: 0 | K12: 0 | M12: 0 | N12: 0 | O12: 0 | P12: 0 | Q12: 0 | R12: 0
A13: Total Revenue | I13: 912.6 | J13: =SUM(J10:J12) -> 0 | M13: 0 | N13: =SUM(N10:N12) -> 0 | O13: 912.6 | P13: =SUM(P10:P12) -> 0 | Q13: 584064 | R13: =SUM(R10:R12) -> 0
Q14: Enterprise | R14: Enterprise
A15: VARIABLE COSTS | D15: Quantity | E15: Quantity | F15: Units | G15: $/Unit | H15: $/Unit | I15: Total | J15: Total | K15: Share | L15: Share | M15: Landlord | N15: Landlord | O15: Tenant | P15: Tenant | Q15: Total | R15: Total
A16: Production Costs
B17: Custom
C18: Fertilizer Application | D18: 1 | F18: Acre | G18: 5 | I18: 5 | J18: =E18*H18 -> 0 | K18: 0 | M18: 0 | N18: =J18*L18 -> 0 | O18: 5 | P18: =+J18-N18 -> 0 | Q18: 3200 | R18: =+J18*E$7 -> 0
C19: Custom Stripping | D19: 1404 | F19: Pound | G19: 0.12 | I19: 168.48 | J19: 0 | K19: 0 | M19: 0 | N19: 0 | O19: 168.48 | P19: 0 | Q19: 107827.2 | R19: 0
B20: Fertilizer
C21: Fertilizer (N) | D21: 150 | F21: Pound | G21: 0.505 | I21: 75.75 | J21: 0 | K21: 0 | M21: 0 | N21: 0 | O21: 75.75 | P21: 0 | Q21: 48480 | R21: 0
C22: Fertilizer (P) | D22: 50 | F22: Pound | G22: 0.60657 | I22: 30.3285 | J22: 0 | K22: 0 | M22: 0 | N22: 0 | O22: 30.3285 | P22: 0 | Q22: 19410.24 | R22: 0
C23: Potash (K) | D23: 80 | F23: Pound | G23: 0.39 | I23: 31.2 | J23: 0 | K23: 0 | M23: 0 | N23: 0 | O23: 31.2 | P23: 0 | Q23: 19968 | R23: 0
B24: Herbicide
C25: Roundup | D25: 2 | F25: Pint | G25: 2.18 | I25: 4.36 | J25: 0 | K25: 0 | M25: 0 | N25: 0 | O25: 4.36 | P25: 0 | Q25: 2790.4 | R25: 0
C26: Prowl | D26: 64 | F26: Ounces | G26: 0.38 | I26: 24.32 | J26: 0 | K26: 0 | M26: 0 | N26: 0 | O26: 24.32 | P26: 0 | Q26: 15564.8 | R26: 0
C27: Enlist Duo | D27: 4.7 | F27: Pint | G27: 5.911 | I27: 27.7817 | J27: 0 | K27: 0 | M27: 0 | N27: 0 | O27: 27.7817 | P27: 0 | Q27: 17780.288 | R27: 0
C28: Liberty | D28: 29 | F28: Ounce | G28: 0.47 | I28: 13.63 | J28: 0 | K28: 0 | M28: 0 | N28: 0 | O28: 13.63 | P28: 0 | Q28: 8723.2 | R28: 0
C29: Harvest Aid - Prep | D29: 1 | F29: Pint | G29: 3.75 | I29: 3.75 | J29: 0 | K29: 0 | M29: 0 | N29: 0 | O29: 3.75 | P29: 0 | Q29: 2400 | R29: 0
C30: Harvest Aid -Def | D30: 1 | F30: Ounce | G30: 0.546875 | I30: 0.546875 | J30: 0 | K30: 0 | M30: 0 | N30: 0 | O30: 0.546875 | P30: 0 | Q30: 350 | R30: 0
C31: 2,4D | D31: 1.4 | F31: Pint | G31: 4.634 | I31: 6.4876 | J31: 0 | K31: 0 | M31: 0 | N31: 0 | O31: 6.4876 | P31: 0 | Q31: 4152.064 | R31: 0
C32: Caparol | D32: 1.4 | F32: Pint | G32: 4.73 | I32: 6.622 | J32: 0 | K32: 0 | M32: 0 | N32: 0 | O32: 6.622 | P32: 0 | Q32: 4238.08 | R32: 0
C33: Dual Magnun | D33: 1.3 | F33: Pint | G33: 9.14 | I33: 11.882 | J33: 0 | K33: 0 | M33: 0 | N33: 0 | O33: 11.882 | P33: 0 | Q33: 7604.48 | R33: 0
B34: Insecticide
C35: Prevathon | D35: 16 | F35: Ounce | G35: 1.16 | I35: 18.56 | J35: 0 | K35: 0 | M35: 0 | N35: 0 | O35: 18.56 | P35: 0 | Q35: 11878.4 | R35: 0
C36: Brigade | D36: 2 | F36: Ounce | G36: 1.74875 | I36: 3.4975 | J36: 0 | K36: 0 | M36: 0 | N36: 0 | O36: 3.4975 | P36: 0 | Q36: 2238.4 | R36: 0
B37: Miscellaneous
C38: Insurance - Dryland Cotton | D38: 1 | F38: Acre | G38: 15 | I38: 15 | J38: 0 | K38: 0 | M38: 0 | N38: 0 | O38: 15 | P38: 0 | Q38: 9600 | R38: 0
B39: Seed
C40: Cotton Seed | D40: 11.5 | F40: Pound | G40: 8 | I40: 92 | J40: 0 | K40: 0 | M40: 0 | N40: 0 | O40: 92 | P40: 0 | Q40: 58880 | R40: 0
D41: 0 | G41: 0 | I41: 0 | J41: 0 | K41: 0 | M41: 0 | N41: 0 | O41: 0 | P41: 0 | Q41: 0 | R41: 0
D42: 0 | G42: 0 | I42: 0 | J42: 0 | K42: 0 | M42: 0 | N42: 0 | O42: 0 | P42: 0 | Q42: 0 | R42: 0
D43: 0 | G43: 0 | I43: 0 | J43: =E43*H43 -> 0 | K43: 0 | M43: 0 | N43: =J43*L43 -> 0 | O43: 0 | P43: =+J43-N43 -> 0 | Q43: 0 | R43: =+J43*E$7 -> 0
B44: Irrigation
C45: Energy Cost | D45: 11.8 | F45: AcreInch | G45: 6.75 | I45: 79.65 | J45: =E45*H45 -> 0 | K45: 0 | M45: 0 | N45: =J45*L45 -> 0 | O45: 79.65 | P45: =+J45-N45 -> 0 | Q45: 50976 | R45: =+J45*E$7 -> 0
C46: Irrigation Labor | D46: 0.96 | F46: Hour | G46: 15 | I46: 14.4 | J46: 0 | K46: 0 | M46: 0 | N46: 0 | O46: 14.4 | P46: 0 | Q46: 9216 | R46: 0
B47: Machinery Labor
C48: Tractors/Self-Propelled | D48: 0.26 | F48: Hour | G48: 15 | I48: 3.9 | J48: =E48*H48 -> 0 | K48: 0 | M48: 0 | N48: =J48*L48 -> 0 | O48: 3.9 | P48: =+J48-N48 -> 0 | Q48: 2496 | R48: =+J48*E$7 -> 0
C49: Other Labor | D49: 0.31 | F49: Hour | G49: 15 | I49: 4.65 | J49: =E49*H49 -> 0 | K49: 0 | M49: 0 | N49: =J49*L49 -> 0 | O49: 4.65 | P49: =+J49-N49 -> 0 | Q49: 2976 | R49: =+J49*E$7 -> 0
B51: Diesel Fuel
C52: Pickup/General Use Equipment | D52: 1 | F52: Acre | G52: 0 | I52: 0 | J52: =E52*H52 -> 0 | K52: 0 | M52: 0 | N52: =J52*L52 -> 0 | O52: 0 | P52: =+J52-N52 -> 0 | Q52: 0 | R52: =+J52*E$7 -> 0
C53: Tractors/Self-Propelled | D53: 3.14 | F53: Gallon | G53: 2.59 | I53: 8.1326 | J53: =E53*H53 -> 0 | K53: 0 | M53: 0 | N53: =J53*L53 -> 0 | O53: 8.1326 | P53: =+J53-N53 -> 0 | Q53: 5204.864 | R53: =+J53*E$7 -> 0
B55: Gasoline
C56: Pickup/General Use Equipment | D56: 1 | F56: Acre | G56: 1.0546875 | I56: 1.0546875 | J56: =E56*H56 -> 0 | K56: 0 | M56: 0 | N56: =J56*L56 -> 0 | O56: 1.0546875 | P56: =+J56-N56 -> 0 | Q56: 675 | R56: =+J56*E$7 -> 0
C57: Tractors/Self-Propelled | D57: 0 | F57: Gallon | G57: 3.1 | I57: 0 | J57: =E57*H57 -> 0 | K57: 0 | M57: 0 | N57: =J57*L57 -> 0 | O57: 0 | P57: =+J57-N57 -> 0 | Q57: 0 | R57: =+J57*E$7 -> 0
B59: Repairs & Maintenance
C60: Pickup/General Use Equipment | D60: 1 | F60: Acre | G60: 0.3515625 | I60: 0.3515625 | J60: =E60*H60 -> 0 | K60: 0 | M60: 0 | N60: =J60*L60 -> 0 | O60: 0.3515625 | P60: =+J60-N60 -> 0 | Q60: 225 | R60: =+J60*E$7 -> 0
C61: Irrigation Equipment | D61: 1 | F61: Acre | G61: 13.11334 | I61: 13.11334 | J61: 0 | K61: 0 | M61: 0 | N61: 0 | O61: 13.11334 | P61: 0 | Q61: 8392.5376 | R61: 0
C62: Tractors/Self-Propelled | D62: 1 | F62: Acre | G62: 8.574945875 | I62: 8.574945875 | J62: 0 | K62: 0 | M62: 0 | N62: 0 | O62: 8.574945875 | P62: 0 | Q62: 5487.96536 | R62: 0
C63: Implements | D63: 1 | F63: Acre | G63: 6.887420701 | I63: 6.887420701 | J63: 0 | K63: 0 | M63: 0 | N63: 0 | O63: 6.887420701 | P63: 0 | Q63: 4407.949249 | R63: 0
I64: 0 | J64: 0 | K64: 0 | M64: 0 | N64: 0 | O64: 0 | P64: 0 | Q64: 0 | R64: 0
I65: 0 | J65: 0 | K65: 0 | M65: 0 | N65: 0 | O65: 0 | P65: 0 | Q65: 0 | R65: 0
B66: Interest on Credit Line | G66: 0.09 | I66: 27.58284394 | J66: =+SUM(J17:J65)/2*H66 -> 0 | M66: 0 | N66: =+SUM(N17:N65)/2*L66 -> 0 | O66: 27.58284394 | P66: =+SUM(P17:P65)/2*L66 -> 0 | Q66: 17653.02012 | R66: =+J66*E$7 -> 0
A67: Total Variable Costs | I67: 707.4935755 | J67: =SUM(J18:J66) -> 0 | M67: 0 | N67: =SUM(N18:N66) -> 0 | O67: 707.4935755 | P67: =SUM(P18:P66) -> 0 | Q67: 452795.8883 | R67: =SUM(R18:R66) -> 0
A68: Planned Returns Above Variable Costs: | I68: 205.1064245 | J68: =+J13-J67 -> 0 | M68: 0 | N68: =+N13-N67 -> 0 | O68: 205.1064245 | P68: =+P13-P67 -> 0 | Q68: 131268.1117 | R68: =+R13-R67 -> 0
B69: Breakeven Price to Cover Variable Costs | G69: 0.5039128031 | H69: =IF(E10=0,"n/a",(YVarExp-(YTotExp+YTotRet-J10))/E10) -> n/a | I69: Pound
Q70: Enterprise | R70: Enterprise
A71: FIXED COSTS | D71: Quantity | E71: Quantity | F71: Units | G71: $/Unit | H71: $/Unit | I71: Total | J71: Total | K71: Share | L71: Share | M71: Landlord | N71: Landlord | O71: Tenant | P71: Tenant | Q71: Total | R71: Total
B72: Machinery Depreciation
C73: Pickup/General Use Equipment | D73: 1 | F73: Acre | G73: 0.4880859375 | I73: 0.4880859375 | J73: =E73*H73 -> 0 | K73: 0 | M73: 0 | N73: =J73*L73 -> 0 | O73: 0.4880859375 | P73: =+J73-N73 -> 0 | Q73: 312.375 | R73: =+J73*E$7 -> 0
C74: Irrigation Equipment | D74: 1 | F74: Acre | G74: 24.375 | I74: 24.375 | J74: 0 | K74: 0 | M74: 0 | N74: =J74*L74 -> 0 | O74: 24.375 | P74: 0 | Q74: 15600 | R74: 0
C75: Tractors/Self-Propelled | D75: 1 | F75: Acre | G75: 13.33081704 | I75: 13.33081704 | J75: 0 | K75: 0 | M75: 0 | N75: =J75*L75 -> 0 | O75: 13.33081704 | P75: 0 | Q75: 8531.722908 | R75: 0
C76: Implements | D76: 1 | F76: Acre | G76: 9.481891667 | I76: 9.481891667 | J76: 0 | K76: 0 | M76: 0 | N76: =J76*L76 -> 0 | O76: 9.481891667 | P76: 0 | Q76: 6068.410667 | R76: 0
B77: Equipment Investment
C78: Pickup/General Use Equipment | D78: 3.418945312 | F78: Dollars | G78: 0.08 | I78: 0.273515625 | J78: =E78*H78 -> 0 | K78: 0 | M78: 0 | N78: =J78*L78 -> 0 | O78: 0.273515625 | P78: =+J78-N78 -> 0 | Q78: 175.05 | R78: =+J78*E$7 -> 0
C79: Irrigation Equipment | D79: 710.9375 | F79: Dollars | G79: 0.08 | I79: 56.875 | J79: 0 | K79: 0 | M79: 0 | N79: =J79*L79 -> 0 | O79: 56.875 | P79: 0 | Q79: 36400 | R79: 0
C80: Tractors/Self-Propelled | D80: 101.7744304 | F80: Dollars | G80: 0.08 | I80: 8.14195443 | J80: 0 | K80: 0 | M80: 0 | N80: =J80*L80 -> 0 | O80: 8.14195443 | P80: 0 | Q80: 5210.850835 | R80: 0
C81: Implements | D81: 40.56142546 | F81: Dollars | G81: 0.08 | I81: 3.244914037 | J81: 0 | K81: 0 | M81: 0 | N81: =J81*L81 -> 0 | O81: 3.244914037 | P81: 0 | Q81: 2076.744984 | R81: 0
B82: Salaried Labor | D82: 1 | F82: Acre | G82: 0 | I82: 0 | J82: 0 | K82: 0 | M82: 0 | N82: =J82*L82 -> 0 | O82: 0 | P82: =+J82-N82 -> 0 | Q82: 0 | R82: =+J82*E$7 -> 0
B83: Management Fee, Owner/Operator Labor | D83: 1 | F83: Acre | G83: 0 | I83: 0 | J83: 0 | K83: 0 | M83: 0 | N83: 0 | O83: 0 | P83: 0 | Q83: 0 | R83: 0
B84: Allocated Establishment Cost | D84: 1 | F84: Acre | G84: 0 | I84: 0 | J84: 0 | K84: 0 | M84: 0 | N84: 0 | O84: 0 | P84: 0 | Q84: 0 | R84: 0
B85: Cash Rent - Irrigated Cotton | D85: 1 | F85: Acre | G85: 90 | I85: 90 | J85: 0 | K85: 0 | M85: 0 | N85: 0 | O85: 90 | P85: 0 | Q85: 57600 | R85: 0
B86: Property Taxes | D86: 1 | F86: Acre | G86: 0 | I86: 0 | J86: 0 | K86: 0 | M86: 0 | N86: 0 | O86: 0 | P86: 0 | Q86: 0 | R86: 0
B87: Whole Farm Insurance | D87: 1 | F87: Acre | G87: 0 | I87: 0 | J87: 0 | K87: 0 | M87: 0 | N87: 0 | O87: 0 | P87: 0 | Q87: 0 | R87: 0
D88: 1 | G88: 0 | I88: 0 | J88: 0 | K88: 0 | M88: 0 | N88: 0 | O88: 0 | P88: 0 | Q88: 0 | R88: 0
D89: 1 | G89: 0 | I89: 0 | J89: =E89*H89 -> 0 | K89: 0 | M89: 0 | N89: 0 | O89: 0 | P89: 0 | Q89: 0 | R89: 0
A90: Total Fixed Costs | I90: 206.2111787 | J90: =+SUM(J73:J89) -> 0 | M90: 0 | N90: =+SUM(N73:N89) -> 0 | O90: 206.2111787 | P90: =+SUM(P73:P89) -> 0 | Q90: 131975.1544 | R90: =+SUM(R73:R89) -> 0
A91: Total Specified Costs | I91: 913.7047543 | J91: =+J67+J90 -> 0 | M91: 0 | N91: =+N67+N90 -> 0 | O91: 913.7047543 | P91: =+P67+P90 -> 0 | Q91: 584771.0427 | R91: =+R67+R90 -> 0
A93: Returns Above Specified Costs | I93: -1.104754259 | J93: =+J13-J91 -> 0 | M93: 0 | N93: =+N13-N91 -> 0 | O93: -1.104754259 | P93: =+P13-P91 -> 0 | Q93: -707.0427256 | R93: =+R13-R91 -> 0
A95: Breakeven Price to Cover Total Costs | G95: 0.650786862 | H95: =IF(E10=0,"n/a",(YTotExp-(YTotExp+YTotRet-J10))/E10) -> n/a | I95: Pound
D97: Example Breakeven Prices
B98: Example | C98: Example | D98: To Cover | G98: To Cover
B99: Yield | C99: Yield | D99: Variable | G99: Total
B100: Percent | C100: Pound | D100: Costs | G100: Costs
B101: 0.75 | C101: 1053 | D101: 0.6718837374 | G101: 0.867715816
B102: 0.9 | C102: 1263.6 | D102: 0.5599031145 | G102: 0.7230965133
B103: 1 | C103: 1404 | D103: 0.5039128031 | G103: 0.650786862
B104: 1.1 | C104: 1544.4 | D104: 0.4581025483 | G104: 0.59162442
B105: 1.25 | C105: 1755 | D105: 0.4031302425 | G105: 0.5206294896
A107: Developed by Francisco Abelló, Assistant Professor and Extension Specialist, Texas A&M AgriLife Extension, 940-647-3908
A109: Information presented is prepared solely as a general guide and not intended to recognize or predict the costs and returns from any one operation. Brand names are mentioned only as examples and imply no endorsement.

Sheet NT-CC2 Irr M Cotton
A1: Projections for Planning Purposes Only -- Not to be Used without Updating
A2: 2025 Estimated Costs and Returns per Acre
A3: Cotton NT - Cover Crop Wheat Irrig
A4: Enter your name for this budget in the cell above.
A5: Enter Your Values in the cells highlighed in MAROON.
E6: Your Acres | R6: Your
C7: Crop Acres | D7: 640 | L7: Your | Q7: Enterprise | R7: Enterprise
E8: Your | H8: Your | I8: Cash | J8: Your | K8: Landlord | L8: Landlord | N8: Your | P8: Your | Q8: Total | R8: Total
A9: REVENUE | D9: Quantity | E9: Quantity | F9: Units | G9: $/Unit | H9: $/Unit | I9: Total | J9: Total | K9: Share | L9: Share | M9: Landlord | N9: Landlord | O9: Tenant | P9: Tenant | Q9: (640 acres) | R9: ="(" & E7 & " acres)" -> ( acres)
B10: Cotton Lint | D10: 1429 | F10: Pound | G10: 0.65 | I10: 928.85 | J10: =E10*H10 -> 0 | K10: 0 | M10: 0 | N10: =J10*L10 -> 0 | O10: 928.85 | P10: =+J10-N10 -> 0 | Q10: 594464 | R10: =+J10*E$7 -> 0
D11: 0 | G11: 0 | I11: 0 | J11: 0 | K11: 0 | M11: 0 | N11: 0 | O11: 0 | P11: =+J11-N11 -> 0 | Q11: 0 | R11: 0
D12: 0 | G12: 0 | I12: 0 | J12: 0 | K12: 0 | M12: 0 | N12: 0 | O12: 0 | P12: 0 | Q12: 0 | R12: 0
A13: Total Revenue | I13: 928.85 | J13: =SUM(J10:J12) -> 0 | M13: 0 | N13: =SUM(N10:N12) -> 0 | O13: 928.85 | P13: =SUM(P10:P12) -> 0 | Q13: 594464 | R13: =SUM(R10:R12) -> 0
Q14: Enterprise | R14: Enterprise
A15: VARIABLE COSTS | D15: Quantity | E15: Quantity | F15: Units | G15: $/Unit | H15: $/Unit | I15: Total | J15: Total | K15: Share | L15: Share | M15: Landlord | N15: Landlord | O15: Tenant | P15: Tenant | Q15: Total | R15: Total
A16: Production Costs
B17: Custom
C18: Fertilizer Application | D18: 1 | F18: Acre | G18: 5 | I18: 5 | J18: =E18*H18 -> 0 | K18: 0 | M18: 0 | N18: =J18*L18 -> 0 | O18: 5 | P18: =+J18-N18 -> 0 | Q18: 3200 | R18: =+J18*E$7 -> 0
C19: Custom Stripping | D19: 1429 | F19: Pound | G19: 0.12 | I19: 171.48 | J19: 0 | K19: 0 | M19: 0 | N19: 0 | O19: 171.48 | P19: 0 | Q19: 109747.2 | R19: 0
B20: Fertilizer
C21: Fertilizer (N) | D21: 100 | F21: Pound | G21: 0.505 | I21: 50.5 | J21: 0 | K21: 0 | M21: 0 | N21: 0 | O21: 50.5 | P21: 0 | Q21: 32320 | R21: 0
C22: Fertilizer (P) | D22: 50 | F22: Pound | G22: 0.60657 | I22: 30.3285 | J22: 0 | K22: 0 | M22: 0 | N22: 0 | O22: 30.3285 | P22: 0 | Q22: 19410.24 | R22: 0
B23: Herbicide
C24: Roundup | D24: 2 | F24: Pint | G24: 2.18 | I24: 4.36 | J24: 0 | K24: 0 | M24: 0 | N24: 0 | O24: 4.36 | P24: 0 | Q24: 2790.4 | R24: 0
C25: Prowl | D25: 64 | F25: Ounces | G25: 0.38 | I25: 24.32 | J25: 0 | K25: 0 | M25: 0 | N25: 0 | O25: 24.32 | P25: 0 | Q25: 15564.8 | R25: 0
C26: Enlist Duo | D26: 4.7 | F26: Pint | G26: 5.911 | I26: 27.7817 | J26: 0 | K26: 0 | M26: 0 | N26: 0 | O26: 27.7817 | P26: 0 | Q26: 17780.288 | R26: 0
C27: Liberty | D27: 29 | F27: Ounce | G27: 0.47 | I27: 13.63 | J27: 0 | K27: 0 | M27: 0 | N27: 0 | O27: 13.63 | P27: 0 | Q27: 8723.2 | R27: 0
C28: Harvest Aid - Prep | D28: 1 | F28: Pint | G28: 3.75 | I28: 3.75 | J28: 0 | K28: 0 | M28: 0 | N28: 0 | O28: 3.75 | P28: 0 | Q28: 2400 | R28: 0
C29: Harvest Aid -Def | D29: 1 | F29: Ounce | G29: 0.546875 | I29: 0.546875 | J29: 0 | K29: 0 | M29: 0 | N29: 0 | O29: 0.546875 | P29: 0 | Q29: 350 | R29: 0
C30: 2,4D | D30: 1.4 | F30: Pint | G30: 4.634 | I30: 6.4876 | J30: 0 | K30: 0 | M30: 0 | N30: 0 | O30: 6.4876 | P30: 0 | Q30: 4152.064 | R30: 0
C31: Caparol | D31: 1.4 | F31: Pint | G31: 4.73 | I31: 6.622 | J31: 0 | K31: 0 | M31: 0 | N31: 0 | O31: 6.622 | P31: 0 | Q31: 4238.08 | R31: 0
C32: Dual Magnun | D32: 1.3 | F32: Pint | G32: 9.14 | I32: 11.882 | J32: 0 | K32: 0 | M32: 0 | N32: 0 | O32: 11.882 | P32: 0 | Q32: 7604.48 | R32: 0
B33: Insecticide
C34: Prevathon | D34: 16 | F34: Ounce | G34: 1.16 | I34: 18.56 | J34: 0 | K34: 0 | M34: 0 | N34: 0 | O34: 18.56 | P34: 0 | Q34: 11878.4 | R34: 0
C35: Brigade | D35: 2 | F35: Ounce | G35: 1.74875 | I35: 3.4975 | J35: 0 | K35: 0 | M35: 0 | N35: 0 | O35: 3.4975 | P35: 0 | Q35: 2238.4 | R35: 0
B36: Miscellaneous
C37: Insurance - Dryland Cotton | D37: 1 | F37: Acre | G37: 15 | I37: 15 | J37: 0 | K37: 0 | M37: 0 | N37: 0 | O37: 15 | P37: 0 | Q37: 9600 | R37: 0
B38: Seed
C39: Cotton Seed | D39: 11.5 | F39: Pound | G39: 8 | I39: 92 | J39: 0 | K39: 0 | M39: 0 | N39: 0 | O39: 92 | P39: 0 | Q39: 58880 | R39: 0
C40: Wheat Seed | D40: 60 | F40: Pound | G40: 0.23 | I40: 13.8 | J40: 0 | K40: 0 | M40: 0 | N40: 0 | O40: 13.8 | P40: 0 | Q40: 8832 | R40: 0
D41: 0 | G41: 0 | I41: 0 | J41: 0 | K41: 0 | M41: 0 | N41: 0 | O41: 0 | P41: 0 | Q41: 0 | R41: 0
D42: 0 | G42: 0 | I42: 0 | J42: 0 | K42: 0 | M42: 0 | N42: 0 | O42: 0 | P42: 0 | Q42: 0 | R42: 0
D43: 0 | G43: 0 | I43: 0 | J43: =E43*H43 -> 0 | K43: 0 | M43: 0 | N43: =J43*L43 -> 0 | O43: 0 | P43: =+J43-N43 -> 0 | Q43: 0 | R43: =+J43*E$7 -> 0
B44: Irrigation
C45: Energy Cost | D45: 11.8 | F45: AcreInch | G45: 6.75 | I45: 79.65 | J45: =E45*H45 -> 0 | K45: 0 | M45: 0 | N45: =J45*L45 -> 0 | O45: 79.65 | P45: =+J45-N45 -> 0 | Q45: 50976 | R45: =+J45*E$7 -> 0
C46: Irrigation Labor | D46: 0.96 | F46: Hour | G46: 15 | I46: 14.4 | J46: 0 | K46: 0 | M46: 0 | N46: 0 | O46: 14.4 | P46: 0 | Q46: 9216 | R46: 0
B47: Machinery Labor
C48: Tractors/Self-Propelled | D48: 0.32 | F48: Hour | G48: 15 | I48: 4.8 | J48: =E48*H48 -> 0 | K48: 0 | M48: 0 | N48: =J48*L48 -> 0 | O48: 4.8 | P48: =+J48-N48 -> 0 | Q48: 3072 | R48: =+J48*E$7 -> 0
C49: Other Labor | D49: 0.38 | F49: Hour | G49: 15 | I49: 5.7 | J49: =E49*H49 -> 0 | K49: 0 | M49: 0 | N49: =J49*L49 -> 0 | O49: 5.7 | P49: =+J49-N49 -> 0 | Q49: 3648 | R49: =+J49*E$7 -> 0
B51: Diesel Fuel
C52: Pickup/General Use Equipment | D52: 1 | F52: Acre | G52: 0 | I52: 0 | J52: =E52*H52 -> 0 | K52: 0 | M52: 0 | N52: =J52*L52 -> 0 | O52: 0 | P52: =+J52-N52 -> 0 | Q52: 0 | R52: =+J52*E$7 -> 0
C53: Tractors/Self-Propelled | D53: 3.92 | F53: Gallon | G53: 2.59 | I53: 10.1528 | J53: =E53*H53 -> 0 | K53: 0 | M53: 0 | N53: =J53*L53 -> 0 | O53: 10.1528 | P53: =+J53-N53 -> 0 | Q53: 6497.792 | R53: =+J53*E$7 -> 0
B55: Gasoline
C56: Pickup/General Use Equipment | D56: 1 | F56: Acre | G56: 1.0546875 | I56: 1.0546875 | J56: =E56*H56 -> 0 | K56: 0 | M56: 0 | N56: =J56*L56 -> 0 | O56: 1.0546875 | P56: =+J56-N56 -> 0 | Q56: 675 | R56: =+J56*E$7 -> 0
C57: Tractors/Self-Propelled | D57: 0 | F57: Gallon | G57: 3.1 | I57: 0 | J57: =E57*H57 -> 0 | K57: 0 | M57: 0 | N57: =J57*L57 -> 0 | O57: 0 | P57: =+J57-N57 -> 0 | Q57: 0 | R57: =+J57*E$7 -> 0
B59: Repairs & Maintenance
C60: Pickup/General Use Equipment | D60: 1 | F60: Acre | G60: 0.3515625 | I60: 0.3515625 | J60: =E60*H60 -> 0 | K60: 0 | M60: 0 | N60: =J60*L60 -> 0 | O60: 0.3515625 | P60: =+J60-N60 -> 0 | Q60: 225 | R60: =+J60*E$7 -> 0
C61: Irrigation Equipment | D61: 1 | F61: Acre | G61: 13.11334 | I61: 13.11334 | J61: 0 | K61: 0 | M61: 0 | N61: 0 | O61: 13.11334 | P61: 0 | Q61: 8392.5376 | R61: 0
C62: Tractors/Self-Propelled | D62: 1 | F62: Acre | G62: 10.96724198 | I62: 10.96724198 | J62: 0 | K62: 0 | M62: 0 | N62: 0 | O62: 10.96724198 | P62: 0 | Q62: 7019.034868 | R62: 0
C63: Implements | D63: 1 | F63: Acre | G63: 17.32953804 | I63: 17.32953804 | J63: 0 | K63: 0 | M63: 0 | N63: 0 | O63: 17.32953804 | P63: 0 | Q63: 11090.90435 | R63: 0
I64: 0 | J64: 0 | K64: 0 | M64: 0 | N64: 0 | O64: 0 | P64: 0 | Q64: 0 | R64: 0
I65: 0 | J65: 0 | K65: 0 | M65: 0 | N65: 0 | O65: 0 | P65: 0 | Q65: 0 | R65: 0
B66: Interest on Credit Line | G66: 0.09 | I66: 24.8267985 | J66: =+SUM(J17:J65)/2*H66 -> 0 | M66: 0 | N66: =+SUM(N17:N65)/2*L66 -> 0 | O66: 24.8267985 | P66: =+SUM(P17:P65)/2*L66 -> 0 | Q66: 15889.15104 | R66: =+J66*E$7 -> 0
A67: Total Variable Costs | I67: 681.8921435 | J67: =SUM(J18:J66) -> 0 | M67: 0 | N67: =SUM(N18:N66) -> 0 | O67: 681.8921435 | P67: =SUM(P18:P66) -> 0 | Q67: 436410.9719 | R67: =SUM(R18:R66) -> 0
A68: Planned Returns Above Variable Costs: | I68: 246.9578565 | J68: =+J13-J67 -> 0 | M68: 0 | N68: =+N13-N67 -> 0 | O68: 246.9578565 | P68: =+P13-P67 -> 0 | Q68: 158053.0281 | R68: =+R13-R67 -> 0
B69: Breakeven Price to Cover Variable Costs | G69: 0.4771813461 | H69: =IF(E10=0,"n/a",(YVarExp-(YTotExp+YTotRet-J10))/E10) -> n/a | I69: Pound
Q70: Enterprise | R70: Enterprise
A71: FIXED COSTS | D71: Quantity | E71: Quantity | F71: Units | G71: $/Unit | H71: $/Unit | I71: Total | J71: Total | K71: Share | L71: Share | M71: Landlord | N71: Landlord | O71: Tenant | P71: Tenant | Q71: Total | R71: Total
B72: Machinery Depreciation
C73: Pickup/General Use Equipment | D73: 1 | F73: Acre | G73: 0.4880859375 | I73: 0.4880859375 | J73: =E73*H73 -> 0 | K73: 0 | M73: 0 | N73: =J73*L73 -> 0 | O73: 0.4880859375 | P73: =+J73-N73 -> 0 | Q73: 312.375 | R73: =+J73*E$7 -> 0
C74: Irrigation Equipment | D74: 1 | F74: Acre | G74: 24.375 | I74: 24.375 | J74: 0 | K74: 0 | M74: 0 | N74: =J74*L74 -> 0 | O74: 24.375 | P74: 0 | Q74: 15600 | R74: 0
C75: Tractors/Self-Propelled | D75: 1 | F75: Acre | G75: 15.80285635 | I75: 15.80285635 | J75: 0 | K75: 0 | M75: 0 | N75: =J75*L75 -> 0 | O75: 15.80285635 | P75: 0 | Q75: 10113.82807 | R75: 0
C76: Implements | D76: 1 | F76: Acre | G76: 18.87979728 | I76: 18.87979728 | J76: 0 | K76: 0 | M76: 0 | N76: =J76*L76 -> 0 | O76: 18.87979728 | P76: 0 | Q76: 12083.07026 | R76: 0
B77: Equipment Investment
C78: Pickup/General Use Equipment | D78: 3.418945312 | F78: Dollars | G78: 0.08 | I78: 0.273515625 | J78: =E78*H78 -> 0 | K78: 0 | M78: 0 | N78: =J78*L78 -> 0 | O78: 0.273515625 | P78: =+J78-N78 -> 0 | Q78: 175.05 | R78: =+J78*E$7 -> 0
C79: Irrigation Equipment | D79: 710.9375 | F79: Dollars | G79: 0.08 | I79: 56.875 | J79: 0 | K79: 0 | M79: 0 | N79: =J79*L79 -> 0 | O79: 56.875 | P79: 0 | Q79: 36400 | R79: 0
C80: Tractors/Self-Propelled | D80: 121.032414 | F80: Dollars | G80: 0.08 | I80: 9.682593122 | J80: 0 | K80: 0 | M80: 0 | N80: =J80*L80 -> 0 | O80: 9.682593122 | P80: 0 | Q80: 6196.859598 | R80: 0
C81: Implements | D81: 80.76357724 | F81: Dollars | G81: 0.08 | I81: 6.461086179 | J81: 0 | K81: 0 | M81: 0 | N81: =J81*L81 -> 0 | O81: 6.461086179 | P81: 0 | Q81: 4135.095154 | R81: 0
B82: Salaried Labor | D82: 1 | F82: Acre | G82: 0 | I82: 0 | J82: 0 | K82: 0 | M82: 0 | N82: =J82*L82 -> 0 | O82: 0 | P82: =+J82-N82 -> 0 | Q82: 0 | R82: =+J82*E$7 -> 0
B83: Management Fee, Owner/Operator Labor | D83: 1 | F83: Acre | G83: 0 | I83: 0 | J83: 0 | K83: 0 | M83: 0 | N83: 0 | O83: 0 | P83: 0 | Q83: 0 | R83: 0
B84: Allocated Establishment Cost | D84: 1 | F84: Acre | G84: 0 | I84: 0 | J84: 0 | K84: 0 | M84: 0 | N84: 0 | O84: 0 | P84: 0 | Q84: 0 | R84: 0
B85: Cash Rent - Irrigated Cotton | D85: 1 | F85: Acre | G85: 90 | I85: 90 | J85: 0 | K85: 0 | M85: 0 | N85: 0 | O85: 90 | P85: 0 | Q85: 57600 | R85: 0
B86: Property Taxes | D86: 1 | F86: Acre | G86: 0 | I86: 0 | J86: 0 | K86: 0 | M86: 0 | N86: 0 | O86: 0 | P86: 0 | Q86: 0 | R86: 0
B87: Whole Farm Insurance | D87: 1 | F87: Acre | G87: 0 | I87: 0 | J87: 0 | K87: 0 | M87: 0 | N87: 0 | O87: 0 | P87: 0 | Q87: 0 | R87: 0
D88: 1 | G88: 0 | I88: 0 | J88: 0 | K88: 0 | M88: 0 | N88: 0 | O88: 0 | P88: 0 | Q88: 0 | R88: 0
D89: 1 | G89: 0 | I89: 0 | J89: =E89*H89 -> 0 | K89: 0 | M89: 0 | N89: 0 | O89: 0 | P89: 0 | Q89: 0 | R89: 0
A90: Total Fixed Costs | I90: 222.8379345 | J90: =+SUM(J73:J89) -> 0 | M90: 0 | N90: =+SUM(N73:N89) -> 0 | O90: 222.8379345 | P90: =+SUM(P73:P89) -> 0 | Q90: 142616.2781 | R90: =+SUM(R73:R89) -> 0
A91: Total Specified Costs | I91: 904.730078 | J91: =+J67+J90 -> 0 | M91: 0 | N91: =+N67+N90 -> 0 | O91: 904.730078 | P91: =+P67+P90 -> 0 | Q91: 579027.2499 | R91: =+R67+R90 -> 0
A93: Returns Above Specified Costs | I93: 24.11992198 | J93: =+J13-J91 -> 0 | M93: 0 | N93: =+N13-N91 -> 0 | O93: 24.11992198 | P93: =+P13-P91 -> 0 | Q93: 15436.75007 | R93: =+R13-R91 -> 0
A95: Breakeven Price to Cover Total Costs | G95: 0.6331211183 | H95: =IF(E10=0,"n/a",(YTotExp-(YTotExp+YTotRet-J10))/E10) -> n/a | I95: Pound
D97: Example Breakeven Prices
B98: Example | C98: Example | D98: To Cover | G98: To Cover
B99: Yield | C99: Yield | D99: Variable | G99: Total
B100: Percent | C100: Pound | D100: Costs | G100: Costs
B101: 0.75 | C101: 1071.75 | D101: 0.6362417948 | G101: 0.844161491
B102: 0.9 | C102: 1286.1 | D102: 0.5302014956 | G102: 0.7034679092
B103: 1 | C103: 1429 | D103: 0.4771813461 | G103: 0.6331211183
B104: 1.1 | C104: 1571.9 | D104: 0.4338012237 | G104: 0.575564653
B105: 1.25 | C105: 1786.25 | D105: 0.3817450769 | G105: 0.5064968946
A107: Developed by Francisco Abelló, Assistant Professor and Extension Specialist, Texas A&M AgriLife Extension, 940-647-3908
A109: Information presented is prepared solely as a general guide and not intended to recognize or predict the costs and returns from any one operation. Brand names are mentioned only as examples and imply no endorsement.

Sheet NT-CC Irrig M Cotton
A1: Projections for Planning Purposes Only -- Not to be Used without Updating
A2: 2025 Estimated Costs and Returns per Acre
A3: NT-Cover Crop Irrig M Cotton
A4: Enter your name for this budget in the cell above.
A5: Enter Your Values in the cells highlighed in MAROON.
E6: Your Acres | R6: Your
C7: Crop Acres | D7: 640 | L7: Your | Q7: Enterprise | R7: Enterprise
E8: Your | H8: Your | I8: Cash | J8: Your | K8: Landlord | L8: Landlord | N8: Your | P8: Your | Q8: Total | R8: Total
A9: REVENUE | D9: Quantity | E9: Quantity | F9: Units | G9: $/Unit | H9: $/Unit | I9: Total | J9: Total | K9: Share | L9: Share | M9: Landlord | N9: Landlord | O9: Tenant | P9: Tenant | Q9: (640 acres) | R9: ="(" & E7 & " acres)" -> ( acres)
B10: Cotton Lint | D10: 1429 | F10: Pound | G10: 0.65 | I10: 928.85 | J10: =E10*H10 -> 0 | K10: 0 | M10: 0 | N10: =J10*L10 -> 0 | O10: 928.85 | P10: =+J10-N10 -> 0 | Q10: 594464 | R10: =+J10*E$7 -> 0
B11: Cottonseed | D11: 0.65 | F11: Ton | G11: 225 | I11: 146.25 | J11: 0 | K11: 0 | M11: 0 | N11: 0 | O11: 146.25 | P11: =+J11-N11 -> 0 | Q11: 93600 | R11: 0
D12: 0 | G12: 0 | I12: 0 | J12: 0 | K12: 0 | M12: 0 | N12: 0 | O12: 0 | P12: 0 | Q12: 0 | R12: 0
D13: 0 | G13: 0 | I13: 0 | J13: 0 | K13: 0 | M13: 0 | N13: 0 | O13: 0 | P13: 0 | Q13: 0 | R13: 0
A14: Total Revenue | I14: 1075.1 | J14: =SUM(J10:J13) -> 0 | M14: 0 | N14: =SUM(N10:N13) -> 0 | O14: 1075.1 | P14: =SUM(P10:P13) -> 0 | Q14: 688064 | R14: =SUM(R10:R13) -> 0
Q15: Enterprise | R15: Enterprise
A16: VARIABLE COSTS | D16: Quantity | E16: Quantity | F16: Units | G16: $/Unit | H16: $/Unit | I16: Total | J16: Total | K16: Share | L16: Share | M16: Landlord | N16: Landlord | O16: Tenant | P16: Tenant | Q16: Total | R16: Total
A17: Production Costs
B18: Custom
C19: Fertilizer Application | D19: 1 | F19: Acre | G19: 5 | I19: 5 | J19: =E19*H19 -> 0 | K19: 0 | M19: 0 | N19: =J19*L19 -> 0 | O19: 5 | P19: =+J19-N19 -> 0 | Q19: 3200 | R19: =+J19*E$7 -> 0
C20: Gin, Bag, Ties | D20: 1429 | F20: Pound | G20: 0.13 | I20: 185.77 | J20: 0 | K20: 0 | M20: 0 | N20: 0 | O20: 185.77 | P20: 0 | Q20: 118892.8 | R20: 0
C21: Custom Stripping | D21: 1429 | F21: Pound | G21: 0.12 | I21: 171.48 | J21: 0 | K21: 0 | M21: 0 | N21: 0 | O21: 171.48 | P21: 0 | Q21: 109747.2 | R21: 0
B22: Fertilizer
C23: Fertilizer (N) | D23: 100 | F23: Pound | G23: 0.505 | I23: 50.5 | J23: 0 | K23: 0 | M23: 0 | N23: 0 | O23: 50.5 | P23: 0 | Q23: 32320 | R23: 0
C24: Potash (K) | D24: 40 | F24: Pound | G24: 0.39 | I24: 15.6 | J24: 0 | K24: 0 | M24: 0 | N24: 0 | O24: 15.6 | P24: 0 | Q24: 9984 | R24: 0
C25: Fertilizer (P) | D25: 50 | F25: Pound | G25: 0.60657 | I25: 30.3285 | J25: 0 | K25: 0 | M25: 0 | N25: 0 | O25: 30.3285 | P25: 0 | Q25: 19410.24 | R25: 0
B26: Herbicide
C27: Prowl | D27: 64 | F27: Ounces | G27: 0.38 | I27: 24.32 | J27: 0 | K27: 0 | M27: 0 | N27: 0 | O27: 24.32 | P27: 0 | Q27: 15564.8 | R27: 0
C28: Enlist Duo | D28: 4.7 | F28: Pint | G28: 5.911 | I28: 27.7817 | J28: 0 | K28: 0 | M28: 0 | N28: 0 | O28: 27.7817 | P28: 0 | Q28: 17780.288 | R28: 0
C29: Liberty | D29: 29 | F29: Ounce | G29: 0.47 | I29: 13.63 | J29: 0 | K29: 0 | M29: 0 | N29: 0 | O29: 13.63 | P29: 0 | Q29: 8723.2 | R29: 0
C30: Harvest Aid - Prep | D30: 1 | F30: Pint | G30: 3.75 | I30: 3.75 | J30: 0 | K30: 0 | M30: 0 | N30: 0 | O30: 3.75 | P30: 0 | Q30: 2400 | R30: 0
C31: Harvest Aid -Def | D31: 1 | F31: Ounce | G31: 0.546875 | I31: 0.546875 | J31: 0 | K31: 0 | M31: 0 | N31: 0 | O31: 0.546875 | P31: 0 | Q31: 350 | R31: 0
C32: 2,4D | D32: 1.4 | F32: Pint | G32: 4.634 | I32: 6.4876 | J32: 0 | K32: 0 | M32: 0 | N32: 0 | O32: 6.4876 | P32: 0 | Q32: 4152.064 | R32: 0
C33: Caparol | D33: 1.4 | F33: Pint | G33: 4.73 | I33: 6.622 | J33: 0 | K33: 0 | M33: 0 | N33: 0 | O33: 6.622 | P33: 0 | Q33: 4238.08 | R33: 0
C34: Dual Magnun | D34: 1.3 | F34: Pint | G34: 9.14 | I34: 11.882 | J34: 0 | K34: 0 | M34: 0 | N34: 0 | O34: 11.882 | P34: 0 | Q34: 7604.48 | R34: 0
B35: Insecticide
C36: Prevathon | D36: 16 | F36: Ounce | G36: 1.16 | I36: 18.56 | J36: 0 | K36: 0 | M36: 0 | N36: 0 | O36: 18.56 | P36: 0 | Q36: 11878.4 | R36: 0
C37: Brigade | D37: 2 | F37: Ounce | G37: 1.74875 | I37: 3.4975 | J37: 0 | K37: 0 | M37: 0 | N37: 0 | O37: 3.4975 | P37: 0 | Q37: 2238.4 | R37: 0
B38: Miscellaneous
C39: Insurance - Dryland Cotton | D39: 1 | F39: Acre | G39: 15 | I39: 15 | J39: 0 | K39: 0 | M39: 0 | N39: 0 | O39: 15 | P39: 0 | Q39: 9600 | R39: 0
B40: Seed
C41: Cotton Seed | D41: 5 | F41: Pound | G41: 8 | I41: 40 | J41: 0 | K41: 0 | M41: 0 | N41: 0 | O41: 40 | P41: 0 | Q41: 25600 | R41: 0
C42: Wheat Seed | D42: 60 | F42: Pound | G42: 0.23 | I42: 13.8 | J42: 0 | K42: 0 | M42: 0 | N42: 0 | O42: 13.8 | P42: 0 | Q42: 8832 | R42: 0
D43: 0 | G43: 0 | I43: 0 | J43: 0 | K43: 0 | M43: 0 | N43: 0 | O43: 0 | P43: 0 | Q43: 0 | R43: 0
D44: 0 | G44: 0 | I44: 0 | J44: 0 | K44: 0 | M44: 0 | N44: 0 | O44: 0 | P44: 0 | Q44: 0 | R44: 0
D45: 0 | G45: 0 | I45: 0 | J45: =E45*H45 -> 0 | K45: 0 | M45: 0 | N45: =J45*L45 -> 0 | O45: 0 | P45: =+J45-N45 -> 0 | Q45: 0 | R45: =+J45*E$7 -> 0
B46: Irrigation
C47: Energy Cost | D47: 13 | F47: AcreInch | G47: 6.75 | I47: 87.75 | J47: =E47*H47 -> 0 | K47: 0 | M47: 0 | N47: =J47*L47 -> 0 | O47: 87.75 | P47: =+J47-N47 -> 0 | Q47: 56160 | R47: =+J47*E$7 -> 0
C48: Irrigation Labor | D48: 0.96 | F48: Hour | G48: 15 | I48: 14.4 | J48: 0 | K48: 0 | M48: 0 | N48: 0 | O48: 14.4 | P48: 0 | Q48: 9216 | R48: 0
B49: Machinery Labor
C50: Tractors/Self-Propelled | D50: 0.38 | F50: Hour | G50: 15 | I50: 5.7 | J50: =E50*H50 -> 0 | K50: 0 | M50: 0 | N50: =J50*L50 -> 0 | O50: 5.7 | P50: =+J50-N50 -> 0 | Q50: 3648 | R50: =+J50*E$7 -> 0
C51: Other Labor | D51: 0.46 | F51: Hour | G51: 15 | I51: 6.9 | J51: =E51*H51 -> 0 | K51: 0 | M51: 0 | N51: =J51*L51 -> 0 | O51: 6.9 | P51: =+J51-N51 -> 0 | Q51: 4416 | R51: =+J51*E$7 -> 0
B53: Diesel Fuel
C54: Pickup/General Use Equipment | D54: 1 | F54: Acre | G54: 0 | I54: 0 | J54: =E54*H54 -> 0 | K54: 0 | M54: 0 | N54: =J54*L54 -> 0 | O54: 0 | P54: =+J54-N54 -> 0 | Q54: 0 | R54: =+J54*E$7 -> 0
C55: Tractors/Self-Propelled | D55: 4.7 | F55: Gallon | G55: 2.59 | I55: 12.173 | J55: =E55*H55 -> 0 | K55: 0 | M55: 0 | N55: =J55*L55 -> 0 | O55: 12.173 | P55: =+J55-N55 -> 0 | Q55: 7790.72 | R55: =+J55*E$7 -> 0
B57: Gasoline
C58: Pickup/General Use Equipment | D58: 1 | F58: Acre | G58: 1.0546875 | I58: 1.0546875 | J58: =E58*H58 -> 0 | K58: 0 | M58: 0 | N58: =J58*L58 -> 0 | O58: 1.0546875 | P58: =+J58-N58 -> 0 | Q58: 675 | R58: =+J58*E$7 -> 0
C59: Tractors/Self-Propelled | D59: 0 | F59: Gallon | G59: 3.1 | I59: 0 | J59: =E59*H59 -> 0 | K59: 0 | M59: 0 | N59: =J59*L59 -> 0 | O59: 0 | P59: =+J59-N59 -> 0 | Q59: 0 | R59: =+J59*E$7 -> 0
B61: Repairs & Maintenance
C62: Pickup/General Use Equipment | D62: 1 | F62: Acre | G62: 0.3515625 | I62: 0.3515625 | J62: =E62*H62 -> 0 | K62: 0 | M62: 0 | N62: =J62*L62 -> 0 | O62: 0.3515625 | P62: =+J62-N62 -> 0 | Q62: 225 | R62: =+J62*E$7 -> 0
C63: Irrigation Equipment | D63: 1 | F63: Acre | G63: 14.4469 | I63: 14.4469 | J63: 0 | K63: 0 | M63: 0 | N63: 0 | O63: 14.4469 | P63: 0 | Q63: 9246.016 | R63: 0
C64: Tractors/Self-Propelled | D64: 1 | F64: Acre | G64: 13.3499333 | I64: 13.3499333 | J64: 0 | K64: 0 | M64: 0 | N64: 0 | O64: 13.3499333 | P64: 0 | Q64: 8543.957312 | R64: 0
C65: Implements | D65: 1 | F65: Acre | G65: 4.432037683 | I65: 4.432037683 | J65: 0 | K65: 0 | M65: 0 | N65: 0 | O65: 4.432037683 | P65: 0 | Q65: 2836.504117 | R65: 0
I66: 0 | J66: 0 | K66: 0 | M66: 0 | N66: 0 | O66: 0 | P66: 0 | Q66: 0 | R66: 0
I67: 0 | J67: 0 | K67: 0 | M67: 0 | N67: 0 | O67: 0 | P67: 0 | Q67: 0 | R67: 0
B68: Interest on Credit Line | G68: 0.09 | I68: 22.64760164 | J68: =+SUM(J18:J67)/2*H68 -> 0 | M68: 0 | N68: =+SUM(N18:N67)/2*L68 -> 0 | O68: 22.64760164 | P68: =+SUM(P18:P67)/2*L68 -> 0 | Q68: 14494.46505 | R68: =+J68*E$7 -> 0
A69: Total Variable Costs | I69: 827.7618976 | J69: =SUM(J19:J68) -> 0 | M69: 0 | N69: =SUM(N19:N68) -> 0 | O69: 827.7618976 | P69: =SUM(P19:P68) -> 0 | Q69: 529767.6145 | R69: =SUM(R19:R68) -> 0
A70: Planned Returns Above Variable Costs: | I70: 247.3381024 | J70: =+J14-J69 -> 0 | M70: 0 | N70: =+N14-N69 -> 0 | O70: 247.3381024 | P70: =+P14-P69 -> 0 | Q70: 158296.3855 | R70: =+R14-R69 -> 0
B71: Breakeven Price to Cover Variable Costs | G71: 0.4769152538 | H71: =IF(E10=0,"n/a",(YVarExp-(YTotExp+YTotRet-J10))/E10) -> n/a | I71: Pound
Q72: Enterprise | R72: Enterprise
A73: FIXED COSTS | D73: Quantity | E73: Quantity | F73: Units | G73: $/Unit | H73: $/Unit | I73: Total | J73: Total | K73: Share | L73: Share | M73: Landlord | N73: Landlord | O73: Tenant | P73: Tenant | Q73: Total | R73: Total
B74: Machinery Depreciation
C75: Pickup/General Use Equipment | D75: 1 | F75: Acre | G75: 0.4880859375 | I75: 0.4880859375 | J75: =E75*H75 -> 0 | K75: 0 | M75: 0 | N75: =J75*L75 -> 0 | O75: 0.4880859375 | P75: =+J75-N75 -> 0 | Q75: 312.375 | R75: =+J75*E$7 -> 0
C76: Tractors/Self-Propelled | D76: 1 | F76: Acre | G76: 18.26497072 | I76: 18.26497072 | J76: 0 | K76: 0 | M76: 0 | N76: =J76*L76 -> 0 | O76: 18.26497072 | P76: 0 | Q76: 11689.58126 | R76: 0
C77: Implements | D77: 1 | F77: Acre | G77: 6.324970643 | I77: 6.324970643 | J77: 0 | K77: 0 | M77: 0 | N77: =J77*L77 -> 0 | O77: 6.324970643 | P77: 0 | Q77: 4047.981212 | R77: 0
B78: Equipment Investment
C79: Pickup/General Use Equipment | D79: 3.418945312 | F79: Dollars | G79: 0.08 | I79: 0.273515625 | J79: =E79*H79 -> 0 | K79: 0 | M79: 0 | N79: =J79*L79 -> 0 | O79: 0.273515625 | P79: =+J79-N79 -> 0 | Q79: 175.05 | R79: =+J79*E$7 -> 0
C80: Tractors/Self-Propelled | D80: 140.2130791 | F80: Dollars | G80: 0.08 | I80: 11.21704633 | J80: 0 | K80: 0 | M80: 0 | N80: =J80*L80 -> 0 | O80: 11.21704633 | P80: 0 | Q80: 7178.909652 | R80: 0
C81: Implements | D81: 27.05681886 | F81: Dollars | G81: 0.08 | I81: 2.164545509 | J81: 0 | K81: 0 | M81: 0 | N81: =J81*L81 -> 0 | O81: 2.164545509 | P81: 0 | Q81: 1385.309126 | R81: 0
B82: Salaried Labor | D82: 1 | F82: Acre | G82: 0 | I82: 0 | J82: 0 | K82: 0 | M82: 0 | N82: =J82*L82 -> 0 | O82: 0 | P82: =+J82-N82 -> 0 | Q82: 0 | R82: =+J82*E$7 -> 0
B83: Management Fee, Owner/Operator Labor | D83: 1 | F83: Acre | G83: 0 | I83: 0 | J83: 0 | K83: 0 | M83: 0 | N83: 0 | O83: 0 | P83: 0 | Q83: 0 | R83: 0
B84: Allocated Establishment Cost | D84: 1 | F84: Acre | G84: 0 | I84: 0 | J84: 0 | K84: 0 | M84: 0 | N84: 0 | O84: 0 | P84: 0 | Q84: 0 | R84: 0
B85: Cash Rent - Irrigated Cotton | D85: 1 | F85: Acre | G85: 90 | I85: 90 | J85: 0 | K85: 0 | M85: 0 | N85: 0 | O85: 90 | P85: 0 | Q85: 57600 | R85: 0
B86: Property Taxes | D86: 1 | F86: Acre | G86: 0 | I86: 0 | J86: 0 | K86: 0 | M86: 0 | N86: 0 | O86: 0 | P86: 0 | Q86: 0 | R86: 0
B87: Whole Farm Insurance | D87: 1 | F87: Acre | G87: 0 | I87: 0 | J87: 0 | K87: 0 | M87: 0 | N87: 0 | O87: 0 | P87: 0 | Q87: 0 | R87: 0
D88: 1 | G88: 0 | I88: 0 | J88: 0 | K88: 0 | M88: 0 | N88: 0 | O88: 0 | P88: 0 | Q88: 0 | R88: 0
D89: 1 | G89: 0 | I89: 0 | J89: =E89*H89 -> 0 | K89: 0 | M89: 0 | N89: 0 | O89: 0 | P89: 0 | Q89: 0 | R89: 0
A90: Total Fixed Costs | I90: 128.7331348 | J90: =+SUM(J75:J89) -> 0 | M90: 0 | N90: =+SUM(N75:N89) -> 0 | O90: 128.7331348 | P90: =+SUM(P75:P89) -> 0 | Q90: 82389.20625 | R90: =+SUM(R75:R89) -> 0
A91: Total Specified Costs | I91: 956.4950324 | J91: =+J69+J90 -> 0 | M91: 0 | N91: =+N69+N90 -> 0 | O91: 956.4950324 | P91: =+P69+P90 -> 0 | Q91: 612156.8207 | R91: =+R69+R90 -> 0
A93: Returns Above Specified Costs | I93: 118.6049676 | J93: =+J14-J91 -> 0 | M93: 0 | N93: =+N14-N91 -> 0 | O93: 118.6049676 | P93: =+P14-P91 -> 0 | Q93: 75907.17927 | R93: =+R14-R91 -> 0
A95: Breakeven Price to Cover Total Costs | G95: 0.5670014222 | H95: =IF(E10=0,"n/a",(YTotExp-(YTotExp+YTotRet-J10))/E10) -> n/a | I95: Pound
D97: Example Breakeven Prices
B98: Example | C98: Example | D98: To Cover | G98: To Cover
B99: Yield | C99: Yield | D99: Variable | G99: Total
B100: Percent | C100: Pound | D100: Costs | G100: Costs
B101: 0.75 | C101: 1071.75 | D101: 0.635887005 | G101: 0.7560018963
B102: 0.9 | C102: 1286.1 | D102: 0.5299058375 | G102: 0.6300015803
B103: 1 | C103: 1429 | D103: 0.4769152538 | G103: 0.5670014222
B104: 1.1 | C104: 1571.9 | D104: 0.4335593216 | G104: 0.5154558384
B105: 1.25 | C105: 1786.25 | D105: 0.381532203 | G105: 0.4536011378
A107: Developed by Francisco Abelló, Assistant Professor and Extension Specialist, Texas A&M AgriLife Extension, 940-647-3908
A109: Information presented is prepared solely as a general guide and not intended to recognize or predict the costs and returns from any one operation. Brand names are mentioned only as examples and imply no endorsement.

Sheet NT-CC Irrig L Cotton
A1: Projections for Planning Purposes Only -- Not to be Used without Updating
A2: 2025 Estimated Costs and Returns per Acre
A3: NT-Cover Crop Irrig L Cotton
A4: Enter your name for this budget in the cell above.
A5: Enter Your Values in the cells highlighed in MAROON.
E6: Your Acres | R6: Your
C7: Crop Acres | D7: 640 | L7: Your | Q7: Enterprise | R7: Enterprise
E8: Your | H8: Your | I8: Cash | J8: Your | K8: Landlord | L8: Landlord | N8: Your | P8: Your | Q8: Total | R8: Total
A9: REVENUE | D9: Quantity | E9: Quantity | F9: Units | G9: $/Unit | H9: $/Unit | I9: Total | J9: Total | K9: Share | L9: Share | M9: Landlord | N9: Landlord | O9: Tenant | P9: Tenant | Q9: (640 acres) | R9: ="(" & E7 & " acres)" -> ( acres)
B10: Cotton Lint | D10: 1250 | F10: Pound | G10: 0.65 | I10: 812.5 | J10: =E10*H10 -> 0 | K10: 0 | M10: 0 | N10: =J10*L10 -> 0 | O10: 812.5 | P10: =+J10-N10 -> 0 | Q10: 520000 | R10: =+J10*E$7 -> 0
B11: Cottonseed | D11: 0.65 | F11: Ton | G11: 225 | I11: 146.25 | J11: 0 | K11: 0 | M11: 0 | N11: 0 | O11: 146.25 | P11: =+J11-N11 -> 0 | Q11: 93600 | R11: 0
D12: 0 | G12: 0 | I12: 0 | J12: 0 | K12: 0 | M12: 0 | N12: 0 | O12: 0 | P12: 0 | Q12: 0 | R12: 0
D13: 0 | G13: 0 | I13: 0 | J13: 0 | K13: 0 | M13: 0 | N13: 0 | O13: 0 | P13: 0 | Q13: 0 | R13: 0
A14: Total Revenue | I14: 958.75 | J14: =SUM(J10:J13) -> 0 | M14: 0 | N14: =SUM(N10:N13) -> 0 | O14: 958.75 | P14: =SUM(P10:P13) -> 0 | Q14: 613600 | R14: =SUM(R10:R13) -> 0
Q15: Enterprise | R15: Enterprise
A16: VARIABLE COSTS | D16: Quantity | E16: Quantity | F16: Units | G16: $/Unit | H16: $/Unit | I16: Total | J16: Total | K16: Share | L16: Share | M16: Landlord | N16: Landlord | O16: Tenant | P16: Tenant | Q16: Total | R16: Total
A17: Production Costs
B18: Custom
C19: Fertilizer Application | D19: 1 | F19: Acre | G19: 5 | I19: 5 | J19: =E19*H19 -> 0 | K19: 0 | M19: 0 | N19: =J19*L19 -> 0 | O19: 5 | P19: =+J19-N19 -> 0 | Q19: 3200 | R19: =+J19*E$7 -> 0
C20: Gin, Bag, Ties | D20: 1250 | F20: Pound | G20: 0.13 | I20: 162.5 | J20: 0 | K20: 0 | M20: 0 | N20: 0 | O20: 162.5 | P20: 0 | Q20: 104000 | R20: 0
C21: Custom Stripping | D21: 1250 | F21: Pound | G21: 0.12 | I21: 150 | J21: 0 | K21: 0 | M21: 0 | N21: 0 | O21: 150 | P21: 0 | Q21: 96000 | R21: 0
B22: Fertilizer
C23: Fertilizer (N) | D23: 100 | F23: Pound | G23: 0.505 | I23: 50.5 | J23: 0 | K23: 0 | M23: 0 | N23: 0 | O23: 50.5 | P23: 0 | Q23: 32320 | R23: 0
C24: Fertilizer (P) | D24: 50 | F24: Pound | G24: 0.60657 | I24: 30.3285 | J24: 0 | K24: 0 | M24: 0 | N24: 0 | O24: 30.3285 | P24: 0 | Q24: 19410.24 | R24: 0
B25: Herbicide
C26: Prowl | D26: 64 | F26: Ounces | G26: 0.38 | I26: 24.32 | J26: 0 | K26: 0 | M26: 0 | N26: 0 | O26: 24.32 | P26: 0 | Q26: 15564.8 | R26: 0
C27: Enlist Duo | D27: 4.7 | F27: Pint | G27: 5.911 | I27: 27.7817 | J27: 0 | K27: 0 | M27: 0 | N27: 0 | O27: 27.7817 | P27: 0 | Q27: 17780.288 | R27: 0
C28: Liberty | D28: 29 | F28: Ounce | G28: 0.47 | I28: 13.63 | J28: 0 | K28: 0 | M28: 0 | N28: 0 | O28: 13.63 | P28: 0 | Q28: 8723.2 | R28: 0
C29: Harvest Aid - Prep | D29: 1 | F29: Pint | G29: 3.75 | I29: 3.75 | J29: 0 | K29: 0 | M29: 0 | N29: 0 | O29: 3.75 | P29: 0 | Q29: 2400 | R29: 0
C30: Harvest Aid -Def | D30: 1 | F30: Ounce | G30: 0.546875 | I30: 0.546875 | J30: 0 | K30: 0 | M30: 0 | N30: 0 | O30: 0.546875 | P30: 0 | Q30: 350 | R30: 0
C31: 2,4D | D31: 1.4 | F31: Pint | G31: 4.634 | I31: 6.4876 | J31: 0 | K31: 0 | M31: 0 | N31: 0 | O31: 6.4876 | P31: 0 | Q31: 4152.064 | R31: 0
C32: Caparol | D32: 1.4 | F32: Pint | G32: 4.73 | I32: 6.622 | J32: 0 | K32: 0 | M32: 0 | N32: 0 | O32: 6.622 | P32: 0 | Q32: 4238.08 | R32: 0
C33: Dual Magnun | D33: 1.3 | F33: Pint | G33: 9.14 | I33: 11.882 | J33: 0 | K33: 0 | M33: 0 | N33: 0 | O33: 11.882 | P33: 0 | Q33: 7604.48 | R33: 0
B34: Insecticide
C35: Prevathon | D35: 16 | F35: Ounce | G35: 1.16 | I35: 18.56 | J35: 0 | K35: 0 | M35: 0 | N35: 0 | O35: 18.56 | P35: 0 | Q35: 11878.4 | R35: 0
C36: Brigade | D36: 2 | F36: Ounce | G36: 1.74875 | I36: 3.4975 | J36: 0 | K36: 0 | M36: 0 | N36: 0 | O36: 3.4975 | P36: 0 | Q36: 2238.4 | R36: 0
B37: Miscellaneous
C38: Insurance - Dryland Cotton | D38: 1 | F38: Acre | G38: 15 | I38: 15 | J38: 0 | K38: 0 | M38: 0 | N38: 0 | O38: 15 | P38: 0 | Q38: 9600 | R38: 0
B39: Seed
C40: Cotton Seed | D40: 5 | F40: Pound | G40: 8 | I40: 40 | J40: 0 | K40: 0 | M40: 0 | N40: 0 | O40: 40 | P40: 0 | Q40: 25600 | R40: 0
C41: Wheat Seed | D41: 60 | F41: Pound | G41: 0.23 | I41: 13.8 | J41: 0 | K41: 0 | M41: 0 | N41: 0 | O41: 13.8 | P41: 0 | Q41: 8832 | R41: 0
D42: 0 | G42: 0 | I42: 0 | J42: 0 | K42: 0 | M42: 0 | N42: 0 | O42: 0 | P42: 0 | Q42: 0 | R42: 0
D43: 0 | G43: 0 | I43: 0 | J43: 0 | K43: 0 | M43: 0 | N43: 0 | O43: 0 | P43: 0 | Q43: 0 | R43: 0
D44: 0 | G44: 0 | I44: 0 | J44: =E44*H44 -> 0 | K44: 0 | M44: 0 | N44: =J44*L44 -> 0 | O44: 0 | P44: =+J44-N44 -> 0 | Q44: 0 | R44: =+J44*E$7 -> 0
B45: Irrigation
C46: Energy Cost | D46: 8 | F46: AcreInch | G46: 6.75 | I46: 54 | J46: =E46*H46 -> 0 | K46: 0 | M46: 0 | N46: =J46*L46 -> 0 | O46: 54 | P46: =+J46-N46 -> 0 | Q46: 34560 | R46: =+J46*E$7 -> 0
C47: Irrigation Labor | D47: 0.96 | F47: Hour | G47: 15 | I47: 14.4 | J47: 0 | K47: 0 | M47: 0 | N47: 0 | O47: 14.4 | P47: 0 | Q47: 9216 | R47: 0
B48: Machinery Labor
C49: Tractors/Self-Propelled | D49: 0.3 | F49: Hour | G49: 15 | I49: 4.5 | J49: =E49*H49 -> 0 | K49: 0 | M49: 0 | N49: =J49*L49 -> 0 | O49: 4.5 | P49: =+J49-N49 -> 0 | Q49: 2880 | R49: =+J49*E$7 -> 0
C50: Other Labor | D50: 0.36 | F50: Hour | G50: 15 | I50: 5.4 | J50: =E50*H50 -> 0 | K50: 0 | M50: 0 | N50: =J50*L50 -> 0 | O50: 5.4 | P50: =+J50-N50 -> 0 | Q50: 3456 | R50: =+J50*E$7 -> 0
B52: Diesel Fuel
C53: Pickup/General Use Equipment | D53: 1 | F53: Acre | G53: 0 | I53: 0 | J53: =E53*H53 -> 0 | K53: 0 | M53: 0 | N53: =J53*L53 -> 0 | O53: 0 | P53: =+J53-N53 -> 0 | Q53: 0 | R53: =+J53*E$7 -> 0
C54: Tractors/Self-Propelled | D54: 3.66 | F54: Gallon | G54: 2.59 | I54: 9.4794 | J54: =E54*H54 -> 0 | K54: 0 | M54: 0 | N54: =J54*L54 -> 0 | O54: 9.4794 | P54: =+J54-N54 -> 0 | Q54: 6066.816 | R54: =+J54*E$7 -> 0
B56: Gasoline
C57: Pickup/General Use Equipment | D57: 1 | F57: Acre | G57: 1.0546875 | I57: 1.0546875 | J57: =E57*H57 -> 0 | K57: 0 | M57: 0 | N57: =J57*L57 -> 0 | O57: 1.0546875 | P57: =+J57-N57 -> 0 | Q57: 675 | R57: =+J57*E$7 -> 0
C58: Tractors/Self-Propelled | D58: 0 | F58: Gallon | G58: 3.1 | I58: 0 | J58: =E58*H58 -> 0 | K58: 0 | M58: 0 | N58: =J58*L58 -> 0 | O58: 0 | P58: =+J58-N58 -> 0 | Q58: 0 | R58: =+J58*E$7 -> 0
B60: Repairs & Maintenance
C61: Pickup/General Use Equipment | D61: 1 | F61: Acre | G61: 0.3515625 | I61: 0.3515625 | J61: =E61*H61 -> 0 | K61: 0 | M61: 0 | N61: =J61*L61 -> 0 | O61: 0.3515625 | P61: =+J61-N61 -> 0 | Q61: 225 | R61: =+J61*E$7 -> 0
C62: Irrigation Equipment | D62: 1 | F62: Acre | G62: 8.8904 | I62: 8.8904 | J62: 0 | K62: 0 | M62: 0 | N62: 0 | O62: 8.8904 | P62: 0 | Q62: 5689.856 | R62: 0
C63: Tractors/Self-Propelled | D63: 1 | F63: Acre | G63: 10.16980995 | I63: 10.16980995 | J63: 0 | K63: 0 | M63: 0 | N63: 0 | O63: 10.16980995 | P63: 0 | Q63: 6508.678366 | R63: 0
C64: Implements | D64: 1 | F64: Acre | G64: 13.84883226 | I64: 13.84883226 | J64: 0 | K64: 0 | M64: 0 | N64: 0 | O64: 13.84883226 | P64: 0 | Q64: 8863.252649 | R64: 0
I65: 0 | J65: 0 | K65: 0 | M65: 0 | N65: 0 | O65: 0 | P65: 0 | Q65: 0 | R65: 0
I66: 0 | J66: 0 | K66: 0 | M66: 0 | N66: 0 | O66: 0 | P66: 0 | Q66: 0 | R66: 0
B67: Interest on Credit Line | G67: 0.09 | I67: 21.46302669 | J67: =+SUM(J18:J66)/2*H67 -> 0 | M67: 0 | N67: =+SUM(N18:N66)/2*L67 -> 0 | O67: 21.46302669 | P67: =+SUM(P18:P66)/2*L67 -> 0 | Q67: 13736.33708 | R67: =+J67*E$7 -> 0
A68: Total Variable Costs | I68: 727.7638939 | J68: =SUM(J19:J67) -> 0 | M68: 0 | N68: =SUM(N19:N67) -> 0 | O68: 727.7638939 | P68: =SUM(P19:P67) -> 0 | Q68: 465768.8921 | R68: =SUM(R19:R67) -> 0
A69: Planned Returns Above Variable Costs: | I69: 230.9861061 | J69: =+J14-J68 -> 0 | M69: 0 | N69: =+N14-N68 -> 0 | O69: 230.9861061 | P69: =+P14-P68 -> 0 | Q69: 147831.1079 | R69: =+R14-R68 -> 0
B70: Breakeven Price to Cover Variable Costs | G70: 0.4652111151 | H70: =IF(E10=0,"n/a",(YVarExp-(YTotExp+YTotRet-J10))/E10) -> n/a | I70: Pound
Q71: Enterprise | R71: Enterprise
A72: FIXED COSTS | D72: Quantity | E72: Quantity | F72: Units | G72: $/Unit | H72: $/Unit | I72: Total | J72: Total | K72: Share | L72: Share | M72: Landlord | N72: Landlord | O72: Tenant | P72: Tenant | Q72: Total | R72: Total
B73: Machinery Depreciation
C74: Pickup/General Use Equipment | D74: 1 | F74: Acre | G74: 0.4880859375 | I74: 0.4880859375 | J74: =E74*H74 -> 0 | K74: 0 | M74: 0 | N74: =J74*L74 -> 0 | O74: 0.4880859375 | P74: =+J74-N74 -> 0 | Q74: 312.375 | R74: =+J74*E$7 -> 0
C75: Irrigation Equipment | D75: 1 | F75: Acre | G75: 24.375 | I75: 24.375 | J75: 0 | K75: 0 | M75: 0 | N75: =J75*L75 -> 0 | O75: 24.375 | P75: 0 | Q75: 15600 | R75: 0
C76: Tractors/Self-Propelled | D76: 1 | F76: Acre | G76: 14.97884325 | I76: 14.97884325 | J76: 0 | K76: 0 | M76: 0 | N76: =J76*L76 -> 0 | O76: 14.97884325 | P76: 0 | Q76: 9586.459681 | R76: 0
C77: Implements | D77: 1 | F77: Acre | G77: 15.74716207 | I77: 15.74716207 | J77: 0 | K77: 0 | M77: 0 | N77: =J77*L77 -> 0 | O77: 15.74716207 | P77: 0 | Q77: 10078.18373 | R77: 0
B78: Equipment Investment
C79: Pickup/General Use Equipment | D79: 3.418945312 | F79: Dollars | G79: 0.08 | I79: 0.273515625 | J79: =E79*H79 -> 0 | K79: 0 | M79: 0 | N79: =J79*L79 -> 0 | O79: 0.273515625 | P79: =+J79-N79 -> 0 | Q79: 175.05 | R79: =+J79*E$7 -> 0
C80: Irrigation Equipment | D80: 710.9375 | F80: Dollars | G80: 0.08 | I80: 56.875 | J80: 0 | K80: 0 | M80: 0 | N80: =J80*L80 -> 0 | O80: 56.875 | P80: 0 | Q80: 36400 | R80: 0
C81: Tractors/Self-Propelled | D81: 114.6130861 | F81: Dollars | G81: 0.08 | I81: 9.169046892 | J81: 0 | K81: 0 | M81: 0 | N81: =J81*L81 -> 0 | O81: 9.169046892 | P81: 0 | Q81: 5868.190011 | R81: 0
C82: Implements | D82: 67.36285998 | F82: Dollars | G82: 0.08 | I82: 5.389028798 | J82: 0 | K82: 0 | M82: 0 | N82: =J82*L82 -> 0 | O82: 5.389028798 | P82: 0 | Q82: 3448.978431 | R82: 0
B83: Salaried Labor | D83: 1 | F83: Acre | G83: 0 | I83: 0 | J83: 0 | K83: 0 | M83: 0 | N83: =J83*L83 -> 0 | O83: 0 | P83: =+J83-N83 -> 0 | Q83: 0 | R83: =+J83*E$7 -> 0
B84: Management Fee, Owner/Operator Labor | D84: 1 | F84: Acre | G84: 0 | I84: 0 | J84: 0 | K84: 0 | M84: 0 | N84: 0 | O84: 0 | P84: 0 | Q84: 0 | R84: 0
B85: Allocated Establishment Cost | D85: 1 | F85: Acre | G85: 0 | I85: 0 | J85: 0 | K85: 0 | M85: 0 | N85: 0 | O85: 0 | P85: 0 | Q85: 0 | R85: 0
B86: Cash Rent - Irrigated Cotton | D86: 1 | F86: Acre | G86: 90 | I86: 90 | J86: 0 | K86: 0 | M86: 0 | N86: 0 | O86: 90 | P86: 0 | Q86: 57600 | R86: 0
B87: Property Taxes | D87: 1 | F87: Acre | G87: 0 | I87: 0 | J87: 0 | K87: 0 | M87: 0 | N87: 0 | O87: 0 | P87: 0 | Q87: 0 | R87: 0
B88: Whole Farm Insurance | D88: 1 | F88: Acre | G88: 0 | I88: 0 | J88: 0 | K88: 0 | M88: 0 | N88: 0 | O88: 0 | P88: 0 | Q88: 0 | R88: 0
D89: 1 | G89: 0 | I89: 0 | J89: 0 | K89: 0 | M89: 0 | N89: 0 | O89: 0 | P89: 0 | Q89: 0 | R89: 0
D90: 1 | G90: 0 | I90: 0 | J90: =E90*H90 -> 0 | K90: 0 | M90: 0 | N90: 0 | O90: 0 | P90: 0 | Q90: 0 | R90: 0
A91: Total Fixed Costs | I91: 217.2956826 | J91: =+SUM(J74:J90) -> 0 | M91: 0 | N91: =+SUM(N74:N90) -> 0 | O91: 217.2956826 | P91: =+SUM(P74:P90) -> 0 | Q91: 139069.2368 | R91: =+SUM(R74:R90) -> 0
A92: Total Specified Costs | I92: 945.0595765 | J92: =+J68+J91 -> 0 | M92: 0 | N92: =+N68+N91 -> 0 | O92: 945.0595765 | P92: =+P68+P91 -> 0 | Q92: 604838.1289 | R92: =+R68+R91 -> 0
A94: Returns Above Specified Costs | I94: 13.69042353 | J94: =+J14-J92 -> 0 | M94: 0 | N94: =+N14-N92 -> 0 | O94: 13.69042353 | P94: =+P14-P92 -> 0 | Q94: 8761.871058 | R94: =+R14-R92 -> 0
A96: Breakeven Price to Cover Total Costs | G96: 0.6390476612 | H96: =IF(E10=0,"n/a",(YTotExp-(YTotExp+YTotRet-J10))/E10) -> n/a | I96: Pound
D98: Example Breakeven Prices
B99: Example | C99: Example | D99: To Cover | G99: To Cover
B100: Yield | C100: Yield | D100: Variable | G100: Total
B101: Percent | C101: Pound | D101: Costs | G101: Costs
B102: 0.75 | C102: 937.5 | D102: 0.6202814868 | G102: 0.8520635482
B103: 0.9 | C103: 1125 | D103: 0.516901239 | G103: 0.7100529569
B104: 1 | C104: 1250 | D104: 0.4652111151 | G104: 0.6390476612
B105: 1.1 | C105: 1375 | D105: 0.4229191956 | G105: 0.5809524193
B106: 1.25 | C106: 1562.5 | D106: 0.3721688921 | G106: 0.5112381289
A108: Developed by Francisco Abelló, Assistant Professor and Extension Specialist, Texas A&M AgriLife Extension, 940-647-3908
A110: Information presented is prepared solely as a general guide and not intended to recognize or predict the costs and returns from any one operation. Brand names are mentioned only as examples and imply no endorsement.

Sheet NT Irrig L Cotton
A1: Projections for Planning Purposes Only -- Not to be Used without Updating
A2: 2025 Estimated Costs and Returns per Acre
A3: NT Irrig L Cotton
A4: Enter your name for this budget in the cell above.
A5: Enter Your Values in the cells highlighed in MAROON.
E6: Your Acres | R6: Your
C7: Crop Acres | D7: 640 | L7: Your | Q7: Enterprise | R7: Enterprise
E8: Your | H8: Your | I8: Cash | J8: Your | K8: Landlord | L8: Landlord | N8: Your | P8: Your | Q8: Total | R8: Total
A9: REVENUE | D9: Quantity | E9: Quantity | F9: Units | G9: $/Unit | H9: $/Unit | I9: Total | J9: Total | K9: Share | L9: Share | M9: Landlord | N9: Landlord | O9: Tenant | P9: Tenant | Q9: (640 acres) | R9: ="(" & E7 & " acres)" -> ( acres)
B10: Cotton Lint | D10: 1188 | F10: Pound | G10: 0.65 | I10: 772.2 | J10: =E10*H10 -> 0 | K10: 0 | M10: 0 | N10: =J10*L10 -> 0 | O10: 772.2 | P10: =+J10-N10 -> 0 | Q10: 494208 | R10: =+J10*E$7 -> 0
B11: Cottonseed | D11: 0.65 | F11: Ton | G11: 225 | I11: 146.25 | J11: 0 | K11: 0 | M11: 0 | N11: 0 | O11: 146.25 | P11: =+J11-N11 -> 0 | Q11: 93600 | R11: 0
D12: 0 | G12: 0 | I12: 0 | J12: 0 | K12: 0 | M12: 0 | N12: 0 | O12: 0 | P12: 0 | Q12: 0 | R12: 0
D13: 0 | G13: 0 | I13: 0 | J13: 0 | K13: 0 | M13: 0 | N13: 0 | O13: 0 | P13: 0 | Q13: 0 | R13: 0
A14: Total Revenue | I14: 918.45 | J14: =SUM(J10:J13) -> 0 | M14: 0 | N14: =SUM(N10:N13) -> 0 | O14: 918.45 | P14: =SUM(P10:P13) -> 0 | Q14: 587808 | R14: =SUM(R10:R13) -> 0
Q15: Enterprise | R15: Enterprise
A16: VARIABLE COSTS | D16: Quantity | E16: Quantity | F16: Units | G16: $/Unit | H16: $/Unit | I16: Total | J16: Total | K16: Share | L16: Share | M16: Landlord | N16: Landlord | O16: Tenant | P16: Tenant | Q16: Total | R16: Total
A17: Production Costs
B18: Custom
C19: Fertilizer Application | D19: 1 | F19: Acre | G19: 5 | I19: 5 | J19: =E19*H19 -> 0 | K19: 0 | M19: 0 | N19: =J19*L19 -> 0 | O19: 5 | P19: =+J19-N19 -> 0 | Q19: 3200 | R19: =+J19*E$7 -> 0
C20: Gin, Bag, Ties | D20: 1188 | F20: Pound | G20: 0.13 | I20: 154.44 | J20: 0 | K20: 0 | M20: 0 | N20: 0 | O20: 154.44 | P20: 0 | Q20: 98841.6 | R20: 0
C21: Custom Stripping | D21: 1188 | F21: Pound | G21: 0.12 | I21: 142.56 | J21: 0 | K21: 0 | M21: 0 | N21: 0 | O21: 142.56 | P21: 0 | Q21: 91238.4 | R21: 0
B22: Fertilizer
C23: Fertilizer (N) | D23: 100 | F23: Pound | G23: 0.505 | I23: 50.5 | J23: 0 | K23: 0 | M23: 0 | N23: 0 | O23: 50.5 | P23: 0 | Q23: 32320 | R23: 0
C24: Fertilizer (P) | D24: 50 | F24: Pound | G24: 0.60657 | I24: 30.3285 | J24: 0 | K24: 0 | M24: 0 | N24: 0 | O24: 30.3285 | P24: 0 | Q24: 19410.24 | R24: 0
B25: Herbicide
C26: Roundup | D26: 2 | F26: Pint | G26: 2.18 | I26: 4.36 | J26: 0 | K26: 0 | M26: 0 | N26: 0 | O26: 4.36 | P26: 0 | Q26: 2790.4 | R26: 0
C27: Prowl | D27: 64 | F27: Ounces | G27: 0.38 | I27: 24.32 | J27: 0 | K27: 0 | M27: 0 | N27: 0 | O27: 24.32 | P27: 0 | Q27: 15564.8 | R27: 0
C28: Enlist Duo | D28: 4.7 | F28: Pint | G28: 5.911 | I28: 27.7817 | J28: 0 | K28: 0 | M28: 0 | N28: 0 | O28: 27.7817 | P28: 0 | Q28: 17780.288 | R28: 0
C29: Liberty | D29: 29 | F29: Ounce | G29: 0.47 | I29: 13.63 | J29: 0 | K29: 0 | M29: 0 | N29: 0 | O29: 13.63 | P29: 0 | Q29: 8723.2 | R29: 0
C30: Harvest Aid - Prep | D30: 1 | F30: Pint | G30: 3.75 | I30: 3.75 | J30: 0 | K30: 0 | M30: 0 | N30: 0 | O30: 3.75 | P30: 0 | Q30: 2400 | R30: 0
C31: Harvest Aid -Def | D31: 1 | F31: Ounce | G31: 0.546875 | I31: 0.546875 | J31: 0 | K31: 0 | M31: 0 | N31: 0 | O31: 0.546875 | P31: 0 | Q31: 350 | R31: 0
C32: 2,4D | D32: 1.4 | F32: Pint | G32: 4.634 | I32: 6.4876 | J32: 0 | K32: 0 | M32: 0 | N32: 0 | O32: 6.4876 | P32: 0 | Q32: 4152.064 | R32: 0
C33: Caparol | D33: 1.4 | F33: Pint | G33: 4.73 | I33: 6.622 | J33: 0 | K33: 0 | M33: 0 | N33: 0 | O33: 6.622 | P33: 0 | Q33: 4238.08 | R33: 0
C34: Dual Magnun | D34: 1.3 | F34: Pint | G34: 9.14 | I34: 11.882 | J34: 0 | K34: 0 | M34: 0 | N34: 0 | O34: 11.882 | P34: 0 | Q34: 7604.48 | R34: 0
B35: Insecticide
C36: Prevathon | D36: 16 | F36: Ounce | G36: 1.16 | I36: 18.56 | J36: 0 | K36: 0 | M36: 0 | N36: 0 | O36: 18.56 | P36: 0 | Q36: 11878.4 | R36: 0
C37: Brigade | D37: 2 | F37: Ounce | G37: 1.74875 | I37: 3.4975 | J37: 0 | K37: 0 | M37: 0 | N37: 0 | O37: 3.4975 | P37: 0 | Q37: 2238.4 | R37: 0
B38: Miscellaneous
C39: Insurance - Dryland Cotton | D39: 1 | F39: Acre | G39: 15 | I39: 15 | J39: 0 | K39: 0 | M39: 0 | N39: 0 | O39: 15 | P39: 0 | Q39: 9600 | R39: 0
B40: Seed
C41: Cotton Seed | D41: 11.5 | F41: Pound | G41: 8 | I41: 92 | J41: 0 | K41: 0 | M41: 0 | N41: 0 | O41: 92 | P41: 0 | Q41: 58880 | R41: 0
D42: 0 | G42: 0 | I42: 0 | J42: 0 | K42: 0 | M42: 0 | N42: 0 | O42: 0 | P42: 0 | Q42: 0 | R42: 0
D43: 0 | G43: 0 | I43: 0 | J43: 0 | K43: 0 | M43: 0 | N43: 0 | O43: 0 | P43: 0 | Q43: 0 | R43: 0
D44: 0 | G44: 0 | I44: 0 | J44: =E44*H44 -> 0 | K44: 0 | M44: 0 | N44: =J44*L44 -> 0 | O44: 0 | P44: =+J44-N44 -> 0 | Q44: 0 | R44: =+J44*E$7 -> 0
B45: Irrigation
C46: Energy Cost | D46: 8 | F46: AcreInch | G46: 6.75 | I46: 54 | J46: =E46*H46 -> 0 | K46: 0 | M46: 0 | N46: =J46*L46 -> 0 | O46: 54 | P46: =+J46-N46 -> 0 | Q46: 34560 | R46: =+J46*E$7 -> 0
C47: Irrigation Labor | D47: 0.96 | F47: Hour | G47: 15 | I47: 14.4 | J47: 0 | K47: 0 | M47: 0 | N47: 0 | O47: 14.4 | P47: 0 | Q47: 9216 | R47: 0
B48: Machinery Labor
C49: Tractors/Self-Propelled | D49: 0.26 | F49: Hour | G49: 15 | I49: 3.9 | J49: =E49*H49 -> 0 | K49: 0 | M49: 0 | N49: =J49*L49 -> 0 | O49: 3.9 | P49: =+J49-N49 -> 0 | Q49: 2496 | R49: =+J49*E$7 -> 0
C50: Other Labor | D50: 0.31 | F50: Hour | G50: 15 | I50: 4.65 | J50: =E50*H50 -> 0 | K50: 0 | M50: 0 | N50: =J50*L50 -> 0 | O50: 4.65 | P50: =+J50-N50 -> 0 | Q50: 2976 | R50: =+J50*E$7 -> 0
B52: Diesel Fuel
C53: Pickup/General Use Equipment | D53: 1 | F53: Acre | G53: 0 | I53: 0 | J53: =E53*H53 -> 0 | K53: 0 | M53: 0 | N53: =J53*L53 -> 0 | O53: 0 | P53: =+J53-N53 -> 0 | Q53: 0 | R53: =+J53*E$7 -> 0
C54: Tractors/Self-Propelled | D54: 3.14 | F54: Gallon | G54: 2.59 | I54: 8.1326 | J54: =E54*H54 -> 0 | K54: 0 | M54: 0 | N54: =J54*L54 -> 0 | O54: 8.1326 | P54: =+J54-N54 -> 0 | Q54: 5204.864 | R54: =+J54*E$7 -> 0
B56: Gasoline
C57: Pickup/General Use Equipment | D57: 1 | F57: Acre | G57: 1.0546875 | I57: 1.0546875 | J57: =E57*H57 -> 0 | K57: 0 | M57: 0 | N57: =J57*L57 -> 0 | O57: 1.0546875 | P57: =+J57-N57 -> 0 | Q57: 675 | R57: =+J57*E$7 -> 0
C58: Tractors/Self-Propelled | D58: 0 | F58: Gallon | G58: 3.1 | I58: 0 | J58: =E58*H58 -> 0 | K58: 0 | M58: 0 | N58: =J58*L58 -> 0 | O58: 0 | P58: =+J58-N58 -> 0 | Q58: 0 | R58: =+J58*E$7 -> 0
B60: Repairs & Maintenance
C61: Pickup/General Use Equipment | D61: 1 | F61: Acre | G61: 0.3515625 | I61: 0.3515625 | J61: =E61*H61 -> 0 | K61: 0 | M61: 0 | N61: =J61*L61 -> 0 | O61: 0.3515625 | P61: =+J61-N61 -> 0 | Q61: 225 | R61: =+J61*E$7 -> 0
C62: Irrigation Equipment | D62: 1 | F62: Acre | G62: 8.8904 | I62: 8.8904 | J62: 0 | K62: 0 | M62: 0 | N62: 0 | O62: 8.8904 | P62: 0 | Q62: 5689.856 | R62: 0
C63: Tractors/Self-Propelled | D63: 1 | F63: Acre | G63: 8.574945875 | I63: 8.574945875 | J63: 0 | K63: 0 | M63: 0 | N63: 0 | O63: 8.574945875 | P63: 0 | Q63: 5487.96536 | R63: 0
C64: Implements | D64: 1 | F64: Acre | G64: 6.887420701 | I64: 6.887420701 | J64: 0 | K64: 0 | M64: 0 | N64: 0 | O64: 6.887420701 | P64: 0 | Q64: 4407.949249 | R64: 0
I65: 0 | J65: 0 | K65: 0 | M65: 0 | N65: 0 | O65: 0 | P65: 0 | Q65: 0 | R65: 0
I66: 0 | J66: 0 | K66: 0 | M66: 0 | N66: 0 | O66: 0 | P66: 0 | Q66: 0 | R66: 0
B67: Interest on Credit Line | G67: 0.09 | I67: 23.29998468 | J67: =+SUM(J18:J66)/2*H67 -> 0 | M67: 0 | N67: =+SUM(N18:N66)/2*L67 -> 0 | O67: 23.29998468 | P67: =+SUM(P18:P66)/2*L67 -> 0 | Q67: 14911.99019 | R67: =+J67*E$7 -> 0
A68: Total Variable Costs | I68: 745.4077763 | J68: =SUM(J19:J67) -> 0 | M68: 0 | N68: =SUM(N19:N67) -> 0 | O68: 745.4077763 | P68: =SUM(P19:P67) -> 0 | Q68: 477060.9768 | R68: =SUM(R19:R67) -> 0
A69: Planned Returns Above Variable Costs: | I69: 173.0422237 | J69: =+J14-J68 -> 0 | M69: 0 | N69: =+N14-N68 -> 0 | O69: 173.0422237 | P69: =+P14-P68 -> 0 | Q69: 110747.0232 | R69: =+R14-R68 -> 0
B70: Breakeven Price to Cover Variable Costs | G70: 0.5043415625 | H70: =IF(E10=0,"n/a",(YVarExp-(YTotExp+YTotRet-J10))/E10) -> n/a | I70: Pound
Q71: Enterprise | R71: Enterprise
A72: FIXED COSTS | D72: Quantity | E72: Quantity | F72: Units | G72: $/Unit | H72: $/Unit | I72: Total | J72: Total | K72: Share | L72: Share | M72: Landlord | N72: Landlord | O72: Tenant | P72: Tenant | Q72: Total | R72: Total
B73: Machinery Depreciation
C74: Pickup/General Use Equipment | D74: 1 | F74: Acre | G74: 0.4880859375 | I74: 0.4880859375 | J74: =E74*H74 -> 0 | K74: 0 | M74: 0 | N74: =J74*L74 -> 0 | O74: 0.4880859375 | P74: =+J74-N74 -> 0 | Q74: 312.375 | R74: =+J74*E$7 -> 0
C75: Irrigation Equipment | D75: 1 | F75: Acre | G75: 24.375 | I75: 24.375 | J75: 0 | K75: 0 | M75: 0 | N75: =J75*L75 -> 0 | O75: 24.375 | P75: 0 | Q75: 15600 | R75: 0
C76: Tractors/Self-Propelled | D76: 1 | F76: Acre | G76: 13.33081704 | I76: 13.33081704 | J76: 0 | K76: 0 | M76: 0 | N76: =J76*L76 -> 0 | O76: 13.33081704 | P76: 0 | Q76: 8531.722908 | R76: 0
C77: Implements | D77: 1 | F77: Acre | G77: 9.481891667 | I77: 9.481891667 | J77: 0 | K77: 0 | M77: 0 | N77: =J77*L77 -> 0 | O77: 9.481891667 | P77: 0 | Q77: 6068.410667 | R77: 0
B78: Equipment Investment
C79: Pickup/General Use Equipment | D79: 3.418945312 | F79: Dollars | G79: 0.08 | I79: 0.273515625 | J79: =E79*H79 -> 0 | K79: 0 | M79: 0 | N79: =J79*L79 -> 0 | O79: 0.273515625 | P79: =+J79-N79 -> 0 | Q79: 175.05 | R79: =+J79*E$7 -> 0
C80: Irrigation Equipment | D80: 710.9375 | F80: Dollars | G80: 0.08 | I80: 56.875 | J80: 0 | K80: 0 | M80: 0 | N80: =J80*L80 -> 0 | O80: 56.875 | P80: 0 | Q80: 36400 | R80: 0
C81: Tractors/Self-Propelled | D81: 101.7744304 | F81: Dollars | G81: 0.08 | I81: 8.14195443 | J81: 0 | K81: 0 | M81: 0 | N81: =J81*L81 -> 0 | O81: 8.14195443 | P81: 0 | Q81: 5210.850835 | R81: 0
C82: Implements | D82: 40.56142546 | F82: Dollars | G82: 0.08 | I82: 3.244914037 | J82: 0 | K82: 0 | M82: 0 | N82: =J82*L82 -> 0 | O82: 3.244914037 | P82: 0 | Q82: 2076.744984 | R82: 0
B83: Salaried Labor | D83: 1 | F83: Acre | G83: 0 | I83: 0 | J83: 0 | K83: 0 | M83: 0 | N83: =J83*L83 -> 0 | O83: 0 | P83: =+J83-N83 -> 0 | Q83: 0 | R83: =+J83*E$7 -> 0
B84: Management Fee, Owner/Operator Labor | D84: 1 | F84: Acre | G84: 0 | I84: 0 | J84: 0 | K84: 0 | M84: 0 | N84: 0 | O84: 0 | P84: 0 | Q84: 0 | R84: 0
B85: Allocated Establishment Cost | D85: 1 | F85: Acre | G85: 0 | I85: 0 | J85: 0 | K85: 0 | M85: 0 | N85: 0 | O85: 0 | P85: 0 | Q85: 0 | R85: 0
B86: Cash Rent - Irrigated Cotton | D86: 1 | F86: Acre | G86: 90 | I86: 90 | J86: 0 | K86: 0 | M86: 0 | N86: 0 | O86: 90 | P86: 0 | Q86: 57600 | R86: 0
B87: Property Taxes | D87: 1 | F87: Acre | G87: 0 | I87: 0 | J87: 0 | K87: 0 | M87: 0 | N87: 0 | O87: 0 | P87: 0 | Q87: 0 | R87: 0
B88: Whole Farm Insurance | D88: 1 | F88: Acre | G88: 0 | I88: 0 | J88: 0 | K88: 0 | M88: 0 | N88: 0 | O88: 0 | P88: 0 | Q88: 0 | R88: 0
D89: 1 | G89: 0 | I89: 0 | J89: 0 | K89: 0 | M89: 0 | N89: 0 | O89: 0 | P89: 0 | Q89: 0 | R89: 0
D90: 1 | G90: 0 | I90: 0 | J90: =E90*H90 -> 0 | K90: 0 | M90: 0 | N90: 0 | O90: 0 | P90: 0 | Q90: 0 | R90: 0
A91: Total Fixed Costs | I91: 206.2111787 | J91: =+SUM(J74:J90) -> 0 | M91: 0 | N91: =+SUM(N74:N90) -> 0 | O91: 206.2111787 | P91: =+SUM(P74:P90) -> 0 | Q91: 131975.1544 | R91: =+SUM(R74:R90) -> 0
A92: Total Specified Costs | I92: 951.618955 | J92: =+J68+J91 -> 0 | M92: 0 | N92: =+N68+N91 -> 0 | O92: 951.618955 | P92: =+P68+P91 -> 0 | Q92: 609036.1312 | R92: =+R68+R91 -> 0
A94: Returns Above Specified Costs | I94: -33.168955 | J94: =+J14-J92 -> 0 | M94: 0 | N94: =+N14-N92 -> 0 | O94: -33.168955 | P94: =+P14-P92 -> 0 | Q94: -21228.1312 | R94: =+R14-R92 -> 0
A96: Breakeven Price to Cover Total Costs | G96: 0.6779199958 | H96: =IF(E10=0,"n/a",(YTotExp-(YTotExp+YTotRet-J10))/E10) -> n/a | I96: Pound
D98: Example Breakeven Prices
B99: Example | C99: Example | D99: To Cover | G99: To Cover
B100: Yield | C100: Yield | D100: Variable | G100: Total
B101: Percent | C101: Pound | D101: Costs | G101: Costs
B102: 0.75 | C102: 891 | D102: 0.6724554167 | G102: 0.9038933277
B103: 0.9 | C103: 1069.2 | D103: 0.5603795139 | G103: 0.7532444398
B104: 1 | C104: 1188 | D104: 0.5043415625 | G104: 0.6779199958
B105: 1.1 | C105: 1306.8 | D105: 0.4584923295 | G105: 0.6162909053
B106: 1.25 | C106: 1485 | D106: 0.40347325 | G106: 0.5423359966
A108: Developed by Francisco Abelló, Assistant Professor and Extension Specialist, Texas A&M AgriLife Extension, 940-647-3908
A110: Information presented is prepared solely as a general guide and not intended to recognize or predict the costs and returns from any one operation. Brand names are mentioned only as examples and imply no endorsement.

Sheet CottonIrrigated
A1: Projections for Planning Purposes Only -- Not to be Used without Updating
A2: 2025 Estimated Costs and Returns per Acre
A3: Sprinkler Irrigated Cotton
A4: Enter your name for this budget in the cell above.
A5: Enter Your Values in the cells highlighed in MAROON.
E6: Your Acres | R6: Your
C7: Crop Acres | D7: 120 | L7: Your | Q7: Enterprise | R7: Enterprise
E8: Your | H8: Your | I8: Cash | J8: Your | K8: Landlord | L8: Landlord | N8: Your | P8: Your | Q8: Total | R8: Total
A9: REVENUE | D9: Quantity | E9: Quantity | F9: Units | G9: $/Unit | H9: $/Unit | I9: Total | J9: Total | K9: Share | L9: Share | M9: Landlord | N9: Landlord | O9: Tenant | P9: Tenant | Q9: (120 acres) | R9: ="(" & E7 & " acres)" -> ( acres)
B10: Cotton Lint - Irrigated | D10: 1000 | F10: Pound | G10: 0.69 | I10: 690 | J10: =E10*H10 -> 0 | K10: 0 | M10: 0 | N10: =J10*L10 -> 0 | O10: 690 | P10: =+J10-N10 -> 0 | Q10: 82800 | R10: =+J10*E$7 -> 0
B11: Cottonseed | D11: 0.65 | F11: Ton | G11: 225 | I11: 146.25 | J11: 0 | K11: 0 | M11: 0 | N11: 0 | O11: 146.25 | P11: =+J11-N11 -> 0 | Q11: 17550 | R11: 0
D12: 0 | G12: 0 | I12: 0 | J12: 0 | K12: 0 | M12: 0 | N12: 0 | O12: 0 | P12: 0 | Q12: 0 | R12: 0
D13: 0 | G13: 0 | I13: 0 | J13: 0 | K13: 0 | M13: 0 | N13: 0 | O13: 0 | P13: 0 | Q13: 0 | R13: 0
A14: Total Revenue | I14: 836.25 | J14: =SUM(J10:J13) -> 0 | M14: 0 | N14: =SUM(N10:N13) -> 0 | O14: 836.25 | P14: =SUM(P10:P13) -> 0 | Q14: 100350 | R14: =SUM(R10:R13) -> 0
Q15: Enterprise | R15: Enterprise
A16: VARIABLE COSTS | D16: Quantity | E16: Quantity | F16: Units | G16: $/Unit | H16: $/Unit | I16: Total | J16: Total | K16: Share | L16: Share | M16: Landlord | N16: Landlord | O16: Tenant | P16: Tenant | Q16: Total | R16: Total
A17: Production Costs
B18: Custom
C19: Fertilizer Application | D19: 1 | F19: Acre | G19: 5 | I19: 5 | J19: =E19*H19 -> 0 | K19: 0 | M19: 0 | N19: =J19*L19 -> 0 | O19: 5 | P19: =+J19-N19 -> 0 | Q19: 600 | R19: =+J19*E$7 -> 0
C20: Insecticide Application | D20: 1 | F20: Acre | G20: 5.5 | I20: 5.5 | J20: 0 | K20: 0 | M20: 0 | N20: 0 | O20: 5.5 | P20: 0 | Q20: 660 | R20: 0
C21: Harvest Aid Application | D21: 1 | F21: Acre | G21: 5.5 | I21: 5.5 | J21: 0 | K21: 0 | M21: 0 | N21: 0 | O21: 5.5 | P21: 0 | Q21: 660 | R21: 0
C22: Gin, Bag, Ties | D22: 1000 | F22: Pound | G22: 0.13 | I22: 130 | J22: 0 | K22: 0 | M22: 0 | N22: 0 | O22: 130 | P22: 0 | Q22: 15600 | R22: 0
C23: Custom Picking | D23: 1000 | F23: Pound | G23: 0.1 | I23: 100 | J23: 0 | K23: 0 | M23: 0 | N23: 0 | O23: 100 | P23: 0 | Q23: 12000 | R23: 0
B24: Fertilizer
C25: Fertilizer (N) | D25: 75 | F25: Pound | G25: 0.505 | I25: 37.875 | J25: 0 | K25: 0 | M25: 0 | N25: 0 | O25: 37.875 | P25: 0 | Q25: 4545 | R25: 0
C26: Fertilizer (P) | D26: 60 | F26: Pound | G26: 0.60657 | I26: 36.3942 | J26: 0 | K26: 0 | M26: 0 | N26: 0 | O26: 36.3942 | P26: 0 | Q26: 4367.304 | R26: 0
C27: Potash (K) | D27: 40 | F27: Pound | G27: 0.39 | I27: 15.6 | J27: 0 | K27: 0 | M27: 0 | N27: 0 | O27: 15.6 | P27: 0 | Q27: 1872 | R27: 0
C28: Sulfur | D28: 12 | F28: Pound | G28: 0.3 | I28: 3.6 | J28: 0 | K28: 0 | M28: 0 | N28: 0 | O28: 3.6 | P28: 0 | Q28: 432 | R28: 0
B29: Herbicide
C30: Harvest Aid - Prep | D30: 3 | F30: Pint | G30: 3.75 | I30: 11.25 | J30: 0 | K30: 0 | M30: 0 | N30: 0 | O30: 11.25 | P30: 0 | Q30: 1350 | R30: 0
C31: Harvest Aid -Def | D31: 8 | F31: Ounce | G31: 0.546875 | I31: 4.375 | J31: 0 | K31: 0 | M31: 0 | N31: 0 | O31: 4.375 | P31: 0 | Q31: 525 | R31: 0
C32: Xtend flew | D32: 24 | F32: Ounce | G32: 0.5078125 | I32: 12.1875 | J32: 0 | K32: 0 | M32: 0 | N32: 0 | O32: 12.1875 | P32: 0 | Q32: 1462.5 | R32: 0
C33: Glyphosate | D33: 2 | F33: Pint | G33: 2.18 | I33: 4.36 | J33: 0 | K33: 0 | M33: 0 | N33: 0 | O33: 4.36 | P33: 0 | Q33: 523.2 | R33: 0
B34: Insecticide
C35: Insecticide - Cotton | D35: 0.5 | F35: Pound | G35: 7.2 | I35: 3.6 | J35: 0 | K35: 0 | M35: 0 | N35: 0 | O35: 3.6 | P35: 0 | Q35: 432 | R35: 0
C36: Bollweevil Eradication | D36: 1 | F36: Acre | G36: 2.5 | I36: 2.5 | J36: 0 | K36: 0 | M36: 0 | N36: 0 | O36: 2.5 | P36: 0 | Q36: 300 | R36: 0
B37: Miscellaneous
C38: Insurance - Irrigated Cotton | D38: 1 | F38: Acre | G38: 17 | I38: 17 | J38: 0 | K38: 0 | M38: 0 | N38: 0 | O38: 17 | P38: 0 | Q38: 2040 | R38: 0
B39: Seed
C40: Cotton Seed | D40: 11.5 | F40: Pound | G40: 8 | I40: 92 | J40: 0 | K40: 0 | M40: 0 | N40: 0 | O40: 92 | P40: 0 | Q40: 11040 | R40: 0
D41: 0 | G41: 0 | I41: 0 | J41: 0 | K41: 0 | M41: 0 | N41: 0 | O41: 0 | P41: 0 | Q41: 0 | R41: 0
D42: 0 | G42: 0 | I42: 0 | J42: 0 | K42: 0 | M42: 0 | N42: 0 | O42: 0 | P42: 0 | Q42: 0 | R42: 0
D43: 0 | G43: 0 | I43: 0 | J43: =E43*H43 -> 0 | K43: 0 | M43: 0 | N43: =J43*L43 -> 0 | O43: 0 | P43: =+J43-N43 -> 0 | Q43: 0 | R43: =+J43*E$7 -> 0
B44: Irrigation
C45: Energy Cost | D45: 12 | F45: AcreInch | G45: 6.75 | I45: 81 | J45: =E45*H45 -> 0 | K45: 0 | M45: 0 | N45: =J45*L45 -> 0 | O45: 81 | P45: =+J45-N45 -> 0 | Q45: 9720 | R45: =+J45*E$7 -> 0
C46: Irrigation Labor | D46: 0.96 | F46: Hour | G46: 15 | I46: 14.4 | J46: 0 | K46: 0 | M46: 0 | N46: 0 | O46: 14.4 | P46: 0 | Q46: 1728 | R46: 0
B47: Machinery Labor
C48: Tractors/Self-Propelled | D48: 0.5 | F48: Hour | G48: 15 | I48: 7.5 | J48: =E48*H48 -> 0 | K48: 0 | M48: 0 | N48: =J48*L48 -> 0 | O48: 7.5 | P48: =+J48-N48 -> 0 | Q48: 900 | R48: =+J48*E$7 -> 0
C49: Other Labor | D49: 0.6 | F49: Hour | G49: 15 | I49: 9 | J49: =E49*H49 -> 0 | K49: 0 | M49: 0 | N49: =J49*L49 -> 0 | O49: 9 | P49: =+J49-N49 -> 0 | Q49: 1080 | R49: =+J49*E$7 -> 0
B51: Diesel Fuel
C52: Pickup/General Use Equipment | D52: 1 | F52: Acre | G52: 0 | I52: 0 | J52: =E52*H52 -> 0 | K52: 0 | M52: 0 | N52: =J52*L52 -> 0 | O52: 0 | P52: =+J52-N52 -> 0 | Q52: 0 | R52: =+J52*E$7 -> 0
C53: Tractors/Self-Propelled | D53: 3.34 | F53: Gallon | G53: 2.59 | I53: 8.6506 | J53: =E53*H53 -> 0 | K53: 0 | M53: 0 | N53: =J53*L53 -> 0 | O53: 8.6506 | P53: =+J53-N53 -> 0 | Q53: 1038.072 | R53: =+J53*E$7 -> 0
B55: Gasoline
C56: Pickup/General Use Equipment | D56: 1 | F56: Acre | G56: 9 | I56: 9 | J56: =E56*H56 -> 0 | K56: 0 | M56: 0 | N56: =J56*L56 -> 0 | O56: 9 | P56: =+J56-N56 -> 0 | Q56: 1080 | R56: =+J56*E$7 -> 0
C57: Tractors/Self-Propelled | D57: 0 | F57: Gallon | G57: 3.1 | I57: 0 | J57: =E57*H57 -> 0 | K57: 0 | M57: 0 | N57: =J57*L57 -> 0 | O57: 0 | P57: =+J57-N57 -> 0 | Q57: 0 | R57: =+J57*E$7 -> 0
B59: Repairs & Maintenance
C60: Pickup/General Use Equipment | D60: 1 | F60: Acre | G60: 3 | I60: 3 | J60: =E60*H60 -> 0 | K60: 0 | M60: 0 | N60: =J60*L60 -> 0 | O60: 3 | P60: =+J60-N60 -> 0 | Q60: 360 | R60: =+J60*E$7 -> 0
C61: Irrigation Equipment | D61: 1 | F61: Acre | G61: 13.3356 | I61: 13.3356 | J61: 0 | K61: 0 | M61: 0 | N61: 0 | O61: 13.3356 | P61: 0 | Q61: 1600.272 | R61: 0
C62: Tractors/Self-Propelled | D62: 1 | F62: Acre | G62: 6.861181742 | I62: 6.861181742 | J62: 0 | K62: 0 | M62: 0 | N62: 0 | O62: 6.861181742 | P62: 0 | Q62: 823.341809 | R62: 0
C63: Implements | D63: 1 | F63: Acre | G63: 8.051414455 | I63: 8.051414455 | J63: 0 | K63: 0 | M63: 0 | N63: 0 | O63: 8.051414455 | P63: 0 | Q63: 966.1697346 | R63: 0
I64: 0 | J64: 0 | K64: 0 | M64: 0 | N64: 0 | O64: 0 | P64: 0 | Q64: 0 | R64: 0
I65: 0 | J65: 0 | K65: 0 | M65: 0 | N65: 0 | O65: 0 | P65: 0 | Q65: 0 | R65: 0
B66: Interest on Credit Line | G66: 0.09 | I66: 19.82629908 | J66: =+SUM(J18:J65)/2*H66 -> 0 | M66: 0 | N66: =+SUM(N18:N65)/2*L66 -> 0 | O66: 19.82629908 | P66: =+SUM(P18:P65)/2*L66 -> 0 | Q66: 2379.15589 | R66: =+J66*E$7 -> 0
A67: Total Variable Costs | I67: 667.3667953 | J67: =SUM(J19:J66) -> 0 | M67: 0 | N67: =SUM(N19:N66) -> 0 | O67: 667.3667953 | P67: =SUM(P19:P66) -> 0 | Q67: 80084.01543 | R67: =SUM(R19:R66) -> 0
A68: Planned Returns Above Variable Costs: | I68: 168.8832047 | J68: =+J14-J67 -> 0 | M68: 0 | N68: =+N14-N67 -> 0 | O68: 168.8832047 | P68: =+P14-P67 -> 0 | Q68: 20265.98457 | R68: =+R14-R67 -> 0
B69: Breakeven Price to Cover Variable Costs | G69: 0.5211167953 | H69: =IF(E10=0,"n/a",(YVarExp-(YTotExp+YTotRet-J10))/E10) -> n/a | I69: Pound
Q70: Enterprise | R70: Enterprise
A71: FIXED COSTS | D71: Quantity | E71: Quantity | F71: Units | G71: $/Unit | H71: $/Unit | I71: Total | J71: Total | K71: Share | L71: Share | M71: Landlord | N71: Landlord | O71: Tenant | P71: Tenant | Q71: Total | R71: Total
B72: Machinery Depreciation
C73: Pickup/General Use Equipment | D73: 1 | F73: Acre | G73: 4.165 | I73: 4.165 | J73: =E73*H73 -> 0 | K73: 0 | M73: 0 | N73: =J73*L73 -> 0 | O73: 4.165 | P73: =+J73-N73 -> 0 | Q73: 499.8 | R73: =+J73*E$7 -> 0
C74: Irrigation Equipment | D74: 1 | F74: Acre | G74: 15 | I74: 15 | J74: 0 | K74: 0 | M74: 0 | N74: =J74*L74 -> 0 | O74: 15 | P74: 0 | Q74: 1800 | R74: 0
C75: Tractors/Self-Propelled | D75: 1 | F75: Acre | G75: 7.0898878 | I75: 7.0898878 | J75: 0 | K75: 0 | M75: 0 | N75: =J75*L75 -> 0 | O75: 7.0898878 | P75: 0 | Q75: 850.786536 | R75: 0
C76: Implements | D76: 1 | F76: Acre | G76: 10.69072032 | I76: 10.69072032 | J76: 0 | K76: 0 | M76: 0 | N76: =J76*L76 -> 0 | O76: 10.69072032 | P76: 0 | Q76: 1282.886438 | R76: 0
B77: Equipment Investment
C78: Pickup/General Use Equipment | D78: 29.175 | F78: Dollars | G78: 0.08 | I78: 2.334 | J78: =E78*H78 -> 0 | K78: 0 | M78: 0 | N78: =J78*L78 -> 0 | O78: 2.334 | P78: =+J78-N78 -> 0 | Q78: 280.08 | R78: =+J78*E$7 -> 0
C79: Irrigation Equipment | D79: 437.5 | F79: Dollars | G79: 0.08 | I79: 35 | J79: 0 | K79: 0 | M79: 0 | N79: =J79*L79 -> 0 | O79: 35 | P79: 0 | Q79: 4200 | R79: 0
C80: Tractors/Self-Propelled | D80: 55.23251302 | F80: Dollars | G80: 0.08 | I80: 4.418601042 | J80: 0 | K80: 0 | M80: 0 | N80: =J80*L80 -> 0 | O80: 4.418601042 | P80: 0 | Q80: 530.232125 | R80: 0
C81: Implements | D81: 45.7325258 | F81: Dollars | G81: 0.08 | I81: 3.658602064 | J81: 0 | K81: 0 | M81: 0 | N81: =J81*L81 -> 0 | O81: 3.658602064 | P81: 0 | Q81: 439.0322477 | R81: 0
B82: Salaried Labor | D82: 1 | F82: Acre | G82: 0 | I82: 0 | J82: 0 | K82: 0 | M82: 0 | N82: =J82*L82 -> 0 | O82: 0 | P82: =+J82-N82 -> 0 | Q82: 0 | R82: =+J82*E$7 -> 0
B83: Management Fee, Owner/Operator Labor | D83: 1 | F83: Acre | G83: 0 | I83: 0 | J83: 0 | K83: 0 | M83: 0 | N83: 0 | O83: 0 | P83: 0 | Q83: 0 | R83: 0
B84: Allocated Establishment Cost | D84: 1 | F84: Acre | G84: 0 | I84: 0 | J84: 0 | K84: 0 | M84: 0 | N84: 0 | O84: 0 | P84: 0 | Q84: 0 | R84: 0
B85: Cash Rent - Irrigated Cotton | D85: 1 | F85: Acre | G85: 90 | I85: 90 | J85: 0 | K85: 0 | M85: 0 | N85: 0 | O85: 90 | P85: 0 | Q85: 10800 | R85: 0
B86: Property Taxes | D86: 1 | F86: Acre | G86: 0 | I86: 0 | J86: 0 | K86: 0 | M86: 0 | N86: 0 | O86: 0 | P86: 0 | Q86: 0 | R86: 0
B87: Whole Farm Insurance | D87: 1 | F87: Acre | G87: 0 | I87: 0 | J87: 0 | K87: 0 | M87: 0 | N87: 0 | O87: 0 | P87: 0 | Q87: 0 | R87: 0
D88: 1 | G88: 0 | I88: 0 | J88: 0 | K88: 0 | M88: 0 | N88: 0 | O88: 0 | P88: 0 | Q88: 0 | R88: 0
D89: 1 | G89: 0 | I89: 0 | J89: =E89*H89 -> 0 | K89: 0 | M89: 0 | N89: 0 | O89: 0 | P89: 0 | Q89: 0 | R89: 0
A90: Total Fixed Costs | I90: 172.3568112 | J90: =+SUM(J73:J89) -> 0 | M90: 0 | N90: =+SUM(N73:N89) -> 0 | O90: 172.3568112 | P90: =+SUM(P73:P89) -> 0 | Q90: 20682.81735 | R90: =+SUM(R73:R89) -> 0
A91: Total Specified Costs | I91: 839.7236065 | J91: =+J67+J90 -> 0 | M91: 0 | N91: =+N67+N90 -> 0 | O91: 839.7236065 | P91: =+P67+P90 -> 0 | Q91: 100766.8328 | R91: =+R67+R90 -> 0
A93: Returns Above Specified Costs | I93: -3.473606499 | J93: =+J14-J91 -> 0 | M93: 0 | N93: =+N14-N91 -> 0 | O93: -3.473606499 | P93: =+P14-P91 -> 0 | Q93: -416.8327799 | R93: =+R14-R91 -> 0
A95: Breakeven Price to Cover Total Costs | G95: 0.6934736065 | H95: =IF(E10=0,"n/a",(YTotExp-(YTotExp+YTotRet-J10))/E10) -> n/a | I95: Pound
D97: Example Breakeven Prices
B98: Example | C98: Example | D98: To Cover | G98: To Cover
B99: Yield | C99: Yield | D99: Variable | G99: Total
B100: Percent | C100: Pound | D100: Costs | G100: Costs
B101: 0.75 | C101: 750 | D101: 0.6948223937 | G101: 0.9246314753
B102: 0.9 | C102: 900 | D102: 0.5790186614 | G102: 0.7705262294
B103: 1 | C103: 1000 | D103: 0.5211167953 | G103: 0.6934736065
B104: 1.1 | C104: 1100 | D104: 0.4737425412 | G104: 0.6304305514
B105: 1.25 | C105: 1250 | D105: 0.4168934362 | G105: 0.5547788852
A107: Developed by Francisco Abelló, Assistant Professor and Extension Specialist, Texas A&M AgriLife Extension, 940-647-3908
A109: Information presented is prepared solely as a general guide and not intended to recognize or predict the costs and returns from any one operation. Brand names are mentioned only as examples and imply no endorsement.

Sheet Peanuts
A1: Projections for Planning Purposes Only -- Not to be Used without Updating
A2: 2025 Estimated Costs and Returns per Acre
A3: Irrigated Peanuts
A4: Enter your name for this budget in the cell above.
A5: Enter Your Values in the cells highlighed in MAROON.
E6: Your Acres | R6: Your
C7: Crop Acres | D7: 120 | L7: Your | Q7: Enterprise | R7: Enterprise
E8: Your | H8: Your | I8: Cash | J8: Your | K8: Landlord | L8: Landlord | N8: Your | P8: Your | Q8: Total | R8: Total
A9: REVENUE | D9: Quantity | E9: Quantity | F9: Units | G9: $/Unit | H9: $/Unit | I9: Total | J9: Total | K9: Share | L9: Share | M9: Landlord | N9: Landlord | O9: Tenant | P9: Tenant | Q9: (120 acres) | R9: ="(" & E7 & " acres)" -> ( acres)
B10: Runner Peanuts | D10: 2 | F10: Ton | G10: 575 | I10: 1150 | J10: =E10*H10 -> 0 | K10: 0 | M10: 0 | N10: =J10*L10 -> 0 | O10: 1150 | P10: =+J10-N10 -> 0 | Q10: 138000 | R10: =+J10*E$7 -> 0
D11: 0 | G11: 0 | I11: 0 | J11: 0 | K11: 0 | M11: 0 | N11: 0 | O11: 0 | P11: =+J11-N11 -> 0 | Q11: 0 | R11: 0
D12: 0 | G12: 0 | I12: 0 | J12: 0 | K12: 0 | M12: 0 | N12: 0 | O12: 0 | P12: 0 | Q12: 0 | R12: 0
A13: Total Revenue | I13: 1150 | J13: =SUM(J10:J12) -> 0 | M13: 0 | N13: =SUM(N10:N12) -> 0 | O13: 1150 | P13: =SUM(P10:P12) -> 0 | Q13: 138000 | R13: =SUM(R10:R12) -> 0
Q14: Enterprise | R14: Enterprise
A15: VARIABLE COSTS | D15: Quantity | E15: Quantity | F15: Units | G15: $/Unit | H15: $/Unit | I15: Total | J15: Total | K15: Share | L15: Share | M15: Landlord | N15: Landlord | O15: Tenant | P15: Tenant | Q15: Total | R15: Total
A16: Production Costs
B17: Custom
C18: Drying - Peanut | D18: 2 | F18: Ton | G18: 30 | I18: 60 | J18: =E18*H18 -> 0 | K18: 0 | M18: 0 | N18: =J18*L18 -> 0 | O18: 60 | P18: =+J18-N18 -> 0 | Q18: 7200 | R18: =+J18*E$7 -> 0
C19: Fertilizer Application | D19: 1 | F19: Acre | G19: 5 | I19: 5 | J19: 0 | K19: 0 | M19: 0 | N19: 0 | O19: 5 | P19: 0 | Q19: 600 | R19: 0
B20: Fertilizer
C21: Fertilizer (N) | D21: 80 | F21: Pound | G21: 0.505 | I21: 40.4 | J21: 0 | K21: 0 | M21: 0 | N21: 0 | O21: 40.4 | P21: 0 | Q21: 4848 | R21: 0
C22: Fertilizer (P) | D22: 50 | F22: Pound | G22: 0.60657 | I22: 30.3285 | J22: 0 | K22: 0 | M22: 0 | N22: 0 | O22: 30.3285 | P22: 0 | Q22: 3639.42 | R22: 0
B23: Herbicide
C24: Prowl | D24: 24 | F24: Ounces | G24: 0.38 | I24: 9.12 | J24: 0 | K24: 0 | M24: 0 | N24: 0 | O24: 9.12 | P24: 0 | Q24: 1094.4 | R24: 0
C25: Valor SX | D25: 2 | F25: Ounce | G25: 2.651875 | I25: 5.30375 | J25: 0 | K25: 0 | M25: 0 | N25: 0 | O25: 5.30375 | P25: 0 | Q25: 636.45 | R25: 0
C26: Cobra | D26: 12.5 | F26: Ounce | G26: 1.48 | I26: 18.5 | J26: 0 | K26: 0 | M26: 0 | N26: 0 | O26: 18.5 | P26: 0 | Q26: 2220 | R26: 0
B27: Seed
C28: Peanut Seed | D28: 90 | F28: Pound | G28: 0.95 | I28: 85.5 | J28: 0 | K28: 0 | M28: 0 | N28: 0 | O28: 85.5 | P28: 0 | Q28: 10260 | R28: 0
B29: Fungicides
C30: Folicular Fungicide-Abound | D30: 24.5 | F30: Ounce | G30: 1.483984375 | I30: 36.35761719 | J30: 0 | K30: 0 | M30: 0 | N30: 0 | O30: 36.35761719 | P30: 0 | Q30: 4362.914062 | R30: 0
C31: Fungicide - Bravo | D31: 1.5 | F31: Pint | G31: 3.5625 | I31: 5.34375 | J31: 0 | K31: 0 | M31: 0 | N31: 0 | O31: 5.34375 | P31: 0 | Q31: 641.25 | R31: 0
D32: 0 | G32: 0 | I32: 0 | J32: 0 | K32: 0 | M32: 0 | N32: 0 | O32: 0 | P32: 0 | Q32: 0 | R32: 0
D33: 0 | G33: 0 | I33: 0 | J33: 0 | K33: 0 | M33: 0 | N33: 0 | O33: 0 | P33: 0 | Q33: 0 | R33: 0
D34: 0 | G34: 0 | I34: 0 | J34: =E34*H34 -> 0 | K34: 0 | M34: 0 | N34: =J34*L34 -> 0 | O34: 0 | P34: =+J34-N34 -> 0 | Q34: 0 | R34: =+J34*E$7 -> 0
B35: Irrigation
C36: Energy Cost | D36: 18.95 | F36: AcreInch | G36: 6.75 | I36: 127.9125 | J36: =E36*H36 -> 0 | K36: 0 | M36: 0 | N36: =J36*L36 -> 0 | O36: 127.9125 | P36: =+J36-N36 -> 0 | Q36: 15349.5 | R36: =+J36*E$7 -> 0
C37: Irrigation Labor | D37: 1.208 | F37: Hour | G37: 15 | I37: 18.12 | J37: 0 | K37: 0 | M37: 0 | N37: 0 | O37: 18.12 | P37: 0 | Q37: 2174.4 | R37: 0
B38: Machinery Labor
C39: Tractors/Self-Propelled | D39: 1.85 | F39: Hour | G39: 15 | I39: 27.75 | J39: =E39*H39 -> 0 | K39: 0 | M39: 0 | N39: =J39*L39 -> 0 | O39: 27.75 | P39: =+J39-N39 -> 0 | Q39: 3330 | R39: =+J39*E$7 -> 0
C40: Other Labor | D40: 2.22 | F40: Hour | G40: 15 | I40: 33.3 | J40: =E40*H40 -> 0 | K40: 0 | M40: 0 | N40: =J40*L40 -> 0 | O40: 33.3 | P40: =+J40-N40 -> 0 | Q40: 3996 | R40: =+J40*E$7 -> 0
B42: Diesel Fuel
C43: Pickup/General Use Equipment | D43: 1 | F43: Acre | G43: 0 | I43: 0 | J43: =E43*H43 -> 0 | K43: 0 | M43: 0 | N43: =J43*L43 -> 0 | O43: 0 | P43: =+J43-N43 -> 0 | Q43: 0 | R43: =+J43*E$7 -> 0
C44: Tractors/Self-Propelled | D44: 22.61 | F44: Gallon | G44: 2.59 | I44: 58.5599 | J44: =E44*H44 -> 0 | K44: 0 | M44: 0 | N44: =J44*L44 -> 0 | O44: 58.5599 | P44: =+J44-N44 -> 0 | Q44: 7027.188 | R44: =+J44*E$7 -> 0
B46: Gasoline
C47: Pickup/General Use Equipment | D47: 1 | F47: Acre | G47: 6.375 | I47: 6.375 | J47: =E47*H47 -> 0 | K47: 0 | M47: 0 | N47: =J47*L47 -> 0 | O47: 6.375 | P47: =+J47-N47 -> 0 | Q47: 765 | R47: =+J47*E$7 -> 0
C48: Tractors/Self-Propelled | D48: 0 | F48: Gallon | G48: 3.1 | I48: 0 | J48: =E48*H48 -> 0 | K48: 0 | M48: 0 | N48: =J48*L48 -> 0 | O48: 0 | P48: =+J48-N48 -> 0 | Q48: 0 | R48: =+J48*E$7 -> 0
B50: Repairs & Maintenance
C51: Pickup/General Use Equipment | D51: 1 | F51: Acre | G51: 2.125 | I51: 2.125 | J51: =E51*H51 -> 0 | K51: 0 | M51: 0 | N51: =J51*L51 -> 0 | O51: 2.125 | P51: =+J51-N51 -> 0 | Q51: 255 | R51: =+J51*E$7 -> 0
C52: Irrigation Equipment | D52: 1 | F52: Acre | G52: 16.670315 | I52: 16.670315 | J52: 0 | K52: 0 | M52: 0 | N52: 0 | O52: 16.670315 | P52: 0 | Q52: 2000.4378 | R52: 0
C53: Tractors/Self-Propelled | D53: 1 | F53: Acre | G53: 39.53749659 | I53: 39.53749659 | J53: 0 | K53: 0 | M53: 0 | N53: 0 | O53: 39.53749659 | P53: 0 | Q53: 4744.499591 | R53: 0
C54: Implements | D54: 1 | F54: Acre | G54: 13.36144382 | I54: 13.36144382 | J54: 0 | K54: 0 | M54: 0 | N54: 0 | O54: 13.36144382 | P54: 0 | Q54: 1603.373258 | R54: 0
I55: 0 | J55: 0 | K55: 0 | M55: 0 | N55: 0 | O55: 0 | P55: 0 | Q55: 0 | R55: 0
I56: 0 | J56: 0 | K56: 0 | M56: 0 | N56: 0 | O56: 0 | P56: 0 | Q56: 0 | R56: 0
B57: Interest on Credit Line | G57: 0.09 | I57: 27.27599397 | J57: =+SUM(J17:J56)/2*H57 -> 0 | M57: 0 | N57: =+SUM(N17:N56)/2*L57 -> 0 | O57: 27.27599397 | P57: =+SUM(P17:P56)/2*L57 -> 0 | Q57: 3273.119276 | R57: =+J57*E$7 -> 0
A58: Total Variable Costs | I58: 666.8412666 | J58: =SUM(J18:J57) -> 0 | M58: 0 | N58: =SUM(N18:N57) -> 0 | O58: 666.8412666 | P58: =SUM(P18:P57) -> 0 | Q58: 80020.95199 | R58: =SUM(R18:R57) -> 0
A59: Planned Returns Above Variable Costs: | I59: 483.1587334 | J59: =+J13-J58 -> 0 | M59: 0 | N59: =+N13-N58 -> 0 | O59: 483.1587334 | P59: =+P13-P58 -> 0 | Q59: 57979.04801 | R59: =+R13-R58 -> 0
B60: Breakeven Price to Cover Variable Costs | G60: 333.4206333 | H60: =IF(E10=0,"n/a",(YVarExp-(YTotExp+YTotRet-J10))/E10) -> n/a | I60: Ton
Q61: Enterprise | R61: Enterprise
A62: FIXED COSTS | D62: Quantity | E62: Quantity | F62: Units | G62: $/Unit | H62: $/Unit | I62: Total | J62: Total | K62: Share | L62: Share | M62: Landlord | N62: Landlord | O62: Tenant | P62: Tenant | Q62: Total | R62: Total
B63: Machinery Depreciation
C64: Pickup/General Use Equipment | D64: 1 | F64: Acre | G64: 2.950208333 | I64: 2.950208333 | J64: =E64*H64 -> 0 | K64: 0 | M64: 0 | N64: =J64*L64 -> 0 | O64: 2.950208333 | P64: =+J64-N64 -> 0 | Q64: 354.025 | R64: =+J64*E$7 -> 0
C65: Irrigation Equipment | D65: 1 | F65: Acre | G65: 24.7 | I65: 24.7 | J65: 0 | K65: 0 | M65: 0 | N65: =J65*L65 -> 0 | O65: 24.7 | P65: 0 | Q65: 2964 | R65: 0
C66: Tractors/Self-Propelled | D66: 1 | F66: Acre | G66: 116.2365362 | I66: 116.2365362 | J66: 0 | K66: 0 | M66: 0 | N66: =J66*L66 -> 0 | O66: 116.2365362 | P66: 0 | Q66: 13948.38434 | R66: 0
C67: Implements | D67: 1 | F67: Acre | G67: 16.62015993 | I67: 16.62015993 | J67: 0 | K67: 0 | M67: 0 | N67: =J67*L67 -> 0 | O67: 16.62015993 | P67: 0 | Q67: 1994.419192 | R67: 0
B68: Equipment Investment
C69: Pickup/General Use Equipment | D69: 20.665625 | F69: Dollars | G69: 0.08 | I69: 1.65325 | J69: =E69*H69 -> 0 | K69: 0 | M69: 0 | N69: =J69*L69 -> 0 | O69: 1.65325 | P69: =+J69-N69 -> 0 | Q69: 198.39 | R69: =+J69*E$7 -> 0
C70: Irrigation Equipment | D70: 720.4166667 | F70: Dollars | G70: 0.08 | I70: 57.63333333 | J70: 0 | K70: 0 | M70: 0 | N70: =J70*L70 -> 0 | O70: 57.63333333 | P70: 0 | Q70: 6916 | R70: 0
C71: Tractors/Self-Propelled | D71: 870.4954414 | F71: Dollars | G71: 0.08 | I71: 69.63963531 | J71: 0 | K71: 0 | M71: 0 | N71: =J71*L71 -> 0 | O71: 69.63963531 | P71: 0 | Q71: 8356.756237 | R71: 0
C72: Implements | D72: 228.1127089 | F72: Dollars | G72: 0.08 | I72: 18.24901671 | J72: 0 | K72: 0 | M72: 0 | N72: =J72*L72 -> 0 | O72: 18.24901671 | P72: 0 | Q72: 2189.882005 | R72: 0
B73: Salaried Labor | D73: 1 | F73: Acre | G73: 0 | I73: 0 | J73: 0 | K73: 0 | M73: 0 | N73: =J73*L73 -> 0 | O73: 0 | P73: =+J73-N73 -> 0 | Q73: 0 | R73: =+J73*E$7 -> 0
B74: Management Fee, Owner/Operator Labor | D74: 1 | F74: Acre | G74: 0 | I74: 0 | J74: 0 | K74: 0 | M74: 0 | N74: 0 | O74: 0 | P74: 0 | Q74: 0 | R74: 0
B75: Allocated Establishment Cost | D75: 1 | F75: Acre | G75: 0 | I75: 0 | J75: 0 | K75: 0 | M75: 0 | N75: 0 | O75: 0 | P75: 0 | Q75: 0 | R75: 0
B76: Cash Rent - Peanuts | D76: 1 | F76: Acre | G76: 90 | I76: 90 | J76: 0 | K76: 0 | M76: 0 | N76: 0 | O76: 90 | P76: 0 | Q76: 10800 | R76: 0
B77: Property Taxes | D77: 1 | F77: Acre | G77: 0 | I77: 0 | J77: 0 | K77: 0 | M77: 0 | N77: 0 | O77: 0 | P77: 0 | Q77: 0 | R77: 0
B78: Whole Farm Insurance | D78: 1 | F78: Acre | G78: 0 | I78: 0 | J78: 0 | K78: 0 | M78: 0 | N78: 0 | O78: 0 | P78: 0 | Q78: 0 | R78: 0
D79: 1 | G79: 0 | I79: 0 | J79: 0 | K79: 0 | M79: 0 | N79: 0 | O79: 0 | P79: 0 | Q79: 0 | R79: 0
D80: 1 | G80: 0 | I80: 0 | J80: =E80*H80 -> 0 | K80: 0 | M80: 0 | N80: 0 | O80: 0 | P80: 0 | Q80: 0 | R80: 0
A81: Total Fixed Costs | I81: 397.6821398 | J81: =+SUM(J64:J80) -> 0 | M81: 0 | N81: =+SUM(N64:N80) -> 0 | O81: 397.6821398 | P81: =+SUM(P64:P80) -> 0 | Q81: 47721.85677 | R81: =+SUM(R64:R80) -> 0
A82: Total Specified Costs | I82: 1064.523406 | J82: =+J58+J81 -> 0 | M82: 0 | N82: =+N58+N81 -> 0 | O82: 1064.523406 | P82: =+P58+P81 -> 0 | Q82: 127742.8088 | R82: =+R58+R81 -> 0
A84: Returns Above Specified Costs | I84: 85.47659366 | J84: =+J13-J82 -> 0 | M84: 0 | N84: =+N13-N82 -> 0 | O84: 85.47659366 | P84: =+P13-P82 -> 0 | Q84: 10257.19124 | R84: =+R13-R82 -> 0
A86: Breakeven Price to Cover Total Costs | G86: 532.2617032 | H86: =IF(E10=0,"n/a",(YTotExp-(YTotExp+YTotRet-J10))/E10) -> n/a | I86: Ton
D88: Example Breakeven Prices
B89: Example | C89: Example | D89: To Cover | G89: To Cover
B90: Yield | C90: Yield | D90: Variable | G90: Total
B91: Percent | C91: Ton | D91: Costs | G91: Costs
B92: 0.75 | C92: 1.5 | D92: 444.5608444 | G92: 709.6822709
B93: 0.9 | C93: 1.8 | D93: 370.4673703 | G93: 591.4018924
B94: 1 | C94: 2 | D94: 333.4206333 | G94: 532.2617032
B95: 1.1 | C95: 2.2 | D95: 303.1096666 | G95: 483.8742756
B96: 1.25 | C96: 2.5 | D96: 266.7365066 | G96: 425.8093625
A98: Developed by Francisco Abelló, Assistant Professor and Extension Specialist, Texas A&M AgriLife Extension, 940-647-3908
A100: Information presented is prepared solely as a general guide and not intended to recognize or predict the costs and returns from any one operation. Brand names are mentioned only as examples and imply no endorsement.

Sheet SorghumDryland
A1: Projections for Planning Purposes Only -- Not to be Used without Updating
A2: 2025 Estimated Costs and Returns per Acre
A3: Dryland Sorghum
A4: Enter your name for this budget in the cell above.
A5: Enter Your Values in the cells highlighed in MAROON.
E6: Your Acres | R6: Your
C7: Crop Acres | D7: 640 | L7: Your | Q7: Enterprise | R7: Enterprise
E8: Your | H8: Your | I8: Cash | J8: Your | K8: Landlord | L8: Landlord | N8: Your | P8: Your | Q8: Total | R8: Total
A9: REVENUE | D9: Quantity | E9: Quantity | F9: Units | G9: $/Unit | H9: $/Unit | I9: Total | J9: Total | K9: Share | L9: Share | M9: Landlord | N9: Landlord | O9: Tenant | P9: Tenant | Q9: (640 acres) | R9: ="(" & E7 & " acres)" -> ( acres)
B10: Grain Sorghum | D10: 30 | F10: CWT | G10: 7.24137931 | I10: 217.2413793 | J10: =E10*H10 -> 0 | K10: 0 | M10: 0 | N10: =J10*L10 -> 0 | O10: 217.2413793 | P10: =+J10-N10 -> 0 | Q10: 139034.4828 | R10: =+J10*E$7 -> 0
D11: 0 | G11: 0 | I11: 0 | J11: 0 | K11: 0 | M11: 0 | N11: 0 | O11: 0 | P11: =+J11-N11 -> 0 | Q11: 0 | R11: 0
D12: 0 | G12: 0 | I12: 0 | J12: 0 | K12: 0 | M12: 0 | N12: 0 | O12: 0 | P12: 0 | Q12: 0 | R12: 0
A13: Total Revenue | I13: 217.2413793 | J13: =SUM(J10:J12) -> 0 | M13: 0 | N13: =SUM(N10:N12) -> 0 | O13: 217.2413793 | P13: =SUM(P10:P12) -> 0 | Q13: 139034.4828 | R13: =SUM(R10:R12) -> 0
Q14: Enterprise | R14: Enterprise
A15: VARIABLE COSTS | D15: Quantity | E15: Quantity | F15: Units | G15: $/Unit | H15: $/Unit | I15: Total | J15: Total | K15: Share | L15: Share | M15: Landlord | N15: Landlord | O15: Tenant | P15: Tenant | Q15: Total | R15: Total
A16: Production Costs
B17: Herbicide
C18: Atrazine | D18: 1 | F18: Quart | G18: 11.21 | I18: 11.21 | J18: =E18*H18 -> 0 | K18: 0 | M18: 0 | N18: =J18*L18 -> 0 | O18: 11.21 | P18: =+J18-N18 -> 0 | Q18: 7174.4 | R18: =+J18*E$7 -> 0
C19: 2,4D | D19: 1.5 | F19: Pint | G19: 4.634 | I19: 6.951 | J19: 0 | K19: 0 | M19: 0 | N19: 0 | O19: 6.951 | P19: 0 | Q19: 4448.64 | R19: 0
C20: Glyphosate | D20: 2 | F20: Pint | G20: 2.18 | I20: 4.36 | J20: 0 | K20: 0 | M20: 0 | N20: 0 | O20: 4.36 | P20: 0 | Q20: 2790.4 | R20: 0
B21: Seed
C22: Grain Sorghum Seed | D22: 3 | F22: Pound | G22: 2.5 | I22: 7.5 | J22: 0 | K22: 0 | M22: 0 | N22: 0 | O22: 7.5 | P22: 0 | Q22: 4800 | R22: 0
B23: Custom
C24: Custom Harvest Sorghum | D24: 1 | F24: Acre | G24: 35 | I24: 35 | J24: 0 | K24: 0 | M24: 0 | N24: 0 | O24: 35 | P24: 0 | Q24: 22400 | R24: 0
C25: Custom Haul Sorghum | D25: 22 | F25: CWT | G25: 0.48 | I25: 10.56 | J25: 0 | K25: 0 | M25: 0 | N25: 0 | O25: 10.56 | P25: 0 | Q25: 6758.4 | R25: 0
B26: Miscellaneous
C27: Insurance - Grain Sorghum | D27: 1 | F27: Acre | G27: 12 | I27: 12 | J27: 0 | K27: 0 | M27: 0 | N27: 0 | O27: 12 | P27: 0 | Q27: 7680 | R27: 0
B28: Insecticide
C29: Sorghum Insecticide | D29: 1 | F29: Unit | G29: 30 | I29: 30 | J29: 0 | K29: 0 | M29: 0 | N29: 0 | O29: 30 | P29: 0 | Q29: 19200 | R29: 0
B30: Fertilizer
C31: Fertilizer (N) | D31: 50 | F31: Pound | G31: 0.505 | I31: 25.25 | J31: 0 | K31: 0 | M31: 0 | N31: 0 | O31: 25.25 | P31: 0 | Q31: 16160 | R31: 0
D32: 0 | G32: 0 | I32: 0 | J32: 0 | K32: 0 | M32: 0 | N32: 0 | O32: 0 | P32: 0 | Q32: 0 | R32: 0
D33: 0 | G33: 0 | I33: 0 | J33: 0 | K33: 0 | M33: 0 | N33: 0 | O33: 0 | P33: 0 | Q33: 0 | R33: 0
D34: 0 | G34: 0 | I34: 0 | J34: =E34*H34 -> 0 | K34: 0 | M34: 0 | N34: =J34*L34 -> 0 | O34: 0 | P34: =+J34-N34 -> 0 | Q34: 0 | R34: =+J34*E$7 -> 0
B35: Machinery Labor
C36: Tractors/Self-Propelled | D36: 0.38 | F36: Hour | G36: 15 | I36: 5.7 | J36: =E36*H36 -> 0 | K36: 0 | M36: 0 | N36: =J36*L36 -> 0 | O36: 5.7 | P36: =+J36-N36 -> 0 | Q36: 3648 | R36: =+J36*E$7 -> 0
C37: Other Labor | D37: 0.46 | F37: Hour | G37: 15 | I37: 6.9 | J37: =E37*H37 -> 0 | K37: 0 | M37: 0 | N37: =J37*L37 -> 0 | O37: 6.9 | P37: =+J37-N37 -> 0 | Q37: 4416 | R37: =+J37*E$7 -> 0
B39: Diesel Fuel
C40: Pickup/General Use Equipment | D40: 1 | F40: Acre | G40: 0 | I40: 0 | J40: =E40*H40 -> 0 | K40: 0 | M40: 0 | N40: =J40*L40 -> 0 | O40: 0 | P40: =+J40-N40 -> 0 | Q40: 0 | R40: =+J40*E$7 -> 0
C41: Tractors/Self-Propelled | D41: 2.79 | F41: Gallon | G41: 2.59 | I41: 7.2261 | J41: =E41*H41 -> 0 | K41: 0 | M41: 0 | N41: =J41*L41 -> 0 | O41: 7.2261 | P41: =+J41-N41 -> 0 | Q41: 4624.704 | R41: =+J41*E$7 -> 0
B43: Gasoline
C44: Pickup/General Use Equipment | D44: 1 | F44: Acre | G44: 2.109375 | I44: 2.109375 | J44: =E44*H44 -> 0 | K44: 0 | M44: 0 | N44: =J44*L44 -> 0 | O44: 2.109375 | P44: =+J44-N44 -> 0 | Q44: 1350 | R44: =+J44*E$7 -> 0
C45: Tractors/Self-Propelled | D45: 0 | F45: Gallon | G45: 3.1 | I45: 0 | J45: =E45*H45 -> 0 | K45: 0 | M45: 0 | N45: =J45*L45 -> 0 | O45: 0 | P45: =+J45-N45 -> 0 | Q45: 0 | R45: =+J45*E$7 -> 0
B47: Repairs & Maintenance
C48: Pickup/General Use Equipment | D48: 1 | F48: Acre | G48: 0.703125 | I48: 0.703125 | J48: =E48*H48 -> 0 | K48: 0 | M48: 0 | N48: =J48*L48 -> 0 | O48: 0.703125 | P48: =+J48-N48 -> 0 | Q48: 450 | R48: =+J48*E$7 -> 0
C49: Irrigation Equipment | D49: 1 | F49: Acre | G49: 0 | I49: 0 | J49: 0 | K49: 0 | M49: 0 | N49: 0 | O49: 0 | P49: 0 | Q49: 0 | R49: 0
C50: Tractors/Self-Propelled | D50: 1 | F50: Acre | G50: 5.576604572 | I50: 5.576604572 | J50: 0 | K50: 0 | M50: 0 | N50: 0 | O50: 5.576604572 | P50: 0 | Q50: 3569.026926 | R50: 0
C51: Implements | D51: 1 | F51: Acre | G51: 5.724557727 | I51: 5.724557727 | J51: 0 | K51: 0 | M51: 0 | N51: 0 | O51: 5.724557727 | P51: 0 | Q51: 3663.716945 | R51: 0
I52: 0 | J52: 0 | K52: 0 | M52: 0 | N52: 0 | O52: 0 | P52: 0 | Q52: 0 | R52: 0
I53: 0 | J53: 0 | K53: 0 | M53: 0 | N53: 0 | O53: 0 | P53: 0 | Q53: 0 | R53: 0
B54: Interest on Credit Line | G54: 0.09 | I54: 4.512321326 | J54: =+SUM(J17:J53)/2*H54 -> 0 | M54: 0 | N54: =+SUM(N17:N53)/2*L54 -> 0 | O54: 4.512321326 | P54: =+SUM(P17:P53)/2*L54 -> 0 | Q54: 2887.885649 | R54: =+J54*E$7 -> 0
A55: Total Variable Costs | I55: 181.2830836 | J55: =SUM(J18:J54) -> 0 | M55: 0 | N55: =SUM(N18:N54) -> 0 | O55: 181.2830836 | P55: =SUM(P18:P54) -> 0 | Q55: 116021.1735 | R55: =SUM(R18:R54) -> 0
A56: Planned Returns Above Variable Costs: | I56: 35.95829569 | J56: =+J13-J55 -> 0 | M56: 0 | N56: =+N13-N55 -> 0 | O56: 35.95829569 | P56: =+P13-P55 -> 0 | Q56: 23013.30924 | R56: =+R13-R55 -> 0
B57: Breakeven Price to Cover Variable Costs | G57: 6.042769454 | H57: =IF(E10=0,"n/a",(YVarExp-(YTotExp+YTotRet-J10))/E10) -> n/a | I57: CWT
Q58: Enterprise | R58: Enterprise
A59: FIXED COSTS | D59: Quantity | E59: Quantity | F59: Units | G59: $/Unit | H59: $/Unit | I59: Total | J59: Total | K59: Share | L59: Share | M59: Landlord | N59: Landlord | O59: Tenant | P59: Tenant | Q59: Total | R59: Total
B60: Machinery Depreciation
C61: Pickup/General Use Equipment | D61: 1 | F61: Acre | G61: 0.976171875 | I61: 0.976171875 | J61: =E61*H61 -> 0 | K61: 0 | M61: 0 | N61: =J61*L61 -> 0 | O61: 0.976171875 | P61: =+J61-N61 -> 0 | Q61: 624.75 | R61: =+J61*E$7 -> 0
C62: Tractors/Self-Propelled | D62: 1 | F62: Acre | G62: 7.997511211 | I62: 7.997511211 | J62: 0 | K62: 0 | M62: 0 | N62: =J62*L62 -> 0 | O62: 7.997511211 | P62: 0 | Q62: 5118.407175 | R62: 0
C63: Implements | D63: 1 | F63: Acre | G63: 7.759851153 | I63: 7.759851153 | J63: 0 | K63: 0 | M63: 0 | N63: =J63*L63 -> 0 | O63: 7.759851153 | P63: 0 | Q63: 4966.304738 | R63: 0
B64: Equipment Investment
C65: Pickup/General Use Equipment | D65: 6.837890625 | F65: Dollars | G65: 0.08 | I65: 0.54703125 | J65: =E65*H65 -> 0 | K65: 0 | M65: 0 | N65: =J65*L65 -> 0 | O65: 0.54703125 | P65: =+J65-N65 -> 0 | Q65: 350.1 | R65: =+J65*E$7 -> 0
C66: Tractors/Self-Propelled | D66: 61.26472484 | F66: Dollars | G66: 0.08 | I66: 4.901177987 | J66: 0 | K66: 0 | M66: 0 | N66: =J66*L66 -> 0 | O66: 4.901177987 | P66: 0 | Q66: 3136.753912 | R66: 0
C67: Implements | D67: 33.19491882 | F67: Dollars | G67: 0.08 | I67: 2.655593506 | J67: 0 | K67: 0 | M67: 0 | N67: =J67*L67 -> 0 | O67: 2.655593506 | P67: 0 | Q67: 1699.579844 | R67: 0
B68: Salaried Labor | D68: 1 | F68: Acre | G68: 0 | I68: 0 | J68: 0 | K68: 0 | M68: 0 | N68: =J68*L68 -> 0 | O68: 0 | P68: =+J68-N68 -> 0 | Q68: 0 | R68: =+J68*E$7 -> 0
B69: Management Fee, Owner/Operator Labor | D69: 1 | F69: Acre | G69: 0 | I69: 0 | J69: 0 | K69: 0 | M69: 0 | N69: 0 | O69: 0 | P69: 0 | Q69: 0 | R69: 0
B70: Allocated Establishment Cost | D70: 1 | F70: Acre | G70: 0 | I70: 0 | J70: 0 | K70: 0 | M70: 0 | N70: 0 | O70: 0 | P70: 0 | Q70: 0 | R70: 0
B71: Cash Rent - Grain Sorghum | D71: 1 | F71: Acre | G71: 30 | I71: 30 | J71: 0 | K71: 0 | M71: 0 | N71: 0 | O71: 30 | P71: 0 | Q71: 19200 | R71: 0
B72: Property Taxes | D72: 1 | F72: Acre | G72: 0 | I72: 0 | J72: 0 | K72: 0 | M72: 0 | N72: 0 | O72: 0 | P72: 0 | Q72: 0 | R72: 0
B73: Whole Farm Insurance | D73: 1 | F73: Acre | G73: 0 | I73: 0 | J73: 0 | K73: 0 | M73: 0 | N73: 0 | O73: 0 | P73: 0 | Q73: 0 | R73: 0
D74: 1 | G74: 0 | I74: 0 | J74: 0 | K74: 0 | M74: 0 | N74: 0 | O74: 0 | P74: 0 | Q74: 0 | R74: 0
D75: 1 | G75: 0 | I75: 0 | J75: =E75*H75 -> 0 | K75: 0 | M75: 0 | N75: 0 | O75: 0 | P75: 0 | Q75: 0 | R75: 0
A76: Total Fixed Costs | I76: 54.83733698 | J76: =+SUM(J61:J75) -> 0 | M76: 0 | N76: =+SUM(N61:N75) -> 0 | O76: 54.83733698 | P76: =+SUM(P61:P75) -> 0 | Q76: 35095.89567 | R76: =+SUM(R61:R75) -> 0
A77: Total Specified Costs | I77: 236.1204206 | J77: =+J55+J76 -> 0 | M77: 0 | N77: =+N55+N76 -> 0 | O77: 236.1204206 | P77: =+P55+P76 -> 0 | Q77: 151117.0692 | R77: =+R55+R76 -> 0
A79: Returns Above Specified Costs | I79: -18.8790413 | J79: =+J13-J77 -> 0 | M79: 0 | N79: =+N13-N77 -> 0 | O79: -18.8790413 | P79: =+P13-P77 -> 0 | Q79: -12082.58643 | R79: =+R13-R77 -> 0
A81: Breakeven Price to Cover Total Costs | G81: 7.870680687 | H81: =IF(E10=0,"n/a",(YTotExp-(YTotExp+YTotRet-J10))/E10) -> n/a | I81: CWT
D83: Example Breakeven Prices
B84: Example | C84: Example | D84: To Cover | G84: To Cover
B85: Yield | C85: Yield | D85: Variable | G85: Total
B86: Percent | C86: CWT | D86: Costs | G86: Costs
B87: 0.75 | C87: 22.5 | D87: 8.057025939 | G87: 10.49424092
B88: 0.9 | C88: 27 | D88: 6.714188282 | G88: 8.745200763
B89: 1 | C89: 30 | D89: 6.042769454 | G89: 7.870680687
B90: 1.1 | C90: 33 | D90: 5.493426777 | G90: 7.155164261
B91: 1.25 | C91: 37.5 | D91: 4.834215563 | G91: 6.29654455
A93: Developed by Francisco Abelló, Assistant Professor and Extension Specialist, Texas A&M AgriLife Extension, 940-647-3908
A95: Information presented is prepared solely as a general guide and not intended to recognize or predict the costs and returns from any one operation. Brand names are mentioned only as examples and imply no endorsement.

Sheet WheatDryland
A1: Projections for Planning Purposes Only -- Not to be Used without Updating
A2: 2025 Estimated Costs and Returns per Acre
A3: Dryland Wheat
A4: Enter your name for this budget in the cell above.
A5: Enter Your Values in the cells highlighed in MAROON.
E6: Your Acres | R6: Your
C7: Crop Acres | D7: 640 | L7: Your | Q7: Enterprise | R7: Enterprise
E8: Your | H8: Your | I8: Cash | J8: Your | K8: Landlord | L8: Landlord | N8: Your | P8: Your | Q8: Total | R8: Total
A9: REVENUE | D9: Quantity | E9: Quantity | F9: Units | G9: $/Unit | H9: $/Unit | I9: Total | J9: Total | K9: Share | L9: Share | M9: Landlord | N9: Landlord | O9: Tenant | P9: Tenant | Q9: (640 acres) | R9: ="(" & E7 & " acres)" -> ( acres)
B10: Wheat | D10: 30 | F10: Bushel | G10: 5.1 | I10: 153 | J10: =E10*H10 -> 0 | K10: 0 | M10: 0 | N10: =J10*L10 -> 0 | O10: 153 | P10: =+J10-N10 -> 0 | Q10: 97920 | R10: =+J10*E$7 -> 0
B11: Wheat Pasture | D11: 64 | F11: Pound of Gain | G11: 0.65 | I11: 41.6 | J11: 0 | K11: 0 | M11: 0 | N11: 0 | O11: 41.6 | P11: =+J11-N11 -> 0 | Q11: 26624 | R11: 0
D12: 0 | G12: 0 | I12: 0 | J12: 0 | K12: 0 | M12: 0 | N12: 0 | O12: 0 | P12: 0 | Q12: 0 | R12: 0
D13: 0 | G13: 0 | I13: 0 | J13: 0 | K13: 0 | M13: 0 | N13: 0 | O13: 0 | P13: 0 | Q13: 0 | R13: 0
A14: Total Revenue | I14: 194.6 | J14: =SUM(J10:J13) -> 0 | M14: 0 | N14: =SUM(N10:N13) -> 0 | O14: 194.6 | P14: =SUM(P10:P13) -> 0 | Q14: 124544 | R14: =SUM(R10:R13) -> 0
Q15: Enterprise | R15: Enterprise
A16: VARIABLE COSTS | D16: Quantity | E16: Quantity | F16: Units | G16: $/Unit | H16: $/Unit | I16: Total | J16: Total | K16: Share | L16: Share | M16: Landlord | N16: Landlord | O16: Tenant | P16: Tenant | Q16: Total | R16: Total
A17: Production Costs
B18: Seed
C19: Wheat Seed | D19: 50 | F19: Pound | G19: 0.23 | I19: 11.5 | J19: =E19*H19 -> 0 | K19: 0 | M19: 0 | N19: =J19*L19 -> 0 | O19: 11.5 | P19: =+J19-N19 -> 0 | Q19: 7360 | R19: =+J19*E$7 -> 0
B20: Fertilizer
C21: Fertilizer (N) | D21: 30 | F21: Pound | G21: 0.505 | I21: 15.15 | J21: 0 | K21: 0 | M21: 0 | N21: 0 | O21: 15.15 | P21: 0 | Q21: 9696 | R21: 0
C22: Fertilizer (P) | D22: 25 | F22: Pound | G22: 0.60657 | I22: 15.16425 | J22: 0 | K22: 0 | M22: 0 | N22: 0 | O22: 15.16425 | P22: 0 | Q22: 9705.12 | R22: 0
B23: Custom
C24: Custom Harvest Wheat | D24: 1 | F24: Acre | G24: 35 | I24: 35 | J24: 0 | K24: 0 | M24: 0 | N24: 0 | O24: 35 | P24: 0 | Q24: 22400 | R24: 0
C25: Overage - Wheat | D25: 10 | F25: Bushel | G25: 0.24 | I25: 2.4 | J25: 0 | K25: 0 | M25: 0 | N25: 0 | O25: 2.4 | P25: 0 | Q25: 1536 | R25: 0
C26: Custom Haul Wheat | D26: 30 | F26: Bushel | G26: 0.24 | I26: 7.2 | J26: 0 | K26: 0 | M26: 0 | N26: 0 | O26: 7.2 | P26: 0 | Q26: 4608 | R26: 0
C27: Fertilizer Application | D27: 1 | F27: Acre | G27: 5 | I27: 5 | J27: 0 | K27: 0 | M27: 0 | N27: 0 | O27: 5 | P27: 0 | Q27: 3200 | R27: 0
B28: Miscellaneous
C29: Insurance - Wheat | D29: 1 | F29: Acre | G29: 12 | I29: 12 | J29: 0 | K29: 0 | M29: 0 | N29: 0 | O29: 12 | P29: 0 | Q29: 7680 | R29: 0
B30: Herbicide
C31: Herbicide - Wheat | D31: 6.4 | F31: Ounce | G31: 0.171875 | I31: 1.1 | J31: 0 | K31: 0 | M31: 0 | N31: 0 | O31: 1.1 | P31: 0 | Q31: 704 | R31: 0
C32: 2,4D | D32: 1.4 | F32: Pint | G32: 4.634 | I32: 6.4876 | J32: 0 | K32: 0 | M32: 0 | N32: 0 | O32: 6.4876 | P32: 0 | Q32: 4152.064 | R32: 0
C33: Roundup | D33: 2 | F33: Pint | G33: 2.18 | I33: 4.36 | J33: 0 | K33: 0 | M33: 0 | N33: 0 | O33: 4.36 | P33: 0 | Q33: 2790.4 | R33: 0
B34: Insecticide
C35: Insecticide & Application - Wheat | D35: 2 | F35: Ounce | G35: 4.5 | I35: 9 | J35: 0 | K35: 0 | M35: 0 | N35: 0 | O35: 9 | P35: 0 | Q35: 5760 | R35: 0
B36: Fungicides
C37: Fungicide Application | D37: 1 | F37: Acre | G37: 5.5 | I37: 5.5 | J37: 0 | K37: 0 | M37: 0 | N37: 0 | O37: 5.5 | P37: 0 | Q37: 3520 | R37: 0
D38: 0 | G38: 0 | I38: 0 | J38: 0 | K38: 0 | M38: 0 | N38: 0 | O38: 0 | P38: 0 | Q38: 0 | R38: 0
D39: 0 | G39: 0 | I39: 0 | J39: 0 | K39: 0 | M39: 0 | N39: 0 | O39: 0 | P39: 0 | Q39: 0 | R39: 0
D40: 0 | G40: 0 | I40: 0 | J40: =E40*H40 -> 0 | K40: 0 | M40: 0 | N40: =J40*L40 -> 0 | O40: 0 | P40: =+J40-N40 -> 0 | Q40: 0 | R40: =+J40*E$7 -> 0
B41: Machinery Labor
C42: Tractors/Self-Propelled | D42: 0.32 | F42: Hour | G42: 15 | I42: 4.8 | J42: =E42*H42 -> 0 | K42: 0 | M42: 0 | N42: =J42*L42 -> 0 | O42: 4.8 | P42: =+J42-N42 -> 0 | Q42: 3072 | R42: =+J42*E$7 -> 0
C43: Other Labor | D43: 0.38 | F43: Hour | G43: 15 | I43: 5.7 | J43: =E43*H43 -> 0 | K43: 0 | M43: 0 | N43: =J43*L43 -> 0 | O43: 5.7 | P43: =+J43-N43 -> 0 | Q43: 3648 | R43: =+J43*E$7 -> 0
B45: Diesel Fuel
C46: Pickup/General Use Equipment | D46: 1 | F46: Acre | G46: 0 | I46: 0 | J46: =E46*H46 -> 0 | K46: 0 | M46: 0 | N46: =J46*L46 -> 0 | O46: 0 | P46: =+J46-N46 -> 0 | Q46: 0 | R46: =+J46*E$7 -> 0
C47: Tractors/Self-Propelled | D47: 2.35 | F47: Gallon | G47: 2.59 | I47: 6.0865 | J47: =E47*H47 -> 0 | K47: 0 | M47: 0 | N47: =J47*L47 -> 0 | O47: 6.0865 | P47: =+J47-N47 -> 0 | Q47: 3895.36 | R47: =+J47*E$7 -> 0
B49: Gasoline
C50: Pickup/General Use Equipment | D50: 1 | F50: Acre | G50: 2.109375 | I50: 2.109375 | J50: =E50*H50 -> 0 | K50: 0 | M50: 0 | N50: =J50*L50 -> 0 | O50: 2.109375 | P50: =+J50-N50 -> 0 | Q50: 1350 | R50: =+J50*E$7 -> 0
C51: Tractors/Self-Propelled | D51: 0 | F51: Gallon | G51: 3.1 | I51: 0 | J51: =E51*H51 -> 0 | K51: 0 | M51: 0 | N51: =J51*L51 -> 0 | O51: 0 | P51: =+J51-N51 -> 0 | Q51: 0 | R51: =+J51*E$7 -> 0
B53: Repairs & Maintenance
C54: Pickup/General Use Equipment | D54: 1 | F54: Acre | G54: 0.703125 | I54: 0.703125 | J54: =E54*H54 -> 0 | K54: 0 | M54: 0 | N54: =J54*L54 -> 0 | O54: 0.703125 | P54: =+J54-N54 -> 0 | Q54: 450 | R54: =+J54*E$7 -> 0
C55: Irrigation Equipment | D55: 1 | F55: Acre | G55: 0 | I55: 0 | J55: 0 | K55: 0 | M55: 0 | N55: 0 | O55: 0 | P55: 0 | Q55: 0 | R55: 0
C56: Tractors/Self-Propelled | D56: 1 | F56: Acre | G56: 4.637515721 | I56: 4.637515721 | J56: 0 | K56: 0 | M56: 0 | N56: 0 | O56: 4.637515721 | P56: 0 | Q56: 2968.010062 | R56: 0
C57: Implements | D57: 1 | F57: Acre | G57: 4.394021753 | I57: 4.394021753 | J57: 0 | K57: 0 | M57: 0 | N57: 0 | O57: 4.394021753 | P57: 0 | Q57: 2812.173922 | R57: 0
I58: 0 | J58: 0 | K58: 0 | M58: 0 | N58: 0 | O58: 0 | P58: 0 | Q58: 0 | R58: 0
I59: 0 | J59: 0 | K59: 0 | M59: 0 | N59: 0 | O59: 0 | P59: 0 | Q59: 0 | R59: 0
B60: Interest on Credit Line | G60: 0.09 | I60: 7.579832194 | J60: =+SUM(J18:J59)/2*H60 -> 0 | M60: 0 | N60: =+SUM(N18:N59)/2*L60 -> 0 | O60: 7.579832194 | P60: =+SUM(P18:P59)/2*L60 -> 0 | Q60: 4851.092604 | R60: =+J60*E$7 -> 0
A61: Total Variable Costs | I61: 165.8722197 | J61: =SUM(J19:J60) -> 0 | M61: 0 | N61: =SUM(N19:N60) -> 0 | O61: 165.8722197 | P61: =SUM(P19:P60) -> 0 | Q61: 106158.2206 | R61: =SUM(R19:R60) -> 0
A62: Planned Returns Above Variable Costs: | I62: 28.72778033 | J62: =+J14-J61 -> 0 | M62: 0 | N62: =+N14-N61 -> 0 | O62: 28.72778033 | P62: =+P14-P61 -> 0 | Q62: 18385.77941 | R62: =+R14-R61 -> 0
B63: Breakeven Price to Cover Variable Costs | G63: 4.142407322 | H63: =IF(E10=0,"n/a",(YVarExp-(YTotExp+YTotRet-J10))/E10) -> n/a | I63: Bushel
Q64: Enterprise | R64: Enterprise
A65: FIXED COSTS | D65: Quantity | E65: Quantity | F65: Units | G65: $/Unit | H65: $/Unit | I65: Total | J65: Total | K65: Share | L65: Share | M65: Landlord | N65: Landlord | O65: Tenant | P65: Tenant | Q65: Total | R65: Total
B66: Machinery Depreciation
C67: Pickup/General Use Equipment | D67: 1 | F67: Acre | G67: 0.976171875 | I67: 0.976171875 | J67: =E67*H67 -> 0 | K67: 0 | M67: 0 | N67: =J67*L67 -> 0 | O67: 0.976171875 | P67: =+J67-N67 -> 0 | Q67: 624.75 | R67: =+J67*E$7 -> 0
C68: Tractors/Self-Propelled | D68: 1 | F68: Acre | G68: 7.772126005 | I68: 7.772126005 | J68: 0 | K68: 0 | M68: 0 | N68: =J68*L68 -> 0 | O68: 7.772126005 | P68: 0 | Q68: 4974.160643 | R68: 0
C69: Implements | D69: 1 | F69: Acre | G69: 5.649456539 | I69: 5.649456539 | J69: 0 | K69: 0 | M69: 0 | N69: =J69*L69 -> 0 | O69: 5.649456539 | P69: 0 | Q69: 3615.652185 | R69: 0
B70: Equipment Investment
C71: Pickup/General Use Equipment | D71: 6.837890625 | F71: Dollars | G71: 0.08 | I71: 0.54703125 | J71: =E71*H71 -> 0 | K71: 0 | M71: 0 | N71: =J71*L71 -> 0 | O71: 0.54703125 | P71: =+J71-N71 -> 0 | Q71: 350.1 | R71: =+J71*E$7 -> 0
C72: Tractors/Self-Propelled | D72: 59.16274561 | F72: Dollars | G72: 0.08 | I72: 4.733019649 | J72: 0 | K72: 0 | M72: 0 | N72: =J72*L72 -> 0 | O72: 4.733019649 | P72: 0 | Q72: 3029.132575 | R72: 0
C73: Implements | D73: 24.16711964 | F73: Dollars | G73: 0.08 | I73: 1.933369571 | J73: 0 | K73: 0 | M73: 0 | N73: =J73*L73 -> 0 | O73: 1.933369571 | P73: 0 | Q73: 1237.356526 | R73: 0
B74: Salaried Labor | D74: 1 | F74: Acre | G74: 0 | I74: 0 | J74: 0 | K74: 0 | M74: 0 | N74: =J74*L74 -> 0 | O74: 0 | P74: =+J74-N74 -> 0 | Q74: 0 | R74: =+J74*E$7 -> 0
B75: Management Fee, Owner/Operator Labor | D75: 1 | F75: Acre | G75: 0 | I75: 0 | J75: 0 | K75: 0 | M75: 0 | N75: 0 | O75: 0 | P75: 0 | Q75: 0 | R75: 0
B76: Allocated Establishment Cost | D76: 1 | F76: Acre | G76: 0 | I76: 0 | J76: 0 | K76: 0 | M76: 0 | N76: 0 | O76: 0 | P76: 0 | Q76: 0 | R76: 0
B77: Cash Rent - Wheat | D77: 1 | F77: Acre | G77: 30 | I77: 30 | J77: 0 | K77: 0 | M77: 0 | N77: 0 | O77: 30 | P77: 0 | Q77: 19200 | R77: 0
B78: Property Taxes | D78: 1 | F78: Acre | G78: 0 | I78: 0 | J78: 0 | K78: 0 | M78: 0 | N78: 0 | O78: 0 | P78: 0 | Q78: 0 | R78: 0
B79: Whole Farm Insurance | D79: 1 | F79: Acre | G79: 0 | I79: 0 | J79: 0 | K79: 0 | M79: 0 | N79: 0 | O79: 0 | P79: 0 | Q79: 0 | R79: 0
D80: 1 | G80: 0 | I80: 0 | J80: 0 | K80: 0 | M80: 0 | N80: 0 | O80: 0 | P80: 0 | Q80: 0 | R80: 0
D81: 1 | G81: 0 | I81: 0 | J81: =E81*H81 -> 0 | K81: 0 | M81: 0 | N81: 0 | O81: 0 | P81: 0 | Q81: 0 | R81: 0
A82: Total Fixed Costs | I82: 51.61117489 | J82: =+SUM(J67:J81) -> 0 | M82: 0 | N82: =+SUM(N67:N81) -> 0 | O82: 51.61117489 | P82: =+SUM(P67:P81) -> 0 | Q82: 33031.15193 | R82: =+SUM(R67:R81) -> 0
A83: Total Specified Costs | I83: 217.4833946 | J83: =+J61+J82 -> 0 | M83: 0 | N83: =+N61+N82 -> 0 | O83: 217.4833946 | P83: =+P61+P82 -> 0 | Q83: 139189.3725 | R83: =+R61+R82 -> 0
A85: Returns Above Specified Costs | I85: -22.88339456 | J85: =+J14-J83 -> 0 | M85: 0 | N85: =+N14-N83 -> 0 | O85: -22.88339456 | P85: =+P14-P83 -> 0 | Q85: -14645.37252 | R85: =+R14-R83 -> 0
A87: Breakeven Price to Cover Total Costs | G87: 5.862779819 | H87: =IF(E10=0,"n/a",(YTotExp-(YTotExp+YTotRet-J10))/E10) -> n/a | I87: Bushel
D89: Example Breakeven Prices
B90: Example | C90: Example | D90: To Cover | G90: To Cover
B91: Yield | C91: Yield | D91: Variable | G91: Total
B92: Percent | C92: Bushel | D92: Costs | G92: Costs
B93: 0.75 | C93: 22.5 | D93: 5.523209763 | G93: 7.817039758
B94: 0.9 | C94: 27 | D94: 4.602674803 | G94: 6.514199798
B95: 1 | C95: 30 | D95: 4.142407322 | G95: 5.862779819
B96: 1.1 | C96: 33 | D96: 3.765824838 | G96: 5.329799835
B97: 1.25 | C97: 37.5 | D97: 3.313925858 | G97: 4.690223855
A99: Developed by Francisco Abelló, Assistant Professor and Extension Specialist, Texas A&M AgriLife Extension, 940-647-3908
A101: Information presented is prepared solely as a general guide and not intended to recognize or predict the costs and returns from any one operation. Brand names are mentioned only as examples and imply no endorsement.

Sheet NoTill Wheat Dryland
A1: Projections for Planning Purposes Only -- Not to be Used without Updating
A2: 2025 Estimated Costs and Returns per Acre
A3: Dryland Wheat - No till
A4: Enter your name for this budget in the cell above.
A5: Enter Your Values in the cells highlighed in MAROON.
E6: Your Acres | R6: Your
C7: Crop Acres | D7: 640 | L7: Your | Q7: Enterprise | R7: Enterprise
E8: Your | H8: Your | I8: Cash | J8: Your | K8: Landlord | L8: Landlord | N8: Your | P8: Your | Q8: Total | R8: Total
A9: REVENUE | D9: Quantity | E9: Quantity | F9: Units | G9: $/Unit | H9: $/Unit | I9: Total | J9: Total | K9: Share | L9: Share | M9: Landlord | N9: Landlord | O9: Tenant | P9: Tenant | Q9: (640 acres) | R9: ="(" & E7 & " acres)" -> ( acres)
B10: Wheat | D10: 40 | F10: Bushel | G10: 5.1 | I10: 204 | J10: =E10*H10 -> 0 | K10: 0 | M10: 0 | N10: =J10*L10 -> 0 | O10: 204 | P10: =+J10-N10 -> 0 | Q10: 130560 | R10: =+J10*E$7 -> 0
B11: Wheat Pasture | D11: 64 | F11: Pound of Gain | G11: 0.65 | I11: 41.6 | J11: 0 | K11: 0 | M11: 0 | N11: 0 | O11: 41.6 | P11: =+J11-N11 -> 0 | Q11: 26624 | R11: 0
D12: 0 | G12: 0 | I12: 0 | J12: 0 | K12: 0 | M12: 0 | N12: 0 | O12: 0 | P12: 0 | Q12: 0 | R12: 0
D13: 0 | G13: 0 | I13: 0 | J13: 0 | K13: 0 | M13: 0 | N13: 0 | O13: 0 | P13: 0 | Q13: 0 | R13: 0
A14: Total Revenue | I14: 245.6 | J14: =SUM(J10:J13) -> 0 | M14: 0 | N14: =SUM(N10:N13) -> 0 | O14: 245.6 | P14: =SUM(P10:P13) -> 0 | Q14: 157184 | R14: =SUM(R10:R13) -> 0
Q15: Enterprise | R15: Enterprise
A16: VARIABLE COSTS | D16: Quantity | E16: Quantity | F16: Units | G16: $/Unit | H16: $/Unit | I16: Total | J16: Total | K16: Share | L16: Share | M16: Landlord | N16: Landlord | O16: Tenant | P16: Tenant | Q16: Total | R16: Total
A17: Production Costs
B18: Seed
C19: Wheat Seed | D19: 50 | F19: Pound | G19: 0.23 | I19: 11.5 | J19: =E19*H19 -> 0 | K19: 0 | M19: 0 | N19: =J19*L19 -> 0 | O19: 11.5 | P19: =+J19-N19 -> 0 | Q19: 7360 | R19: =+J19*E$7 -> 0
B20: Fertilizer
C21: Fertilizer (N) | D21: 60 | F21: Pound | G21: 0.505 | I21: 30.3 | J21: 0 | K21: 0 | M21: 0 | N21: 0 | O21: 30.3 | P21: 0 | Q21: 19392 | R21: 0
C22: Fertilizer (P) | D22: 25 | F22: Pound | G22: 0.60657 | I22: 15.16425 | J22: 0 | K22: 0 | M22: 0 | N22: 0 | O22: 15.16425 | P22: 0 | Q22: 9705.12 | R22: 0
B23: Custom
C24: Custom Harvest Wheat | D24: 1 | F24: Acre | G24: 35 | I24: 35 | J24: 0 | K24: 0 | M24: 0 | N24: 0 | O24: 35 | P24: 0 | Q24: 22400 | R24: 0
C25: Overage - Wheat | D25: 10 | F25: Bushel | G25: 0.24 | I25: 2.4 | J25: 0 | K25: 0 | M25: 0 | N25: 0 | O25: 2.4 | P25: 0 | Q25: 1536 | R25: 0
C26: Custom Haul Wheat | D26: 30 | F26: Bushel | G26: 0.24 | I26: 7.2 | J26: 0 | K26: 0 | M26: 0 | N26: 0 | O26: 7.2 | P26: 0 | Q26: 4608 | R26: 0
C27: Fertilizer Application | D27: 1 | F27: Acre | G27: 5 | I27: 5 | J27: 0 | K27: 0 | M27: 0 | N27: 0 | O27: 5 | P27: 0 | Q27: 3200 | R27: 0
B28: Miscellaneous
C29: Insurance - Wheat | D29: 1 | F29: Acre | G29: 12 | I29: 12 | J29: 0 | K29: 0 | M29: 0 | N29: 0 | O29: 12 | P29: 0 | Q29: 7680 | R29: 0
B30: Herbicide
C31: Herbicide - Wheat | D31: 6.4 | F31: Ounce | G31: 0.171875 | I31: 1.1 | J31: 0 | K31: 0 | M31: 0 | N31: 0 | O31: 1.1 | P31: 0 | Q31: 704 | R31: 0
C32: 2,4D | D32: 4.2 | F32: Pint | G32: 4.634 | I32: 19.4628 | J32: 0 | K32: 0 | M32: 0 | N32: 0 | O32: 19.4628 | P32: 0 | Q32: 12456.192 | R32: 0
C33: Glyphosate | D33: 6 | F33: Pint | G33: 2.18 | I33: 13.08 | J33: 0 | K33: 0 | M33: 0 | N33: 0 | O33: 13.08 | P33: 0 | Q33: 8371.2 | R33: 0
B34: Insecticide
C35: Insecticide & Application - Wheat | D35: 2 | F35: Ounce | G35: 4.5 | I35: 9 | J35: 0 | K35: 0 | M35: 0 | N35: 0 | O35: 9 | P35: 0 | Q35: 5760 | R35: 0
B36: Fungicides
C37: Fungicide Application | D37: 1 | F37: Acre | G37: 5.5 | I37: 5.5 | J37: 0 | K37: 0 | M37: 0 | N37: 0 | O37: 5.5 | P37: 0 | Q37: 3520 | R37: 0
D38: 0 | G38: 0 | I38: 0 | J38: 0 | K38: 0 | M38: 0 | N38: 0 | O38: 0 | P38: 0 | Q38: 0 | R38: 0
D39: 0 | G39: 0 | I39: 0 | J39: 0 | K39: 0 | M39: 0 | N39: 0 | O39: 0 | P39: 0 | Q39: 0 | R39: 0
D40: 0 | G40: 0 | I40: 0 | J40: =E40*H40 -> 0 | K40: 0 | M40: 0 | N40: =J40*L40 -> 0 | O40: 0 | P40: =+J40-N40 -> 0 | Q40: 0 | R40: =+J40*E$7 -> 0
B41: Machinery Labor
C42: Tractors/Self-Propelled | D42: 0.17 | F42: Hour | G42: 15 | I42: 2.55 | J42: =E42*H42 -> 0 | K42: 0 | M42: 0 | N42: =J42*L42 -> 0 | O42: 2.55 | P42: =+J42-N42 -> 0 | Q42: 1632 | R42: =+J42*E$7 -> 0
C43: Other Labor | D43: 0.2 | F43: Hour | G43: 15 | I43: 3 | J43: =E43*H43 -> 0 | K43: 0 | M43: 0 | N43: =J43*L43 -> 0 | O43: 3 | P43: =+J43-N43 -> 0 | Q43: 1920 | R43: =+J43*E$7 -> 0
B45: Diesel Fuel
C46: Pickup/General Use Equipment | D46: 1 | F46: Acre | G46: 0 | I46: 0 | J46: =E46*H46 -> 0 | K46: 0 | M46: 0 | N46: =J46*L46 -> 0 | O46: 0 | P46: =+J46-N46 -> 0 | Q46: 0 | R46: =+J46*E$7 -> 0
C47: Tractors/Self-Propelled | D47: 2.03 | F47: Gallon | G47: 2.59 | I47: 5.2577 | J47: =E47*H47 -> 0 | K47: 0 | M47: 0 | N47: =J47*L47 -> 0 | O47: 5.2577 | P47: =+J47-N47 -> 0 | Q47: 3364.928 | R47: =+J47*E$7 -> 0
B49: Gasoline
C50: Pickup/General Use Equipment | D50: 1 | F50: Acre | G50: 2.109375 | I50: 2.109375 | J50: =E50*H50 -> 0 | K50: 0 | M50: 0 | N50: =J50*L50 -> 0 | O50: 2.109375 | P50: =+J50-N50 -> 0 | Q50: 1350 | R50: =+J50*E$7 -> 0
C51: Tractors/Self-Propelled | D51: 0 | F51: Gallon | G51: 3.1 | I51: 0 | J51: =E51*H51 -> 0 | K51: 0 | M51: 0 | N51: =J51*L51 -> 0 | O51: 0 | P51: =+J51-N51 -> 0 | Q51: 0 | R51: =+J51*E$7 -> 0
B53: Repairs & Maintenance
C54: Pickup/General Use Equipment | D54: 1 | F54: Acre | G54: 0.703125 | I54: 0.703125 | J54: =E54*H54 -> 0 | K54: 0 | M54: 0 | N54: =J54*L54 -> 0 | O54: 0.703125 | P54: =+J54-N54 -> 0 | Q54: 450 | R54: =+J54*E$7 -> 0
C55: Irrigation Equipment | D55: 1 | F55: Acre | G55: 0 | I55: 0 | J55: 0 | K55: 0 | M55: 0 | N55: 0 | O55: 0 | P55: 0 | Q55: 0 | R55: 0
C56: Tractors/Self-Propelled | D56: 1 | F56: Acre | G56: 4.852868386 | I56: 4.852868386 | J56: 0 | K56: 0 | M56: 0 | N56: 0 | O56: 4.852868386 | P56: 0 | Q56: 3105.835767 | R56: 0
C57: Implements | D57: 1 | F57: Acre | G57: 10.44211734 | I57: 10.44211734 | J57: 0 | K57: 0 | M57: 0 | N57: 0 | O57: 10.44211734 | P57: 0 | Q57: 6682.9551 | R57: 0
I58: 0 | J58: 0 | K58: 0 | M58: 0 | N58: 0 | O58: 0 | P58: 0 | Q58: 0 | R58: 0
I59: 0 | J59: 0 | K59: 0 | M59: 0 | N59: 0 | O59: 0 | P59: 0 | Q59: 0 | R59: 0
B60: Interest on Credit Line | G60: 0.09 | I60: 9.805004561 | J60: =+SUM(J18:J59)/2*H60 -> 0 | M60: 0 | N60: =+SUM(N18:N59)/2*L60 -> 0 | O60: 9.805004561 | P60: =+SUM(P18:P59)/2*L60 -> 0 | Q60: 6275.202919 | R60: =+J60*E$7 -> 0
A61: Total Variable Costs | I61: 205.4272403 | J61: =SUM(J19:J60) -> 0 | M61: 0 | N61: =SUM(N19:N60) -> 0 | O61: 205.4272403 | P61: =SUM(P19:P60) -> 0 | Q61: 131473.4338 | R61: =SUM(R19:R60) -> 0
A62: Planned Returns Above Variable Costs: | I62: 40.17275971 | J62: =+J14-J61 -> 0 | M62: 0 | N62: =+N14-N61 -> 0 | O62: 40.17275971 | P62: =+P14-P61 -> 0 | Q62: 25710.56621 | R62: =+R14-R61 -> 0
B63: Breakeven Price to Cover Variable Costs | G63: 4.095681007 | H63: =IF(E10=0,"n/a",(YVarExp-(YTotExp+YTotRet-J10))/E10) -> n/a | I63: Bushel
Q64: Enterprise | R64: Enterprise
A65: FIXED COSTS | D65: Quantity | E65: Quantity | F65: Units | G65: $/Unit | H65: $/Unit | I65: Total | J65: Total | K65: Share | L65: Share | M65: Landlord | N65: Landlord | O65: Tenant | P65: Tenant | Q65: Total | R65: Total
B66: Machinery Depreciation
C67: Pickup/General Use Equipment | D67: 1 | F67: Acre | G67: 0.976171875 | I67: 0.976171875 | J67: =E67*H67 -> 0 | K67: 0 | M67: 0 | N67: =J67*L67 -> 0 | O67: 0.976171875 | P67: =+J67-N67 -> 0 | Q67: 624.75 | R67: =+J67*E$7 -> 0
C68: Tractors/Self-Propelled | D68: 1 | F68: Acre | G68: 13.95470994 | I68: 13.95470994 | J68: 0 | K68: 0 | M68: 0 | N68: =J68*L68 -> 0 | O68: 13.95470994 | P68: 0 | Q68: 8931.014364 | R68: 0
C69: Implements | D69: 1 | F69: Acre | G69: 9.397905609 | I69: 9.397905609 | J69: 0 | K69: 0 | M69: 0 | N69: =J69*L69 -> 0 | O69: 9.397905609 | P69: 0 | Q69: 6014.65959 | R69: 0
B70: Equipment Investment
C71: Pickup/General Use Equipment | D71: 6.837890625 | F71: Dollars | G71: 0.08 | I71: 0.54703125 | J71: =E71*H71 -> 0 | K71: 0 | M71: 0 | N71: =J71*L71 -> 0 | O71: 0.54703125 | P71: =+J71-N71 -> 0 | Q71: 350.1 | R71: =+J71*E$7 -> 0
C72: Tractors/Self-Propelled | D72: 104.5578227 | F72: Dollars | G72: 0.08 | I72: 8.364625812 | J72: 0 | K72: 0 | M72: 0 | N72: =J72*L72 -> 0 | O72: 8.364625812 | P72: 0 | Q72: 5353.36052 | R72: 0
C73: Implements | D73: 40.20215177 | F73: Dollars | G73: 0.08 | I73: 3.216172142 | J73: 0 | K73: 0 | M73: 0 | N73: =J73*L73 -> 0 | O73: 3.216172142 | P73: 0 | Q73: 2058.350171 | R73: 0
B74: Salaried Labor | D74: 1 | F74: Acre | G74: 0 | I74: 0 | J74: 0 | K74: 0 | M74: 0 | N74: =J74*L74 -> 0 | O74: 0 | P74: =+J74-N74 -> 0 | Q74: 0 | R74: =+J74*E$7 -> 0
B75: Management Fee, Owner/Operator Labor | D75: 1 | F75: Acre | G75: 0 | I75: 0 | J75: 0 | K75: 0 | M75: 0 | N75: 0 | O75: 0 | P75: 0 | Q75: 0 | R75: 0
B76: Allocated Establishment Cost | D76: 1 | F76: Acre | G76: 0 | I76: 0 | J76: 0 | K76: 0 | M76: 0 | N76: 0 | O76: 0 | P76: 0 | Q76: 0 | R76: 0
B77: Cash Rent - Wheat | D77: 1 | F77: Acre | G77: 30 | I77: 30 | J77: 0 | K77: 0 | M77: 0 | N77: 0 | O77: 30 | P77: 0 | Q77: 19200 | R77: 0
B78: Property Taxes | D78: 1 | F78: Acre | G78: 0 | I78: 0 | J78: 0 | K78: 0 | M78: 0 | N78: 0 | O78: 0 | P78: 0 | Q78: 0 | R78: 0
B79: Whole Farm Insurance | D79: 1 | F79: Acre | G79: 0 | I79: 0 | J79: 0 | K79: 0 | M79: 0 | N79: 0 | O79: 0 | P79: 0 | Q79: 0 | R79: 0
D80: 1 | G80: 0 | I80: 0 | J80: 0 | K80: 0 | M80: 0 | N80: 0 | O80: 0 | P80: 0 | Q80: 0 | R80: 0
D81: 1 | G81: 0 | I81: 0 | J81: =E81*H81 -> 0 | K81: 0 | M81: 0 | N81: 0 | O81: 0 | P81: 0 | Q81: 0 | R81: 0
A82: Total Fixed Costs | I82: 66.45661663 | J82: =+SUM(J67:J81) -> 0 | M82: 0 | N82: =+SUM(N67:N81) -> 0 | O82: 66.45661663 | P82: =+SUM(P67:P81) -> 0 | Q82: 42532.23465 | R82: =+SUM(R67:R81) -> 0
A83: Total Specified Costs | I83: 271.8838569 | J83: =+J61+J82 -> 0 | M83: 0 | N83: =+N61+N82 -> 0 | O83: 271.8838569 | P83: =+P61+P82 -> 0 | Q83: 174005.6684 | R83: =+R61+R82 -> 0
A85: Returns Above Specified Costs | I85: -26.28385692 | J85: =+J14-J83 -> 0 | M85: 0 | N85: =+N14-N83 -> 0 | O85: -26.28385692 | P85: =+P14-P83 -> 0 | Q85: -16821.66843 | R85: =+R14-R83 -> 0
A87: Breakeven Price to Cover Total Costs | G87: 5.757096423 | H87: =IF(E10=0,"n/a",(YTotExp-(YTotExp+YTotRet-J10))/E10) -> n/a | I87: Bushel
D89: Example Breakeven Prices
B90: Example | C90: Example | D90: To Cover | G90: To Cover
B91: Yield | C91: Yield | D91: Variable | G91: Total
B92: Percent | C92: Bushel | D92: Costs | G92: Costs
B93: 0.75 | C93: 30 | D93: 5.46090801 | G93: 7.676128564
B94: 0.9 | C94: 36 | D94: 4.550756675 | G94: 6.396773803
B95: 1 | C95: 40 | D95: 4.095681007 | G95: 5.757096423
B96: 1.1 | C96: 44 | D96: 3.72334637 | G96: 5.233724021
B97: 1.25 | C97: 50 | D97: 3.276544806 | G97: 4.605677138
A99: Developed by Francisco Abelló, Assistant Professor and Extension Specialist, Texas A&M AgriLife Extension, 940-647-3908
A101: Information presented is prepared solely as a general guide and not intended to recognize or predict the costs and returns from any one operation. Brand names are mentioned only as examples and imply no endorsement.

Sheet Wheat Irrigated
A1: Projections for Planning Purposes Only -- Not to be Used without Updating
A2: 2025 Estimated Costs and Returns per Acre
A3: Irrigated Wheat
A4: Enter your name for this budget in the cell above.
A5: Enter Your Values in the cells highlighed in MAROON.
E6: Your Acres | R6: Your
C7: Crop Acres | D7: 640 | L7: Your | Q7: Enterprise | R7: Enterprise
E8: Your | H8: Your | I8: Cash | J8: Your | K8: Landlord | L8: Landlord | N8: Your | P8: Your | Q8: Total | R8: Total
A9: REVENUE | D9: Quantity | E9: Quantity | F9: Units | G9: $/Unit | H9: $/Unit | I9: Total | J9: Total | K9: Share | L9: Share | M9: Landlord | N9: Landlord | O9: Tenant | P9: Tenant | Q9: (640 acres) | R9: ="(" & E7 & " acres)" -> ( acres)
B10: Wheat | D10: 60 | F10: Bushel | G10: 5.1 | I10: 306 | J10: =E10*H10 -> 0 | K10: 0 | M10: 0 | N10: =J10*L10 -> 0 | O10: 306 | P10: =+J10-N10 -> 0 | Q10: 195840 | R10: =+J10*E$7 -> 0
B11: Wheat Pasture | D11: 85 | F11: Pound of Gain | G11: 0.65 | I11: 55.25 | J11: 0 | K11: 0 | M11: 0 | N11: 0 | O11: 55.25 | P11: =+J11-N11 -> 0 | Q11: 35360 | R11: 0
D12: 0 | G12: 0 | I12: 0 | J12: 0 | K12: 0 | M12: 0 | N12: 0 | O12: 0 | P12: 0 | Q12: 0 | R12: 0
D13: 0 | G13: 0 | I13: 0 | J13: 0 | K13: 0 | M13: 0 | N13: 0 | O13: 0 | P13: 0 | Q13: 0 | R13: 0
A14: Total Revenue | I14: 361.25 | J14: =SUM(J10:J13) -> 0 | M14: 0 | N14: =SUM(N10:N13) -> 0 | O14: 361.25 | P14: =SUM(P10:P13) -> 0 | Q14: 231200 | R14: =SUM(R10:R13) -> 0
Q15: Enterprise | R15: Enterprise
A16: VARIABLE COSTS | D16: Quantity | E16: Quantity | F16: Units | G16: $/Unit | H16: $/Unit | I16: Total | J16: Total | K16: Share | L16: Share | M16: Landlord | N16: Landlord | O16: Tenant | P16: Tenant | Q16: Total | R16: Total
A17: Production Costs
B18: Seed
C19: Wheat Seed | D19: 75 | F19: Pound | G19: 0.23 | I19: 17.25 | J19: =E19*H19 -> 0 | K19: 0 | M19: 0 | N19: =J19*L19 -> 0 | O19: 17.25 | P19: =+J19-N19 -> 0 | Q19: 11040 | R19: =+J19*E$7 -> 0
B20: Fertilizer
C21: Fertilizer (N) | D21: 110 | F21: Pound | G21: 0.505 | I21: 55.55 | J21: 0 | K21: 0 | M21: 0 | N21: 0 | O21: 55.55 | P21: 0 | Q21: 35552 | R21: 0
C22: Fertilizer (P) | D22: 25 | F22: Pound | G22: 0.60657 | I22: 15.16425 | J22: 0 | K22: 0 | M22: 0 | N22: 0 | O22: 15.16425 | P22: 0 | Q22: 9705.12 | R22: 0
B23: Custom
C24: Custom Harvest Wheat | D24: 1 | F24: Acre | G24: 35 | I24: 35 | J24: 0 | K24: 0 | M24: 0 | N24: 0 | O24: 35 | P24: 0 | Q24: 22400 | R24: 0
C25: Overage - Wheat | D25: 10 | F25: Bushel | G25: 0.24 | I25: 2.4 | J25: 0 | K25: 0 | M25: 0 | N25: 0 | O25: 2.4 | P25: 0 | Q25: 1536 | R25: 0
C26: Custom Haul Wheat | D26: 30 | F26: Bushel | G26: 0.24 | I26: 7.2 | J26: 0 | K26: 0 | M26: 0 | N26: 0 | O26: 7.2 | P26: 0 | Q26: 4608 | R26: 0
C27: Fertilizer Application | D27: 1 | F27: Acre | G27: 5 | I27: 5 | J27: 0 | K27: 0 | M27: 0 | N27: 0 | O27: 5 | P27: 0 | Q27: 3200 | R27: 0
B28: Miscellaneous
C29: Insurance - Wheat | D29: 1 | F29: Acre | G29: 12 | I29: 12 | J29: 0 | K29: 0 | M29: 0 | N29: 0 | O29: 12 | P29: 0 | Q29: 7680 | R29: 0
B30: Herbicide
C31: Herbicide - Wheat | D31: 6.4 | F31: Ounce | G31: 0.171875 | I31: 1.1 | J31: 0 | K31: 0 | M31: 0 | N31: 0 | O31: 1.1 | P31: 0 | Q31: 704 | R31: 0
C32: 2,4D | D32: 1.4 | F32: Pint | G32: 4.634 | I32: 6.4876 | J32: 0 | K32: 0 | M32: 0 | N32: 0 | O32: 6.4876 | P32: 0 | Q32: 4152.064 | R32: 0
C33: Roundup | D33: 2 | F33: Pint | G33: 2.18 | I33: 4.36 | J33: 0 | K33: 0 | M33: 0 | N33: 0 | O33: 4.36 | P33: 0 | Q33: 2790.4 | R33: 0
B34: Insecticide
C35: Insecticide & Application - Wheat | D35: 2 | F35: Ounce | G35: 4.5 | I35: 9 | J35: 0 | K35: 0 | M35: 0 | N35: 0 | O35: 9 | P35: 0 | Q35: 5760 | R35: 0
D36: 0 | G36: 0 | I36: 0 | J36: 0 | K36: 0 | M36: 0 | N36: 0 | O36: 0 | P36: 0 | Q36: 0 | R36: 0
D37: 0 | G37: 0 | I37: 0 | J37: 0 | K37: 0 | M37: 0 | N37: 0 | O37: 0 | P37: 0 | Q37: 0 | R37: 0
D38: 0 | G38: 0 | I38: 0 | J38: =E38*H38 -> 0 | K38: 0 | M38: 0 | N38: =J38*L38 -> 0 | O38: 0 | P38: =+J38-N38 -> 0 | Q38: 0 | R38: =+J38*E$7 -> 0
B39: Irrigation
C40: Energy Cost | D40: 10 | F40: AcreInch | G40: 6.75 | I40: 67.5 | J40: =E40*H40 -> 0 | K40: 0 | M40: 0 | N40: =J40*L40 -> 0 | O40: 67.5 | P40: =+J40-N40 -> 0 | Q40: 43200 | R40: =+J40*E$7 -> 0
C41: Irrigation Labor | D41: 0.512 | F41: Hour | G41: 15 | I41: 7.68 | J41: 0 | K41: 0 | M41: 0 | N41: 0 | O41: 7.68 | P41: 0 | Q41: 4915.2 | R41: 0
B42: Machinery Labor
C43: Tractors/Self-Propelled | D43: 0.2 | F43: Hour | G43: 15 | I43: 3 | J43: =E43*H43 -> 0 | K43: 0 | M43: 0 | N43: =J43*L43 -> 0 | O43: 3 | P43: =+J43-N43 -> 0 | Q43: 1920 | R43: =+J43*E$7 -> 0
C44: Other Labor | D44: 0.23 | F44: Hour | G44: 15 | I44: 3.45 | J44: =E44*H44 -> 0 | K44: 0 | M44: 0 | N44: =J44*L44 -> 0 | O44: 3.45 | P44: =+J44-N44 -> 0 | Q44: 2208 | R44: =+J44*E$7 -> 0
B46: Diesel Fuel
C47: Pickup/General Use Equipment | D47: 1 | F47: Acre | G47: 0 | I47: 0 | J47: =E47*H47 -> 0 | K47: 0 | M47: 0 | N47: =J47*L47 -> 0 | O47: 0 | P47: =+J47-N47 -> 0 | Q47: 0 | R47: =+J47*E$7 -> 0
C48: Tractors/Self-Propelled | D48: 2.39 | F48: Gallon | G48: 2.59 | I48: 6.1901 | J48: =E48*H48 -> 0 | K48: 0 | M48: 0 | N48: =J48*L48 -> 0 | O48: 6.1901 | P48: =+J48-N48 -> 0 | Q48: 3961.664 | R48: =+J48*E$7 -> 0
B50: Gasoline
C51: Pickup/General Use Equipment | D51: 1 | F51: Acre | G51: 2.109375 | I51: 2.109375 | J51: =E51*H51 -> 0 | K51: 0 | M51: 0 | N51: =J51*L51 -> 0 | O51: 2.109375 | P51: =+J51-N51 -> 0 | Q51: 1350 | R51: =+J51*E$7 -> 0
C52: Tractors/Self-Propelled | D52: 0 | F52: Gallon | G52: 3.1 | I52: 0 | J52: =E52*H52 -> 0 | K52: 0 | M52: 0 | N52: =J52*L52 -> 0 | O52: 0 | P52: =+J52-N52 -> 0 | Q52: 0 | R52: =+J52*E$7 -> 0
B54: Repairs & Maintenance
C55: Pickup/General Use Equipment | D55: 1 | F55: Acre | G55: 0.703125 | I55: 0.703125 | J55: =E55*H55 -> 0 | K55: 0 | M55: 0 | N55: =J55*L55 -> 0 | O55: 0.703125 | P55: =+J55-N55 -> 0 | Q55: 450 | R55: =+J55*E$7 -> 0
C56: Irrigation Equipment | D56: 1 | F56: Acre | G56: 11.113 | I56: 11.113 | J56: 0 | K56: 0 | M56: 0 | N56: 0 | O56: 11.113 | P56: 0 | Q56: 7112.32 | R56: 0
C57: Tractors/Self-Propelled | D57: 1 | F57: Acre | G57: 6.808715197 | I57: 6.808715197 | J57: 0 | K57: 0 | M57: 0 | N57: 0 | O57: 6.808715197 | P57: 0 | Q57: 4357.577726 | R57: 0
C58: Implements | D58: 1 | F58: Acre | G58: 12.85056271 | I58: 12.85056271 | J58: 0 | K58: 0 | M58: 0 | N58: 0 | O58: 12.85056271 | P58: 0 | Q58: 8224.360133 | R58: 0
I59: 0 | J59: 0 | K59: 0 | M59: 0 | N59: 0 | O59: 0 | P59: 0 | Q59: 0 | R59: 0
I60: 0 | J60: 0 | K60: 0 | M60: 0 | N60: 0 | O60: 0 | P60: 0 | Q60: 0 | R60: 0
B61: Interest on Credit Line | G61: 0.09 | I61: 14.76416029 | J61: =+SUM(J18:J60)/2*H61 -> 0 | M61: 0 | N61: =+SUM(N18:N60)/2*L61 -> 0 | O61: 14.76416029 | P61: =+SUM(P18:P60)/2*L61 -> 0 | Q61: 9449.062587 | R61: =+J61*E$7 -> 0
A62: Total Variable Costs | I62: 306.6808882 | J62: =SUM(J19:J61) -> 0 | M62: 0 | N62: =SUM(N19:N61) -> 0 | O62: 306.6808882 | P62: =SUM(P19:P61) -> 0 | Q62: 196275.7684 | R62: =SUM(R19:R61) -> 0
A63: Planned Returns Above Variable Costs: | I63: 54.5691118 | J63: =+J14-J62 -> 0 | M63: 0 | N63: =+N14-N62 -> 0 | O63: 54.5691118 | P63: =+P14-P62 -> 0 | Q63: 34924.23155 | R63: =+R14-R62 -> 0
B64: Breakeven Price to Cover Variable Costs | G64: 4.190514803 | H64: =IF(E10=0,"n/a",(YVarExp-(YTotExp+YTotRet-J10))/E10) -> n/a | I64: Bushel
Q65: Enterprise | R65: Enterprise
A66: FIXED COSTS | D66: Quantity | E66: Quantity | F66: Units | G66: $/Unit | H66: $/Unit | I66: Total | J66: Total | K66: Share | L66: Share | M66: Landlord | N66: Landlord | O66: Tenant | P66: Tenant | Q66: Total | R66: Total
B67: Machinery Depreciation
C68: Pickup/General Use Equipment | D68: 1 | F68: Acre | G68: 0.976171875 | I68: 0.976171875 | J68: =E68*H68 -> 0 | K68: 0 | M68: 0 | N68: =J68*L68 -> 0 | O68: 0.976171875 | P68: =+J68-N68 -> 0 | Q68: 624.75 | R68: =+J68*E$7 -> 0
C69: Irrigation Equipment | D69: 1 | F69: Acre | G69: 24.375 | I69: 24.375 | J69: 0 | K69: 0 | M69: 0 | N69: =J69*L69 -> 0 | O69: 24.375 | P69: 0 | Q69: 15600 | R69: 0
C70: Tractors/Self-Propelled | D70: 1 | F70: Acre | G70: 9.27069219 | I70: 9.27069219 | J70: 0 | K70: 0 | M70: 0 | N70: =J70*L70 -> 0 | O70: 9.27069219 | P70: 0 | Q70: 5933.243002 | R70: 0
C71: Implements | D71: 1 | F71: Acre | G71: 12.49447822 | I71: 12.49447822 | J71: 0 | K71: 0 | M71: 0 | N71: =J71*L71 -> 0 | O71: 12.49447822 | P71: 0 | Q71: 7996.466061 | R71: 0
B72: Equipment Investment
C73: Pickup/General Use Equipment | D73: 6.837890625 | F73: Dollars | G73: 0.08 | I73: 0.54703125 | J73: =E73*H73 -> 0 | K73: 0 | M73: 0 | N73: =J73*L73 -> 0 | O73: 0.54703125 | P73: =+J73-N73 -> 0 | Q73: 350.1 | R73: =+J73*E$7 -> 0
C74: Irrigation Equipment | D74: 710.9375 | F74: Dollars | G74: 0.08 | I74: 56.875 | J74: 0 | K74: 0 | M74: 0 | N74: =J74*L74 -> 0 | O74: 56.875 | P74: 0 | Q74: 36400 | R74: 0
C75: Tractors/Self-Propelled | D75: 71.18321538 | F75: Dollars | G75: 0.08 | I75: 5.69465723 | J75: 0 | K75: 0 | M75: 0 | N75: =J75*L75 -> 0 | O75: 5.69465723 | P75: 0 | Q75: 3644.580627 | R75: 0
C76: Implements | D76: 53.44860127 | F76: Dollars | G76: 0.08 | I76: 4.275888102 | J76: 0 | K76: 0 | M76: 0 | N76: =J76*L76 -> 0 | O76: 4.275888102 | P76: 0 | Q76: 2736.568385 | R76: 0
B77: Salaried Labor | D77: 1 | F77: Acre | G77: 0 | I77: 0 | J77: 0 | K77: 0 | M77: 0 | N77: =J77*L77 -> 0 | O77: 0 | P77: =+J77-N77 -> 0 | Q77: 0 | R77: =+J77*E$7 -> 0
B78: Management Fee, Owner/Operator Labor | D78: 1 | F78: Acre | G78: 0 | I78: 0 | J78: 0 | K78: 0 | M78: 0 | N78: 0 | O78: 0 | P78: 0 | Q78: 0 | R78: 0
B79: Allocated Establishment Cost | D79: 1 | F79: Acre | G79: 0 | I79: 0 | J79: 0 | K79: 0 | M79: 0 | N79: 0 | O79: 0 | P79: 0 | Q79: 0 | R79: 0
B80: Cash Rent - Wheat | D80: 1 | F80: Acre | G80: 30 | I80: 30 | J80: 0 | K80: 0 | M80: 0 | N80: 0 | O80: 30 | P80: 0 | Q80: 19200 | R80: 0
B81: Property Taxes | D81: 1 | F81: Acre | G81: 0 | I81: 0 | J81: 0 | K81: 0 | M81: 0 | N81: 0 | O81: 0 | P81: 0 | Q81: 0 | R81: 0
B82: Whole Farm Insurance | D82: 1 | F82: Acre | G82: 0 | I82: 0 | J82: 0 | K82: 0 | M82: 0 | N82: 0 | O82: 0 | P82: 0 | Q82: 0 | R82: 0
D83: 1 | G83: 0 | I83: 0 | J83: 0 | K83: 0 | M83: 0 | N83: 0 | O83: 0 | P83: 0 | Q83: 0 | R83: 0
D84: 1 | G84: 0 | I84: 0 | J84: =E84*H84 -> 0 | K84: 0 | M84: 0 | N84: 0 | O84: 0 | P84: 0 | Q84: 0 | R84: 0
A85: Total Fixed Costs | I85: 144.5089189 | J85: =+SUM(J68:J84) -> 0 | M85: 0 | N85: =+SUM(N68:N84) -> 0 | O85: 144.5089189 | P85: =+SUM(P68:P84) -> 0 | Q85: 92485.70808 | R85: =+SUM(R68:R84) -> 0
A86: Total Specified Costs | I86: 451.1898071 | J86: =+J62+J85 -> 0 | M86: 0 | N86: =+N62+N85 -> 0 | O86: 451.1898071 | P86: =+P62+P85 -> 0 | Q86: 288761.4765 | R86: =+R62+R85 -> 0
A88: Returns Above Specified Costs | I88: -89.93980706 | J88: =+J14-J86 -> 0 | M88: 0 | N88: =+N14-N86 -> 0 | O88: -89.93980706 | P88: =+P14-P86 -> 0 | Q88: -57561.47652 | R88: =+R14-R86 -> 0
A90: Breakeven Price to Cover Total Costs | G90: 6.598996784 | H90: =IF(E10=0,"n/a",(YTotExp-(YTotExp+YTotRet-J10))/E10) -> n/a | I90: Bushel
D92: Example Breakeven Prices
B93: Example | C93: Example | D93: To Cover | G93: To Cover
B94: Yield | C94: Yield | D94: Variable | G94: Total
B95: Percent | C95: Bushel | D95: Costs | G95: Costs
B96: 0.75 | C96: 45 | D96: 5.587353071 | G96: 8.798662379
B97: 0.9 | C97: 54 | D97: 4.656127559 | G97: 7.332218649
B98: 1 | C98: 60 | D98: 4.190514803 | G98: 6.598996784
B99: 1.1 | C99: 66 | D99: 3.809558912 | G99: 5.999087986
B100: 1.25 | C100: 75 | D100: 3.352411843 | G100: 5.279197428
A102: Developed by Francisco Abelló, Assistant Professor and Extension Specialist, Texas A&M AgriLife Extension, 940-647-3908
A104: Information presented is prepared solely as a general guide and not intended to recognize or predict the costs and returns from any one operation. Brand names are mentioned only as examples and imply no endorsement.

Sheet OrganicDrylandWheat
A1: Projections for Planning Purposes Only -- Not to be Used without Updating
A2: 2025 Estimated Costs and Returns per Acre
A3: Organic Wheat Y1
A4: Enter your name for this budget in the cell above.
A5: Enter Your Values in the cells highlighed in MAROON.
E6: Your Acres | R6: Your
C7: Crop Acres | D7: 640 | L7: Your | Q7: Enterprise | R7: Enterprise
E8: Your | H8: Your | I8: Cash | J8: Your | K8: Landlord | L8: Landlord | N8: Your | P8: Your | Q8: Total | R8: Total
A9: REVENUE | D9: Quantity | E9: Quantity | F9: Units | G9: $/Unit | H9: $/Unit | I9: Total | J9: Total | K9: Share | L9: Share | M9: Landlord | N9: Landlord | O9: Tenant | P9: Tenant | Q9: (640 acres) | R9: ="(" & E7 & " acres)" -> ( acres)
B10: 0 | D10: 0 | G10: 0 | I10: 0 | J10: =E10*H10 -> 0 | K10: 0 | M10: 0 | N10: =J10*L10 -> 0 | O10: 0 | P10: =+J10-N10 -> 0 | Q10: 0 | R10: =+J10*E$7 -> 0
B11: Wheat Pasture | D11: 64 | F11: Pound of Gain | G11: 0.65 | I11: 41.6 | J11: 0 | K11: 0 | M11: 0 | N11: 0 | O11: 41.6 | P11: =+J11-N11 -> 0 | Q11: 26624 | R11: 0
B12: Wheat Pasture | D12: 25 | F12: Pound of Gain | G12: 0.65 | I12: 16.25 | J12: 0 | K12: 0 | M12: 0 | N12: 0 | O12: 16.25 | P12: 0 | Q12: 10400 | R12: 0
D13: 0 | G13: 0 | I13: 0 | J13: 0 | K13: 0 | M13: 0 | N13: 0 | O13: 0 | P13: 0 | Q13: 0 | R13: 0
D14: 0 | G14: 0 | I14: 0 | J14: 0 | K14: 0 | M14: 0 | N14: 0 | O14: 0 | P14: 0 | Q14: 0 | R14: 0
A15: Total Revenue | I15: 57.85 | J15: =SUM(J10:J14) -> 0 | M15: 0 | N15: =SUM(N10:N14) -> 0 | O15: 57.85 | P15: =SUM(P10:P14) -> 0 | Q15: 37024 | R15: =SUM(R10:R14) -> 0
Q16: Enterprise | R16: Enterprise
A17: VARIABLE COSTS | D17: Quantity | E17: Quantity | F17: Units | G17: $/Unit | H17: $/Unit | I17: Total | J17: Total | K17: Share | L17: Share | M17: Landlord | N17: Landlord | O17: Tenant | P17: Tenant | Q17: Total | R17: Total
A18: Production Costs
B19: Seed
C20: Wheat Seed | D20: 70 | F20: Pound | G20: 0.23 | I20: 16.1 | J20: =E20*H20 -> 0 | K20: 0 | M20: 0 | N20: =J20*L20 -> 0 | O20: 16.1 | P20: =+J20-N20 -> 0 | Q20: 10304 | R20: =+J20*E$7 -> 0
B21: Fertilizer
C22: Manure Compost + Application | D22: 4014 | F22: Lb | G22: 0.014 | I22: 56.196 | J22: 0 | K22: 0 | M22: 0 | N22: 0 | O22: 56.196 | P22: 0 | Q22: 35965.44 | R22: 0
B23: Custom
C24: Custom Harvest Wheat | D24: 1 | F24: Acre | G24: 35 | I24: 35 | J24: 0 | K24: 0 | M24: 0 | N24: 0 | O24: 35 | P24: 0 | Q24: 22400 | R24: 0
C25: Custom Haul Wheat | D25: 25.57580018 | F25: Bushel | G25: 0.24 | I25: 6.138192043 | J25: 0 | K25: 0 | M25: 0 | N25: 0 | O25: 6.138192043 | P25: 0 | Q25: 3928.442907 | R25: 0
C26: Herbicide Application | D26: 1 | F26: Acre | G26: 5.5 | I26: 5.5 | J26: 0 | K26: 0 | M26: 0 | N26: 0 | O26: 5.5 | P26: 0 | Q26: 3520 | R26: 0
B27: Herbicide
C28: Paraquat | D28: 30 | F28: Ounce | G28: 0.22 | I28: 6.6 | J28: 0 | K28: 0 | M28: 0 | N28: 0 | O28: 6.6 | P28: 0 | Q28: 4224 | R28: 0
D29: 0 | G29: 0 | I29: 0 | J29: 0 | K29: 0 | M29: 0 | N29: 0 | O29: 0 | P29: 0 | Q29: 0 | R29: 0
D30: 0 | G30: 0 | I30: 0 | J30: 0 | K30: 0 | M30: 0 | N30: 0 | O30: 0 | P30: 0 | Q30: 0 | R30: 0
D31: 0 | G31: 0 | I31: 0 | J31: =E31*H31 -> 0 | K31: 0 | M31: 0 | N31: =J31*L31 -> 0 | O31: 0 | P31: =+J31-N31 -> 0 | Q31: 0 | R31: =+J31*E$7 -> 0
B32: Machinery Labor
C33: Tractors/Self-Propelled | D33: 0.31 | F33: Hour | G33: 15 | I33: 4.65 | J33: =E33*H33 -> 0 | K33: 0 | M33: 0 | N33: =J33*L33 -> 0 | O33: 4.65 | P33: =+J33-N33 -> 0 | Q33: 2976 | R33: =+J33*E$7 -> 0
C34: Other Labor | D34: 0.37 | F34: Hour | G34: 15 | I34: 5.55 | J34: =E34*H34 -> 0 | K34: 0 | M34: 0 | N34: =J34*L34 -> 0 | O34: 5.55 | P34: =+J34-N34 -> 0 | Q34: 3552 | R34: =+J34*E$7 -> 0
B36: Diesel Fuel
C37: Pickup/General Use Equipment | D37: 1 | F37: Acre | G37: 0 | I37: 0 | J37: =E37*H37 -> 0 | K37: 0 | M37: 0 | N37: =J37*L37 -> 0 | O37: 0 | P37: =+J37-N37 -> 0 | Q37: 0 | R37: =+J37*E$7 -> 0
C38: Tractors/Self-Propelled | D38: 2.07 | F38: Gallon | G38: 2.59 | I38: 5.3613 | J38: =E38*H38 -> 0 | K38: 0 | M38: 0 | N38: =J38*L38 -> 0 | O38: 5.3613 | P38: =+J38-N38 -> 0 | Q38: 3431.232 | R38: =+J38*E$7 -> 0
B40: Gasoline
C41: Pickup/General Use Equipment | D41: 1 | F41: Acre | G41: 2.109375 | I41: 2.109375 | J41: =E41*H41 -> 0 | K41: 0 | M41: 0 | N41: =J41*L41 -> 0 | O41: 2.109375 | P41: =+J41-N41 -> 0 | Q41: 1350 | R41: =+J41*E$7 -> 0
C42: Tractors/Self-Propelled | D42: 0 | F42: Gallon | G42: 3.1 | I42: 0 | J42: =E42*H42 -> 0 | K42: 0 | M42: 0 | N42: =J42*L42 -> 0 | O42: 0 | P42: =+J42-N42 -> 0 | Q42: 0 | R42: =+J42*E$7 -> 0
B44: Repairs & Maintenance
C45: Pickup/General Use Equipment | D45: 1 | F45: Acre | G45: 0.703125 | I45: 0.703125 | J45: =E45*H45 -> 0 | K45: 0 | M45: 0 | N45: =J45*L45 -> 0 | O45: 0.703125 | P45: =+J45-N45 -> 0 | Q45: 450 | R45: =+J45*E$7 -> 0
C46: Irrigation Equipment | D46: 1 | F46: Acre | G46: 0 | I46: 0 | J46: 0 | K46: 0 | M46: 0 | N46: 0 | O46: 0 | P46: 0 | Q46: 0 | R46: 0
C47: Tractors/Self-Propelled | D47: 1 | F47: Acre | G47: 4.266502194 | I47: 4.266502194 | J47: 0 | K47: 0 | M47: 0 | N47: 0 | O47: 4.266502194 | P47: 0 | Q47: 2730.561404 | R47: 0
C48: Implements | D48: 1 | F48: Acre | G48: 6.383577418 | I48: 6.383577418 | J48: 0 | K48: 0 | M48: 0 | N48: 0 | O48: 6.383577418 | P48: 0 | Q48: 4085.489547 | R48: 0
I49: 0 | J49: 0 | K49: 0 | M49: 0 | N49: 0 | O49: 0 | P49: 0 | Q49: 0 | R49: 0
I50: 0 | J50: 0 | K50: 0 | M50: 0 | N50: 0 | O50: 0 | P50: 0 | Q50: 0 | R50: 0
B51: Interest on Credit Line | G51: 0.09 | I51: 6.740775834 | J51: =+SUM(J19:J50)/2*H51 -> 0 | M51: 0 | N51: =+SUM(N19:N50)/2*L51 -> 0 | O51: 6.740775834 | P51: =+SUM(P19:P50)/2*L51 -> 0 | Q51: 4314.096534 | R51: =+J51*E$7 -> 0
A52: Total Variable Costs | I52: 161.2988475 | J52: =SUM(J20:J51) -> 0 | M52: 0 | N52: =SUM(N20:N51) -> 0 | O52: 161.2988475 | P52: =SUM(P20:P51) -> 0 | Q52: 103231.2624 | R52: =SUM(R20:R51) -> 0
A53: Planned Returns Above Variable Costs: | I53: -103.4488475 | J53: =+J15-J52 -> 0 | M53: 0 | N53: =+N15-N52 -> 0 | O53: -103.4488475 | P53: =+P15-P52 -> 0 | Q53: -66207.26239 | R53: =+R15-R52 -> 0
B54: Breakeven Price to Cover Variable Costs | G54: n/a | H54: =IF(E10=0,"n/a",(YVarExp-(YTotExp+YTotRet-J10))/E10) -> n/a
Q55: Enterprise | R55: Enterprise
A56: FIXED COSTS | D56: Quantity | E56: Quantity | F56: Units | G56: $/Unit | H56: $/Unit | I56: Total | J56: Total | K56: Share | L56: Share | M56: Landlord | N56: Landlord | O56: Tenant | P56: Tenant | Q56: Total | R56: Total
B57: Machinery Depreciation
C58: Pickup/General Use Equipment | D58: 1 | F58: Acre | G58: 0.976171875 | I58: 0.976171875 | J58: =E58*H58 -> 0 | K58: 0 | M58: 0 | N58: =J58*L58 -> 0 | O58: 0.976171875 | P58: =+J58-N58 -> 0 | Q58: 624.75 | R58: =+J58*E$7 -> 0
C59: Tractors/Self-Propelled | D59: 1 | F59: Acre | G59: 4.408718934 | I59: 4.408718934 | J59: 0 | K59: 0 | M59: 0 | N59: =J59*L59 -> 0 | O59: 4.408718934 | P59: 0 | Q59: 2821.580118 | R59: 0
C60: Implements | D60: 1 | F60: Acre | G60: 7.887706662 | I60: 7.887706662 | J60: 0 | K60: 0 | M60: 0 | N60: =J60*L60 -> 0 | O60: 7.887706662 | P60: 0 | Q60: 5048.132264 | R60: 0
B61: Equipment Investment
C62: Pickup/General Use Equipment | D62: 6.837890625 | F62: Dollars | G62: 0.08 | I62: 0.54703125 | J62: =E62*H62 -> 0 | K62: 0 | M62: 0 | N62: =J62*L62 -> 0 | O62: 0.54703125 | P62: =+J62-N62 -> 0 | Q62: 350.1 | R62: =+J62*E$7 -> 0
C63: Tractors/Self-Propelled | D63: 34.34534266 | F63: Dollars | G63: 0.08 | I63: 2.747627413 | J63: 0 | K63: 0 | M63: 0 | N63: =J63*L63 -> 0 | O63: 2.747627413 | P63: 0 | Q63: 1758.481544 | R63: 0
C64: Implements | D64: 33.74185628 | F64: Dollars | G64: 0.08 | I64: 2.699348502 | J64: 0 | K64: 0 | M64: 0 | N64: =J64*L64 -> 0 | O64: 2.699348502 | P64: 0 | Q64: 1727.583041 | R64: 0
B65: Salaried Labor | D65: 1 | F65: Acre | G65: 0 | I65: 0 | J65: 0 | K65: 0 | M65: 0 | N65: =J65*L65 -> 0 | O65: 0 | P65: =+J65-N65 -> 0 | Q65: 0 | R65: =+J65*E$7 -> 0
B66: Management Fee, Owner/Operator Labor | D66: 1 | F66: Acre | G66: 0 | I66: 0 | J66: 0 | K66: 0 | M66: 0 | N66: 0 | O66: 0 | P66: 0 | Q66: 0 | R66: 0
B67: Allocated Establishment Cost | D67: 1 | F67: Acre | G67: 0 | I67: 0 | J67: 0 | K67: 0 | M67: 0 | N67: 0 | O67: 0 | P67: 0 | Q67: 0 | R67: 0
B68: Cash Rent - Wheat | D68: 1 | F68: Acre | G68: 30 | I68: 30 | J68: 0 | K68: 0 | M68: 0 | N68: 0 | O68: 30 | P68: 0 | Q68: 19200 | R68: 0
B69: Property Taxes | D69: 1 | F69: Acre | G69: 0 | I69: 0 | J69: 0 | K69: 0 | M69: 0 | N69: 0 | O69: 0 | P69: 0 | Q69: 0 | R69: 0
B70: Whole Farm Insurance | D70: 1 | F70: Acre | G70: 0 | I70: 0 | J70: 0 | K70: 0 | M70: 0 | N70: 0 | O70: 0 | P70: 0 | Q70: 0 | R70: 0
D71: 1 | G71: 0 | I71: 0 | J71: 0 | K71: 0 | M71: 0 | N71: 0 | O71: 0 | P71: 0 | Q71: 0 | R71: 0
D72: 1 | G72: 0 | I72: 0 | J72: =E72*H72 -> 0 | K72: 0 | M72: 0 | N72: 0 | O72: 0 | P72: 0 | Q72: 0 | R72: 0
A73: Total Fixed Costs | I73: 49.26660464 | J73: =+SUM(J58:J72) -> 0 | M73: 0 | N73: =+SUM(N58:N72) -> 0 | O73: 49.26660464 | P73: =+SUM(P58:P72) -> 0 | Q73: 31530.62697 | R73: =+SUM(R58:R72) -> 0
A74: Total Specified Costs | I74: 210.5654521 | J74: =+J52+J73 -> 0 | M74: 0 | N74: =+N52+N73 -> 0 | O74: 210.5654521 | P74: =+P52+P73 -> 0 | Q74: 134761.8894 | R74: =+R52+R73 -> 0
A76: Returns Above Specified Costs | I76: -152.7154521 | J76: =+J15-J74 -> 0 | M76: 0 | N76: =+N15-N74 -> 0 | O76: -152.7154521 | P76: =+P15-P74 -> 0 | Q76: -97737.88936 | R76: =+R15-R74 -> 0
A78: Breakeven Price to Cover Total Costs | G78: n/a | H78: =IF(E10=0,"n/a",(YTotExp-(YTotExp+YTotRet-J10))/E10) -> n/a
D80: Example Breakeven Prices
B81: Example | C81: Example | D81: To Cover | G81: To Cover
B82: Yield | C82: Yield | D82: Variable | G82: Total
B83: Percent | D83: Costs | G83: Costs
B84: 0.75 | C84: 0 | D84: 0 | G84: 0
B85: 0.9 | C85: 0 | D85: 0 | G85: 0
B86: 1 | C86: 0 | D86: 0 | G86: 0
B87: 1.1 | C87: 0 | D87: 0 | G87: 0
B88: 1.25 | C88: 0 | D88: 0 | G88: 0
A90: Developed by Francisco Abelló, Assistant Professor and Extension Specialist, Texas A&M AgriLife Extension, 940-647-3908
A92: Information presented is prepared solely as a general guide and not intended to recognize or predict the costs and returns from any one operation. Brand names are mentioned only as examples and imply no endorsement.

Sheet OrganicWheat Year 3
A1: Projections for Planning Purposes Only -- Not to be Used without Updating
A2: 2025 Estimated Costs and Returns per Acre
A3: Organic wheat Y3
A4: Enter your name for this budget in the cell above.
A5: Enter Your Values in the cells highlighed in MAROON.
E6: Your Acres | R6: Your
C7: Crop Acres | D7: 640 | L7: Your | Q7: Enterprise | R7: Enterprise
E8: Your | H8: Your | I8: Cash | J8: Your | K8: Landlord | L8: Landlord | N8: Your | P8: Your | Q8: Total | R8: Total
A9: REVENUE | D9: Quantity | E9: Quantity | F9: Units | G9: $/Unit | H9: $/Unit | I9: Total | J9: Total | K9: Share | L9: Share | M9: Landlord | N9: Landlord | O9: Tenant | P9: Tenant | Q9: (640 acres) | R9: ="(" & E7 & " acres)" -> ( acres)
B10: Organic Wheat | D10: 25.57580018 | F10: Bushel | G10: 7 | I10: 179.0306012 | J10: =E10*H10 -> 0 | K10: 0 | M10: 0 | N10: =J10*L10 -> 0 | O10: 179.0306012 | P10: =+J10-N10 -> 0 | Q10: 114579.5848 | R10: =+J10*E$7 -> 0
B11: Wheat Pasture | D11: 64 | F11: Pound of Gain | G11: 0.65 | I11: 41.6 | J11: 0 | K11: 0 | M11: 0 | N11: 0 | O11: 41.6 | P11: =+J11-N11 -> 0 | Q11: 26624 | R11: 0
D12: 0 | G12: 0 | I12: 0 | J12: 0 | K12: 0 | M12: 0 | N12: 0 | O12: 0 | P12: 0 | Q12: 0 | R12: 0
D13: 0 | G13: 0 | I13: 0 | J13: 0 | K13: 0 | M13: 0 | N13: 0 | O13: 0 | P13: 0 | Q13: 0 | R13: 0
A14: Total Revenue | I14: 220.6306012 | J14: =SUM(J10:J13) -> 0 | M14: 0 | N14: =SUM(N10:N13) -> 0 | O14: 220.6306012 | P14: =SUM(P10:P13) -> 0 | Q14: 141203.5848 | R14: =SUM(R10:R13) -> 0
Q15: Enterprise | R15: Enterprise
A16: VARIABLE COSTS | D16: Quantity | E16: Quantity | F16: Units | G16: $/Unit | H16: $/Unit | I16: Total | J16: Total | K16: Share | L16: Share | M16: Landlord | N16: Landlord | O16: Tenant | P16: Tenant | Q16: Total | R16: Total
A17: Production Costs
B18: Seed
C19: Wheat Seed | D19: 70 | F19: Pound | G19: 0.23 | I19: 16.1 | J19: =E19*H19 -> 0 | K19: 0 | M19: 0 | N19: =J19*L19 -> 0 | O19: 16.1 | P19: =+J19-N19 -> 0 | Q19: 10304 | R19: =+J19*E$7 -> 0
C20: Cowpea Seed | D20: 18 | F20: Pound | G20: 0.35 | I20: 6.3 | J20: 0 | K20: 0 | M20: 0 | N20: 0 | O20: 6.3 | P20: 0 | Q20: 4032 | R20: 0
B21: Fertilizer
C22: Manure Compost + Application | D22: 4014 | F22: Lb | G22: 0.014 | I22: 56.196 | J22: 0 | K22: 0 | M22: 0 | N22: 0 | O22: 56.196 | P22: 0 | Q22: 35965.44 | R22: 0
B23: Custom
C24: Custom Harvest Wheat | D24: 1 | F24: Acre | G24: 35 | I24: 35 | J24: 0 | K24: 0 | M24: 0 | N24: 0 | O24: 35 | P24: 0 | Q24: 22400 | R24: 0
C25: Custom Haul Wheat | D25: 25.57580018 | F25: Bushel | G25: 0.24 | I25: 6.138192043 | J25: 0 | K25: 0 | M25: 0 | N25: 0 | O25: 6.138192043 | P25: 0 | Q25: 3928.442907 | R25: 0
C26: Herbicide Application | D26: 1 | F26: Acre | G26: 5.5 | I26: 5.5 | J26: 0 | K26: 0 | M26: 0 | N26: 0 | O26: 5.5 | P26: 0 | Q26: 3520 | R26: 0
D27: 0 | G27: 0 | I27: 0 | J27: 0 | K27: 0 | M27: 0 | N27: 0 | O27: 0 | P27: 0 | Q27: 0 | R27: 0
D28: 0 | G28: 0 | I28: 0 | J28: 0 | K28: 0 | M28: 0 | N28: 0 | O28: 0 | P28: 0 | Q28: 0 | R28: 0
D29: 0 | G29: 0 | I29: 0 | J29: =E29*H29 -> 0 | K29: 0 | M29: 0 | N29: =J29*L29 -> 0 | O29: 0 | P29: =+J29-N29 -> 0 | Q29: 0 | R29: =+J29*E$7 -> 0
B30: Machinery Labor
C31: Tractors/Self-Propelled | D31: 0.52 | F31: Hour | G31: 15 | I31: 7.8 | J31: =E31*H31 -> 0 | K31: 0 | M31: 0 | N31: =J31*L31 -> 0 | O31: 7.8 | P31: =+J31-N31 -> 0 | Q31: 4992 | R31: =+J31*E$7 -> 0
C32: Other Labor | D32: 0.63 | F32: Hour | G32: 15 | I32: 9.45 | J32: =E32*H32 -> 0 | K32: 0 | M32: 0 | N32: =J32*L32 -> 0 | O32: 9.45 | P32: =+J32-N32 -> 0 | Q32: 6048 | R32: =+J32*E$7 -> 0
B34: Diesel Fuel
C35: Pickup/General Use Equipment | D35: 1 | F35: Acre | G35: 0 | I35: 0 | J35: =E35*H35 -> 0 | K35: 0 | M35: 0 | N35: =J35*L35 -> 0 | O35: 0 | P35: =+J35-N35 -> 0 | Q35: 0 | R35: =+J35*E$7 -> 0
C36: Tractors/Self-Propelled | D36: 3.51 | F36: Gallon | G36: 2.59 | I36: 9.0909 | J36: =E36*H36 -> 0 | K36: 0 | M36: 0 | N36: =J36*L36 -> 0 | O36: 9.0909 | P36: =+J36-N36 -> 0 | Q36: 5818.176 | R36: =+J36*E$7 -> 0
B38: Gasoline
C39: Pickup/General Use Equipment | D39: 1 | F39: Acre | G39: 2.109375 | I39: 2.109375 | J39: =E39*H39 -> 0 | K39: 0 | M39: 0 | N39: =J39*L39 -> 0 | O39: 2.109375 | P39: =+J39-N39 -> 0 | Q39: 1350 | R39: =+J39*E$7 -> 0
C40: Tractors/Self-Propelled | D40: 0 | F40: Gallon | G40: 3.1 | I40: 0 | J40: =E40*H40 -> 0 | K40: 0 | M40: 0 | N40: =J40*L40 -> 0 | O40: 0 | P40: =+J40-N40 -> 0 | Q40: 0 | R40: =+J40*E$7 -> 0
B42: Repairs & Maintenance
C43: Pickup/General Use Equipment | D43: 1 | F43: Acre | G43: 0.703125 | I43: 0.703125 | J43: =E43*H43 -> 0 | K43: 0 | M43: 0 | N43: =J43*L43 -> 0 | O43: 0.703125 | P43: =+J43-N43 -> 0 | Q43: 450 | R43: =+J43*E$7 -> 0
C44: Irrigation Equipment | D44: 1 | F44: Acre | G44: 0 | I44: 0 | J44: 0 | K44: 0 | M44: 0 | N44: 0 | O44: 0 | P44: 0 | Q44: 0 | R44: 0
C45: Tractors/Self-Propelled | D45: 1 | F45: Acre | G45: 7.213104836 | I45: 7.213104836 | J45: 0 | K45: 0 | M45: 0 | N45: 0 | O45: 7.213104836 | P45: 0 | Q45: 4616.387095 | R45: 0
C46: Implements | D46: 1 | F46: Acre | G46: 7.099668014 | I46: 7.099668014 | J46: 0 | K46: 0 | M46: 0 | N46: 0 | O46: 7.099668014 | P46: 0 | Q46: 4543.787529 | R46: 0
I47: 0 | J47: 0 | K47: 0 | M47: 0 | N47: 0 | O47: 0 | P47: 0 | Q47: 0 | R47: 0
I48: 0 | J48: 0 | K48: 0 | M48: 0 | N48: 0 | O48: 0 | P48: 0 | Q48: 0 | R48: 0
B49: Interest on Credit Line | G49: 0.09 | I49: 7.644146288 | J49: =+SUM(J18:J48)/2*H49 -> 0 | M49: 0 | N49: =+SUM(N18:N48)/2*L49 -> 0 | O49: 7.644146288 | P49: =+SUM(P18:P48)/2*L49 -> 0 | Q49: 4892.253624 | R49: =+J49*E$7 -> 0
A50: Total Variable Costs | I50: 176.3445112 | J50: =SUM(J19:J49) -> 0 | M50: 0 | N50: =SUM(N19:N49) -> 0 | O50: 176.3445112 | P50: =SUM(P19:P49) -> 0 | Q50: 112860.4872 | R50: =SUM(R19:R49) -> 0
A51: Planned Returns Above Variable Costs: | I51: 44.28609007 | J51: =+J14-J50 -> 0 | M51: 0 | N51: =+N14-N50 -> 0 | O51: 44.28609007 | P51: =+P14-P50 -> 0 | Q51: 28343.09764 | R51: =+R14-R50 -> 0
B52: Breakeven Price to Cover Variable Costs | G52: 5.268437751 | H52: =IF(E10=0,"n/a",(YVarExp-(YTotExp+YTotRet-J10))/E10) -> n/a | I52: Bushel
Q53: Enterprise | R53: Enterprise
A54: FIXED COSTS | D54: Quantity | E54: Quantity | F54: Units | G54: $/Unit | H54: $/Unit | I54: Total | J54: Total | K54: Share | L54: Share | M54: Landlord | N54: Landlord | O54: Tenant | P54: Tenant | Q54: Total | R54: Total
B55: Machinery Depreciation
C56: Pickup/General Use Equipment | D56: 1 | F56: Acre | G56: 0.976171875 | I56: 0.976171875 | J56: =E56*H56 -> 0 | K56: 0 | M56: 0 | N56: =J56*L56 -> 0 | O56: 0.976171875 | P56: =+J56-N56 -> 0 | Q56: 624.75 | R56: =+J56*E$7 -> 0
C57: Tractors/Self-Propelled | D57: 1 | F57: Acre | G57: 7.453541664 | I57: 7.453541664 | J57: 0 | K57: 0 | M57: 0 | N57: =J57*L57 -> 0 | O57: 7.453541664 | P57: 0 | Q57: 4770.266665 | R57: 0
C58: Implements | D58: 1 | F58: Acre | G58: 9.82249768 | I58: 9.82249768 | J58: 0 | K58: 0 | M58: 0 | N58: =J58*L58 -> 0 | O58: 9.82249768 | P58: 0 | Q58: 6286.398515 | R58: 0
B59: Equipment Investment
C60: Pickup/General Use Equipment | D60: 6.837890625 | F60: Dollars | G60: 0.08 | I60: 0.54703125 | J60: =E60*H60 -> 0 | K60: 0 | M60: 0 | N60: =J60*L60 -> 0 | O60: 0.54703125 | P60: =+J60-N60 -> 0 | Q60: 350.1 | R60: =+J60*E$7 -> 0
C61: Tractors/Self-Propelled | D61: 58.06549393 | F61: Dollars | G61: 0.08 | I61: 4.645239514 | J61: 0 | K61: 0 | M61: 0 | N61: =J61*L61 -> 0 | O61: 4.645239514 | P61: 0 | Q61: 2972.953289 | R61: 0
C62: Implements | D62: 42.0184623 | F62: Dollars | G62: 0.08 | I62: 3.361476984 | J62: 0 | K62: 0 | M62: 0 | N62: =J62*L62 -> 0 | O62: 3.361476984 | P62: 0 | Q62: 2151.34527 | R62: 0
B63: Salaried Labor | D63: 1 | F63: Acre | G63: 0 | I63: 0 | J63: 0 | K63: 0 | M63: 0 | N63: =J63*L63 -> 0 | O63: 0 | P63: =+J63-N63 -> 0 | Q63: 0 | R63: =+J63*E$7 -> 0
B64: Management Fee, Owner/Operator Labor | D64: 1 | F64: Acre | G64: 0 | I64: 0 | J64: 0 | K64: 0 | M64: 0 | N64: 0 | O64: 0 | P64: 0 | Q64: 0 | R64: 0
B65: Allocated Establishment Cost | D65: 1 | F65: Acre | G65: 0 | I65: 0 | J65: 0 | K65: 0 | M65: 0 | N65: 0 | O65: 0 | P65: 0 | Q65: 0 | R65: 0
B66: Cash Rent - Wheat | D66: 1 | F66: Acre | G66: 30 | I66: 30 | J66: 0 | K66: 0 | M66: 0 | N66: 0 | O66: 30 | P66: 0 | Q66: 19200 | R66: 0
B67: Property Taxes | D67: 1 | F67: Acre | G67: 0 | I67: 0 | J67: 0 | K67: 0 | M67: 0 | N67: 0 | O67: 0 | P67: 0 | Q67: 0 | R67: 0
B68: Whole Farm Insurance | D68: 1 | F68: Acre | G68: 0 | I68: 0 | J68: 0 | K68: 0 | M68: 0 | N68: 0 | O68: 0 | P68: 0 | Q68: 0 | R68: 0
D69: 1 | G69: 0 | I69: 0 | J69: 0 | K69: 0 | M69: 0 | N69: 0 | O69: 0 | P69: 0 | Q69: 0 | R69: 0
D70: 1 | G70: 0 | I70: 0 | J70: =E70*H70 -> 0 | K70: 0 | M70: 0 | N70: 0 | O70: 0 | P70: 0 | Q70: 0 | R70: 0
A71: Total Fixed Costs | I71: 56.80595897 | J71: =+SUM(J56:J70) -> 0 | M71: 0 | N71: =+SUM(N56:N70) -> 0 | O71: 56.80595897 | P71: =+SUM(P56:P70) -> 0 | Q71: 36355.81374 | R71: =+SUM(R56:R70) -> 0
A72: Total Specified Costs | I72: 233.1504701 | J72: =+J50+J71 -> 0 | M72: 0 | N72: =+N50+N71 -> 0 | O72: 233.1504701 | P72: =+P50+P71 -> 0 | Q72: 149216.3009 | R72: =+R50+R71 -> 0
A74: Returns Above Specified Costs | I74: -12.5198689 | J74: =+J14-J72 -> 0 | M74: 0 | N74: =+N14-N72 -> 0 | O74: -12.5198689 | P74: =+P14-P72 -> 0 | Q74: -8012.716096 | R74: =+R14-R72 -> 0
A76: Breakeven Price to Cover Total Costs | G76: 7.489520125 | H76: =IF(E10=0,"n/a",(YTotExp-(YTotExp+YTotRet-J10))/E10) -> n/a | I76: Bushel
D78: Example Breakeven Prices
B79: Example | C79: Example | D79: To Cover | G79: To Cover
B80: Yield | C80: Yield | D80: Variable | G80: Total
B81: Percent | C81: Bushel | D81: Costs | G81: Costs
B82: 0.75 | C82: 19.18185013 | D82: 7.024583669 | G82: 9.986026833
B83: 0.9 | C83: 23.01822016 | D83: 5.853819724 | G83: 8.321689028
B84: 1 | C84: 25.57580018 | D84: 5.268437751 | G84: 7.489520125
B85: 1.1 | C85: 28.1333802 | D85: 4.789488865 | G85: 6.808654659
B86: 1.25 | C86: 31.96975022 | D86: 4.214750201 | G86: 5.9916161
A88: Developed by Francisco Abelló, Assistant Professor and Extension Specialist, Texas A&M AgriLife Extension, 940-647-3908
A90: Information presented is prepared solely as a general guide and not intended to recognize or predict the costs and returns from any one operation. Brand names are mentioned only as examples and imply no endorsement.

Sheet Organic Summer HayCrop
A1: Projections for Planning Purposes Only -- Not to be Used without Updating
A2: 2025 Estimated Costs and Returns per Acre
A3: Organic summer Hay Crop
A4: Enter your name for this budget in the cell above.
A5: Enter Your Values in the cells highlighed in MAROON.
E6: Your Acres | R6: Your
C7: Crop Acres | D7: 640 | L7: Your | Q7: Enterprise | R7: Enterprise
E8: Your | H8: Your | I8: Cash | J8: Your | K8: Landlord | L8: Landlord | N8: Your | P8: Your | Q8: Total | R8: Total
A9: REVENUE | D9: Quantity | E9: Quantity | F9: Units | G9: $/Unit | H9: $/Unit | I9: Total | J9: Total | K9: Share | L9: Share | M9: Landlord | N9: Landlord | O9: Tenant | P9: Tenant | Q9: (640 acres) | R9: ="(" & E7 & " acres)" -> ( acres)
B10: OrganicSummer Hay | D10: 1.34 | F10: Ton | G10: 200 | I10: 268 | J10: =E10*H10 -> 0 | K10: 0 | M10: 0 | N10: =J10*L10 -> 0 | O10: 268 | P10: =+J10-N10 -> 0 | Q10: 171520 | R10: =+J10*E$7 -> 0
D11: 0 | G11: 0 | I11: 0 | J11: 0 | K11: 0 | M11: 0 | N11: 0 | O11: 0 | P11: =+J11-N11 -> 0 | Q11: 0 | R11: 0
D12: 0 | G12: 0 | I12: 0 | J12: 0 | K12: 0 | M12: 0 | N12: 0 | O12: 0 | P12: 0 | Q12: 0 | R12: 0
A13: Total Revenue | I13: 268 | J13: =SUM(J10:J12) -> 0 | M13: 0 | N13: =SUM(N10:N12) -> 0 | O13: 268 | P13: =SUM(P10:P12) -> 0 | Q13: 171520 | R13: =SUM(R10:R12) -> 0
Q14: Enterprise | R14: Enterprise
A15: VARIABLE COSTS | D15: Quantity | E15: Quantity | F15: Units | G15: $/Unit | H15: $/Unit | I15: Total | J15: Total | K15: Share | L15: Share | M15: Landlord | N15: Landlord | O15: Tenant | P15: Tenant | Q15: Total | R15: Total
A16: Production Costs
B17: Seed
C18: Wheat Seed | D18: 19 | F18: Pound | G18: 0.23 | I18: 4.37 | J18: =E18*H18 -> 0 | K18: 0 | M18: 0 | N18: =J18*L18 -> 0 | O18: 4.37 | P18: =+J18-N18 -> 0 | Q18: 2796.8 | R18: =+J18*E$7 -> 0
C19: Winter Pea Seed | D19: 40 | F19: Pound | G19: 0.65 | I19: 26 | J19: 0 | K19: 0 | M19: 0 | N19: 0 | O19: 26 | P19: 0 | Q19: 16640 | R19: 0
C20: Vetch | D20: 6 | F20: Pound | G20: 1 | I20: 6 | J20: 0 | K20: 0 | M20: 0 | N20: 0 | O20: 6 | P20: 0 | Q20: 3840 | R20: 0
B21: Custom
C22: Herbicide Application | D22: 1 | F22: Acre | G22: 5.5 | I22: 5.5 | J22: 0 | K22: 0 | M22: 0 | N22: 0 | O22: 5.5 | P22: 0 | Q22: 3520 | R22: 0
